{"text_format":"1","workbook":"xlsx","n_sheets":2,"sheets":["Ausgabe","CNC"],"not_rendered":{"charts":0,"images":0,"macros":1,"external_links":0,"defined_names":5,"comments":0,"pivot_tables":0},"unopened":[],"bounds":{"document_bytes":16777216,"sheet_cells":100000,"rows_first":2000,"rows_last":500,"rows_between":2000,"halvings":0,"cell_chars":16384,"cell_head_chars":4096},"cells_cut":0,"cells_raw":0,"read":"whole","date_system":"1900"}

{"sheet":"Ausgabe","index":0,"n_rows":1270,"n_cols":16,"rows_kept":1270,"cut":false,"hidden":false,"merged":[[5,1,5,8],[5,9,5,14]]}
[]
[]
[null,5,6,7,null,8,null,null,null,3,10,4]
[]
[]
[null,"Einkauf",null,null,null,null,null,null,null,"AV"]
["interne Nr.","Bedarfsmenge","Bestandsmenge","Bestellmenge","Material\nbestellt","voraussichtlicher\nLiefertermin","voraus.\nLiefertermin\nKW","voraus.\nLiefertermin\nJahr","Material ausreichend","Status Auftrag","Status Bearbeitung","Liefertermin\nlt. CT","ext. Dienstleistung\nbeauftragt","voraussichtliche\nLieferung","Material vorhanden","NC-Programm(e)"]
["1504001-90",0,0,0,"nein"," "," "," ","ja","-"," "," ",null,null,null,{"$f":"SverweisM($A8, CNC!$A$4:$AD$727, 30, \"   |   \")","v":""}]
["2431001-71",0,0,0,"nein"," "," "," ","ja","-"," "," ",null,null,null,{"$f":"SverweisM($A9, CNC!$A$4:$AD$727, 30, \"   |   \")","v":""}]
["2456801-00",0,0,0,"nein"," "," "," ","ja","Freigegeben"," "," ",null,null,null,{"$f":"SverweisM($A10, CNC!$A$4:$AD$727, 30, \"   |   \")","v":""}]
["2456802-00",0,0,0,"nein"," "," "," ","ja","-"," "," ",null,null,null,{"$f":"SverweisM($A11, CNC!$A$4:$AD$727, 30, \"   |   \")","v":""}]
["2456803-00",0,0,0,"nein"," "," "," ","ja","-"," "," ",null,null,null,{"$f":"SverweisM($A12, CNC!$A$4:$AD$727, 30, \"   |   \")","v":""}]
["2460501-00",0,0,0,"nein"," "," "," ","ja","-"," "," ",null,null,null,{"$f":"SverweisM($A13, CNC!$A$4:$AD$727, 30, \"   |   \")","v":""}]
["2461001-00",0,0,0,"nein"," "," "," ","ja","-"," "," ",null,null,null,{"$f":"SverweisM($A14, CNC!$A$4:$AD$727, 30, \"   |   \")","v":""}]
["2461002-00",0,0,0,"nein"," "," "," ","ja","Freigegeben"," "," ",null,null,null,{"$f":"SverweisM($A15, CNC!$A$4:$AD$727, 30, \"   |   \")","v":""}]
["2468101-00",0,0,0,"nein"," "," "," ","ja","-"," "," ",null,null,null,{"$f":"SverweisM($A16, CNC!$A$4:$AD$727, 30, \"   |   \")","v":""}]
["2481004-00",0,0,0,"nein"," "," "," ","ja","-"," "," ",null,null,null,{"$f":"SverweisM($A17, CNC!$A$4:$AD$727, 30, \"   |   \")","v":""}]
["2481004-02",0,0,0,"nein"," "," "," ","ja","-"," "," ",null,null,null,{"$f":"SverweisM($A18, CNC!$A$4:$AD$727, 30, \"   |   \")","v":""}]
["2481901-02",0,0,0,"nein"," "," "," ","ja","Freigegeben"," "," ",null,null,null,{"$f":"SverweisM($A19, CNC!$A$4:$AD$727, 30, \"   |   \")","v":""}]
["2482101-00",0,0,0,"nein"," "," "," ","ja","-"," "," ",null,null,null,{"$f":"SverweisM($A20, CNC!$A$4:$AD$727, 30, \"   |   \")","v":""}]
["2482101-01",0,0,0,"nein"," "," "," ","ja","-"," "," ",null,null,null,{"$f":"SverweisM($A21, CNC!$A$4:$AD$727, 30, \"   |   \")","v":"9_661294AT_VD_3   |   9_661294AT_VD_4"}]
["2482101-01",0,0,0,"nein"," "," "," ","ja","-"," "," ",null,null,null,{"$f":"SverweisM($A22, CNC!$A$4:$AD$727, 30, \"   |   \")","v":"9_661294AT_VD_3   |   9_661294AT_VD_4"}]
["2482101-02",0,0,0,"nein"," "," "," ","ja","-"," "," ",null,null,null,{"$f":"SverweisM($A23, CNC!$A$4:$AD$727, 30, \"   |   \")","v":"6-661295B-FG-1   |   9_661295B_VD_3   |   9_661295B_VD_4"}]
["2482101-02",0,0,0,"nein"," "," "," ","ja","-"," "," ",null,null,null,{"$f":"SverweisM($A24, CNC!$A$4:$AD$727, 30, \"   |   \")","v":"6-661295B-FG-1   |   9_661295B_VD_3   |   9_661295B_VD_4"}]
["2482101-02",0,0,0,"nein"," "," "," ","ja","-"," "," ",null,null,null,{"$f":"SverweisM($A25, CNC!$A$4:$AD$727, 30, \"   |   \")","v":"6-661295B-FG-1   |   9_661295B_VD_3   |   9_661295B_VD_4"}]
["2482102-00",0,0,0,"nein"," "," "," ","ja","-"," "," ",null,null,null,{"$f":"SverweisM($A26, CNC!$A$4:$AD$727, 30, \"   |   \")","v":""}]
["2482102-01",0,0,0,"nein"," "," "," ","ja","-"," "," ",null,null,null,{"$f":"SverweisM($A27, CNC!$A$4:$AD$727, 30, \"   |   \")","v":"8_666690A_SB_1   |   8_666690A_SB_2"}]
["2482102-01",0,0,0,"nein"," "," "," ","ja","-"," "," ",null,null,null,{"$f":"SverweisM($A28, CNC!$A$4:$AD$727, 30, \"   |   \")","v":"8_666690A_SB_1   |   8_666690A_SB_2"}]
["2482102-02",0,0,0,"nein"," "," "," ","ja","-"," "," ",null,null,null,{"$f":"SverweisM($A29, CNC!$A$4:$AD$727, 30, \"   |   \")","v":"8_666691A_SB_1   |   8_666691A_SB_2"}]
["2482102-02",0,0,0,"nein"," "," "," ","ja","-"," "," ",null,null,null,{"$f":"SverweisM($A30, CNC!$A$4:$AD$727, 30, \"   |   \")","v":"8_666691A_SB_1   |   8_666691A_SB_2"}]
["2482102-05",0,0,0,"nein"," "," "," ","ja","-"," "," ",null,null,null,{"$f":"SverweisM($A31, CNC!$A$4:$AD$727, 30, \"   |   \")","v":""}]
["2482102-05",0,0,0,"nein"," "," "," ","ja","-"," "," ",null,null,null,{"$f":"SverweisM($A32, CNC!$A$4:$AD$727, 30, \"   |   \")","v":""}]
["2482102-05",0,0,0,"nein"," "," "," ","ja","-"," "," ",null,null,null,{"$f":"SverweisM($A33, CNC!$A$4:$AD$727, 30, \"   |   \")","v":""}]
["2482102-05",0,0,0,"nein"," "," "," ","ja","-"," "," ",null,null,null,{"$f":"SverweisM($A34, CNC!$A$4:$AD$727, 30, \"   |   \")","v":""}]
["2482102-05",0,0,0,"nein"," "," "," ","ja","Freigegeben"," "," ",null,null,null,{"$f":"SverweisM($A35, CNC!$A$4:$AD$727, 30, \"   |   \")","v":""}]
["2482102-06",0,0,0,"nein"," "," "," ","ja","Freigegeben"," "," ",null,null,null,{"$f":"SverweisM($A36, CNC!$A$4:$AD$727, 30, \"   |   \")","v":""}]
["2482102-10",0,0,0,"nein"," "," "," ","ja","Freigegeben"," "," ",null,null,null,{"$f":"SverweisM($A37, CNC!$A$4:$AD$727, 30, \"   |   \")","v":""}]
["2482102-11",0,0,0,"nein"," "," "," ","ja","-"," "," ",null,null,null,{"$f":"SverweisM($A38, CNC!$A$4:$AD$727, 30, \"   |   \")","v":"1-661257A0-VD-1   |   1-661257A0-VD-2"}]
["2482102-11",0,0,0,"nein"," "," "," ","ja","Freigegeben"," "," ",null,null,null,{"$f":"SverweisM($A39, CNC!$A$4:$AD$727, 30, \"   |   \")","v":"1-661257A0-VD-1   |   1-661257A0-VD-2"}]
["2482102-11",0,0,0,"nein"," "," "," ","ja","Freigegeben"," "," ",null,null,null,{"$f":"SverweisM($A40, CNC!$A$4:$AD$727, 30, \"   |   \")","v":"1-661257A0-VD-1   |   1-661257A0-VD-2"}]
["2482102-11",0,0,0,"nein"," "," "," ","ja","Freigegeben"," "," ",null,null,null,{"$f":"SverweisM($A41, CNC!$A$4:$AD$727, 30, \"   |   \")","v":"1-661257A0-VD-1   |   1-661257A0-VD-2"}]
["2482102-15",0,0,0,"nein"," "," "," ","ja","Freigegeben"," "," ",null,null,null,{"$f":"SverweisM($A42, CNC!$A$4:$AD$727, 30, \"   |   \")","v":""}]
["2482102-15",0,0,0,"nein"," "," "," ","ja","-"," "," ",null,null,null,{"$f":"SverweisM($A43, CNC!$A$4:$AD$727, 30, \"   |   \")","v":""}]
["2482102-15",0,0,0,"nein"," "," "," ","ja","Freigegeben"," "," ",null,null,null,{"$f":"SverweisM($A44, CNC!$A$4:$AD$727, 30, \"   |   \")","v":""}]
["2482102-15",0,0,0,"nein"," "," "," ","ja","Freigegeben"," "," ",null,null,null,{"$f":"SverweisM($A45, CNC!$A$4:$AD$727, 30, \"   |   \")","v":""}]
["2482102-15",0,0,0,"nein"," "," "," ","ja","-"," "," ",null,null,null,{"$f":"SverweisM($A46, CNC!$A$4:$AD$727, 30, \"   |   \")","v":""}]
["2482102-16",0,0,0,"nein"," "," "," ","ja","Freigegeben"," "," ",null,null,null,{"$f":"SverweisM($A47, CNC!$A$4:$AD$727, 30, \"   |   \")","v":""}]
["2482102-18",0,0,0,"nein"," "," "," ","ja","-"," "," ",null,null,null,{"$f":"SverweisM($A48, CNC!$A$4:$AD$727, 30, \"   |   \")","v":""}]
["2482103-00",0,0,0,"nein"," "," "," ","ja","-"," "," ",null,null,null,{"$f":"SverweisM($A49, CNC!$A$4:$AD$727, 30, \"   |   \")","v":""}]
["2482103-01",0,0,0,"nein"," "," "," ","ja","-"," "," ",null,null,null,{"$f":"SverweisM($A50, CNC!$A$4:$AD$727, 30, \"   |   \")","v":""}]
["2482103-01",0,0,0,"nein"," "," "," ","ja","-"," "," ",null,null,null,{"$f":"SverweisM($A51, CNC!$A$4:$AD$727, 30, \"   |   \")","v":""}]
["2482103-02",0,0,0,"nein"," "," "," ","ja","Freigegeben"," "," ",null,null,null,{"$f":"SverweisM($A52, CNC!$A$4:$AD$727, 30, \"   |   \")","v":""}]
["2482103-02",0,0,0,"nein"," "," "," ","ja","Freigegeben"," "," ",null,null,null,{"$f":"SverweisM($A53, CNC!$A$4:$AD$727, 30, \"   |   \")","v":""}]
["2482103-06",0,0,0,"nein"," "," "," ","ja","Freigegeben"," "," ",null,null,null,{"$f":"SverweisM($A54, CNC!$A$4:$AD$727, 30, \"   |   \")","v":""}]
["2482103-10",0,0,0,"nein"," "," "," ","ja","-"," "," ",null,null,null,{"$f":"SverweisM($A55, CNC!$A$4:$AD$727, 30, \"   |   \")","v":""}]
["2482103-11",0,0,0,"nein"," "," "," ","ja","-"," "," ",null,null,null,{"$f":"SverweisM($A56, CNC!$A$4:$AD$727, 30, \"   |   \")","v":""}]
["2482103-11",0,0,0,"nein"," "," "," ","ja","Freigegeben"," "," ",null,null,null,{"$f":"SverweisM($A57, CNC!$A$4:$AD$727, 30, \"   |   \")","v":""}]
["2482103-11",0,0,0,"nein"," "," "," ","ja","Freigegeben"," "," ",null,null,null,{"$f":"SverweisM($A58, CNC!$A$4:$AD$727, 30, \"   |   \")","v":""}]
["2482103-15",0,0,0,"nein"," "," "," ","ja","-"," "," ",null,null,null,{"$f":"SverweisM($A59, CNC!$A$4:$AD$727, 30, \"   |   \")","v":""}]
["2482103-15",0,0,0,"nein"," "," "," ","ja","-"," "," ",null,null,null,{"$f":"SverweisM($A60, CNC!$A$4:$AD$727, 30, \"   |   \")","v":""}]
["2482103-15",0,0,0,"nein"," "," "," ","ja","-"," "," ",null,null,null,{"$f":"SverweisM($A61, CNC!$A$4:$AD$727, 30, \"   |   \")","v":""}]
["2482103-15",0,0,0,"nein"," "," "," ","ja","-"," "," ",null,null,null,{"$f":"SverweisM($A62, CNC!$A$4:$AD$727, 30, \"   |   \")","v":""}]
["2482103-15",0,0,0,"nein"," "," "," ","ja","-"," "," ",null,null,null,{"$f":"SverweisM($A63, CNC!$A$4:$AD$727, 30, \"   |   \")","v":""}]
["2482103-16",0,0,0,"nein"," "," "," ","ja","Fest geplant"," "," ",null,null,null,{"$f":"SverweisM($A64, CNC!$A$4:$AD$727, 30, \"   |   \")","v":""}]
["2482103-18",0,0,0,"nein"," "," "," ","ja","-"," "," ",null,null,null,{"$f":"SverweisM($A65, CNC!$A$4:$AD$727, 30, \"   |   \")","v":""}]
["2482104-00",0,0,0,"nein"," "," "," ","ja","Freigegeben"," "," ",null,null,null,{"$f":"SverweisM($A66, CNC!$A$4:$AD$727, 30, \"   |   \")","v":""}]
["2482104-01",0,0,0,"nein"," "," "," ","ja","-"," "," ",null,null,null,{"$f":"SverweisM($A67, CNC!$A$4:$AD$727, 30, \"   |   \")","v":""}]
["2493501-06",0,0,0,"nein"," "," "," ","ja","-"," "," ",null,null,null,{"$f":"SverweisM($A68, CNC!$A$4:$AD$727, 30, \"   |   \")","v":""}]
["2493901-08",0,0,0,"nein"," "," "," ","ja","-"," "," ",null,null,null,{"$f":"SverweisM($A69, CNC!$A$4:$AD$727, 30, \"   |   \")","v":""}]
["2499701-04",0,0,0,"nein"," "," "," ","ja","-"," "," ",null,null,null,{"$f":"SverweisM($A70, CNC!$A$4:$AD$727, 30, \"   |   \")","v":""}]
["2500901-12",0,0,0,"nein"," "," "," ","ja","-"," "," ",null,null,null,{"$f":"SverweisM($A71, CNC!$A$4:$AD$727, 30, \"   |   \")","v":""}]
["2501102-06",0,0,0,"nein"," "," "," ","ja","-"," "," ",null,null,null,{"$f":"SverweisM($A72, CNC!$A$4:$AD$727, 30, \"   |   \")","v":""}]
["2501102-07",0,0,0,"nein"," "," "," ","ja","-"," "," ",null,null,null,{"$f":"SverweisM($A73, CNC!$A$4:$AD$727, 30, \"   |   \")","v":""}]
["2515301-00",0,0,0,"nein"," "," "," ","ja","Fest geplant"," "," ",null,null,null,{"$f":"SverweisM($A74, CNC!$A$4:$AD$727, 30, \"   |   \")","v":""}]
["2518602-0",0,0,0,"nein"," "," "," ","ja","-"," "," ",null,null,null,{"$f":"SverweisM($A75, CNC!$A$4:$AD$727, 30, \"   |   \")","v":""}]
["2523001-00",0,0,0,"nein"," "," "," ","ja","-"," "," ",null,null,null,{"$f":"SverweisM($A76, CNC!$A$4:$AD$727, 30, \"   |   \")","v":""}]
["2523701-00",0,0,0,"nein"," "," "," ","ja","-"," "," ",null,null,null,{"$f":"SverweisM($A77, CNC!$A$4:$AD$727, 30, \"   |   \")","v":""}]
["2534901-03",0,0,0,"nein"," "," "," ","ja","-"," "," ",null,null,null,{"$f":"SverweisM($A78, CNC!$A$4:$AD$727, 30, \"   |   \")","v":""}]
["2540901-00",0,0,0,"nein"," "," "," ","ja","-"," "," ",null,null,null,{"$f":"SverweisM($A79, CNC!$A$4:$AD$727, 30, \"   |   \")","v":""}]
["2540902-00",0,0,0,"nein"," "," "," ","ja","-"," "," ",null,null,null,{"$f":"SverweisM($A80, CNC!$A$4:$AD$727, 30, \"   |   \")","v":""}]
["2540903-00",0,0,0,"nein"," "," "," ","ja","Freigegeben"," "," ",null,null,null,{"$f":"SverweisM($A81, CNC!$A$4:$AD$727, 30, \"   |   \")","v":""}]
["2543101-00",0,0,0,"nein"," "," "," ","ja","-"," "," ",null,null,null,{"$f":"SverweisM($A82, CNC!$A$4:$AD$727, 30, \"   |   \")","v":""}]
["2543102-00",0,0,0,"nein"," "," "," ","ja","Fest geplant"," "," ",null,null,null,{"$f":"SverweisM($A83, CNC!$A$4:$AD$727, 30, \"   |   \")","v":""}]
["2543103-00",0,0,0,"nein"," "," "," ","ja","-"," "," ",null,null,null,{"$f":"SverweisM($A84, CNC!$A$4:$AD$727, 30, \"   |   \")","v":""}]
["2543104-00",0,0,0,"nein"," "," "," ","ja","Freigegeben"," "," ",null,null,null,{"$f":"SverweisM($A85, CNC!$A$4:$AD$727, 30, \"   |   \")","v":""}]
["2547301-00",0,0,0,"nein"," "," "," ","ja","-"," "," ",null,null,null,{"$f":"SverweisM($A86, CNC!$A$4:$AD$727, 30, \"   |   \")","v":""}]
["2547301-01",0,0,0,"nein"," "," "," ","ja","-"," "," ",null,null,null,{"$f":"SverweisM($A87, CNC!$A$4:$AD$727, 30, \"   |   \")","v":"5-63569901-FG-1"}]
["2547301-03",0,0,0,"nein"," "," "," ","ja","-"," "," ",null,null,null,{"$f":"SverweisM($A88, CNC!$A$4:$AD$727, 30, \"   |   \")","v":"5-63570101-FG-1   |   5-63570101-FG-2"}]
["2547301-03",0,0,0,"nein"," "," "," ","ja","-"," "," ",null,null,null,{"$f":"SverweisM($A89, CNC!$A$4:$AD$727, 30, \"   |   \")","v":"5-63570101-FG-1   |   5-63570101-FG-2"}]
["2547301-33",0,0,0,"nein"," "," "," ","ja","Freigegeben"," "," ",null,null,null,{"$f":"SverweisM($A90, CNC!$A$4:$AD$727, 30, \"   |   \")","v":""}]
["2552201-00",0,0,0,"nein"," "," "," ","ja","Freigegeben"," "," ",null,null,null,{"$f":"SverweisM($A91, CNC!$A$4:$AD$727, 30, \"   |   \")","v":""}]
["2552201-01",0,0,0,"nein"," "," "," ","ja","-"," "," ",null,null,null,{"$f":"SverweisM($A92, CNC!$A$4:$AD$727, 30, \"   |   \")","v":"9_667092A_VD_2"}]
["2552201-01",0,0,0,"nein"," "," "," ","ja","-"," "," ",null,null,null,{"$f":"SverweisM($A93, CNC!$A$4:$AD$727, 30, \"   |   \")","v":"9_667092A_VD_2"}]
["2552201-08",0,0,0,"nein"," "," "," ","ja","-"," "," ",null,null,null,{"$f":"SverweisM($A94, CNC!$A$4:$AD$727, 30, \"   |   \")","v":""}]
["2552201-10",0,0,0,"nein"," "," "," ","ja","-"," "," ",null,null,null,{"$f":"SverweisM($A95, CNC!$A$4:$AD$727, 30, \"   |   \")","v":""}]
["2552201-11",0,0,0,"nein"," "," "," ","ja","-"," "," ",null,null,null,{"$f":"SverweisM($A96, CNC!$A$4:$AD$727, 30, \"   |   \")","v":""}]
["2552201-12",0,0,0,"nein"," "," "," ","ja","-"," "," ",null,null,null,{"$f":"SverweisM($A97, CNC!$A$4:$AD$727, 30, \"   |   \")","v":""}]
["2552201-13",0,0,0,"nein"," "," "," ","ja","-"," "," ",null,null,null,{"$f":"SverweisM($A98, CNC!$A$4:$AD$727, 30, \"   |   \")","v":""}]
["2552201-13",0,0,0,"nein"," "," "," ","ja","-"," "," ",null,null,null,{"$f":"SverweisM($A99, CNC!$A$4:$AD$727, 30, \"   |   \")","v":""}]
["2552201-90",0,0,0,"nein"," "," "," ","ja","-"," "," ",null,null,null,{"$f":"SverweisM($A100, CNC!$A$4:$AD$727, 30, \"   |   \")","v":""}]
["2552201-93",0,0,0,"nein"," "," "," ","ja","-"," "," ",null,null,null,{"$f":"SverweisM($A101, CNC!$A$4:$AD$727, 30, \"   |   \")","v":"5-667108A-FG-1"}]
["2552202-00",0,0,0,"nein"," "," "," ","ja","-"," "," ",null,null,null,{"$f":"SverweisM($A102, CNC!$A$4:$AD$727, 30, \"   |   \")","v":""}]
["2552202-01",0,0,0,"nein"," "," "," ","ja","-"," "," ",null,null,null,{"$f":"SverweisM($A103, CNC!$A$4:$AD$727, 30, \"   |   \")","v":"9_667092A_VD_1"}]
["2552202-08",0,0,0,"nein"," "," "," ","ja","-"," "," ",null,null,null,{"$f":"SverweisM($A104, CNC!$A$4:$AD$727, 30, \"   |   \")","v":""}]
["2552202-10",0,0,0,"nein"," "," "," ","ja","-"," "," ",null,null,null,{"$f":"SverweisM($A105, CNC!$A$4:$AD$727, 30, \"   |   \")","v":""}]
["2552202-12",0,0,0,"nein"," "," "," ","ja","-"," "," ",null,null,null,{"$f":"SverweisM($A106, CNC!$A$4:$AD$727, 30, \"   |   \")","v":""}]
["2552202-13",0,0,0,"nein"," "," "," ","ja","-"," "," ",null,null,null,{"$f":"SverweisM($A107, CNC!$A$4:$AD$727, 30, \"   |   \")","v":""}]
["2552202-13",0,0,0,"nein"," "," "," ","ja","-"," "," ",null,null,null,{"$f":"SverweisM($A108, CNC!$A$4:$AD$727, 30, \"   |   \")","v":""}]
["2552202-90",0,0,0,"nein"," "," "," ","ja","-"," "," ",null,null,null,{"$f":"SverweisM($A109, CNC!$A$4:$AD$727, 30, \"   |   \")","v":""}]
["2552202-93",0,0,0,"nein"," "," "," ","ja","-"," "," ",null,null,null,{"$f":"SverweisM($A110, CNC!$A$4:$AD$727, 30, \"   |   \")","v":"5-667108A-FG-1"}]
["2558001-00",0,0,0,"nein"," "," "," ","ja","-"," "," ",null,null,null,{"$f":"SverweisM($A111, CNC!$A$4:$AD$727, 30, \"   |   \")","v":""}]
["2558001-22",0,0,0,"nein"," "," "," ","ja","Freigegeben"," "," ",null,null,null,{"$f":"SverweisM($A112, CNC!$A$4:$AD$727, 30, \"   |   \")","v":""}]
["2559701-00",0,0,0,"nein"," "," "," ","ja","-"," "," ",null,null,null,{"$f":"SverweisM($A113, CNC!$A$4:$AD$727, 30, \"   |   \")","v":""}]
["2559701-90",0,0,0,"nein"," "," "," ","ja","Freigegeben"," "," ",null,null,null,{"$f":"SverweisM($A114, CNC!$A$4:$AD$727, 30, \"   |   \")","v":""}]
["2559702-00",0,0,0,"nein"," "," "," ","ja","-"," "," ",null,null,null,{"$f":"SverweisM($A115, CNC!$A$4:$AD$727, 30, \"   |   \")","v":""}]
["2559702-90",0,0,0,"nein"," "," "," ","ja","-"," "," ",null,null,null,{"$f":"SverweisM($A116, CNC!$A$4:$AD$727, 30, \"   |   \")","v":""}]
["2559703-00",0,0,0,"nein"," "," "," ","ja","-"," "," ",null,null,null,{"$f":"SverweisM($A117, CNC!$A$4:$AD$727, 30, \"   |   \")","v":""}]
["2559703-90",0,0,0,"nein"," "," "," ","ja","-"," "," ",null,null,null,{"$f":"SverweisM($A118, CNC!$A$4:$AD$727, 30, \"   |   \")","v":""}]
["2559704-00",0,0,0,"nein"," "," "," ","ja","-"," "," ",null,null,null,{"$f":"SverweisM($A119, CNC!$A$4:$AD$727, 30, \"   |   \")","v":""}]
["2559704-90",0,0,0,"nein"," "," "," ","ja","-"," "," ",null,null,null,{"$f":"SverweisM($A120, CNC!$A$4:$AD$727, 30, \"   |   \")","v":""}]
["2560001-00",0,0,0,"nein"," "," "," ","ja","-"," "," ",null,null,null,{"$f":"SverweisM($A121, CNC!$A$4:$AD$727, 30, \"   |   \")","v":""}]
["2561001-00",0,0,0,"nein"," "," "," ","ja","-"," "," ",null,null,null,{"$f":"SverweisM($A122, CNC!$A$4:$AD$727, 30, \"   |   \")","v":""}]
["2561001-21",0,0,0,"nein"," "," "," ","ja","-"," "," ",null,null,null,{"$f":"SverweisM($A123, CNC!$A$4:$AD$727, 30, \"   |   \")","v":"6-66578101-FG-1   |   6-66578101-FG-2"}]
["2561001-21",0,0,0,"nein"," "," "," ","ja","-"," "," ",null,null,null,{"$f":"SverweisM($A124, CNC!$A$4:$AD$727, 30, \"   |   \")","v":"6-66578101-FG-1   |   6-66578101-FG-2"}]
["2561001-23",0,0,0,"nein"," "," "," ","ja","Freigegeben"," "," ",null,null,null,{"$f":"SverweisM($A125, CNC!$A$4:$AD$727, 30, \"   |   \")","v":"6-66578201-FG-1   |   9_66578201_VD_3   |   9_66578201_VD_4"}]
["2561001-23",0,0,0,"nein"," "," "," ","ja","Freigegeben"," "," ",null,null,null,{"$f":"SverweisM($A126, CNC!$A$4:$AD$727, 30, \"   |   \")","v":"6-66578201-FG-1   |   9_66578201_VD_3   |   9_66578201_VD_4"}]
["2561001-23",0,0,0,"nein"," "," "," ","ja","Freigegeben"," "," ",null,null,null,{"$f":"SverweisM($A127, CNC!$A$4:$AD$727, 30, \"   |   \")","v":"6-66578201-FG-1   |   9_66578201_VD_3   |   9_66578201_VD_4"}]
["2561001-30",0,0,0,"nein"," "," "," ","ja","-"," "," ",null,null,null,{"$f":"SverweisM($A128, CNC!$A$4:$AD$727, 30, \"   |   \")","v":""}]
["2561001-31",0,0,0,"nein"," "," "," ","ja","-"," "," ",null,null,null,{"$f":"SverweisM($A129, CNC!$A$4:$AD$727, 30, \"   |   \")","v":""}]
["2561001-32",0,0,0,"nein"," "," "," ","ja","-"," "," ",null,null,null,{"$f":"SverweisM($A130, CNC!$A$4:$AD$727, 30, \"   |   \")","v":"6-66059701-FG-2"}]
["2561001-33",0,0,0,"nein"," "," "," ","ja","-"," "," ",null,null,null,{"$f":"SverweisM($A131, CNC!$A$4:$AD$727, 30, \"   |   \")","v":""}]
["2561001-34",0,0,0,"nein"," "," "," ","ja","Freigegeben"," "," ",null,null,null,{"$f":"SverweisM($A132, CNC!$A$4:$AD$727, 30, \"   |   \")","v":""}]
["2561101-00",0,0,0,"nein"," "," "," ","ja","-"," "," ",null,null,null,{"$f":"SverweisM($A133, CNC!$A$4:$AD$727, 30, \"   |   \")","v":""}]
["2561101-21",0,0,0,"nein"," "," "," ","ja","-"," "," ",null,null,null,{"$f":"SverweisM($A134, CNC!$A$4:$AD$727, 30, \"   |   \")","v":"6-66578101-FG-2   |   6-66578101-FG-1"}]
["2561101-21",0,0,0,"nein"," "," "," ","ja","Freigegeben"," "," ",null,null,null,{"$f":"SverweisM($A135, CNC!$A$4:$AD$727, 30, \"   |   \")","v":"6-66578101-FG-2   |   6-66578101-FG-1"}]
["2561101-23",0,0,0,"nein"," "," "," ","ja","-"," "," ",null,null,null,{"$f":"SverweisM($A136, CNC!$A$4:$AD$727, 30, \"   |   \")","v":"6-66578201-FG-1   |   9_66578201_VD_3   |   9_66578201_VD_4"}]
["2561101-23",0,0,0,"nein"," "," "," ","ja","-"," "," ",null,null,null,{"$f":"SverweisM($A137, CNC!$A$4:$AD$727, 30, \"   |   \")","v":"6-66578201-FG-1   |   9_66578201_VD_3   |   9_66578201_VD_4"}]
["2561101-23",0,0,0,"nein"," "," "," ","ja","-"," "," ",null,null,null,{"$f":"SverweisM($A138, CNC!$A$4:$AD$727, 30, \"   |   \")","v":"6-66578201-FG-1   |   9_66578201_VD_3   |   9_66578201_VD_4"}]
["2561101-30",0,0,0,"nein"," "," "," ","ja","-"," "," ",null,null,null,{"$f":"SverweisM($A139, CNC!$A$4:$AD$727, 30, \"   |   \")","v":""}]
["2561101-31",0,0,0,"nein"," "," "," ","ja","Freigegeben"," "," ",null,null,null,{"$f":"SverweisM($A140, CNC!$A$4:$AD$727, 30, \"   |   \")","v":""}]
["2561101-32",0,0,0,"nein"," "," "," ","ja","Freigegeben"," "," ",null,null,null,{"$f":"SverweisM($A141, CNC!$A$4:$AD$727, 30, \"   |   \")","v":"6-66059701-FG-2"}]
["2561101-33",0,0,0,"nein"," "," "," ","ja","-"," "," ",null,null,null,{"$f":"SverweisM($A142, CNC!$A$4:$AD$727, 30, \"   |   \")","v":""}]
["2561101-34",0,0,0,"nein"," "," "," ","ja","Freigegeben"," "," ",null,null,null,{"$f":"SverweisM($A143, CNC!$A$4:$AD$727, 30, \"   |   \")","v":""}]
["2561701-00",0,0,0,"nein"," "," "," ","ja","Freigegeben"," "," ",null,null,null,{"$f":"SverweisM($A144, CNC!$A$4:$AD$727, 30, \"   |   \")","v":""}]
["2566001-00",0,0,0,"nein"," "," "," ","ja","-"," "," ",null,null,null,{"$f":"SverweisM($A145, CNC!$A$4:$AD$727, 30, \"   |   \")","v":""}]
["2566301-06",0,0,0,"nein"," "," "," ","ja","Freigegeben"," "," ",null,null,null,{"$f":"SverweisM($A146, CNC!$A$4:$AD$727, 30, \"   |   \")","v":""}]
["2566401-00",0,0,0,"nein"," "," "," ","ja","-"," "," ",null,null,null,{"$f":"SverweisM($A147, CNC!$A$4:$AD$727, 30, \"   |   \")","v":""}]
["2566401-47",0,0,0,"nein"," "," "," ","ja","Freigegeben"," "," ",null,null,null,{"$f":"SverweisM($A148, CNC!$A$4:$AD$727, 30, \"   |   \")","v":""}]
["2567601-00",0,0,0,"nein"," "," "," ","ja","-"," "," ",null,null,null,{"$f":"SverweisM($A149, CNC!$A$4:$AD$727, 30, \"   |   \")","v":""}]
["2567602-00",0,0,0,"nein"," "," "," ","ja","-"," "," ",null,null,null,{"$f":"SverweisM($A150, CNC!$A$4:$AD$727, 30, \"   |   \")","v":""}]
["2569101-00",0,0,0,"nein"," "," "," ","ja","Freigegeben"," "," ",null,null,null,{"$f":"SverweisM($A151, CNC!$A$4:$AD$727, 30, \"   |   \")","v":""}]
["2569101-01",0,0,0,"nein"," "," "," ","ja","Freigegeben"," "," ",null,null,null,{"$f":"SverweisM($A152, CNC!$A$4:$AD$727, 30, \"   |   \")","v":""}]
["2569102-00",0,0,0,"nein"," "," "," ","ja","-"," "," ",null,null,null,{"$f":"SverweisM($A153, CNC!$A$4:$AD$727, 30, \"   |   \")","v":""}]
["2569102-02",0,0,0,"nein"," "," "," ","ja","-"," "," ",null,null,null,{"$f":"SverweisM($A154, CNC!$A$4:$AD$727, 30, \"   |   \")","v":""}]
["2569103-00",0,0,0,"nein"," "," "," ","ja","-"," "," ",null,null,null,{"$f":"SverweisM($A155, CNC!$A$4:$AD$727, 30, \"   |   \")","v":""}]
["2569103-21",0,0,0,"nein"," "," "," ","ja","Freigegeben"," "," ",null,null,null,{"$f":"SverweisM($A156, CNC!$A$4:$AD$727, 30, \"   |   \")","v":""}]
["2569104-00",0,0,0,"nein"," "," "," ","ja","Freigegeben"," "," ",null,null,null,{"$f":"SverweisM($A157, CNC!$A$4:$AD$727, 30, \"   |   \")","v":""}]
["2569104-01",0,0,0,"nein"," "," "," ","ja","-"," "," ",null,null,null,{"$f":"SverweisM($A158, CNC!$A$4:$AD$727, 30, \"   |   \")","v":""}]
["2569202-08",0,0,0,"nein"," "," "," ","ja","Freigegeben"," "," ",null,null,null,{"$f":"SverweisM($A159, CNC!$A$4:$AD$727, 30, \"   |   \")","v":""}]
["2569203-93",0,0,0,"nein"," "," "," ","ja","Freigegeben"," "," ",null,null,null,{"$f":"SverweisM($A160, CNC!$A$4:$AD$727, 30, \"   |   \")","v":""}]
["2572405-00",0,0,0,"nein"," "," "," ","ja","Freigegeben"," "," ",null,null,null,{"$f":"SverweisM($A161, CNC!$A$4:$AD$727, 30, \"   |   \")","v":""}]
["2572601-00",0,0,0,"nein"," "," "," ","ja","Freigegeben"," "," ",null,null,null,{"$f":"SverweisM($A162, CNC!$A$4:$AD$727, 30, \"   |   \")","v":""}]
["2572601-01",0,0,0,"nein"," "," "," ","ja","-"," "," ",null,null,null,{"$f":"SverweisM($A163, CNC!$A$4:$AD$727, 30, \"   |   \")","v":"6-667245A-FG-1"}]
["2572601-02",0,0,0,"nein"," "," "," ","ja","Freigegeben"," "," ",null,null,null,{"$f":"SverweisM($A164, CNC!$A$4:$AD$727, 30, \"   |   \")","v":""}]
["2572601-11",0,0,0,"nein"," "," "," ","ja","-"," "," ",null,null,null,{"$f":"SverweisM($A165, CNC!$A$4:$AD$727, 30, \"   |   \")","v":""}]
["2572601-11",0,0,0,"nein"," "," "," ","ja","Freigegeben"," "," ",null,null,null,{"$f":"SverweisM($A166, CNC!$A$4:$AD$727, 30, \"   |   \")","v":""}]
["2572601-17",0,0,0,"nein"," "," "," ","ja","-"," "," ",null,null,null,{"$f":"SverweisM($A167, CNC!$A$4:$AD$727, 30, \"   |   \")","v":""}]
["2572601-90",0,0,0,"nein"," "," "," ","ja","Freigegeben"," "," ",null,null,null,{"$f":"SverweisM($A168, CNC!$A$4:$AD$727, 30, \"   |   \")","v":""}]
["2572801-00",0,0,0,"nein"," "," "," ","ja","-"," "," ",null,null,null,{"$f":"SverweisM($A169, CNC!$A$4:$AD$727, 30, \"   |   \")","v":""}]
["2573501-00",0,0,0,"nein"," "," "," ","ja","-"," "," ",null,null,null,{"$f":"SverweisM($A170, CNC!$A$4:$AD$727, 30, \"   |   \")","v":""}]
["2573501-01",0,0,0,"nein"," "," "," ","ja","-"," "," ",null,null,null,{"$f":"SverweisM($A171, CNC!$A$4:$AD$727, 30, \"   |   \")","v":""}]
["2573501-01",0,0,0,"nein"," "," "," ","ja","-"," "," ",null,null,null,{"$f":"SverweisM($A172, CNC!$A$4:$AD$727, 30, \"   |   \")","v":""}]
["2573502-00",0,0,0,"nein"," "," "," ","ja","-"," "," ",null,null,null,{"$f":"SverweisM($A173, CNC!$A$4:$AD$727, 30, \"   |   \")","v":""}]
["2573502-01",0,0,0,"nein"," "," "," ","ja","Freigegeben"," "," ",null,null,null,{"$f":"SverweisM($A174, CNC!$A$4:$AD$727, 30, \"   |   \")","v":""}]
["2573502-01",0,0,0,"nein"," "," "," ","ja","Freigegeben"," "," ",null,null,null,{"$f":"SverweisM($A175, CNC!$A$4:$AD$727, 30, \"   |   \")","v":""}]
["2573801-00",0,0,0,"nein"," "," "," ","ja","-"," "," ",null,null,null,{"$f":"SverweisM($A176, CNC!$A$4:$AD$727, 30, \"   |   \")","v":""}]
["2573801-21",0,0,0,"nein"," "," "," ","ja","-"," "," ",null,null,null,{"$f":"SverweisM($A177, CNC!$A$4:$AD$727, 30, \"   |   \")","v":""}]
["2575001-00",0,0,0,"nein"," "," "," ","ja","-"," "," ",null,null,null,{"$f":"SverweisM($A178, CNC!$A$4:$AD$727, 30, \"   |   \")","v":""}]
["2575001-01",0,0,0,"nein"," "," "," ","ja","-"," "," ",null,null,null,{"$f":"SverweisM($A179, CNC!$A$4:$AD$727, 30, \"   |   \")","v":""}]
["2575001-02",0,0,0,"nein"," "," "," ","ja","-"," "," ",null,null,null,{"$f":"SverweisM($A180, CNC!$A$4:$AD$727, 30, \"   |   \")","v":""}]
["2575001-03",0,0,0,"nein"," "," "," ","ja","-"," "," ",null,null,null,{"$f":"SverweisM($A181, CNC!$A$4:$AD$727, 30, \"   |   \")","v":""}]
["2575001-04",0,0,0,"nein"," "," "," ","ja","Freigegeben"," "," ",null,null,null,{"$f":"SverweisM($A182, CNC!$A$4:$AD$727, 30, \"   |   \")","v":""}]
["2575001-05",0,0,0,"nein"," "," "," ","ja","Freigegeben"," "," ",null,null,null,{"$f":"SverweisM($A183, CNC!$A$4:$AD$727, 30, \"   |   \")","v":""}]
["2575001-07",0,0,0,"nein"," "," "," ","ja","-"," "," ",null,null,null,{"$f":"SverweisM($A184, CNC!$A$4:$AD$727, 30, \"   |   \")","v":""}]
["2575001-11",0,0,0,"nein"," "," "," ","ja","Freigegeben"," "," ",null,null,null,{"$f":"SverweisM($A185, CNC!$A$4:$AD$727, 30, \"   |   \")","v":""}]
["2575001-18",0,0,0,"nein"," "," "," ","ja","-"," "," ",null,null,null,{"$f":"SverweisM($A186, CNC!$A$4:$AD$727, 30, \"   |   \")","v":""}]
["2575001-90",0,0,0,"nein"," "," "," ","ja","Freigegeben"," "," ",null,null,null,{"$f":"SverweisM($A187, CNC!$A$4:$AD$727, 30, \"   |   \")","v":""}]
["2575701-00",0,0,0,"nein"," "," "," ","ja","Freigegeben"," "," ",null,null,null,{"$f":"SverweisM($A188, CNC!$A$4:$AD$727, 30, \"   |   \")","v":""}]
["2575701-04",0,0,0,"nein"," "," "," ","ja","-"," "," ",null,null,null,{"$f":"SverweisM($A189, CNC!$A$4:$AD$727, 30, \"   |   \")","v":"7-66058311-VD-1   |   7-66058311-VD-2"}]
["2575701-04",0,0,0,"nein"," "," "," ","ja","Freigegeben"," "," ",null,null,null,{"$f":"SverweisM($A190, CNC!$A$4:$AD$727, 30, \"   |   \")","v":"7-66058311-VD-1   |   7-66058311-VD-2"}]
["2575701-04",0,0,0,"nein"," "," "," ","ja","-"," "," ",null,null,null,{"$f":"SverweisM($A191, CNC!$A$4:$AD$727, 30, \"   |   \")","v":"7-66058311-VD-1   |   7-66058311-VD-2"}]
["2575901-00",0,0,0,"nein"," "," "," ","ja","Freigegeben"," "," ",null,null,null,{"$f":"SverweisM($A192, CNC!$A$4:$AD$727, 30, \"   |   \")","v":""}]
["2576101-00",0,0,0,"nein"," "," "," ","ja","Freigegeben"," "," ",null,null,null,{"$f":"SverweisM($A193, CNC!$A$4:$AD$727, 30, \"   |   \")","v":""}]
["2576101-04",0,0,0,"nein"," "," "," ","ja","-"," "," ",null,null,null,{"$f":"SverweisM($A194, CNC!$A$4:$AD$727, 30, \"   |   \")","v":"7-66058311-VD-1   |   7-66058311-VD-2"}]
["2576101-04",0,0,0,"nein"," "," "," ","ja","-"," "," ",null,null,null,{"$f":"SverweisM($A195, CNC!$A$4:$AD$727, 30, \"   |   \")","v":"7-66058311-VD-1   |   7-66058311-VD-2"}]
["2576101-04",0,0,0,"nein"," "," "," ","ja","-"," "," ",null,null,null,{"$f":"SverweisM($A196, CNC!$A$4:$AD$727, 30, \"   |   \")","v":"7-66058311-VD-1   |   7-66058311-VD-2"}]
["2576501-00",0,0,0,"nein"," "," "," ","ja","-"," "," ",null,null,null,{"$f":"SverweisM($A197, CNC!$A$4:$AD$727, 30, \"   |   \")","v":""}]
["2576501-01",0,0,0,"nein"," "," "," ","ja","Freigegeben"," "," ",null,null,null,{"$f":"SverweisM($A198, CNC!$A$4:$AD$727, 30, \"   |   \")","v":""}]
["2576502-00",0,0,0,"nein"," "," "," ","ja","Freigegeben"," "," ",null,null,null,{"$f":"SverweisM($A199, CNC!$A$4:$AD$727, 30, \"   |   \")","v":""}]
["2576502-01",0,0,0,"nein"," "," "," ","ja","Freigegeben"," "," ",null,null,null,{"$f":"SverweisM($A200, CNC!$A$4:$AD$727, 30, \"   |   \")","v":""}]
["2576503-00",0,0,0,"nein"," "," "," ","ja","Freigegeben"," "," ",null,null,null,{"$f":"SverweisM($A201, CNC!$A$4:$AD$727, 30, \"   |   \")","v":""}]
["2576503-01",0,0,0,"nein"," "," "," ","ja","Fest geplant"," "," ",null,null,null,{"$f":"SverweisM($A202, CNC!$A$4:$AD$727, 30, \"   |   \")","v":""}]
["2577001-00",0,0,0,"nein"," "," "," ","ja","-"," "," ",null,null,null,{"$f":"SverweisM($A203, CNC!$A$4:$AD$727, 30, \"   |   \")","v":""}]
["2577001-03",0,0,0,"nein"," "," "," ","ja","-"," "," ",null,null,null,{"$f":"SverweisM($A204, CNC!$A$4:$AD$727, 30, \"   |   \")","v":""}]
["2577402-00",0,0,0,"nein"," "," "," ","ja","Freigegeben"," "," ",null,null,null,{"$f":"SverweisM($A205, CNC!$A$4:$AD$727, 30, \"   |   \")","v":""}]
["2577402-06",0,0,0,"nein"," "," "," ","ja","Freigegeben"," "," ",null,null,null,{"$f":"SverweisM($A206, CNC!$A$4:$AD$727, 30, \"   |   \")","v":""}]
["2577402-10",0,0,0,"nein"," "," "," ","ja","-"," "," ",null,null,null,{"$f":"SverweisM($A207, CNC!$A$4:$AD$727, 30, \"   |   \")","v":""}]
["2577402-11",0,0,0,"nein"," "," "," ","ja","Freigegeben"," "," ",null,null,null,{"$f":"SverweisM($A208, CNC!$A$4:$AD$727, 30, \"   |   \")","v":""}]
["2577402-30",0,0,0,"nein"," "," "," ","ja","-"," "," ",null,null,null,{"$f":"SverweisM($A209, CNC!$A$4:$AD$727, 30, \"   |   \")","v":""}]
["2577403-00",0,0,0,"nein"," "," "," ","ja","-"," "," ",null,null,null,{"$f":"SverweisM($A210, CNC!$A$4:$AD$727, 30, \"   |   \")","v":""}]
["2577403-01",0,0,0,"nein"," "," "," ","ja","-"," "," ",null,null,null,{"$f":"SverweisM($A211, CNC!$A$4:$AD$727, 30, \"   |   \")","v":"8_65773601_VD_2   |   8_65773601_VD_1"}]
["2577403-01",0,0,0,"nein"," "," "," ","ja","-"," "," ",null,null,null,{"$f":"SverweisM($A212, CNC!$A$4:$AD$727, 30, \"   |   \")","v":"8_65773601_VD_2   |   8_65773601_VD_1"}]
["2577403-01",0,0,0,"nein"," "," "," ","ja","-"," "," ",null,null,null,{"$f":"SverweisM($A213, CNC!$A$4:$AD$727, 30, \"   |   \")","v":"8_65773601_VD_2   |   8_65773601_VD_1"}]
["2577403-02",0,0,0,"nein"," "," "," ","ja","-"," "," ",null,null,null,{"$f":"SverweisM($A214, CNC!$A$4:$AD$727, 30, \"   |   \")","v":"8_65773701_VD_1"}]
["2577403-02",0,0,0,"nein"," "," "," ","ja","-"," "," ",null,null,null,{"$f":"SverweisM($A215, CNC!$A$4:$AD$727, 30, \"   |   \")","v":"8_65773701_VD_1"}]
["2577403-04",0,0,0,"nein"," "," "," ","ja","-"," "," ",null,null,null,{"$f":"SverweisM($A216, CNC!$A$4:$AD$727, 30, \"   |   \")","v":""}]
["2577403-04",0,0,0,"nein"," "," "," ","ja","-"," "," ",null,null,null,{"$f":"SverweisM($A217, CNC!$A$4:$AD$727, 30, \"   |   \")","v":""}]
["2577403-04",0,0,0,"nein"," "," "," ","ja","-"," "," ",null,null,null,{"$f":"SverweisM($A218, CNC!$A$4:$AD$727, 30, \"   |   \")","v":""}]
["2577403-05",0,0,0,"nein"," "," "," ","ja","Freigegeben"," "," ",null,null,null,{"$f":"SverweisM($A219, CNC!$A$4:$AD$727, 30, \"   |   \")","v":"5-65101401-FG-1"}]
["2577403-06",0,0,0,"nein"," "," "," ","ja","Freigegeben"," "," ",null,null,null,{"$f":"SverweisM($A220, CNC!$A$4:$AD$727, 30, \"   |   \")","v":"5-65101501-FG-1"}]
["2577403-10",0,0,0,"nein"," "," "," ","ja","Freigegeben"," "," ",null,null,null,{"$f":"SverweisM($A221, CNC!$A$4:$AD$727, 30, \"   |   \")","v":""}]
["2577403-11",0,0,0,"nein"," "," "," ","ja","-"," "," ",null,null,null,{"$f":"SverweisM($A222, CNC!$A$4:$AD$727, 30, \"   |   \")","v":""}]
["2577403-30",0,0,0,"nein"," "," "," ","ja","-"," "," ",null,null,null,{"$f":"SverweisM($A223, CNC!$A$4:$AD$727, 30, \"   |   \")","v":""}]
["2577403-80",0,0,0,"nein"," "," "," ","ja","Freigegeben"," "," ",null,null,null,{"$f":"SverweisM($A224, CNC!$A$4:$AD$727, 30, \"   |   \")","v":""}]
["2577404-00",0,0,0,"nein"," "," "," ","ja","Freigegeben"," "," ",null,null,null,{"$f":"SverweisM($A225, CNC!$A$4:$AD$727, 30, \"   |   \")","v":""}]
["2577404-01",0,0,0,"nein"," "," "," ","ja","-"," "," ",null,null,null,{"$f":"SverweisM($A226, CNC!$A$4:$AD$727, 30, \"   |   \")","v":"8_65773601_VD_1   |   8_65773601_VD_2"}]
["2577404-01",0,0,0,"nein"," "," "," ","ja","-"," "," ",null,null,null,{"$f":"SverweisM($A227, CNC!$A$4:$AD$727, 30, \"   |   \")","v":"8_65773601_VD_1   |   8_65773601_VD_2"}]
["2577404-02",0,0,0,"nein"," "," "," ","ja","Freigegeben"," "," ",null,null,null,{"$f":"SverweisM($A228, CNC!$A$4:$AD$727, 30, \"   |   \")","v":"8_65773701_VD_1"}]
["2577404-03",0,0,0,"nein"," "," "," ","ja","-"," "," ",null,null,null,{"$f":"SverweisM($A229, CNC!$A$4:$AD$727, 30, \"   |   \")","v":"6-65244601-FG-1"}]
["2577404-04",0,0,0,"nein"," "," "," ","ja","-"," "," ",null,null,null,{"$f":"SverweisM($A230, CNC!$A$4:$AD$727, 30, \"   |   \")","v":""}]
["2577404-04",0,0,0,"nein"," "," "," ","ja","-"," "," ",null,null,null,{"$f":"SverweisM($A231, CNC!$A$4:$AD$727, 30, \"   |   \")","v":""}]
["2577404-04",0,0,0,"nein"," "," "," ","ja","Freigegeben"," "," ",null,null,null,{"$f":"SverweisM($A232, CNC!$A$4:$AD$727, 30, \"   |   \")","v":""}]
["2577404-05",0,0,0,"nein"," "," "," ","ja","Freigegeben"," "," ",null,null,null,{"$f":"SverweisM($A233, CNC!$A$4:$AD$727, 30, \"   |   \")","v":"5-65101401-FG-1"}]
["2577404-06",0,0,0,"nein"," "," "," ","ja","-"," "," ",null,null,null,{"$f":"SverweisM($A234, CNC!$A$4:$AD$727, 30, \"   |   \")","v":"5-65101501-FG-1"}]
["2577404-10",0,0,0,"nein"," "," "," ","ja","Freigegeben"," "," ",null,null,null,{"$f":"SverweisM($A235, CNC!$A$4:$AD$727, 30, \"   |   \")","v":""}]
["2577404-11",0,0,0,"nein"," "," "," ","ja","-"," "," ",null,null,null,{"$f":"SverweisM($A236, CNC!$A$4:$AD$727, 30, \"   |   \")","v":""}]
["2577404-30",0,0,0,"nein"," "," "," ","ja","Freigegeben"," "," ",null,null,null,{"$f":"SverweisM($A237, CNC!$A$4:$AD$727, 30, \"   |   \")","v":""}]
["2577701-00",0,0,0,"nein"," "," "," ","ja","-"," "," ",null,null,null,{"$f":"SverweisM($A238, CNC!$A$4:$AD$727, 30, \"   |   \")","v":""}]
["2577701-03",0,0,0,"nein"," "," "," ","ja","-"," "," ",null,null,null,{"$f":"SverweisM($A239, CNC!$A$4:$AD$727, 30, \"   |   \")","v":""}]
["2579201-00",0,0,0,"nein"," "," "," ","ja","-"," "," ",null,null,null,{"$f":"SverweisM($A240, CNC!$A$4:$AD$727, 30, \"   |   \")","v":""}]
["2579201-90",0,0,0,"nein"," "," "," ","ja","Freigegeben"," "," ",null,null,null,{"$f":"SverweisM($A241, CNC!$A$4:$AD$727, 30, \"   |   \")","v":""}]
["2580001-00",0,0,0,"nein"," "," "," ","ja","Freigegeben"," "," ",null,null,null,{"$f":"SverweisM($A242, CNC!$A$4:$AD$727, 30, \"   |   \")","v":""}]
["2580001-02",0,0,0,"nein"," "," "," ","ja","-"," "," ",null,null,null,{"$f":"SverweisM($A243, CNC!$A$4:$AD$727, 30, \"   |   \")","v":""}]
["2580001-10",0,0,0,"nein"," "," "," ","ja","Freigegeben"," "," ",null,null,null,{"$f":"SverweisM($A244, CNC!$A$4:$AD$727, 30, \"   |   \")","v":""}]
["2580001-11",0,0,0,"nein"," "," "," ","ja","Freigegeben"," "," ",null,null,null,{"$f":"SverweisM($A245, CNC!$A$4:$AD$727, 30, \"   |   \")","v":""}]
["2580001-15",0,0,0,"nein"," "," "," ","ja","Freigegeben"," "," ",null,null,null,{"$f":"SverweisM($A246, CNC!$A$4:$AD$727, 30, \"   |   \")","v":""}]
["2580001-15",0,0,0,"nein"," "," "," ","ja","-"," "," ",null,null,null,{"$f":"SverweisM($A247, CNC!$A$4:$AD$727, 30, \"   |   \")","v":""}]
["2580002-00",0,0,0,"nein"," "," "," ","ja","Freigegeben"," "," ",null,null,null,{"$f":"SverweisM($A248, CNC!$A$4:$AD$727, 30, \"   |   \")","v":""}]
["2580002-02",0,0,0,"nein"," "," "," ","ja","-"," "," ",null,null,null,{"$f":"SverweisM($A249, CNC!$A$4:$AD$727, 30, \"   |   \")","v":""}]
["2580002-10",0,0,0,"nein"," "," "," ","ja","Freigegeben"," "," ",null,null,null,{"$f":"SverweisM($A250, CNC!$A$4:$AD$727, 30, \"   |   \")","v":""}]
["2580002-11",0,0,0,"nein"," "," "," ","ja","Freigegeben"," "," ",null,null,null,{"$f":"SverweisM($A251, CNC!$A$4:$AD$727, 30, \"   |   \")","v":""}]
["2580002-15",0,0,0,"nein"," "," "," ","ja","-"," "," ",null,null,null,{"$f":"SverweisM($A252, CNC!$A$4:$AD$727, 30, \"   |   \")","v":""}]
["2580002-15",0,0,0,"nein"," "," "," ","ja","-"," "," ",null,null,null,{"$f":"SverweisM($A253, CNC!$A$4:$AD$727, 30, \"   |   \")","v":""}]
["2580201-00",0,0,0,"nein"," "," "," ","ja","Freigegeben"," "," ",null,null,null,{"$f":"SverweisM($A254, CNC!$A$4:$AD$727, 30, \"   |   \")","v":""}]
["2580202-00",0,0,0,"nein"," "," "," ","ja","Freigegeben"," "," ",null,null,null,{"$f":"SverweisM($A255, CNC!$A$4:$AD$727, 30, \"   |   \")","v":""}]
["2580401-00",0,0,0,"nein"," "," "," ","ja","Freigegeben"," "," ",null,null,null,{"$f":"SverweisM($A256, CNC!$A$4:$AD$727, 30, \"   |   \")","v":""}]
["2580401-02",0,0,0,"nein"," "," "," ","ja","-"," "," ",null,null,null,{"$f":"SverweisM($A257, CNC!$A$4:$AD$727, 30, \"   |   \")","v":""}]
["2580401-04",0,0,0,"nein"," "," "," ","ja","-"," "," ",null,null,null,{"$f":"SverweisM($A258, CNC!$A$4:$AD$727, 30, \"   |   \")","v":""}]
["2580601-00",0,0,0,"nein"," "," "," ","ja","Freigegeben"," "," ",null,null,null,{"$f":"SverweisM($A259, CNC!$A$4:$AD$727, 30, \"   |   \")","v":""}]
["2580701-00",0,0,0,"nein"," "," "," ","ja","-"," "," ",null,null,null,{"$f":"SverweisM($A260, CNC!$A$4:$AD$727, 30, \"   |   \")","v":""}]
["2580701-01",0,0,0,"nein"," "," "," ","ja","Freigegeben"," "," ",null,null,null,{"$f":"SverweisM($A261, CNC!$A$4:$AD$727, 30, \"   |   \")","v":""}]
["2580701-02",0,0,0,"nein"," "," "," ","ja","-"," "," ",null,null,null,{"$f":"SverweisM($A262, CNC!$A$4:$AD$727, 30, \"   |   \")","v":""}]
["2580701-05",0,0,0,"nein"," "," "," ","ja","Freigegeben"," "," ",null,null,null,{"$f":"SverweisM($A263, CNC!$A$4:$AD$727, 30, \"   |   \")","v":""}]
["2580701-06",0,0,0,"nein"," "," "," ","ja","-"," "," ",null,null,null,{"$f":"SverweisM($A264, CNC!$A$4:$AD$727, 30, \"   |   \")","v":""}]
["2580701-07",0,0,0,"nein"," "," "," ","ja","Freigegeben"," "," ",null,null,null,{"$f":"SverweisM($A265, CNC!$A$4:$AD$727, 30, \"   |   \")","v":""}]
["2581401-00",0,0,0,"nein"," "," "," ","ja","-"," "," ",null,null,null,{"$f":"SverweisM($A266, CNC!$A$4:$AD$727, 30, \"   |   \")","v":""}]
["2581401-01",0,0,0,"nein"," "," "," ","ja","Freigegeben"," "," ",null,null,null,{"$f":"SverweisM($A267, CNC!$A$4:$AD$727, 30, \"   |   \")","v":"5-666434A-FG-1"}]
["2581401-02",0,0,0,"nein"," "," "," ","ja","-"," "," ",null,null,null,{"$f":"SverweisM($A268, CNC!$A$4:$AD$727, 30, \"   |   \")","v":""}]
["2581401-02",0,0,0,"nein"," "," "," ","ja","-"," "," ",null,null,null,{"$f":"SverweisM($A269, CNC!$A$4:$AD$727, 30, \"   |   \")","v":""}]
["2581401-02",0,0,0,"nein"," "," "," ","ja","-"," "," ",null,null,null,{"$f":"SverweisM($A270, CNC!$A$4:$AD$727, 30, \"   |   \")","v":""}]
["2581401-02",0,0,0,"nein"," "," "," ","ja","-"," "," ",null,null,null,{"$f":"SverweisM($A271, CNC!$A$4:$AD$727, 30, \"   |   \")","v":""}]
["2581401-03",0,0,0,"nein"," "," "," ","ja","-"," "," ",null,null,null,{"$f":"SverweisM($A272, CNC!$A$4:$AD$727, 30, \"   |   \")","v":"1-666435A0-VD-1   |   1-666435A0-VD-2"}]
["2581401-03",0,0,0,"nein"," "," "," ","ja","-"," "," ",null,null,null,{"$f":"SverweisM($A273, CNC!$A$4:$AD$727, 30, \"   |   \")","v":"1-666435A0-VD-1   |   1-666435A0-VD-2"}]
["2581401-03",0,0,0,"nein"," "," "," ","ja","-"," "," ",null,null,null,{"$f":"SverweisM($A274, CNC!$A$4:$AD$727, 30, \"   |   \")","v":"1-666435A0-VD-1   |   1-666435A0-VD-2"}]
["2581401-04",0,0,0,"nein"," "," "," ","ja","-"," "," ",null,null,null,{"$f":"SverweisM($A275, CNC!$A$4:$AD$727, 30, \"   |   \")","v":""}]
["2581401-04",0,0,0,"nein"," "," "," ","ja","-"," "," ",null,null,null,{"$f":"SverweisM($A276, CNC!$A$4:$AD$727, 30, \"   |   \")","v":""}]
["2581401-05",0,0,0,"nein"," "," "," ","ja","-"," "," ",null,null,null,{"$f":"SverweisM($A277, CNC!$A$4:$AD$727, 30, \"   |   \")","v":"1-666438A0-VM-1   |   1-666438A0-VM-2   |   5-666438A-FG-1"}]
["2581401-05",0,0,0,"nein"," "," "," ","ja","-"," "," ",null,null,null,{"$f":"SverweisM($A278, CNC!$A$4:$AD$727, 30, \"   |   \")","v":"1-666438A0-VM-1   |   1-666438A0-VM-2   |   5-666438A-FG-1"}]
["2581401-05",0,0,0,"nein"," "," "," ","ja","-"," "," ",null,null,null,{"$f":"SverweisM($A279, CNC!$A$4:$AD$727, 30, \"   |   \")","v":"1-666438A0-VM-1   |   1-666438A0-VM-2   |   5-666438A-FG-1"}]
["2581401-06",0,0,0,"nein"," "," "," ","ja","-"," "," ",null,null,null,{"$f":"SverweisM($A280, CNC!$A$4:$AD$727, 30, \"   |   \")","v":"1-666439A0-VM-1"}]
["2581401-06",0,0,0,"nein"," "," "," ","ja","-"," "," ",null,null,null,{"$f":"SverweisM($A281, CNC!$A$4:$AD$727, 30, \"   |   \")","v":"1-666439A0-VM-1"}]
["2581401-07",0,0,0,"nein"," "," "," ","ja","Freigegeben"," "," ",null,null,null,{"$f":"SverweisM($A282, CNC!$A$4:$AD$727, 30, \"   |   \")","v":""}]
["2581401-90",0,0,0,"nein"," "," "," ","ja","-"," "," ",null,null,null,{"$f":"SverweisM($A283, CNC!$A$4:$AD$727, 30, \"   |   \")","v":""}]
["2581401-91",0,0,0,"nein"," "," "," ","ja","-"," "," ",null,null,null,{"$f":"SverweisM($A284, CNC!$A$4:$AD$727, 30, \"   |   \")","v":""}]
["2581401-98",0,0,0,"nein"," "," "," ","ja","-"," "," ",null,null,null,{"$f":"SverweisM($A285, CNC!$A$4:$AD$727, 30, \"   |   \")","v":""}]
["2581701-00",0,0,0,"nein"," "," "," ","ja","-"," "," ",null,null,null,{"$f":"SverweisM($A286, CNC!$A$4:$AD$727, 30, \"   |   \")","v":""}]
["2581701-01",0,0,0,"nein"," "," "," ","ja","Freigegeben"," "," ",null,null,null,{"$f":"SverweisM($A287, CNC!$A$4:$AD$727, 30, \"   |   \")","v":""}]
["2581701-01",0,0,0,"nein"," "," "," ","ja","Freigegeben"," "," ",null,null,null,{"$f":"SverweisM($A288, CNC!$A$4:$AD$727, 30, \"   |   \")","v":""}]
["2581801-00",null,null,null,null,null,null,null,null,null,null,null,null,null,null,{"$f":"SverweisM($A289, CNC!$A$4:$AD$727, 30, \"   |   \")","v":""}]
["2581802-00",null,null,null,null,null,null,null,null,null,null,null,null,null,null,{"$f":"SverweisM($A290, CNC!$A$4:$AD$727, 30, \"   |   \")","v":""}]
["2582101-00",null,null,null,null,null,null,null,null,null,null,null,null,null,null,{"$f":"SverweisM($A291, CNC!$A$4:$AD$727, 30, \"   |   \")","v":""}]
["2582101-01",0,0,0,"nein"," "," "," ","ja","-"," "," ",null,null,null,{"$f":"SverweisM($A292, CNC!$A$4:$AD$727, 30, \"   |   \")","v":""}]
["2582101-03",0,0,0,"nein"," "," "," ","ja","-"," "," ",null,null,null,{"$f":"SverweisM($A293, CNC!$A$4:$AD$727, 30, \"   |   \")","v":""}]
["2582101-03",0,0,0,"nein"," "," "," ","ja","-"," "," ",null,null,null,{"$f":"SverweisM($A294, CNC!$A$4:$AD$727, 30, \"   |   \")","v":""}]
["2582101-03",0,0,0,"nein"," "," "," ","ja","-"," "," ",null,null,null,{"$f":"SverweisM($A295, CNC!$A$4:$AD$727, 30, \"   |   \")","v":""}]
["2582101-03",0,0,0,"nein"," "," "," ","ja","Freigegeben"," "," ",null,null,null,{"$f":"SverweisM($A296, CNC!$A$4:$AD$727, 30, \"   |   \")","v":""}]
["2582101-05",0,0,0,"nein"," "," "," ","ja","-"," "," ",null,null,null,{"$f":"SverweisM($A297, CNC!$A$4:$AD$727, 30, \"   |   \")","v":"7-65624211-GR-1   |   7-65624211-GR-2   |   7-65624211-GR-3"}]
["2582101-05",0,0,0,"nein"," "," "," ","ja","Freigegeben"," "," ",null,null,null,{"$f":"SverweisM($A298, CNC!$A$4:$AD$727, 30, \"   |   \")","v":"7-65624211-GR-1   |   7-65624211-GR-2   |   7-65624211-GR-3"}]
["2582101-05",0,0,0,"nein"," "," "," ","ja","-"," "," ",null,null,null,{"$f":"SverweisM($A299, CNC!$A$4:$AD$727, 30, \"   |   \")","v":"7-65624211-GR-1   |   7-65624211-GR-2   |   7-65624211-GR-3"}]
["2582101-05",0,0,0,"nein"," "," "," ","ja","-"," "," ",null,null,null,{"$f":"SverweisM($A300, CNC!$A$4:$AD$727, 30, \"   |   \")","v":"7-65624211-GR-1   |   7-65624211-GR-2   |   7-65624211-GR-3"}]
["2582101-06",0,0,0,"nein"," "," "," ","ja","-"," "," ",null,null,null,{"$f":"SverweisM($A301, CNC!$A$4:$AD$727, 30, \"   |   \")","v":""}]
["2582101-06",0,0,0,"nein"," "," "," ","ja","-"," "," ",null,null,null,{"$f":"SverweisM($A302, CNC!$A$4:$AD$727, 30, \"   |   \")","v":""}]
["2582101-07",0,0,0,"nein"," "," "," ","ja","-"," "," ",null,null,null,{"$f":"SverweisM($A303, CNC!$A$4:$AD$727, 30, \"   |   \")","v":""}]
["2582101-07",0,0,0,"nein"," "," "," ","ja","-"," "," ",null,null,null,{"$f":"SverweisM($A304, CNC!$A$4:$AD$727, 30, \"   |   \")","v":""}]
["2582101-08",null,null,null,null,null,null,null,null,null,null,null,null,null,null,{"$f":"SverweisM($A305, CNC!$A$4:$AD$727, 30, \"   |   \")","v":""}]
["2582101-09",null,null,null,null,null,null,null,null,null,null,null,null,null,null,{"$f":"SverweisM($A306, CNC!$A$4:$AD$727, 30, \"   |   \")","v":""}]
["2582801-00",null,null,null,null,null,null,null,null,null,null,null,null,null,null,{"$f":"SverweisM($A307, CNC!$A$4:$AD$727, 30, \"   |   \")","v":""}]
["2582801-01",0,0,0,"nein"," "," "," ","ja","-"," "," ",null,null,null,{"$f":"SverweisM($A308, CNC!$A$4:$AD$727, 30, \"   |   \")","v":""}]
["2582801-01",0,0,0,"nein"," "," "," ","ja","-"," "," ",null,null,null,{"$f":"SverweisM($A309, CNC!$A$4:$AD$727, 30, \"   |   \")","v":""}]
["2582801-01",0,0,0,"nein"," "," "," ","ja","-"," "," ",null,null,null,{"$f":"SverweisM($A310, CNC!$A$4:$AD$727, 30, \"   |   \")","v":""}]
["2582801-02",0,0,0,"nein"," "," "," ","ja","-"," "," ",null,null,null,{"$f":"SverweisM($A311, CNC!$A$4:$AD$727, 30, \"   |   \")","v":""}]
["2582801-02",0,0,0,"nein"," "," "," ","ja","-"," "," ",null,null,null,{"$f":"SverweisM($A312, CNC!$A$4:$AD$727, 30, \"   |   \")","v":""}]
["2582801-02",0,0,0,"nein"," "," "," ","ja","-"," "," ",null,null,null,{"$f":"SverweisM($A313, CNC!$A$4:$AD$727, 30, \"   |   \")","v":""}]
["2582802-00",null,null,null,null,null,null,null,null,null,null,null,null,null,null,{"$f":"SverweisM($A314, CNC!$A$4:$AD$727, 30, \"   |   \")","v":""}]
["2582802-01",0,0,0,"nein"," "," "," ","ja","-"," "," ",null,null,null,{"$f":"SverweisM($A315, CNC!$A$4:$AD$727, 30, \"   |   \")","v":""}]
["2582802-01",0,0,0,"nein"," "," "," ","ja","Freigegeben"," "," ",null,null,null,{"$f":"SverweisM($A316, CNC!$A$4:$AD$727, 30, \"   |   \")","v":""}]
["2582802-01",0,0,0,"nein"," "," "," ","ja","-"," "," ",null,null,null,{"$f":"SverweisM($A317, CNC!$A$4:$AD$727, 30, \"   |   \")","v":""}]
["2582802-02",null,null,null,null,null,null,null,null,null,null,null,null,null,null,{"$f":"SverweisM($A318, CNC!$A$4:$AD$727, 30, \"   |   \")","v":""}]
["2582902-00",null,null,null,null,null,null,null,null,null,null,null,null,null,null,{"$f":"SverweisM($A319, CNC!$A$4:$AD$727, 30, \"   |   \")","v":""}]
["2582902-02",0,0,0,"nein"," "," "," ","ja","-"," "," ",null,null,null,{"$f":"SverweisM($A320, CNC!$A$4:$AD$727, 30, \"   |   \")","v":"6-661455A-RV-1   |   9_661455B_VD_1   |   9_661455B_VD_2   |   9_661455B_VD_1"}]
["2582902-02",0,0,0,"nein"," "," "," ","ja","Freigegeben"," "," ",null,null,null,{"$f":"SverweisM($A321, CNC!$A$4:$AD$727, 30, \"   |   \")","v":"6-661455A-RV-1   |   9_661455B_VD_1   |   9_661455B_VD_2   |   9_661455B_VD_1"}]
["2582902-02",0,0,0,"nein"," "," "," ","ja","-"," "," ",null,null,null,{"$f":"SverweisM($A322, CNC!$A$4:$AD$727, 30, \"   |   \")","v":"6-661455A-RV-1   |   9_661455B_VD_1   |   9_661455B_VD_2   |   9_661455B_VD_1"}]
["2582902-02",0,0,0,"nein"," "," "," ","ja","-"," "," ",null,null,null,{"$f":"SverweisM($A323, CNC!$A$4:$AD$727, 30, \"   |   \")","v":"6-661455A-RV-1   |   9_661455B_VD_1   |   9_661455B_VD_2   |   9_661455B_VD_1"}]
["2582902-02",0,0,0,"nein"," "," "," ","ja","-"," "," ",null,null,null,{"$f":"SverweisM($A324, CNC!$A$4:$AD$727, 30, \"   |   \")","v":"6-661455A-RV-1   |   9_661455B_VD_1   |   9_661455B_VD_2   |   9_661455B_VD_1"}]
["2584101-00",null,null,null,null,null,null,null,null,null,null,null,null,null,null,{"$f":"SverweisM($A325, CNC!$A$4:$AD$727, 30, \"   |   \")","v":""}]
["2584101-01",0,0,0,"nein"," "," "," ","ja","-"," "," ",null,null,null,{"$f":"SverweisM($A326, CNC!$A$4:$AD$727, 30, \"   |   \")","v":"7-62913943-VD-1   |   6-62913943-RV-1"}]
["2584101-01",0,0,0,"nein"," "," "," ","ja","-"," "," ",null,null,null,{"$f":"SverweisM($A327, CNC!$A$4:$AD$727, 30, \"   |   \")","v":"7-62913943-VD-1   |   6-62913943-RV-1"}]
["2584102-00",null,null,null,null,null,null,null,null,null,null,null,null,null,null,{"$f":"SverweisM($A328, CNC!$A$4:$AD$727, 30, \"   |   \")","v":""}]
["2584102-02",0,0,0,"nein"," "," "," ","ja","-"," "," ",null,null,null,{"$f":"SverweisM($A329, CNC!$A$4:$AD$727, 30, \"   |   \")","v":"6-62914010-RV-1   |   6-62914010-RV-2"}]
["2584102-02",0,0,0,"nein"," "," "," ","ja","-"," "," ",null,null,null,{"$f":"SverweisM($A330, CNC!$A$4:$AD$727, 30, \"   |   \")","v":"6-62914010-RV-1   |   6-62914010-RV-2"}]
["2584102-02",0,0,0,"nein"," "," "," ","ja","-"," "," ",null,null,null,{"$f":"SverweisM($A331, CNC!$A$4:$AD$727, 30, \"   |   \")","v":"6-62914010-RV-1   |   6-62914010-RV-2"}]
["2585401-00",null,null,null,null,null,null,null,null,null,null,null,null,null,null,{"$f":"SverweisM($A332, CNC!$A$4:$AD$727, 30, \"   |   \")","v":""}]
["2585401-01",0,0,0,"nein"," "," "," ","ja","-"," "," ",null,null,null,{"$f":"SverweisM($A333, CNC!$A$4:$AD$727, 30, \"   |   \")","v":"8_65653202_VD_1   |   8_65653202_VD_2"}]
["2585401-01",0,0,0,"nein"," "," "," ","ja","-"," "," ",null,null,null,{"$f":"SverweisM($A334, CNC!$A$4:$AD$727, 30, \"   |   \")","v":"8_65653202_VD_1   |   8_65653202_VD_2"}]
["2585401-02",0,0,0,"nein"," "," "," ","ja","-"," "," ",null,null,null,{"$f":"SverweisM($A335, CNC!$A$4:$AD$727, 30, \"   |   \")","v":""}]
["2585401-02",0,0,0,"nein"," "," "," ","ja","-"," "," ",null,null,null,{"$f":"SverweisM($A336, CNC!$A$4:$AD$727, 30, \"   |   \")","v":""}]
["2585401-03",0,0,0,"nein"," "," "," ","ja","-"," "," ",null,null,null,{"$f":"SverweisM($A337, CNC!$A$4:$AD$727, 30, \"   |   \")","v":"6-65653401-FG-1   |   6-65653401-FG-2"}]
["2585401-03",0,0,0,"nein"," "," "," ","ja","-"," "," ",null,null,null,{"$f":"SverweisM($A338, CNC!$A$4:$AD$727, 30, \"   |   \")","v":"6-65653401-FG-1   |   6-65653401-FG-2"}]
["2585401-04",0,0,0,"nein"," "," "," ","ja","Freigegeben"," "," ",null,null,null,{"$f":"SverweisM($A339, CNC!$A$4:$AD$727, 30, \"   |   \")","v":""}]
["2585401-04",0,0,0,"nein"," "," "," ","ja","Freigegeben"," "," ",null,null,null,{"$f":"SverweisM($A340, CNC!$A$4:$AD$727, 30, \"   |   \")","v":""}]
["2585401-05",0,0,0,"nein"," "," "," ","ja","Freigegeben"," "," ",null,null,null,{"$f":"SverweisM($A341, CNC!$A$4:$AD$727, 30, \"   |   \")","v":""}]
["2585401-23",null,null,null,null,null,null,null,null,null,null,null,null,null,null,{"$f":"SverweisM($A342, CNC!$A$4:$AD$727, 30, \"   |   \")","v":""}]
["2585401-30",0,0,0,"nein"," "," "," ","ja","Freigegeben"," "," ",null,null,null,{"$f":"SverweisM($A343, CNC!$A$4:$AD$727, 30, \"   |   \")","v":"5-65654001-FG-1   |   5-65654001-FG-2"}]
["2585401-30",0,0,0,"nein"," "," "," ","ja","Freigegeben"," "," ",null,null,null,{"$f":"SverweisM($A344, CNC!$A$4:$AD$727, 30, \"   |   \")","v":"5-65654001-FG-1   |   5-65654001-FG-2"}]
["2585701-00",null,null,null,null,null,null,null,null,null,null,null,null,null,null,{"$f":"SverweisM($A345, CNC!$A$4:$AD$727, 30, \"   |   \")","v":""}]
["2585701-01",0,0,0,"nein"," "," "," ","ja","-"," "," ",null,null,null,{"$f":"SverweisM($A346, CNC!$A$4:$AD$727, 30, \"   |   \")","v":""}]
["2585701-01",0,0,0,"nein"," "," "," ","ja","-"," "," ",null,null,null,{"$f":"SverweisM($A347, CNC!$A$4:$AD$727, 30, \"   |   \")","v":""}]
["2586601-00",null,null,null,null,null,null,null,null,null,null,null,null,null,null,{"$f":"SverweisM($A348, CNC!$A$4:$AD$727, 30, \"   |   \")","v":""}]
["2587001-00",null,null,null,null,null,null,null,null,null,null,null,null,null,null,{"$f":"SverweisM($A349, CNC!$A$4:$AD$727, 30, \"   |   \")","v":""}]
["2587002-00",null,null,null,null,null,null,null,null,null,null,null,null,null,null,{"$f":"SverweisM($A350, CNC!$A$4:$AD$727, 30, \"   |   \")","v":""}]
["2587101-00",null,null,null,null,null,null,null,null,null,null,null,null,null,null,{"$f":"SverweisM($A351, CNC!$A$4:$AD$727, 30, \"   |   \")","v":""}]
["2587201-00",null,null,null,null,null,null,null,null,null,null,null,null,null,null,{"$f":"SverweisM($A352, CNC!$A$4:$AD$727, 30, \"   |   \")","v":""}]
["2587201-01",0,0,0,"nein"," "," "," ","ja","-"," "," ",null,null,null,{"$f":"SverweisM($A353, CNC!$A$4:$AD$727, 30, \"   |   \")","v":""}]
["2587201-01",0,0,0,"nein"," "," "," ","ja","-"," "," ",null,null,null,{"$f":"SverweisM($A354, CNC!$A$4:$AD$727, 30, \"   |   \")","v":""}]
["2587201-01",0,0,0,"nein"," "," "," ","ja","-"," "," ",null,null,null,{"$f":"SverweisM($A355, CNC!$A$4:$AD$727, 30, \"   |   \")","v":""}]
["2587201-03",0,0,0,"nein"," "," "," ","ja","Freigegeben"," "," ",null,null,null,{"$f":"SverweisM($A356, CNC!$A$4:$AD$727, 30, \"   |   \")","v":""}]
["2587201-03",0,0,0,"nein"," "," "," ","ja","Freigegeben"," "," ",null,null,null,{"$f":"SverweisM($A357, CNC!$A$4:$AD$727, 30, \"   |   \")","v":""}]
["2587201-07",0,0,0,"nein"," "," "," ","ja","Freigegeben"," "," ",null,null,null,{"$f":"SverweisM($A358, CNC!$A$4:$AD$727, 30, \"   |   \")","v":""}]
["2587201-11",null,null,null,null,null,null,null,null,null,null,null,null,null,null,{"$f":"SverweisM($A359, CNC!$A$4:$AD$727, 30, \"   |   \")","v":""}]
["2587201-12",null,null,null,null,null,null,null,null,null,null,null,null,null,null,{"$f":"SverweisM($A360, CNC!$A$4:$AD$727, 30, \"   |   \")","v":""}]
["2587301-00",null,null,null,null,null,null,null,null,null,null,null,null,null,null,{"$f":"SverweisM($A361, CNC!$A$4:$AD$727, 30, \"   |   \")","v":""}]
["2587302-00",null,null,null,null,null,null,null,null,null,null,null,null,null,null,{"$f":"SverweisM($A362, CNC!$A$4:$AD$727, 30, \"   |   \")","v":""}]
["2587302-02",0,0,0,"nein"," "," "," ","ja","Freigegeben"," "," ",null,null,null,{"$f":"SverweisM($A363, CNC!$A$4:$AD$727, 30, \"   |   \")","v":"8_64892401_VD_1   |   8_64892401_VD_2"}]
["2587302-02",0,0,0,"nein"," "," "," ","ja","Freigegeben"," "," ",null,null,null,{"$f":"SverweisM($A364, CNC!$A$4:$AD$727, 30, \"   |   \")","v":"8_64892401_VD_1   |   8_64892401_VD_2"}]
["2587303-00",null,null,null,null,null,null,null,null,null,null,null,null,null,null,{"$f":"SverweisM($A365, CNC!$A$4:$AD$727, 30, \"   |   \")","v":""}]
["2587303-04",0,0,0,"nein"," "," "," ","ja","Freigegeben"," "," ",null,null,null,{"$f":"SverweisM($A366, CNC!$A$4:$AD$727, 30, \"   |   \")","v":""}]
["2587303-05",0,0,0,"nein"," "," "," ","ja","-"," "," ",null,null,null,{"$f":"SverweisM($A367, CNC!$A$4:$AD$727, 30, \"   |   \")","v":""}]
["2587701-00",null,null,null,null,null,null,null,null,null,null,null,null,null,null,{"$f":"SverweisM($A368, CNC!$A$4:$AD$727, 30, \"   |   \")","v":""}]
["2588401-00",null,null,null,null,null,null,null,null,null,null,null,null,null,null,{"$f":"SverweisM($A369, CNC!$A$4:$AD$727, 30, \"   |   \")","v":""}]
["2588401-01",0,0,0,"nein"," "," "," ","ja","-"," "," ",null,null,null,{"$f":"SverweisM($A370, CNC!$A$4:$AD$727, 30, \"   |   \")","v":"5-665627A-FG-1"}]
["2588401-01",0,0,0,"nein"," "," "," ","ja","-"," "," ",null,null,null,{"$f":"SverweisM($A371, CNC!$A$4:$AD$727, 30, \"   |   \")","v":"5-665627A-FG-1"}]
["2588401-02",0,0,0,"nein"," "," "," ","ja","-"," "," ",null,null,null,{"$f":"SverweisM($A372, CNC!$A$4:$AD$727, 30, \"   |   \")","v":"5-665626A-FG-1   |   5-665626A-FG-2   |   8_665626A_VD_3   |   8_665626A_VD_4   |   8_665626A_RV_1"}]
["2588401-02",0,0,0,"nein"," "," "," ","ja","-"," "," ",null,null,null,{"$f":"SverweisM($A373, CNC!$A$4:$AD$727, 30, \"   |   \")","v":"5-665626A-FG-1   |   5-665626A-FG-2   |   8_665626A_VD_3   |   8_665626A_VD_4   |   8_665626A_RV_1"}]
["2588401-02",0,0,0,"nein"," "," "," ","ja","-"," "," ",null,null,null,{"$f":"SverweisM($A374, CNC!$A$4:$AD$727, 30, \"   |   \")","v":"5-665626A-FG-1   |   5-665626A-FG-2   |   8_665626A_VD_3   |   8_665626A_VD_4   |   8_665626A_RV_1"}]
["2588401-02",0,0,0,"nein"," "," "," ","ja","-"," "," ",null,null,null,{"$f":"SverweisM($A375, CNC!$A$4:$AD$727, 30, \"   |   \")","v":"5-665626A-FG-1   |   5-665626A-FG-2   |   8_665626A_VD_3   |   8_665626A_VD_4   |   8_665626A_RV_1"}]
["2588401-02",0,0,0,"nein"," "," "," ","ja","-"," "," ",null,null,null,{"$f":"SverweisM($A376, CNC!$A$4:$AD$727, 30, \"   |   \")","v":"5-665626A-FG-1   |   5-665626A-FG-2   |   8_665626A_VD_3   |   8_665626A_VD_4   |   8_665626A_RV_1"}]
["2588401-02",0,0,0,"nein"," "," "," ","ja","Freigegeben"," "," ",null,null,null,{"$f":"SverweisM($A377, CNC!$A$4:$AD$727, 30, \"   |   \")","v":"5-665626A-FG-1   |   5-665626A-FG-2   |   8_665626A_VD_3   |   8_665626A_VD_4   |   8_665626A_RV_1"}]
["2588401-03",0,0,0,"nein"," "," "," ","ja","-"," "," ",null,null,null,{"$f":"SverweisM($A378, CNC!$A$4:$AD$727, 30, \"   |   \")","v":"8_665918A_VD_1   |   8_665918A_VD_2"}]
["2588401-03",0,0,0,"nein"," "," "," ","ja","-"," "," ",null,null,null,{"$f":"SverweisM($A379, CNC!$A$4:$AD$727, 30, \"   |   \")","v":"8_665918A_VD_1   |   8_665918A_VD_2"}]
["2588401-04",0,0,0,"nein"," "," "," ","ja","Freigegeben"," "," ",null,null,null,{"$f":"SverweisM($A380, CNC!$A$4:$AD$727, 30, \"   |   \")","v":"5-665919A-FG-1   |   5-665919A-FG-2"}]
["2588401-04",0,0,0,"nein"," "," "," ","ja","-"," "," ",null,null,null,{"$f":"SverweisM($A381, CNC!$A$4:$AD$727, 30, \"   |   \")","v":"5-665919A-FG-1   |   5-665919A-FG-2"}]
["2588401-05",0,0,0,"nein"," "," "," ","ja","Freigegeben"," "," ",null,null,null,{"$f":"SverweisM($A382, CNC!$A$4:$AD$727, 30, \"   |   \")","v":"5-665920A-FG-1"}]
["2588401-06",null,null,null,null,null,null,null,null,null,null,null,null,null,null,{"$f":"SverweisM($A383, CNC!$A$4:$AD$727, 30, \"   |   \")","v":""}]
["2588401-07",null,null,null,null,null,null,null,null,null,null,null,null,null,null,{"$f":"SverweisM($A384, CNC!$A$4:$AD$727, 30, \"   |   \")","v":""}]
["2588401-08",null,null,null,null,null,null,null,null,null,null,null,null,null,null,{"$f":"SverweisM($A385, CNC!$A$4:$AD$727, 30, \"   |   \")","v":""}]
["2588401-09",null,null,null,null,null,null,null,null,null,null,null,null,null,null,{"$f":"SverweisM($A386, CNC!$A$4:$AD$727, 30, \"   |   \")","v":""}]
["2588401-10",0,0,0,"nein"," "," "," ","ja","-"," "," ",null,null,null,{"$f":"SverweisM($A387, CNC!$A$4:$AD$727, 30, \"   |   \")","v":""}]
["2588501-00",null,null,null,null,null,null,null,null,null,null,null,null,null,null,{"$f":"SverweisM($A388, CNC!$A$4:$AD$727, 30, \"   |   \")","v":""}]
["2588501-01",0,0,0,"nein"," "," "," ","ja","-"," "," ",null,null,null,{"$f":"SverweisM($A389, CNC!$A$4:$AD$727, 30, \"   |   \")","v":""}]
["2588501-01",0,0,0,"nein"," "," "," ","ja","Freigegeben"," "," ",null,null,null,{"$f":"SverweisM($A390, CNC!$A$4:$AD$727, 30, \"   |   \")","v":""}]
["2588502-00",null,null,null,null,null,null,null,null,null,null,null,null,null,null,{"$f":"SverweisM($A391, CNC!$A$4:$AD$727, 30, \"   |   \")","v":""}]
["2588502-01",0,0,0,"nein"," "," "," ","ja","-"," "," ",null,null,null,{"$f":"SverweisM($A392, CNC!$A$4:$AD$727, 30, \"   |   \")","v":"9_668036A_VD_1   |   9_668036A_VD_2"}]
["2588502-01",0,0,0,"nein"," "," "," ","ja","-"," "," ",null,null,null,{"$f":"SverweisM($A393, CNC!$A$4:$AD$727, 30, \"   |   \")","v":"9_668036A_VD_1   |   9_668036A_VD_2"}]
["2588503-00",null,null,null,null,null,null,null,null,null,null,null,null,null,null,{"$f":"SverweisM($A394, CNC!$A$4:$AD$727, 30, \"   |   \")","v":""}]
["2588503-01",0,0,0,"nein"," "," "," ","ja","-"," "," ",null,null,null,{"$f":"SverweisM($A395, CNC!$A$4:$AD$727, 30, \"   |   \")","v":""}]
["2588503-01",0,0,0,"nein"," "," "," ","ja","Freigegeben"," "," ",null,null,null,{"$f":"SverweisM($A396, CNC!$A$4:$AD$727, 30, \"   |   \")","v":""}]
["2588504-00",null,null,null,null,null,null,null,null,null,null,null,null,null,null,{"$f":"SverweisM($A397, CNC!$A$4:$AD$727, 30, \"   |   \")","v":""}]
["2588504-01",0,0,0,"nein"," "," "," ","ja","Freigegeben"," "," ",null,null,null,{"$f":"SverweisM($A398, CNC!$A$4:$AD$727, 30, \"   |   \")","v":""}]
["2588504-01",0,0,0,"nein"," "," "," ","ja","-"," "," ",null,null,null,{"$f":"SverweisM($A399, CNC!$A$4:$AD$727, 30, \"   |   \")","v":""}]
["2588504-02",0,0,0,"nein"," "," "," ","ja","-"," "," ",null,null,null,{"$f":"SverweisM($A400, CNC!$A$4:$AD$727, 30, \"   |   \")","v":""}]
["2588504-02",0,0,0,"nein"," "," "," ","ja","-"," "," ",null,null,null,{"$f":"SverweisM($A401, CNC!$A$4:$AD$727, 30, \"   |   \")","v":""}]
["2588504-10",0,0,0,"nein"," "," "," ","ja","-"," "," ",null,null,null,{"$f":"SverweisM($A402, CNC!$A$4:$AD$727, 30, \"   |   \")","v":""}]
["2588504-10",0,0,0,"nein"," "," "," ","ja","-"," "," ",null,null,null,{"$f":"SverweisM($A403, CNC!$A$4:$AD$727, 30, \"   |   \")","v":""}]
["2588504-11",0,0,0,"nein"," "," "," ","ja","-"," "," ",null,null,null,{"$f":"SverweisM($A404, CNC!$A$4:$AD$727, 30, \"   |   \")","v":""}]
["2588504-11",0,0,0,"nein"," "," "," ","ja","-"," "," ",null,null,null,{"$f":"SverweisM($A405, CNC!$A$4:$AD$727, 30, \"   |   \")","v":""}]
["2588504-12",0,0,0,"nein"," "," "," ","ja","-"," "," ",null,null,null,{"$f":"SverweisM($A406, CNC!$A$4:$AD$727, 30, \"   |   \")","v":""}]
["2588504-12",0,0,0,"nein"," "," "," ","ja","Freigegeben"," "," ",null,null,null,{"$f":"SverweisM($A407, CNC!$A$4:$AD$727, 30, \"   |   \")","v":""}]
["2588504-12",0,0,0,"nein"," "," "," ","ja","Freigegeben"," "," ",null,null,null,{"$f":"SverweisM($A408, CNC!$A$4:$AD$727, 30, \"   |   \")","v":""}]
["2588505-00",null,null,null,null,null,null,null,null,null,null,null,null,null,null,{"$f":"SverweisM($A409, CNC!$A$4:$AD$727, 30, \"   |   \")","v":""}]
["2588505-01",0,0,0,"nein"," "," "," ","ja","Freigegeben"," "," ",null,null,null,{"$f":"SverweisM($A410, CNC!$A$4:$AD$727, 30, \"   |   \")","v":""}]
["2588505-01",0,0,0,"nein"," "," "," ","ja","Freigegeben"," "," ",null,null,null,{"$f":"SverweisM($A411, CNC!$A$4:$AD$727, 30, \"   |   \")","v":""}]
["2588505-01",0,0,0,"nein"," "," "," ","ja","Freigegeben"," "," ",null,null,null,{"$f":"SverweisM($A412, CNC!$A$4:$AD$727, 30, \"   |   \")","v":""}]
["2588505-01",0,0,0,"nein"," "," "," ","ja","Freigegeben"," "," ",null,null,null,{"$f":"SverweisM($A413, CNC!$A$4:$AD$727, 30, \"   |   \")","v":""}]
["2588505-02",0,0,0,"nein"," "," "," ","ja","Freigegeben"," "," ",null,null,null,{"$f":"SverweisM($A414, CNC!$A$4:$AD$727, 30, \"   |   \")","v":""}]
["2588505-02",0,0,0,"nein"," "," "," ","ja","-"," "," ",null,null,null,{"$f":"SverweisM($A415, CNC!$A$4:$AD$727, 30, \"   |   \")","v":""}]
["2588505-02",0,0,0,"nein"," "," "," ","ja","-"," "," ",null,null,null,{"$f":"SverweisM($A416, CNC!$A$4:$AD$727, 30, \"   |   \")","v":""}]
["2588505-10",0,0,0,"nein"," "," "," ","ja","-"," "," ",null,null,null,{"$f":"SverweisM($A417, CNC!$A$4:$AD$727, 30, \"   |   \")","v":""}]
["2588505-10",0,0,0,"nein"," "," "," ","ja","-"," "," ",null,null,null,{"$f":"SverweisM($A418, CNC!$A$4:$AD$727, 30, \"   |   \")","v":""}]
["2588505-11",0,0,0,"nein"," "," "," ","ja","Freigegeben"," "," ",null,null,null,{"$f":"SverweisM($A419, CNC!$A$4:$AD$727, 30, \"   |   \")","v":""}]
["2588505-11",0,0,0,"nein"," "," "," ","ja","-"," "," ",null,null,null,{"$f":"SverweisM($A420, CNC!$A$4:$AD$727, 30, \"   |   \")","v":""}]
["2588505-12",0,0,0,"nein"," "," "," ","ja","-"," "," ",null,null,null,{"$f":"SverweisM($A421, CNC!$A$4:$AD$727, 30, \"   |   \")","v":""}]
["2588505-12",0,0,0,"nein"," "," "," ","ja","-"," "," ",null,null,null,{"$f":"SverweisM($A422, CNC!$A$4:$AD$727, 30, \"   |   \")","v":""}]
["2588506-00",null,null,null,null,null,null,null,null,null,null,null,null,null,null,{"$f":"SverweisM($A423, CNC!$A$4:$AD$727, 30, \"   |   \")","v":""}]
["2588506-01",0,0,0,"nein"," "," "," ","ja","Freigegeben"," "," ",null,null,null,{"$f":"SverweisM($A424, CNC!$A$4:$AD$727, 30, \"   |   \")","v":""}]
["2588506-01",0,0,0,"nein"," "," "," ","ja","Freigegeben"," "," ",null,null,null,{"$f":"SverweisM($A425, CNC!$A$4:$AD$727, 30, \"   |   \")","v":""}]
["2588506-01",0,0,0,"nein"," "," "," ","ja","Freigegeben"," "," ",null,null,null,{"$f":"SverweisM($A426, CNC!$A$4:$AD$727, 30, \"   |   \")","v":""}]
["2588506-01",0,0,0,"nein"," "," "," ","ja","Freigegeben"," "," ",null,null,null,{"$f":"SverweisM($A427, CNC!$A$4:$AD$727, 30, \"   |   \")","v":""}]
["2588506-02",0,0,0,"nein"," "," "," ","ja","Freigegeben"," "," ",null,null,null,{"$f":"SverweisM($A428, CNC!$A$4:$AD$727, 30, \"   |   \")","v":""}]
["2588506-02",0,0,0,"nein"," "," "," ","ja","-"," "," ",null,null,null,{"$f":"SverweisM($A429, CNC!$A$4:$AD$727, 30, \"   |   \")","v":""}]
["2588506-02",0,0,0,"nein"," "," "," ","ja","-"," "," ",null,null,null,{"$f":"SverweisM($A430, CNC!$A$4:$AD$727, 30, \"   |   \")","v":""}]
["2588506-10",0,0,0,"nein"," "," "," ","ja","-"," "," ",null,null,null,{"$f":"SverweisM($A431, CNC!$A$4:$AD$727, 30, \"   |   \")","v":""}]
["2588506-10",0,0,0,"nein"," "," "," ","ja","Freigegeben"," "," ",null,null,null,{"$f":"SverweisM($A432, CNC!$A$4:$AD$727, 30, \"   |   \")","v":""}]
["2588506-11",0,0,0,"nein"," "," "," ","ja","Freigegeben"," "," ",null,null,null,{"$f":"SverweisM($A433, CNC!$A$4:$AD$727, 30, \"   |   \")","v":""}]
["2588506-11",0,0,0,"nein"," "," "," ","ja","-"," "," ",null,null,null,{"$f":"SverweisM($A434, CNC!$A$4:$AD$727, 30, \"   |   \")","v":""}]
["2588506-12",0,0,0,"nein"," "," "," ","ja","Freigegeben"," "," ",null,null,null,{"$f":"SverweisM($A435, CNC!$A$4:$AD$727, 30, \"   |   \")","v":""}]
["2588506-12",0,0,0,"nein"," "," "," ","ja","-"," "," ",null,null,null,{"$f":"SverweisM($A436, CNC!$A$4:$AD$727, 30, \"   |   \")","v":""}]
["2588507-00",null,null,null,null,null,null,null,null,null,null,null,null,null,null,{"$f":"SverweisM($A437, CNC!$A$4:$AD$727, 30, \"   |   \")","v":""}]
["2588507-01",0,0,0,"nein"," "," "," ","ja","-"," "," ",null,null,null,{"$f":"SverweisM($A438, CNC!$A$4:$AD$727, 30, \"   |   \")","v":""}]
["2588507-01",0,0,0,"nein"," "," "," ","ja","Freigegeben"," "," ",null,null,null,{"$f":"SverweisM($A439, CNC!$A$4:$AD$727, 30, \"   |   \")","v":""}]
["2588507-02",0,0,0,"nein"," "," "," ","ja","-"," "," ",null,null,null,{"$f":"SverweisM($A440, CNC!$A$4:$AD$727, 30, \"   |   \")","v":""}]
["2588507-02",0,0,0,"nein"," "," "," ","ja","Freigegeben"," "," ",null,null,null,{"$f":"SverweisM($A441, CNC!$A$4:$AD$727, 30, \"   |   \")","v":""}]
["2588507-10",0,0,0,"nein"," "," "," ","ja","-"," "," ",null,null,null,{"$f":"SverweisM($A442, CNC!$A$4:$AD$727, 30, \"   |   \")","v":""}]
["2588507-10",0,0,0,"nein"," "," "," ","ja","Freigegeben"," "," ",null,null,null,{"$f":"SverweisM($A443, CNC!$A$4:$AD$727, 30, \"   |   \")","v":""}]
["2588507-10",0,0,0,"nein"," "," "," ","ja","-"," "," ",null,null,null,{"$f":"SverweisM($A444, CNC!$A$4:$AD$727, 30, \"   |   \")","v":""}]
["2588507-11",0,0,0,"nein"," "," "," ","ja","Freigegeben"," "," ",null,null,null,{"$f":"SverweisM($A445, CNC!$A$4:$AD$727, 30, \"   |   \")","v":""}]
["2588507-11",0,0,0,"nein"," "," "," ","ja","Freigegeben"," "," ",null,null,null,{"$f":"SverweisM($A446, CNC!$A$4:$AD$727, 30, \"   |   \")","v":""}]
["2589001-00",null,null,null,null,null,null,null,null,null,null,null,null,null,null,{"$f":"SverweisM($A447, CNC!$A$4:$AD$727, 30, \"   |   \")","v":""}]
["2589001-40",null,null,null,null,null,null,null,null,null,null,null,null,null,null,{"$f":"SverweisM($A448, CNC!$A$4:$AD$727, 30, \"   |   \")","v":""}]
["2589002-00",null,null,null,null,null,null,null,null,null,null,null,null,null,null,{"$f":"SverweisM($A449, CNC!$A$4:$AD$727, 30, \"   |   \")","v":""}]
["2589002-40",null,null,null,null,null,null,null,null,null,null,null,null,null,null,{"$f":"SverweisM($A450, CNC!$A$4:$AD$727, 30, \"   |   \")","v":""}]
["2589201-00",null,null,null,null,null,null,null,null,null,null,null,null,null,null,{"$f":"SverweisM($A451, CNC!$A$4:$AD$727, 30, \"   |   \")","v":""}]
["2589201-01",0,0,0,"nein"," "," "," ","ja","Freigegeben"," "," ",null,null,null,{"$f":"SverweisM($A452, CNC!$A$4:$AD$727, 30, \"   |   \")","v":""}]
["2589201-01",0,0,0,"nein"," "," "," ","ja","Freigegeben"," "," ",null,null,null,{"$f":"SverweisM($A453, CNC!$A$4:$AD$727, 30, \"   |   \")","v":""}]
["2589801-00",null,null,null,null,null,null,null,null,null,null,null,null,null,null,{"$f":"SverweisM($A454, CNC!$A$4:$AD$727, 30, \"   |   \")","v":""}]
["2589801-01",0,0,0,"nein"," "," "," ","ja","Freigegeben"," "," ",null,null,null,{"$f":"SverweisM($A455, CNC!$A$4:$AD$727, 30, \"   |   \")","v":""}]
["2589801-01",0,0,0,"nein"," "," "," ","ja","-"," "," ",null,null,null,{"$f":"SverweisM($A456, CNC!$A$4:$AD$727, 30, \"   |   \")","v":""}]
["2589801-02",null,null,null,null,null,null,null,null,null,null,null,null,null,null,{"$f":"SverweisM($A457, CNC!$A$4:$AD$727, 30, \"   |   \")","v":""}]
["2589802-00",null,null,null,null,null,null,null,null,null,null,null,null,null,null,{"$f":"SverweisM($A458, CNC!$A$4:$AD$727, 30, \"   |   \")","v":""}]
["2589802-01",0,0,0,"nein"," "," "," ","ja","Freigegeben"," "," ",null,null,null,{"$f":"SverweisM($A459, CNC!$A$4:$AD$727, 30, \"   |   \")","v":""}]
["2589802-01",0,0,0,"nein"," "," "," ","ja","-"," "," ",null,null,null,{"$f":"SverweisM($A460, CNC!$A$4:$AD$727, 30, \"   |   \")","v":""}]
["2589802-01",0,0,0,"nein"," "," "," ","ja","Freigegeben"," "," ",null,null,null,{"$f":"SverweisM($A461, CNC!$A$4:$AD$727, 30, \"   |   \")","v":""}]
["2589802-02",0,0,0,"nein"," "," "," ","ja","-"," "," ",null,null,null,{"$f":"SverweisM($A462, CNC!$A$4:$AD$727, 30, \"   |   \")","v":""}]
["2589802-02",0,0,0,"nein"," "," "," ","ja","-"," "," ",null,null,null,{"$f":"SverweisM($A463, CNC!$A$4:$AD$727, 30, \"   |   \")","v":""}]
["2589802-02",0,0,0,"nein"," "," "," ","ja","-"," "," ",null,null,null,{"$f":"SverweisM($A464, CNC!$A$4:$AD$727, 30, \"   |   \")","v":""}]
["2589802-02",0,0,0,"nein"," "," "," ","ja","-"," "," ",null,null,null,{"$f":"SverweisM($A465, CNC!$A$4:$AD$727, 30, \"   |   \")","v":""}]
["2589803-00",null,null,null,null,null,null,null,null,null,null,null,null,null,null,{"$f":"SverweisM($A466, CNC!$A$4:$AD$727, 30, \"   |   \")","v":""}]
["2589803-01",0,0,0,"nein"," "," "," ","ja","-"," "," ",null,null,null,{"$f":"SverweisM($A467, CNC!$A$4:$AD$727, 30, \"   |   \")","v":"5-666220A-FG-1"}]
["2589803-02",0,0,0,"nein"," "," "," ","ja","Freigegeben"," "," ",null,null,null,{"$f":"SverweisM($A468, CNC!$A$4:$AD$727, 30, \"   |   \")","v":"5-666221A-FG-1"}]
["2589803-03",0,0,0,"nein"," "," "," ","ja","Freigegeben"," "," ",null,null,null,{"$f":"SverweisM($A469, CNC!$A$4:$AD$727, 30, \"   |   \")","v":""}]
["2589803-03",0,0,0,"nein"," "," "," ","ja","Freigegeben"," "," ",null,null,null,{"$f":"SverweisM($A470, CNC!$A$4:$AD$727, 30, \"   |   \")","v":""}]
["2589803-04",0,0,0,"nein"," "," "," ","ja","-"," "," ",null,null,null,{"$f":"SverweisM($A471, CNC!$A$4:$AD$727, 30, \"   |   \")","v":""}]
["2589803-04",0,0,0,"nein"," "," "," ","ja","-"," "," ",null,null,null,{"$f":"SverweisM($A472, CNC!$A$4:$AD$727, 30, \"   |   \")","v":""}]
["2589803-05",0,0,0,"nein"," "," "," ","ja","-"," "," ",null,null,null,{"$f":"SverweisM($A473, CNC!$A$4:$AD$727, 30, \"   |   \")","v":"7-658051A0-GR-1   |   7-658051A0-GR-2   |   5-658051A-FG-1"}]
["2589803-05",0,0,0,"nein"," "," "," ","ja","-"," "," ",null,null,null,{"$f":"SverweisM($A474, CNC!$A$4:$AD$727, 30, \"   |   \")","v":"7-658051A0-GR-1   |   7-658051A0-GR-2   |   5-658051A-FG-1"}]
["2589803-05",0,0,0,"nein"," "," "," ","ja","Freigegeben"," "," ",null,null,null,{"$f":"SverweisM($A475, CNC!$A$4:$AD$727, 30, \"   |   \")","v":"7-658051A0-GR-1   |   7-658051A0-GR-2   |   5-658051A-FG-1"}]
["2589803-05",0,0,0,"nein"," "," "," ","ja","-"," "," ",null,null,null,{"$f":"SverweisM($A476, CNC!$A$4:$AD$727, 30, \"   |   \")","v":"7-658051A0-GR-1   |   7-658051A0-GR-2   |   5-658051A-FG-1"}]
["2589803-10",0,0,0,"nein"," "," "," ","ja","Freigegeben"," "," ",null,null,null,{"$f":"SverweisM($A477, CNC!$A$4:$AD$727, 30, \"   |   \")","v":""}]
["2589901-00",null,null,null,null,null,null,null,null,null,null,null,null,null,null,{"$f":"SverweisM($A478, CNC!$A$4:$AD$727, 30, \"   |   \")","v":""}]
["2589901-90",null,null,null,null,null,null,null,null,null,null,null,null,null,null,{"$f":"SverweisM($A479, CNC!$A$4:$AD$727, 30, \"   |   \")","v":""}]
["2589902-00",null,null,null,null,null,null,null,null,null,null,null,null,null,null,{"$f":"SverweisM($A480, CNC!$A$4:$AD$727, 30, \"   |   \")","v":""}]
["2589902-02",0,0,0,"nein"," "," "," ","ja","Freigegeben"," "," ",null,null,null,{"$f":"SverweisM($A481, CNC!$A$4:$AD$727, 30, \"   |   \")","v":"5-659762A-FG-1"}]
["2590001-00",null,null,null,null,null,null,null,null,null,null,null,null,null,null,{"$f":"SverweisM($A482, CNC!$A$4:$AD$727, 30, \"   |   \")","v":""}]
["2590001-01",0,0,0,"nein"," "," "," ","ja","-"," "," ",null,null,null,{"$f":"SverweisM($A483, CNC!$A$4:$AD$727, 30, \"   |   \")","v":""}]
["2590001-01",0,0,0,"nein"," "," "," ","ja","-"," "," ",null,null,null,{"$f":"SverweisM($A484, CNC!$A$4:$AD$727, 30, \"   |   \")","v":""}]
["2590001-01",0,0,0,"nein"," "," "," ","ja","Freigegeben"," "," ",null,null,null,{"$f":"SverweisM($A485, CNC!$A$4:$AD$727, 30, \"   |   \")","v":""}]
["2590001-02",0,0,0,"nein"," "," "," ","ja","Freigegeben"," "," ",null,null,null,{"$f":"SverweisM($A486, CNC!$A$4:$AD$727, 30, \"   |   \")","v":""}]
["2590001-02",0,0,0,"nein"," "," "," ","ja","Freigegeben"," "," ",null,null,null,{"$f":"SverweisM($A487, CNC!$A$4:$AD$727, 30, \"   |   \")","v":""}]
["2590001-02",0,0,0,"nein"," "," "," ","ja","Freigegeben"," "," ",null,null,null,{"$f":"SverweisM($A488, CNC!$A$4:$AD$727, 30, \"   |   \")","v":""}]
["2590001-10",0,0,0,"nein"," "," "," ","ja","Freigegeben"," "," ",null,null,null,{"$f":"SverweisM($A489, CNC!$A$4:$AD$727, 30, \"   |   \")","v":""}]
["2590001-10",0,0,0,"nein"," "," "," ","ja","-"," "," ",null,null,null,{"$f":"SverweisM($A490, CNC!$A$4:$AD$727, 30, \"   |   \")","v":""}]
["2590002-00",null,null,null,null,null,null,null,null,null,null,null,null,null,null,{"$f":"SverweisM($A491, CNC!$A$4:$AD$727, 30, \"   |   \")","v":""}]
["2590002-01",0,0,0,"nein"," "," "," ","ja","-"," "," ",null,null,null,{"$f":"SverweisM($A492, CNC!$A$4:$AD$727, 30, \"   |   \")","v":""}]
["2590002-01",0,0,0,"nein"," "," "," ","ja","-"," "," ",null,null,null,{"$f":"SverweisM($A493, CNC!$A$4:$AD$727, 30, \"   |   \")","v":""}]
["2590002-01",0,0,0,"nein"," "," "," ","ja","-"," "," ",null,null,null,{"$f":"SverweisM($A494, CNC!$A$4:$AD$727, 30, \"   |   \")","v":""}]
["2590002-02",0,0,0,"nein"," "," "," ","ja","Freigegeben"," "," ",null,null,null,{"$f":"SverweisM($A495, CNC!$A$4:$AD$727, 30, \"   |   \")","v":""}]
["2590002-02",0,0,0,"nein"," "," "," ","ja","-"," "," ",null,null,null,{"$f":"SverweisM($A496, CNC!$A$4:$AD$727, 30, \"   |   \")","v":""}]
["2590002-02",0,0,0,"nein"," "," "," ","ja","Freigegeben"," "," ",null,null,null,{"$f":"SverweisM($A497, CNC!$A$4:$AD$727, 30, \"   |   \")","v":""}]
["2590002-10",0,0,0,"nein"," "," "," ","ja","-"," "," ",null,null,null,{"$f":"SverweisM($A498, CNC!$A$4:$AD$727, 30, \"   |   \")","v":""}]
["2590002-10",0,0,0,"nein"," "," "," ","ja","Freigegeben"," "," ",null,null,null,{"$f":"SverweisM($A499, CNC!$A$4:$AD$727, 30, \"   |   \")","v":""}]
["2590003-00",null,null,null,null,null,null,null,null,null,null,null,null,null,null,{"$f":"SverweisM($A500, CNC!$A$4:$AD$727, 30, \"   |   \")","v":""}]
["2590003-01",0,0,0,"nein"," "," "," ","ja","-"," "," ",null,null,null,{"$f":"SverweisM($A501, CNC!$A$4:$AD$727, 30, \"   |   \")","v":""}]
["2590003-01",0,0,0,"nein"," "," "," ","ja","Freigegeben"," "," ",null,null,null,{"$f":"SverweisM($A502, CNC!$A$4:$AD$727, 30, \"   |   \")","v":""}]
["2590003-01",0,0,0,"nein"," "," "," ","ja","-"," "," ",null,null,null,{"$f":"SverweisM($A503, CNC!$A$4:$AD$727, 30, \"   |   \")","v":""}]
["2590003-02",0,0,0,"nein"," "," "," ","ja","Freigegeben"," "," ",null,null,null,{"$f":"SverweisM($A504, CNC!$A$4:$AD$727, 30, \"   |   \")","v":""}]
["2590003-02",0,0,0,"nein"," "," "," ","ja","Freigegeben"," "," ",null,null,null,{"$f":"SverweisM($A505, CNC!$A$4:$AD$727, 30, \"   |   \")","v":""}]
["2590003-02",0,0,0,"nein"," "," "," ","ja","Freigegeben"," "," ",null,null,null,{"$f":"SverweisM($A506, CNC!$A$4:$AD$727, 30, \"   |   \")","v":""}]
["2590003-10",0,0,0,"nein"," "," "," ","ja","Freigegeben"," "," ",null,null,null,{"$f":"SverweisM($A507, CNC!$A$4:$AD$727, 30, \"   |   \")","v":""}]
["2590003-10",0,0,0,"nein"," "," "," ","ja","Freigegeben"," "," ",null,null,null,{"$f":"SverweisM($A508, CNC!$A$4:$AD$727, 30, \"   |   \")","v":""}]
["2590301-00",null,null,null,null,null,null,null,null,null,null,null,null,null,null,{"$f":"SverweisM($A509, CNC!$A$4:$AD$727, 30, \"   |   \")","v":""}]
["2590301-02",0,0,0,"nein"," "," "," ","ja","-"," "," ",null,null,null,{"$f":"SverweisM($A510, CNC!$A$4:$AD$727, 30, \"   |   \")","v":""}]
["2590301-02",0,0,0,"nein"," "," "," ","ja","Freigegeben"," "," ",null,null,null,{"$f":"SverweisM($A511, CNC!$A$4:$AD$727, 30, \"   |   \")","v":""}]
["2590301-02",0,0,0,"nein"," "," "," ","ja","Freigegeben"," "," ",null,null,null,{"$f":"SverweisM($A512, CNC!$A$4:$AD$727, 30, \"   |   \")","v":""}]
["2590301-02",0,0,0,"nein"," "," "," ","ja","Freigegeben"," "," ",null,null,null,{"$f":"SverweisM($A513, CNC!$A$4:$AD$727, 30, \"   |   \")","v":""}]
["2590501-00",null,null,null,null,null,null,null,null,null,null,null,null,null,null,{"$f":"SverweisM($A514, CNC!$A$4:$AD$727, 30, \"   |   \")","v":""}]
["2590501-01",null,null,null,null,null,null,null,null,null,null,null,null,null,null,{"$f":"SverweisM($A515, CNC!$A$4:$AD$727, 30, \"   |   \")","v":""}]
["2590501-02",0,0,0,"nein"," "," "," ","ja","Freigegeben"," "," ",null,null,null,{"$f":"SverweisM($A516, CNC!$A$4:$AD$727, 30, \"   |   \")","v":"6-657174B-RF-1   |   6-657174B-RF-2"}]
["2590501-02",0,0,0,"nein"," "," "," ","ja","Freigegeben"," "," ",null,null,null,{"$f":"SverweisM($A517, CNC!$A$4:$AD$727, 30, \"   |   \")","v":"6-657174B-RF-1   |   6-657174B-RF-2"}]
["2590501-40",0,0,0,"nein"," "," "," ","ja","-"," "," ",null,null,null,{"$f":"SverweisM($A518, CNC!$A$4:$AD$727, 30, \"   |   \")","v":""}]
["2590501-40",0,0,0,"nein"," "," "," ","ja","Freigegeben"," "," ",null,null,null,{"$f":"SverweisM($A519, CNC!$A$4:$AD$727, 30, \"   |   \")","v":""}]
["2590502-00",null,null,null,null,null,null,null,null,null,null,null,null,null,null,{"$f":"SverweisM($A520, CNC!$A$4:$AD$727, 30, \"   |   \")","v":""}]
["2590503-00",null,null,null,null,null,null,null,null,null,null,null,null,null,null,{"$f":"SverweisM($A521, CNC!$A$4:$AD$727, 30, \"   |   \")","v":""}]
["2590504-00",null,null,null,null,null,null,null,null,null,null,null,null,null,null,{"$f":"SverweisM($A522, CNC!$A$4:$AD$727, 30, \"   |   \")","v":""}]
["2590601-00",null,null,null,null,null,null,null,null,null,null,null,null,null,null,{"$f":"SverweisM($A523, CNC!$A$4:$AD$727, 30, \"   |   \")","v":""}]
["2590601-01",0,0,0,"nein"," "," "," ","ja","Freigegeben"," "," ",null,null,null,{"$f":"SverweisM($A524, CNC!$A$4:$AD$727, 30, \"   |   \")","v":"5-65357301-FG-1"}]
["2590601-01",0,0,0,"nein"," "," "," ","ja","Freigegeben"," "," ",null,null,null,{"$f":"SverweisM($A525, CNC!$A$4:$AD$727, 30, \"   |   \")","v":"5-65357301-FG-1"}]
["2590601-01",0,0,0,"nein"," "," "," ","ja","Freigegeben"," "," ",null,null,null,{"$f":"SverweisM($A526, CNC!$A$4:$AD$727, 30, \"   |   \")","v":"5-65357301-FG-1"}]
["2590601-04",0,0,0,"nein"," "," "," ","ja","Freigegeben"," "," ",null,null,null,{"$f":"SverweisM($A527, CNC!$A$4:$AD$727, 30, \"   |   \")","v":""}]
["2590701-00",null,null,null,null,null,null,null,null,null,null,null,null,null,null,{"$f":"SverweisM($A528, CNC!$A$4:$AD$727, 30, \"   |   \")","v":""}]
["2590701-01",0,0,0,"nein"," "," "," ","ja","-"," "," ",null,null,null,{"$f":"SverweisM($A529, CNC!$A$4:$AD$727, 30, \"   |   \")","v":""}]
["2590701-01",0,0,0,"nein"," "," "," ","ja","Freigegeben"," "," ",null,null,null,{"$f":"SverweisM($A530, CNC!$A$4:$AD$727, 30, \"   |   \")","v":""}]
["2590701-02",0,0,0,"nein"," "," "," ","ja","Freigegeben"," "," ",null,null,null,{"$f":"SverweisM($A531, CNC!$A$4:$AD$727, 30, \"   |   \")","v":""}]
["2590701-02",0,0,0,"nein"," "," "," ","ja","Freigegeben"," "," ",null,null,null,{"$f":"SverweisM($A532, CNC!$A$4:$AD$727, 30, \"   |   \")","v":""}]
["2590701-90",null,null,null,null,null,null,null,null,null,null,null,null,null,null,{"$f":"SverweisM($A533, CNC!$A$4:$AD$727, 30, \"   |   \")","v":""}]
["2590702-00",null,null,null,null,null,null,null,null,null,null,null,null,null,null,{"$f":"SverweisM($A534, CNC!$A$4:$AD$727, 30, \"   |   \")","v":""}]
["2590702-01",0,0,0,"nein"," "," "," ","ja","Freigegeben"," "," ",null,null,null,{"$f":"SverweisM($A535, CNC!$A$4:$AD$727, 30, \"   |   \")","v":""}]
["2590702-01",0,0,0,"nein"," "," "," ","ja","-"," "," ",null,null,null,{"$f":"SverweisM($A536, CNC!$A$4:$AD$727, 30, \"   |   \")","v":""}]
["2590702-02",0,0,0,"nein"," "," "," ","ja","-"," "," ",null,null,null,{"$f":"SverweisM($A537, CNC!$A$4:$AD$727, 30, \"   |   \")","v":""}]
["2590702-90",null,null,null,null,null,null,null,null,null,null,null,null,null,null,{"$f":"SverweisM($A538, CNC!$A$4:$AD$727, 30, \"   |   \")","v":""}]
["2590901-00",null,null,null,null,null,null,null,null,null,null,null,null,null,null,{"$f":"SverweisM($A539, CNC!$A$4:$AD$727, 30, \"   |   \")","v":""}]
["2591501-00",null,null,null,null,null,null,null,null,null,null,null,null,null,null,{"$f":"SverweisM($A540, CNC!$A$4:$AD$727, 30, \"   |   \")","v":""}]
["2592301-00",null,null,null,null,null,null,null,null,null,null,null,null,null,null,{"$f":"SverweisM($A541, CNC!$A$4:$AD$727, 30, \"   |   \")","v":""}]
["2592301-55",null,null,null,null,null,null,null,null,null,null,null,null,null,null,{"$f":"SverweisM($A542, CNC!$A$4:$AD$727, 30, \"   |   \")","v":""}]
["2592302-00",null,null,null,null,null,null,null,null,null,null,null,null,null,null,{"$f":"SverweisM($A543, CNC!$A$4:$AD$727, 30, \"   |   \")","v":""}]
["2592302-55",null,null,null,null,null,null,null,null,null,null,null,null,null,null,{"$f":"SverweisM($A544, CNC!$A$4:$AD$727, 30, \"   |   \")","v":""}]
["2592501-00",null,null,null,null,null,null,null,null,null,null,null,null,null,null,{"$f":"SverweisM($A545, CNC!$A$4:$AD$727, 30, \"   |   \")","v":""}]
["2592601-00",null,null,null,null,null,null,null,null,null,null,null,null,null,null,{"$f":"SverweisM($A546, CNC!$A$4:$AD$727, 30, \"   |   \")","v":""}]
["2592601-01",0,0,0,"nein"," "," "," ","ja","-"," "," ",null,null,null,{"$f":"SverweisM($A547, CNC!$A$4:$AD$727, 30, \"   |   \")","v":"8_665900A_SB_1   |   8_665900A_SB_2"}]
["2592601-01",0,0,0,"nein"," "," "," ","ja","-"," "," ",null,null,null,{"$f":"SverweisM($A548, CNC!$A$4:$AD$727, 30, \"   |   \")","v":"8_665900A_SB_1   |   8_665900A_SB_2"}]
["2592601-01",0,0,0,"nein"," "," "," ","ja","-"," "," ",null,null,null,{"$f":"SverweisM($A549, CNC!$A$4:$AD$727, 30, \"   |   \")","v":"8_665900A_SB_1   |   8_665900A_SB_2"}]
["2592601-02",0,0,0,"nein"," "," "," ","ja","Freigegeben"," "," ",null,null,null,{"$f":"SverweisM($A550, CNC!$A$4:$AD$727, 30, \"   |   \")","v":"5-665901A-FG-1   |   5-665901A-FG-2"}]
["2592601-02",0,0,0,"nein"," "," "," ","ja","-"," "," ",null,null,null,{"$f":"SverweisM($A551, CNC!$A$4:$AD$727, 30, \"   |   \")","v":"5-665901A-FG-1   |   5-665901A-FG-2"}]
["2592601-04",null,null,null,null,null,null,null,null,null,null,null,null,null,null,{"$f":"SverweisM($A552, CNC!$A$4:$AD$727, 30, \"   |   \")","v":""}]
["2592601-05",0,0,0,"nein"," "," "," ","ja","Freigegeben"," "," ",null,null,null,{"$f":"SverweisM($A553, CNC!$A$4:$AD$727, 30, \"   |   \")","v":""}]
["2592601-05",0,0,0,"nein"," "," "," ","ja","-"," "," ",null,null,null,{"$f":"SverweisM($A554, CNC!$A$4:$AD$727, 30, \"   |   \")","v":""}]
["2592601-05",0,0,0,"nein"," "," "," ","ja","-"," "," ",null,null,null,{"$f":"SverweisM($A555, CNC!$A$4:$AD$727, 30, \"   |   \")","v":""}]
["2592601-06",null,null,null,null,null,null,null,null,null,null,null,null,null,null,{"$f":"SverweisM($A556, CNC!$A$4:$AD$727, 30, \"   |   \")","v":""}]
["2592901-00",null,null,null,null,null,null,null,null,null,null,null,null,null,null,{"$f":"SverweisM($A557, CNC!$A$4:$AD$727, 30, \"   |   \")","v":""}]
["2593601-00",null,null,null,null,null,null,null,null,null,null,null,null,null,null,{"$f":"SverweisM($A558, CNC!$A$4:$AD$727, 30, \"   |   \")","v":""}]
["2593601-01",0,0,0,"nein"," "," "," ","ja","Freigegeben"," "," ",null,null,null,{"$f":"SverweisM($A559, CNC!$A$4:$AD$727, 30, \"   |   \")","v":"8_64642831_VD_1   |   8_64642831_VD_2"}]
["2593601-01",0,0,0,"nein"," "," "," ","ja","Freigegeben"," "," ",null,null,null,{"$f":"SverweisM($A560, CNC!$A$4:$AD$727, 30, \"   |   \")","v":"8_64642831_VD_1   |   8_64642831_VD_2"}]
["2593601-01",0,0,0,"nein"," "," "," ","ja","-"," "," ",null,null,null,{"$f":"SverweisM($A561, CNC!$A$4:$AD$727, 30, \"   |   \")","v":"8_64642831_VD_1   |   8_64642831_VD_2"}]
["2593601-07",0,0,0,"nein"," "," "," ","ja","Freigegeben"," "," ",null,null,null,{"$f":"SverweisM($A562, CNC!$A$4:$AD$727, 30, \"   |   \")","v":"5-64643301-FG-1"}]
["2593601-08",null,null,null,null,null,null,null,null,null,null,null,null,null,null,{"$f":"SverweisM($A563, CNC!$A$4:$AD$727, 30, \"   |   \")","v":""}]
["2593601-12",null,null,null,null,null,null,null,null,null,null,null,null,null,null,{"$f":"SverweisM($A564, CNC!$A$4:$AD$727, 30, \"   |   \")","v":""}]
["2593601-13",0,0,0,"nein"," "," "," ","ja","Freigegeben"," "," ",null,null,null,{"$f":"SverweisM($A565, CNC!$A$4:$AD$727, 30, \"   |   \")","v":"6-64643911-FG-1"}]
["2593601-14",0,0,0,"nein"," "," "," ","ja","Freigegeben"," "," ",null,null,null,{"$f":"SverweisM($A566, CNC!$A$4:$AD$727, 30, \"   |   \")","v":""}]
["2593701-00",null,null,null,null,null,null,null,null,null,null,null,null,null,null,{"$f":"SverweisM($A567, CNC!$A$4:$AD$727, 30, \"   |   \")","v":""}]
["2594001-00",null,null,null,null,null,null,null,null,null,null,null,null,null,null,{"$f":"SverweisM($A568, CNC!$A$4:$AD$727, 30, \"   |   \")","v":""}]
["2594001-01",0,0,0,"nein"," "," "," ","ja","Freigegeben"," "," ",null,null,null,{"$f":"SverweisM($A569, CNC!$A$4:$AD$727, 30, \"   |   \")","v":"9_665035A_VD_1   |   9_665035A_VD_2"}]
["2594001-01",0,0,0,"nein"," "," "," ","ja","Freigegeben"," "," ",null,null,null,{"$f":"SverweisM($A570, CNC!$A$4:$AD$727, 30, \"   |   \")","v":"9_665035A_VD_1   |   9_665035A_VD_2"}]
["2594001-02",0,0,0,"nein"," "," "," ","ja","Freigegeben"," "," ",null,null,null,{"$f":"SverweisM($A571, CNC!$A$4:$AD$727, 30, \"   |   \")","v":"6-665055A-RF-2   |   9_665055A_VD_1   |   9_665055A_VD_2"}]
["2594001-02",0,0,0,"nein"," "," "," ","ja","-"," "," ",null,null,null,{"$f":"SverweisM($A572, CNC!$A$4:$AD$727, 30, \"   |   \")","v":"6-665055A-RF-2   |   9_665055A_VD_1   |   9_665055A_VD_2"}]
["2594001-02",0,0,0,"nein"," "," "," ","ja","-"," "," ",null,null,null,{"$f":"SverweisM($A573, CNC!$A$4:$AD$727, 30, \"   |   \")","v":"6-665055A-RF-2   |   9_665055A_VD_1   |   9_665055A_VD_2"}]
["2594002-00",null,null,null,null,null,null,null,null,null,null,null,null,null,null,{"$f":"SverweisM($A574, CNC!$A$4:$AD$727, 30, \"   |   \")","v":""}]
["2594002-01",0,0,0,"nein"," "," "," ","ja","-"," "," ",null,null,null,{"$f":"SverweisM($A575, CNC!$A$4:$AD$727, 30, \"   |   \")","v":"9_665437A_VD_1   |   9_665437A_VD_2"}]
["2594002-01",0,0,0,"nein"," "," "," ","ja","Freigegeben"," "," ",null,null,null,{"$f":"SverweisM($A576, CNC!$A$4:$AD$727, 30, \"   |   \")","v":"9_665437A_VD_1   |   9_665437A_VD_2"}]
["2594002-02",0,0,0,"nein"," "," "," ","ja","-"," "," ",null,null,null,{"$f":"SverweisM($A577, CNC!$A$4:$AD$727, 30, \"   |   \")","v":"6-665438A-FG-2   |   9_665438A_VD_1   |   9_665438A_VD_2"}]
["2594002-02",0,0,0,"nein"," "," "," ","ja","Freigegeben"," "," ",null,null,null,{"$f":"SverweisM($A578, CNC!$A$4:$AD$727, 30, \"   |   \")","v":"6-665438A-FG-2   |   9_665438A_VD_1   |   9_665438A_VD_2"}]
["2594002-02",0,0,0,"nein"," "," "," ","ja","Freigegeben"," "," ",null,null,null,{"$f":"SverweisM($A579, CNC!$A$4:$AD$727, 30, \"   |   \")","v":"6-665438A-FG-2   |   9_665438A_VD_1   |   9_665438A_VD_2"}]
["2594002-03",0,0,0,"nein"," "," "," ","ja","Freigegeben"," "," ",null,null,null,{"$f":"SverweisM($A580, CNC!$A$4:$AD$727, 30, \"   |   \")","v":"8_665439A_GR_4   |   8_665439A_GR_5   |   8_665439A_GR_6"}]
["2594002-03",0,0,0,"nein"," "," "," ","ja","-"," "," ",null,null,null,{"$f":"SverweisM($A581, CNC!$A$4:$AD$727, 30, \"   |   \")","v":"8_665439A_GR_4   |   8_665439A_GR_5   |   8_665439A_GR_6"}]
["2594002-03",0,0,0,"nein"," "," "," ","ja","Freigegeben"," "," ",null,null,null,{"$f":"SverweisM($A582, CNC!$A$4:$AD$727, 30, \"   |   \")","v":"8_665439A_GR_4   |   8_665439A_GR_5   |   8_665439A_GR_6"}]
["2594002-40",0,0,0,"nein"," "," "," ","ja","Freigegeben"," "," ",null,null,null,{"$f":"SverweisM($A583, CNC!$A$4:$AD$727, 30, \"   |   \")","v":"8_665441A_GR_4   |   8_665441A_GR_5   |   8_665441A_GR_6"}]
["2594002-40",0,0,0,"nein"," "," "," ","ja","Freigegeben"," "," ",null,null,null,{"$f":"SverweisM($A584, CNC!$A$4:$AD$727, 30, \"   |   \")","v":"8_665441A_GR_4   |   8_665441A_GR_5   |   8_665441A_GR_6"}]
["2594002-40",0,0,0,"nein"," "," "," ","ja","-"," "," ",null,null,null,{"$f":"SverweisM($A585, CNC!$A$4:$AD$727, 30, \"   |   \")","v":"8_665441A_GR_4   |   8_665441A_GR_5   |   8_665441A_GR_6"}]
["2594002-99",0,0,0,"nein"," "," "," ","ja","Freigegeben"," "," ",null,null,null,{"$f":"SverweisM($A586, CNC!$A$4:$AD$727, 30, \"   |   \")","v":"9_665442A_VD_1"}]
["2594101-00",null,null,null,null,null,null,null,null,null,null,null,null,null,null,{"$f":"SverweisM($A587, CNC!$A$4:$AD$727, 30, \"   |   \")","v":""}]
["2594501-00",null,null,null,null,null,null,null,null,null,null,null,null,null,null,{"$f":"SverweisM($A588, CNC!$A$4:$AD$727, 30, \"   |   \")","v":""}]
["2594501-01",0,0,0,"nein"," "," "," ","ja","Freigegeben"," "," ",null,null,null,{"$f":"SverweisM($A589, CNC!$A$4:$AD$727, 30, \"   |   \")","v":""}]
["2594501-01",0,0,0,"nein"," "," "," ","ja","Freigegeben"," "," ",null,null,null,{"$f":"SverweisM($A590, CNC!$A$4:$AD$727, 30, \"   |   \")","v":""}]
["2594601-00",null,null,null,null,null,null,null,null,null,null,null,null,null,null,{"$f":"SverweisM($A591, CNC!$A$4:$AD$727, 30, \"   |   \")","v":""}]
["2594601-03",0,0,0,"nein"," "," "," ","ja","-"," "," ",null,null,null,{"$f":"SverweisM($A592, CNC!$A$4:$AD$727, 30, \"   |   \")","v":""}]
["2594601-03",0,0,0,"nein"," "," "," ","ja","Freigegeben"," "," ",null,null,null,{"$f":"SverweisM($A593, CNC!$A$4:$AD$727, 30, \"   |   \")","v":""}]
["2594601-03",0,0,0,"nein"," "," "," ","ja","-"," "," ",null,null,null,{"$f":"SverweisM($A594, CNC!$A$4:$AD$727, 30, \"   |   \")","v":""}]
["2594601-04",0,0,0,"nein"," "," "," ","ja","-"," "," ",null,null,null,{"$f":"SverweisM($A595, CNC!$A$4:$AD$727, 30, \"   |   \")","v":""}]
["2594601-05",null,null,null,null,null,null,null,null,null,null,null,null,null,null,{"$f":"SverweisM($A596, CNC!$A$4:$AD$727, 30, \"   |   \")","v":""}]
["2594601-06",null,null,null,null,null,null,null,null,null,null,null,null,null,null,{"$f":"SverweisM($A597, CNC!$A$4:$AD$727, 30, \"   |   \")","v":""}]
["2594601-08",0,0,0,"nein"," "," "," ","ja","Freigegeben"," "," ",null,null,null,{"$f":"SverweisM($A598, CNC!$A$4:$AD$727, 30, \"   |   \")","v":""}]
["2594601-08",0,0,0,"nein"," "," "," ","ja","Freigegeben"," "," ",null,null,null,{"$f":"SverweisM($A599, CNC!$A$4:$AD$727, 30, \"   |   \")","v":""}]
["2595001-00",null,null,null,null,null,null,null,null,null,null,null,null,null,null,{"$f":"SverweisM($A600, CNC!$A$4:$AD$727, 30, \"   |   \")","v":""}]
["2595002-00",null,null,null,null,null,null,null,null,null,null,null,null,null,null,{"$f":"SverweisM($A601, CNC!$A$4:$AD$727, 30, \"   |   \")","v":""}]
["2595201-00",null,null,null,null,null,null,null,null,null,null,null,null,null,null,{"$f":"SverweisM($A602, CNC!$A$4:$AD$727, 30, \"   |   \")","v":""}]
["2595201-02",0,0,0,"nein"," "," "," ","ja","-"," "," ",null,null,null,{"$f":"SverweisM($A603, CNC!$A$4:$AD$727, 30, \"   |   \")","v":""}]
["2595201-02",0,0,0,"nein"," "," "," ","ja","-"," "," ",null,null,null,{"$f":"SverweisM($A604, CNC!$A$4:$AD$727, 30, \"   |   \")","v":""}]
["2595201-04",0,0,0,"nein"," "," "," ","ja","-"," "," ",null,null,null,{"$f":"SverweisM($A605, CNC!$A$4:$AD$727, 30, \"   |   \")","v":"5-65619701-FG-1   |   5-65619701-FG-2"}]
["2595201-04",0,0,0,"nein"," "," "," ","ja","-"," "," ",null,null,null,{"$f":"SverweisM($A606, CNC!$A$4:$AD$727, 30, \"   |   \")","v":"5-65619701-FG-1   |   5-65619701-FG-2"}]
["2595201-05",0,0,0,"nein"," "," "," ","ja","Freigegeben"," "," ",null,null,null,{"$f":"SverweisM($A607, CNC!$A$4:$AD$727, 30, \"   |   \")","v":"5-65619801-FG-1"}]
["2595301-00",null,null,null,null,null,null,null,null,null,null,null,null,null,null,{"$f":"SverweisM($A608, CNC!$A$4:$AD$727, 30, \"   |   \")","v":""}]
["2595301-02",0,0,0,"nein"," "," "," ","ja","Freigegeben"," "," ",null,null,null,{"$f":"SverweisM($A609, CNC!$A$4:$AD$727, 30, \"   |   \")","v":"6-64259001-FG-1"}]
["2595301-03",0,0,0,"nein"," "," "," ","ja","-"," "," ",null,null,null,{"$f":"SverweisM($A610, CNC!$A$4:$AD$727, 30, \"   |   \")","v":""}]
["2595301-03",0,0,0,"nein"," "," "," ","ja","Freigegeben"," "," ",null,null,null,{"$f":"SverweisM($A611, CNC!$A$4:$AD$727, 30, \"   |   \")","v":""}]
["2595301-05",0,0,0,"nein"," "," "," ","ja","Freigegeben"," "," ",null,null,null,{"$f":"SverweisM($A612, CNC!$A$4:$AD$727, 30, \"   |   \")","v":""}]
["2595301-06",0,0,0,"nein"," "," "," ","ja","-"," "," ",null,null,null,{"$f":"SverweisM($A613, CNC!$A$4:$AD$727, 30, \"   |   \")","v":""}]
["2595301-09",null,null,null,null,null,null,null,null,null,null,null,null,null,null,{"$f":"SverweisM($A614, CNC!$A$4:$AD$727, 30, \"   |   \")","v":""}]
["2595301-10",null,null,null,null,null,null,null,null,null,null,null,null,null,null,{"$f":"SverweisM($A615, CNC!$A$4:$AD$727, 30, \"   |   \")","v":""}]
["2595301-11",null,null,null,null,null,null,null,null,null,null,null,null,null,null,{"$f":"SverweisM($A616, CNC!$A$4:$AD$727, 30, \"   |   \")","v":""}]
["2595601-00",null,null,null,null,null,null,null,null,null,null,null,null,null,null,{"$f":"SverweisM($A617, CNC!$A$4:$AD$727, 30, \"   |   \")","v":""}]
["2595601-02",0,0,0,"nein"," "," "," ","ja","-"," "," ",null,null,null,{"$f":"SverweisM($A618, CNC!$A$4:$AD$727, 30, \"   |   \")","v":"7-65031101-VD-1"}]
["2595601-02",0,0,0,"nein"," "," "," ","ja","Freigegeben"," "," ",null,null,null,{"$f":"SverweisM($A619, CNC!$A$4:$AD$727, 30, \"   |   \")","v":"7-65031101-VD-1"}]
["2595601-02",0,0,0,"nein"," "," "," ","ja","Freigegeben"," "," ",null,null,null,{"$f":"SverweisM($A620, CNC!$A$4:$AD$727, 30, \"   |   \")","v":"7-65031101-VD-1"}]
["2595601-03",0,0,0,"nein"," "," "," ","ja","-"," "," ",null,null,null,{"$f":"SverweisM($A621, CNC!$A$4:$AD$727, 30, \"   |   \")","v":""}]
["2595601-03",0,0,0,"nein"," "," "," ","ja","-"," "," ",null,null,null,{"$f":"SverweisM($A622, CNC!$A$4:$AD$727, 30, \"   |   \")","v":""}]
["2595601-05",0,0,0,"nein"," "," "," ","ja","-"," "," ",null,null,null,{"$f":"SverweisM($A623, CNC!$A$4:$AD$727, 30, \"   |   \")","v":""}]
["2595701-00",null,null,null,null,null,null,null,null,null,null,null,null,null,null,{"$f":"SverweisM($A624, CNC!$A$4:$AD$727, 30, \"   |   \")","v":""}]
["2595701-01",0,0,0,"nein"," "," "," ","ja","-"," "," ",null,null,null,{"$f":"SverweisM($A625, CNC!$A$4:$AD$727, 30, \"   |   \")","v":""}]
["2595701-01",0,0,0,"nein"," "," "," ","ja","-"," "," ",null,null,null,{"$f":"SverweisM($A626, CNC!$A$4:$AD$727, 30, \"   |   \")","v":""}]
["2595702-00",null,null,null,null,null,null,null,null,null,null,null,null,null,null,{"$f":"SverweisM($A627, CNC!$A$4:$AD$727, 30, \"   |   \")","v":""}]
["2595702-01",0,0,0,"nein"," "," "," ","ja","-"," "," ",null,null,null,{"$f":"SverweisM($A628, CNC!$A$4:$AD$727, 30, \"   |   \")","v":""}]
["2595702-01",0,0,0,"nein"," "," "," ","ja","-"," "," ",null,null,null,{"$f":"SverweisM($A629, CNC!$A$4:$AD$727, 30, \"   |   \")","v":""}]
["2595801-00",null,null,null,null,null,null,null,null,null,null,null,null,null,null,{"$f":"SverweisM($A630, CNC!$A$4:$AD$727, 30, \"   |   \")","v":""}]
["2595801-01",0,0,0,"nein"," "," "," ","ja","-"," "," ",null,null,null,{"$f":"SverweisM($A631, CNC!$A$4:$AD$727, 30, \"   |   \")","v":""}]
["2595801-01",0,0,0,"nein"," "," "," ","ja","-"," "," ",null,null,null,{"$f":"SverweisM($A632, CNC!$A$4:$AD$727, 30, \"   |   \")","v":""}]
["2595801-01",0,0,0,"nein"," "," "," ","ja","Freigegeben"," "," ",null,null,null,{"$f":"SverweisM($A633, CNC!$A$4:$AD$727, 30, \"   |   \")","v":""}]
["2595801-07",0,0,0,"nein"," "," "," ","ja","Freigegeben"," "," ",null,null,null,{"$f":"SverweisM($A634, CNC!$A$4:$AD$727, 30, \"   |   \")","v":"8_666416A_RV_1"}]
["2596601-00",null,null,null,null,null,null,null,null,null,null,null,null,null,null,{"$f":"SverweisM($A635, CNC!$A$4:$AD$727, 30, \"   |   \")","v":""}]
["2596601-03",0,0,0,"nein"," "," "," ","ja","-"," "," ",null,null,null,{"$f":"SverweisM($A636, CNC!$A$4:$AD$727, 30, \"   |   \")","v":"1-63291112-VM-2"}]
["2596701-00",null,null,null,null,null,null,null,null,null,null,null,null,null,null,{"$f":"SverweisM($A637, CNC!$A$4:$AD$727, 30, \"   |   \")","v":""}]
["2596701-01",0,0,0,"nein"," "," "," ","ja","Freigegeben"," "," ",null,null,null,{"$f":"SverweisM($A638, CNC!$A$4:$AD$727, 30, \"   |   \")","v":""}]
["2596701-01",0,0,0,"nein"," "," "," ","ja","-"," "," ",null,null,null,{"$f":"SverweisM($A639, CNC!$A$4:$AD$727, 30, \"   |   \")","v":""}]
["2596701-01",0,0,0,"nein"," "," "," ","ja","-"," "," ",null,null,null,{"$f":"SverweisM($A640, CNC!$A$4:$AD$727, 30, \"   |   \")","v":""}]
["2596701-02",0,0,0,"nein"," "," "," ","ja","-"," "," ",null,null,null,{"$f":"SverweisM($A641, CNC!$A$4:$AD$727, 30, \"   |   \")","v":""}]
["2596701-02",0,0,0,"nein"," "," "," ","ja","Freigegeben"," "," ",null,null,null,{"$f":"SverweisM($A642, CNC!$A$4:$AD$727, 30, \"   |   \")","v":""}]
["2596701-02",0,0,0,"nein"," "," "," ","ja","Freigegeben"," "," ",null,null,null,{"$f":"SverweisM($A643, CNC!$A$4:$AD$727, 30, \"   |   \")","v":""}]
["2596701-03",0,0,0,"nein"," "," "," ","ja","-"," "," ",null,null,null,{"$f":"SverweisM($A644, CNC!$A$4:$AD$727, 30, \"   |   \")","v":""}]
["2596701-03",0,0,0,"nein"," "," "," ","ja","-"," "," ",null,null,null,{"$f":"SverweisM($A645, CNC!$A$4:$AD$727, 30, \"   |   \")","v":""}]
["2596701-04",0,0,0,"nein"," "," "," ","ja","Freigegeben"," "," ",null,null,null,{"$f":"SverweisM($A646, CNC!$A$4:$AD$727, 30, \"   |   \")","v":""}]
["2596701-04",0,0,0,"nein"," "," "," ","ja","Freigegeben"," "," ",null,null,null,{"$f":"SverweisM($A647, CNC!$A$4:$AD$727, 30, \"   |   \")","v":""}]
["2596701-05",0,0,0,"nein"," "," "," ","ja","-"," "," ",null,null,null,{"$f":"SverweisM($A648, CNC!$A$4:$AD$727, 30, \"   |   \")","v":"5-61786212-FG-1"}]
["2596702-00",null,null,null,null,null,null,null,null,null,null,null,null,null,null,{"$f":"SverweisM($A649, CNC!$A$4:$AD$727, 30, \"   |   \")","v":""}]
["2596702-02",0,0,0,"nein"," "," "," ","ja","-"," "," ",null,null,null,{"$f":"SverweisM($A650, CNC!$A$4:$AD$727, 30, \"   |   \")","v":""}]
["2596702-05",0,0,0,"nein"," "," "," ","ja","Freigegeben"," "," ",null,null,null,{"$f":"SverweisM($A651, CNC!$A$4:$AD$727, 30, \"   |   \")","v":""}]
["2597101-00",null,null,null,null,null,null,null,null,null,null,null,null,null,null,{"$f":"SverweisM($A652, CNC!$A$4:$AD$727, 30, \"   |   \")","v":""}]
["2597101-01",0,0,0,"nein"," "," "," ","ja","Freigegeben"," "," ",null,null,null,{"$f":"SverweisM($A653, CNC!$A$4:$AD$727, 30, \"   |   \")","v":""}]
["2597101-02",0,0,0,"nein"," "," "," ","ja","-"," "," ",null,null,null,{"$f":"SverweisM($A654, CNC!$A$4:$AD$727, 30, \"   |   \")","v":""}]
["2597101-03",0,0,0,"nein"," "," "," ","ja","Freigegeben"," "," ",null,null,null,{"$f":"SverweisM($A655, CNC!$A$4:$AD$727, 30, \"   |   \")","v":"6-64283001-FG-1   |   6-64283001-FG-2"}]
["2597101-03",0,0,0,"nein"," "," "," ","ja","Freigegeben"," "," ",null,null,null,{"$f":"SverweisM($A656, CNC!$A$4:$AD$727, 30, \"   |   \")","v":"6-64283001-FG-1   |   6-64283001-FG-2"}]
["2597101-04",0,0,0,"nein"," "," "," ","ja","Freigegeben"," "," ",null,null,null,{"$f":"SverweisM($A657, CNC!$A$4:$AD$727, 30, \"   |   \")","v":"6-64283101-FG-1"}]
["2597701-00",null,null,null,null,null,null,null,null,null,null,null,null,null,null,{"$f":"SverweisM($A658, CNC!$A$4:$AD$727, 30, \"   |   \")","v":""}]
["2597701-02",0,0,0,"nein"," "," "," ","ja","Freigegeben"," "," ",null,null,null,{"$f":"SverweisM($A659, CNC!$A$4:$AD$727, 30, \"   |   \")","v":"1-62258504-VM-2"}]
["2597701-02",0,0,0,"nein"," "," "," ","ja","Freigegeben"," "," ",null,null,null,{"$f":"SverweisM($A660, CNC!$A$4:$AD$727, 30, \"   |   \")","v":"1-62258504-VM-2"}]
["2598201-00",null,null,null,null,null,null,null,null,null,null,null,null,null,null,{"$f":"SverweisM($A661, CNC!$A$4:$AD$727, 30, \"   |   \")","v":""}]
["2598201-10",0,0,0,"nein"," "," "," ","ja","-"," "," ",null,null,null,{"$f":"SverweisM($A662, CNC!$A$4:$AD$727, 30, \"   |   \")","v":""}]
["2598401-00",null,null,null,null,null,null,null,null,null,null,null,null,null,null,{"$f":"SverweisM($A663, CNC!$A$4:$AD$727, 30, \"   |   \")","v":""}]
["2598401-20",0,0,0,"nein"," "," "," ","ja","-"," "," ",null,null,null,{"$f":"SverweisM($A664, CNC!$A$4:$AD$727, 30, \"   |   \")","v":""}]
["2598501-00",null,null,null,null,null,null,null,null,null,null,null,null,null,null,{"$f":"SverweisM($A665, CNC!$A$4:$AD$727, 30, \"   |   \")","v":""}]
["2598501-01",null,null,null,null,null,null,null,null,null,null,null,null,null,null,{"$f":"SverweisM($A666, CNC!$A$4:$AD$727, 30, \"   |   \")","v":""}]
["2598801-00",null,null,null,null,null,null,null,null,null,null,null,null,null,null,{"$f":"SverweisM($A667, CNC!$A$4:$AD$727, 30, \"   |   \")","v":""}]
["2598801-01",0,0,0,"nein"," "," "," ","ja","Freigegeben"," "," ",null,null,null,{"$f":"SverweisM($A668, CNC!$A$4:$AD$727, 30, \"   |   \")","v":""}]
["2598801-04",0,0,0,"nein"," "," "," ","ja","-"," "," ",null,null,null,{"$f":"SverweisM($A669, CNC!$A$4:$AD$727, 30, \"   |   \")","v":""}]
["2598801-04",0,0,0,"nein"," "," "," ","ja","Freigegeben"," "," ",null,null,null,{"$f":"SverweisM($A670, CNC!$A$4:$AD$727, 30, \"   |   \")","v":""}]
["2598801-07",0,0,0,"nein"," "," "," ","ja","Freigegeben"," "," ",null,null,null,{"$f":"SverweisM($A671, CNC!$A$4:$AD$727, 30, \"   |   \")","v":""}]
["2598801-08",null,null,null,null,null,null,null,null,null,null,null,null,null,null,{"$f":"SverweisM($A672, CNC!$A$4:$AD$727, 30, \"   |   \")","v":""}]
["2598801-12",null,null,null,null,null,null,null,null,null,null,null,null,null,null,{"$f":"SverweisM($A673, CNC!$A$4:$AD$727, 30, \"   |   \")","v":""}]
["2598801-13",0,0,0,"nein"," "," "," ","ja","-"," "," ",null,null,null,{"$f":"SverweisM($A674, CNC!$A$4:$AD$727, 30, \"   |   \")","v":""}]
["2599401-00",null,null,null,null,null,null,null,null,null,null,null,null,null,null,{"$f":"SverweisM($A675, CNC!$A$4:$AD$727, 30, \"   |   \")","v":""}]
["2599401-90",null,null,null,null,null,null,null,null,null,null,null,null,null,null,{"$f":"SverweisM($A676, CNC!$A$4:$AD$727, 30, \"   |   \")","v":""}]
["2599501-00",null,null,null,null,null,null,null,null,null,null,null,null,null,null,{"$f":"SverweisM($A677, CNC!$A$4:$AD$727, 30, \"   |   \")","v":""}]
["2599501-01",0,0,0,"nein"," "," "," ","ja","-"," "," ",null,null,null,{"$f":"SverweisM($A678, CNC!$A$4:$AD$727, 30, \"   |   \")","v":"5-665627A-FG-1"}]
["2599501-01",0,0,0,"nein"," "," "," ","ja","Freigegeben"," "," ",null,null,null,{"$f":"SverweisM($A679, CNC!$A$4:$AD$727, 30, \"   |   \")","v":"5-665627A-FG-1"}]
["2599502-00",null,null,null,null,null,null,null,null,null,null,null,null,null,null,{"$f":"SverweisM($A680, CNC!$A$4:$AD$727, 30, \"   |   \")","v":""}]
["2599502-07",null,null,null,null,null,null,null,null,null,null,null,null,null,null,{"$f":"SverweisM($A681, CNC!$A$4:$AD$727, 30, \"   |   \")","v":""}]
["2599503-00",null,null,null,null,null,null,null,null,null,null,null,null,null,null,{"$f":"SverweisM($A682, CNC!$A$4:$AD$727, 30, \"   |   \")","v":""}]
["2599503-08",null,null,null,null,null,null,null,null,null,null,null,null,null,null,{"$f":"SverweisM($A683, CNC!$A$4:$AD$727, 30, \"   |   \")","v":""}]
["2599504-00",null,null,null,null,null,null,null,null,null,null,null,null,null,null,{"$f":"SverweisM($A684, CNC!$A$4:$AD$727, 30, \"   |   \")","v":""}]
["2599504-09",null,null,null,null,null,null,null,null,null,null,null,null,null,null,{"$f":"SverweisM($A685, CNC!$A$4:$AD$727, 30, \"   |   \")","v":""}]
["2599505-00",null,null,null,null,null,null,null,null,null,null,null,null,null,null,{"$f":"SverweisM($A686, CNC!$A$4:$AD$727, 30, \"   |   \")","v":""}]
["2599505-02",0,0,0,"nein"," "," "," ","ja","-"," "," ",null,null,null,{"$f":"SverweisM($A687, CNC!$A$4:$AD$727, 30, \"   |   \")","v":"5-665626A-FG-1   |   5-665626A-FG-2   |   8_665626A_VD_3   |   8_665626A_VD_4   |   8_665626A_RV_1"}]
["2599505-02",0,0,0,"nein"," "," "," ","ja","-"," "," ",null,null,null,{"$f":"SverweisM($A688, CNC!$A$4:$AD$727, 30, \"   |   \")","v":"5-665626A-FG-1   |   5-665626A-FG-2   |   8_665626A_VD_3   |   8_665626A_VD_4   |   8_665626A_RV_1"}]
["2599505-02",0,0,0,"nein"," "," "," ","ja","-"," "," ",null,null,null,{"$f":"SverweisM($A689, CNC!$A$4:$AD$727, 30, \"   |   \")","v":"5-665626A-FG-1   |   5-665626A-FG-2   |   8_665626A_VD_3   |   8_665626A_VD_4   |   8_665626A_RV_1"}]
["2599505-02",0,0,0,"nein"," "," "," ","ja","Freigegeben"," "," ",null,null,null,{"$f":"SverweisM($A690, CNC!$A$4:$AD$727, 30, \"   |   \")","v":"5-665626A-FG-1   |   5-665626A-FG-2   |   8_665626A_VD_3   |   8_665626A_VD_4   |   8_665626A_RV_1"}]
["2599505-02",0,0,0,"nein"," "," "," ","ja","Freigegeben"," "," ",null,null,null,{"$f":"SverweisM($A691, CNC!$A$4:$AD$727, 30, \"   |   \")","v":"5-665626A-FG-1   |   5-665626A-FG-2   |   8_665626A_VD_3   |   8_665626A_VD_4   |   8_665626A_RV_1"}]
["2599505-02",0,0,0,"nein"," "," "," ","ja","Freigegeben"," "," ",null,null,null,{"$f":"SverweisM($A692, CNC!$A$4:$AD$727, 30, \"   |   \")","v":"5-665626A-FG-1   |   5-665626A-FG-2   |   8_665626A_VD_3   |   8_665626A_VD_4   |   8_665626A_RV_1"}]
["2599506-00",null,null,null,null,null,null,null,null,null,null,null,null,null,null,{"$f":"SverweisM($A693, CNC!$A$4:$AD$727, 30, \"   |   \")","v":""}]
["2599506-06",null,null,null,null,null,null,null,null,null,null,null,null,null,null,{"$f":"SverweisM($A694, CNC!$A$4:$AD$727, 30, \"   |   \")","v":""}]
["2599601-00",null,null,null,null,null,null,null,null,null,null,null,null,null,null,{"$f":"SverweisM($A695, CNC!$A$4:$AD$727, 30, \"   |   \")","v":""}]
["2599601-01",0,0,0,"nein"," "," "," ","ja","-"," "," ",null,null,null,{"$f":"SverweisM($A696, CNC!$A$4:$AD$727, 30, \"   |   \")","v":""}]
["2599601-01",0,0,0,"nein"," "," "," ","ja","Freigegeben"," "," ",null,null,null,{"$f":"SverweisM($A697, CNC!$A$4:$AD$727, 30, \"   |   \")","v":""}]
["2599601-02",0,0,0,"nein"," "," "," ","ja","Freigegeben"," "," ",null,null,null,{"$f":"SverweisM($A698, CNC!$A$4:$AD$727, 30, \"   |   \")","v":""}]
["2599601-02",0,0,0,"nein"," "," "," ","ja","Freigegeben"," "," ",null,null,null,{"$f":"SverweisM($A699, CNC!$A$4:$AD$727, 30, \"   |   \")","v":""}]
["2599701-00",null,null,null,null,null,null,null,null,null,null,null,null,null,null,{"$f":"SverweisM($A700, CNC!$A$4:$AD$727, 30, \"   |   \")","v":""}]
["2599701-90",null,null,null,null,null,null,null,null,null,null,null,null,null,null,{"$f":"SverweisM($A701, CNC!$A$4:$AD$727, 30, \"   |   \")","v":""}]
["2599702-00",null,null,null,null,null,null,null,null,null,null,null,null,null,null,{"$f":"SverweisM($A702, CNC!$A$4:$AD$727, 30, \"   |   \")","v":""}]
["2599702-01",0,0,0,"nein"," "," "," ","ja","Freigegeben"," "," ",null,null,null,{"$f":"SverweisM($A703, CNC!$A$4:$AD$727, 30, \"   |   \")","v":""}]
["2599702-01",0,0,0,"nein"," "," "," ","ja","-"," "," ",null,null,null,{"$f":"SverweisM($A704, CNC!$A$4:$AD$727, 30, \"   |   \")","v":""}]
["2599702-01",0,0,0,"nein"," "," "," ","ja","-"," "," ",null,null,null,{"$f":"SverweisM($A705, CNC!$A$4:$AD$727, 30, \"   |   \")","v":""}]
["2599703-00",null,null,null,null,null,null,null,null,null,null,null,null,null,null,{"$f":"SverweisM($A706, CNC!$A$4:$AD$727, 30, \"   |   \")","v":""}]
["2599704-00",null,null,null,null,null,null,null,null,null,null,null,null,null,null,{"$f":"SverweisM($A707, CNC!$A$4:$AD$727, 30, \"   |   \")","v":""}]
["2599801-00",null,null,null,null,null,null,null,null,null,null,null,null,null,null,{"$f":"SverweisM($A708, CNC!$A$4:$AD$727, 30, \"   |   \")","v":""}]
["2599901-00",null,null,null,null,null,null,null,null,null,null,null,null,null,null,{"$f":"SverweisM($A709, CNC!$A$4:$AD$727, 30, \"   |   \")","v":""}]
["2600001-00",null,null,null,null,null,null,null,null,null,null,null,null,null,null,{"$f":"SverweisM($A710, CNC!$A$4:$AD$727, 30, \"   |   \")","v":""}]
["2600101-00",null,null,null,null,null,null,null,null,null,null,null,null,null,null,{"$f":"SverweisM($A711, CNC!$A$4:$AD$727, 30, \"   |   \")","v":""}]
["2600801-00",null,null,null,null,null,null,null,null,null,null,null,null,null,null,{"$f":"SverweisM($A712, CNC!$A$4:$AD$727, 30, \"   |   \")","v":""}]
["2600901-00",null,null,null,null,null,null,null,null,null,null,null,null,null,null,{"$f":"SverweisM($A713, CNC!$A$4:$AD$727, 30, \"   |   \")","v":""}]
["2601101-00",null,null,null,null,null,null,null,null,null,null,null,null,null,null,{"$f":"SverweisM($A714, CNC!$A$4:$AD$727, 30, \"   |   \")","v":""}]
["2601102-00",null,null,null,null,null,null,null,null,null,null,null,null,null,null,{"$f":"SverweisM($A715, CNC!$A$4:$AD$727, 30, \"   |   \")","v":""}]
["2601103-00",null,null,null,null,null,null,null,null,null,null,null,null,null,null,{"$f":"SverweisM($A716, CNC!$A$4:$AD$727, 30, \"   |   \")","v":""}]
["2601104-00",null,null,null,null,null,null,null,null,null,null,null,null,null,null,{"$f":"SverweisM($A717, CNC!$A$4:$AD$727, 30, \"   |   \")","v":""}]
["2601105-00",null,null,null,null,null,null,null,null,null,null,null,null,null,null,{"$f":"SverweisM($A718, CNC!$A$4:$AD$727, 30, \"   |   \")","v":""}]
["2601105-10",null,null,null,null,null,null,null,null,null,null,null,null,null,null,{"$f":"SverweisM($A719, CNC!$A$4:$AD$727, 30, \"   |   \")","v":""}]
["2601106-00",null,null,null,null,null,null,null,null,null,null,null,null,null,null,{"$f":"SverweisM($A720, CNC!$A$4:$AD$727, 30, \"   |   \")","v":""}]
["2601106-11",null,null,null,null,null,null,null,null,null,null,null,null,null,null,{"$f":"SverweisM($A721, CNC!$A$4:$AD$727, 30, \"   |   \")","v":""}]
["2601107-00",null,null,null,null,null,null,null,null,null,null,null,null,null,null,{"$f":"SverweisM($A722, CNC!$A$4:$AD$727, 30, \"   |   \")","v":""}]
["2601108-00",null,null,null,null,null,null,null,null,null,null,null,null,null,null,{"$f":"SverweisM($A723, CNC!$A$4:$AD$727, 30, \"   |   \")","v":""}]
["2601109-00",null,null,null,null,null,null,null,null,null,null,null,null,null,null,{"$f":"SverweisM($A724, CNC!$A$4:$AD$727, 30, \"   |   \")","v":""}]
["2601110-00",null,null,null,null,null,null,null,null,null,null,null,null,null,null,{"$f":"SverweisM($A725, CNC!$A$4:$AD$727, 30, \"   |   \")","v":""}]
["2601111-00",null,null,null,null,null,null,null,null,null,null,null,null,null,null,{"$f":"SverweisM($A726, CNC!$A$4:$AD$727, 30, \"   |   \")","v":""}]
["2601112-00",null,null,null,null,null,null,null,null,null,null,null,null,null,null,{"$f":"SverweisM($A727, CNC!$A$4:$AD$727, 30, \"   |   \")","v":""}]
["2601112-10",null,null,null,null,null,null,null,null,null,null,null,null,null,null,{"$f":"SverweisM($A728, CNC!$A$4:$AD$727, 30, \"   |   \")","v":""}]
["2601401-00",null,null,null,null,null,null,null,null,null,null,null,null,null,null,{"$f":"SverweisM($A729, CNC!$A$4:$AD$727, 30, \"   |   \")","v":""}]
["2601402-00",null,null,null,null,null,null,null,null,null,null,null,null,null,null,{"$f":"SverweisM($A730, CNC!$A$4:$AD$727, 30, \"   |   \")","v":""}]
["2601501-00",null,null,null,null,null,null,null,null,null,null,null,null,null,null,{"$f":"SverweisM($A731, CNC!$A$4:$AD$727, 30, \"   |   \")","v":""}]
["2601601-00",null,null,null,null,null,null,null,null,null,null,null,null,null,null,{"$f":"SverweisM($A732, CNC!$A$4:$AD$727, 30, \"   |   \")","v":""}]
["2601601-01",0,0,0,"nein"," "," "," ","ja","-"," "," ",null,null,null,{"$f":"SverweisM($A733, CNC!$A$4:$AD$727, 30, \"   |   \")","v":"5-66639701-FG-1   |   5-66639701-FG-2"}]
["2601601-01",0,0,0,"nein"," "," "," ","ja","-"," "," ",null,null,null,{"$f":"SverweisM($A734, CNC!$A$4:$AD$727, 30, \"   |   \")","v":"5-66639701-FG-1   |   5-66639701-FG-2"}]
["2601601-02",0,0,0,"nein"," "," "," ","ja","Freigegeben"," "," ",null,null,null,{"$f":"SverweisM($A735, CNC!$A$4:$AD$727, 30, \"   |   \")","v":"5-66639801-FG-1"}]
["2601601-03",0,0,0,"nein"," "," "," ","ja","Freigegeben"," "," ",null,null,null,{"$f":"SverweisM($A736, CNC!$A$4:$AD$727, 30, \"   |   \")","v":"5-666400A-FG-1   |   5-666400A-FG-2"}]
["2601601-03",0,0,0,"nein"," "," "," ","ja","Freigegeben"," "," ",null,null,null,{"$f":"SverweisM($A737, CNC!$A$4:$AD$727, 30, \"   |   \")","v":"5-666400A-FG-1   |   5-666400A-FG-2"}]
["2601601-05",0,0,0,"nein"," "," "," ","ja","-"," "," ",null,null,null,{"$f":"SverweisM($A738, CNC!$A$4:$AD$727, 30, \"   |   \")","v":""}]
["2602101-00",null,null,null,null,null,null,null,null,null,null,null,null,null,null,{"$f":"SverweisM($A739, CNC!$A$4:$AD$727, 30, \"   |   \")","v":""}]
["2602301-00",null,null,null,null,null,null,null,null,null,null,null,null,null,null,{"$f":"SverweisM($A740, CNC!$A$4:$AD$727, 30, \"   |   \")","v":""}]
["2602301-01",0,0,0,"nein"," "," "," ","ja","Freigegeben"," "," ",null,null,null,{"$f":"SverweisM($A741, CNC!$A$4:$AD$727, 30, \"   |   \")","v":""}]
["2602301-01",0,0,0,"nein"," "," "," ","ja","-"," "," ",null,null,null,{"$f":"SverweisM($A742, CNC!$A$4:$AD$727, 30, \"   |   \")","v":""}]
["2602401-00",null,null,null,null,null,null,null,null,null,null,null,null,null,null,{"$f":"SverweisM($A743, CNC!$A$4:$AD$727, 30, \"   |   \")","v":""}]
["2602401-30",null,null,null,null,null,null,null,null,null,null,null,null,null,null,{"$f":"SverweisM($A744, CNC!$A$4:$AD$727, 30, \"   |   \")","v":""}]
["2602402-00",null,null,null,null,null,null,null,null,null,null,null,null,null,null,{"$f":"SverweisM($A745, CNC!$A$4:$AD$727, 30, \"   |   \")","v":""}]
["2602402-23",null,null,null,null,null,null,null,null,null,null,null,null,null,null,{"$f":"SverweisM($A746, CNC!$A$4:$AD$727, 30, \"   |   \")","v":""}]
["2602403-00",null,null,null,null,null,null,null,null,null,null,null,null,null,null,{"$f":"SverweisM($A747, CNC!$A$4:$AD$727, 30, \"   |   \")","v":""}]
["2602404-00",null,null,null,null,null,null,null,null,null,null,null,null,null,null,{"$f":"SverweisM($A748, CNC!$A$4:$AD$727, 30, \"   |   \")","v":""}]
["2602601-00",null,null,null,null,null,null,null,null,null,null,null,null,null,null,{"$f":"SverweisM($A749, CNC!$A$4:$AD$727, 30, \"   |   \")","v":""}]
["2602601-01",0,0,0,"nein"," "," "," ","ja","Freigegeben"," "," ",null,null,null,{"$f":"SverweisM($A750, CNC!$A$4:$AD$727, 30, \"   |   \")","v":"9_665944A_VD_1   |   9_665944A_VD_2"}]
["2602601-01",0,0,0,"nein"," "," "," ","ja","-"," "," ",null,null,null,{"$f":"SverweisM($A751, CNC!$A$4:$AD$727, 30, \"   |   \")","v":"9_665944A_VD_1   |   9_665944A_VD_2"}]
["2602601-01",0,0,0,"nein"," "," "," ","ja","Freigegeben"," "," ",null,null,null,{"$f":"SverweisM($A752, CNC!$A$4:$AD$727, 30, \"   |   \")","v":"9_665944A_VD_1   |   9_665944A_VD_2"}]
["2602601-01",0,0,0,"nein"," "," "," ","ja","Freigegeben"," "," ",null,null,null,{"$f":"SverweisM($A753, CNC!$A$4:$AD$727, 30, \"   |   \")","v":"9_665944A_VD_1   |   9_665944A_VD_2"}]
["2602601-02",0,0,0,"nein"," "," "," ","ja","-"," "," ",null,null,null,{"$f":"SverweisM($A754, CNC!$A$4:$AD$727, 30, \"   |   \")","v":"6-665945A-RF-2   |   9_665945A_VD_1   |   9_665945A_VD_2"}]
["2602601-02",0,0,0,"nein"," "," "," ","ja","Freigegeben"," "," ",null,null,null,{"$f":"SverweisM($A755, CNC!$A$4:$AD$727, 30, \"   |   \")","v":"6-665945A-RF-2   |   9_665945A_VD_1   |   9_665945A_VD_2"}]
["2602601-02",0,0,0,"nein"," "," "," ","ja","-"," "," ",null,null,null,{"$f":"SverweisM($A756, CNC!$A$4:$AD$727, 30, \"   |   \")","v":"6-665945A-RF-2   |   9_665945A_VD_1   |   9_665945A_VD_2"}]
["2602601-40",0,0,0,"nein"," "," "," ","ja","Freigegeben"," "," ",null,null,null,{"$f":"SverweisM($A757, CNC!$A$4:$AD$727, 30, \"   |   \")","v":"7-665960A0-GR-1   |   7-665960A0-GR-2   |   6-665960A-FG-1   |   6-665960A-FG-2"}]
["2602601-40",0,0,0,"nein"," "," "," ","ja","Freigegeben"," "," ",null,null,null,{"$f":"SverweisM($A758, CNC!$A$4:$AD$727, 30, \"   |   \")","v":"7-665960A0-GR-1   |   7-665960A0-GR-2   |   6-665960A-FG-1   |   6-665960A-FG-2"}]
["2602601-40",0,0,0,"nein"," "," "," ","ja","Freigegeben"," "," ",null,null,null,{"$f":"SverweisM($A759, CNC!$A$4:$AD$727, 30, \"   |   \")","v":"7-665960A0-GR-1   |   7-665960A0-GR-2   |   6-665960A-FG-1   |   6-665960A-FG-2"}]
["2602601-40",0,0,0,"nein"," "," "," ","ja","Freigegeben"," "," ",null,null,null,{"$f":"SverweisM($A760, CNC!$A$4:$AD$727, 30, \"   |   \")","v":"7-665960A0-GR-1   |   7-665960A0-GR-2   |   6-665960A-FG-1   |   6-665960A-FG-2"}]
["2602601-41",null,null,null,null,null,null,null,null,null,null,null,null,null,null,{"$f":"SverweisM($A761, CNC!$A$4:$AD$727, 30, \"   |   \")","v":""}]
["2602701-00",null,null,null,null,null,null,null,null,null,null,null,null,null,null,{"$f":"SverweisM($A762, CNC!$A$4:$AD$727, 30, \"   |   \")","v":""}]
["2602701-90",null,null,null,null,null,null,null,null,null,null,null,null,null,null,{"$f":"SverweisM($A763, CNC!$A$4:$AD$727, 30, \"   |   \")","v":""}]
["2602901-00",null,null,null,null,null,null,null,null,null,null,null,null,null,null,{"$f":"SverweisM($A764, CNC!$A$4:$AD$727, 30, \"   |   \")","v":""}]
["2602901-01",0,0,0,"nein"," "," "," ","ja","Freigegeben"," "," ",null,null,null,{"$f":"SverweisM($A765, CNC!$A$4:$AD$727, 30, \"   |   \")","v":""}]
["2602901-01",0,0,0,"nein"," "," "," ","ja","-"," "," ",null,null,null,{"$f":"SverweisM($A766, CNC!$A$4:$AD$727, 30, \"   |   \")","v":""}]
["2602901-02",0,0,0,"nein"," "," "," ","ja","Freigegeben"," "," ",null,null,null,{"$f":"SverweisM($A767, CNC!$A$4:$AD$727, 30, \"   |   \")","v":""}]
["2602901-02",0,0,0,"nein"," "," "," ","ja","Freigegeben"," "," ",null,null,null,{"$f":"SverweisM($A768, CNC!$A$4:$AD$727, 30, \"   |   \")","v":""}]
["2602901-02",0,0,0,"nein"," "," "," ","ja","-"," "," ",null,null,null,{"$f":"SverweisM($A769, CNC!$A$4:$AD$727, 30, \"   |   \")","v":""}]
["2602901-02",0,0,0,"nein"," "," "," ","ja","Freigegeben"," "," ",null,null,null,{"$f":"SverweisM($A770, CNC!$A$4:$AD$727, 30, \"   |   \")","v":""}]
["2602901-04",0,0,0,"nein"," "," "," ","ja","Freigegeben"," "," ",null,null,null,{"$f":"SverweisM($A771, CNC!$A$4:$AD$727, 30, \"   |   \")","v":"7-665836A0-GR-1   |   7-665836A0-GR-2"}]
["2602901-04",0,0,0,"nein"," "," "," ","ja","Freigegeben"," "," ",null,null,null,{"$f":"SverweisM($A772, CNC!$A$4:$AD$727, 30, \"   |   \")","v":"7-665836A0-GR-1   |   7-665836A0-GR-2"}]
["2602901-04",0,0,0,"nein"," "," "," ","ja","Freigegeben"," "," ",null,null,null,{"$f":"SverweisM($A773, CNC!$A$4:$AD$727, 30, \"   |   \")","v":"7-665836A0-GR-1   |   7-665836A0-GR-2"}]
["2603501-00",null,null,null,null,null,null,null,null,null,null,null,null,null,null,{"$f":"SverweisM($A774, CNC!$A$4:$AD$727, 30, \"   |   \")","v":""}]
["2603801-00",null,null,null,null,null,null,null,null,null,null,null,null,null,null,{"$f":"SverweisM($A775, CNC!$A$4:$AD$727, 30, \"   |   \")","v":""}]
["2603901-00",null,null,null,null,null,null,null,null,null,null,null,null,null,null,{"$f":"SverweisM($A776, CNC!$A$4:$AD$727, 30, \"   |   \")","v":""}]
["2604001-00",null,null,null,null,null,null,null,null,null,null,null,null,null,null,{"$f":"SverweisM($A777, CNC!$A$4:$AD$727, 30, \"   |   \")","v":""}]
["2604001-03",0,0,0,"nein"," "," "," ","ja","-"," "," ",null,null,null,{"$f":"SverweisM($A778, CNC!$A$4:$AD$727, 30, \"   |   \")","v":"1-60959100-VM-1   |   1-60959100-VM-2"}]
["2604001-03",0,0,0,"nein"," "," "," ","ja","Freigegeben"," "," ",null,null,null,{"$f":"SverweisM($A779, CNC!$A$4:$AD$727, 30, \"   |   \")","v":"1-60959100-VM-1   |   1-60959100-VM-2"}]
["2604001-03",0,0,0,"nein"," "," "," ","ja","-"," "," ",null,null,null,{"$f":"SverweisM($A780, CNC!$A$4:$AD$727, 30, \"   |   \")","v":"1-60959100-VM-1   |   1-60959100-VM-2"}]
["2604101-00",null,null,null,null,null,null,null,null,null,null,null,null,null,null,{"$f":"SverweisM($A781, CNC!$A$4:$AD$727, 30, \"   |   \")","v":""}]
["2604102-00",null,null,null,null,null,null,null,null,null,null,null,null,null,null,{"$f":"SverweisM($A782, CNC!$A$4:$AD$727, 30, \"   |   \")","v":""}]
["2604201-00",null,null,null,null,null,null,null,null,null,null,null,null,null,null,{"$f":"SverweisM($A783, CNC!$A$4:$AD$727, 30, \"   |   \")","v":""}]
["2604401-00",null,null,null,null,null,null,null,null,null,null,null,null,null,null,{"$f":"SverweisM($A784, CNC!$A$4:$AD$727, 30, \"   |   \")","v":""}]
["2604401-01",0,0,0,"nein"," "," "," ","ja","Freigegeben"," "," ",null,null,null,{"$f":"SverweisM($A785, CNC!$A$4:$AD$727, 30, \"   |   \")","v":"8_667426A_RM_1   |   8_667426A_RM_2"}]
["2604401-01",0,0,0,"nein"," "," "," ","ja","-"," "," ",null,null,null,{"$f":"SverweisM($A786, CNC!$A$4:$AD$727, 30, \"   |   \")","v":"8_667426A_RM_1   |   8_667426A_RM_2"}]
["2604901-00",null,null,null,null,null,null,null,null,null,null,null,null,null,null,{"$f":"SverweisM($A787, CNC!$A$4:$AD$727, 30, \"   |   \")","v":""}]
["2605001-00",null,null,null,null,null,null,null,null,null,null,null,null,null,null,{"$f":"SverweisM($A788, CNC!$A$4:$AD$727, 30, \"   |   \")","v":""}]
["2605001-02",0,0,0,"nein"," "," "," ","ja","Freigegeben"," "," ",null,null,null,{"$f":"SverweisM($A789, CNC!$A$4:$AD$727, 30, \"   |   \")","v":""}]
["2605101-00",null,null,null,null,null,null,null,null,null,null,null,null,null,null,{"$f":"SverweisM($A790, CNC!$A$4:$AD$727, 30, \"   |   \")","v":""}]
["2605101-01",0,0,0,"nein"," "," "," ","ja","-"," "," ",null,null,null,{"$f":"SverweisM($A791, CNC!$A$4:$AD$727, 30, \"   |   \")","v":"7-64877901-VD-1   |   7-64877801-VD-1   |   5-64877901-FG-1   |   5-64877901-FG-2"}]
["2605101-01",0,0,0,"nein"," "," "," ","ja","-"," "," ",null,null,null,{"$f":"SverweisM($A792, CNC!$A$4:$AD$727, 30, \"   |   \")","v":"7-64877901-VD-1   |   7-64877801-VD-1   |   5-64877901-FG-1   |   5-64877901-FG-2"}]
["2605101-01",0,0,0,"nein"," "," "," ","ja","-"," "," ",null,null,null,{"$f":"SverweisM($A793, CNC!$A$4:$AD$727, 30, \"   |   \")","v":"7-64877901-VD-1   |   7-64877801-VD-1   |   5-64877901-FG-1   |   5-64877901-FG-2"}]
["2605101-01",0,0,0,"nein"," "," "," ","ja","Freigegeben"," "," ",null,null,null,{"$f":"SverweisM($A794, CNC!$A$4:$AD$727, 30, \"   |   \")","v":"7-64877901-VD-1   |   7-64877801-VD-1   |   5-64877901-FG-1   |   5-64877901-FG-2"}]
["2605101-01",0,0,0,"nein"," "," "," ","ja","Freigegeben"," "," ",null,null,null,{"$f":"SverweisM($A795, CNC!$A$4:$AD$727, 30, \"   |   \")","v":"7-64877901-VD-1   |   7-64877801-VD-1   |   5-64877901-FG-1   |   5-64877901-FG-2"}]
["2605101-01",0,0,0,"nein"," "," "," ","ja","Freigegeben"," "," ",null,null,null,{"$f":"SverweisM($A796, CNC!$A$4:$AD$727, 30, \"   |   \")","v":"7-64877901-VD-1   |   7-64877801-VD-1   |   5-64877901-FG-1   |   5-64877901-FG-2"}]
["2605101-02",0,0,0,"nein"," "," "," ","ja","-"," "," ",null,null,null,{"$f":"SverweisM($A797, CNC!$A$4:$AD$727, 30, \"   |   \")","v":"7-64877801-VD-1   |   7-64877901-VD-1   |   5-64877801-FG-1   |   5-64877801-FG-2"}]
["2605101-02",0,0,0,"nein"," "," "," ","ja","-"," "," ",null,null,null,{"$f":"SverweisM($A798, CNC!$A$4:$AD$727, 30, \"   |   \")","v":"7-64877801-VD-1   |   7-64877901-VD-1   |   5-64877801-FG-1   |   5-64877801-FG-2"}]
["2605101-02",0,0,0,"nein"," "," "," ","ja","Freigegeben"," "," ",null,null,null,{"$f":"SverweisM($A799, CNC!$A$4:$AD$727, 30, \"   |   \")","v":"7-64877801-VD-1   |   7-64877901-VD-1   |   5-64877801-FG-1   |   5-64877801-FG-2"}]
["2605101-02",0,0,0,"nein"," "," "," ","ja","-"," "," ",null,null,null,{"$f":"SverweisM($A800, CNC!$A$4:$AD$727, 30, \"   |   \")","v":"7-64877801-VD-1   |   7-64877901-VD-1   |   5-64877801-FG-1   |   5-64877801-FG-2"}]
["2605101-02",0,0,0,"nein"," "," "," ","ja","-"," "," ",null,null,null,{"$f":"SverweisM($A801, CNC!$A$4:$AD$727, 30, \"   |   \")","v":"7-64877801-VD-1   |   7-64877901-VD-1   |   5-64877801-FG-1   |   5-64877801-FG-2"}]
["2605101-02",0,0,0,"nein"," "," "," ","ja","-"," "," ",null,null,null,{"$f":"SverweisM($A802, CNC!$A$4:$AD$727, 30, \"   |   \")","v":"7-64877801-VD-1   |   7-64877901-VD-1   |   5-64877801-FG-1   |   5-64877801-FG-2"}]
["2605101-03",0,0,0,"nein"," "," "," ","ja","Freigegeben"," "," ",null,null,null,{"$f":"SverweisM($A803, CNC!$A$4:$AD$727, 30, \"   |   \")","v":"5-63951803-FG-1   |   5-63951803-FG-2"}]
["2605101-03",0,0,0,"nein"," "," "," ","ja","-"," "," ",null,null,null,{"$f":"SverweisM($A804, CNC!$A$4:$AD$727, 30, \"   |   \")","v":"5-63951803-FG-1   |   5-63951803-FG-2"}]
["2605101-04",0,0,0,"nein"," "," "," ","ja","-"," "," ",null,null,null,{"$f":"SverweisM($A805, CNC!$A$4:$AD$727, 30, \"   |   \")","v":"7-61785612-GR-1   |   7-61785612-GR-2   |   5-61785612-FG-1"}]
["2605101-04",0,0,0,"nein"," "," "," ","ja","-"," "," ",null,null,null,{"$f":"SverweisM($A806, CNC!$A$4:$AD$727, 30, \"   |   \")","v":"7-61785612-GR-1   |   7-61785612-GR-2   |   5-61785612-FG-1"}]
["2605101-04",0,0,0,"nein"," "," "," ","ja","-"," "," ",null,null,null,{"$f":"SverweisM($A807, CNC!$A$4:$AD$727, 30, \"   |   \")","v":"7-61785612-GR-1   |   7-61785612-GR-2   |   5-61785612-FG-1"}]
["2605201-00",null,null,null,null,null,null,null,null,null,null,null,null,null,null,{"$f":"SverweisM($A808, CNC!$A$4:$AD$727, 30, \"   |   \")","v":""}]
["2605501-00",null,null,null,null,null,null,null,null,null,null,null,null,null,null,{"$f":"SverweisM($A809, CNC!$A$4:$AD$727, 30, \"   |   \")","v":""}]
["2605501-05",0,0,0,"nein"," "," "," ","ja","-"," "," ",null,null,null,{"$f":"SverweisM($A810, CNC!$A$4:$AD$727, 30, \"   |   \")","v":""}]
["2605501-06",0,0,0,"nein"," "," "," ","ja","-"," "," ",null,null,null,{"$f":"SverweisM($A811, CNC!$A$4:$AD$727, 30, \"   |   \")","v":"6-63001603-FG-1"}]
["2605601-00",0,0,0,"nein"," "," "," ","ja","-"," "," ",null,null,null,{"$f":"SverweisM($A812, CNC!$A$4:$AD$727, 30, \"   |   \")","v":""}]
["2605701-00",null,null,null,null,null,null,null,null,null,null,null,null,null,null,{"$f":"SverweisM($A813, CNC!$A$4:$AD$727, 30, \"   |   \")","v":""}]
["2605701-01",0,0,0,"nein"," "," "," ","ja","Freigegeben"," "," ",null,null,null,{"$f":"SverweisM($A814, CNC!$A$4:$AD$727, 30, \"   |   \")","v":""}]
["2605701-02",0,0,0,"nein"," "," "," ","ja","-"," "," ",null,null,null,{"$f":"SverweisM($A815, CNC!$A$4:$AD$727, 30, \"   |   \")","v":""}]
["2605701-03",0,0,0,"nein"," "," "," ","ja","-"," "," ",null,null,null,{"$f":"SverweisM($A816, CNC!$A$4:$AD$727, 30, \"   |   \")","v":""}]
["2605701-03",0,0,0,"nein"," "," "," ","ja","-"," "," ",null,null,null,{"$f":"SverweisM($A817, CNC!$A$4:$AD$727, 30, \"   |   \")","v":""}]
["2605701-05",0,0,0,"nein"," "," "," ","ja","Freigegeben"," "," ",null,null,null,{"$f":"SverweisM($A818, CNC!$A$4:$AD$727, 30, \"   |   \")","v":"5-61778812-FG-1"}]
["2605701-06",0,0,0,"nein"," "," "," ","ja","Freigegeben"," "," ",null,null,null,{"$f":"SverweisM($A819, CNC!$A$4:$AD$727, 30, \"   |   \")","v":"5-64722401-FG-1"}]
["2605701-07",0,0,0,"nein"," "," "," ","ja","-"," "," ",null,null,null,{"$f":"SverweisM($A820, CNC!$A$4:$AD$727, 30, \"   |   \")","v":""}]
["2605701-07",0,0,0,"nein"," "," "," ","ja","-"," "," ",null,null,null,{"$f":"SverweisM($A821, CNC!$A$4:$AD$727, 30, \"   |   \")","v":""}]
["2605701-07",0,0,0,"nein"," "," "," ","ja","-"," "," ",null,null,null,{"$f":"SverweisM($A822, CNC!$A$4:$AD$727, 30, \"   |   \")","v":""}]
["2605701-08",0,0,0,"nein"," "," "," ","ja","Freigegeben"," "," ",null,null,null,{"$f":"SverweisM($A823, CNC!$A$4:$AD$727, 30, \"   |   \")","v":""}]
["2605901-00",null,null,null,null,null,null,null,null,null,null,null,null,null,null,{"$f":"SverweisM($A824, CNC!$A$4:$AD$727, 30, \"   |   \")","v":""}]
["2605901-01",0,0,0,"nein"," "," "," ","ja","-"," "," ",null,null,null,{"$f":"SverweisM($A825, CNC!$A$4:$AD$727, 30, \"   |   \")","v":"1-662853A0-VM-1   |   1-662853A0-VM-2"}]
["2605901-01",0,0,0,"nein"," "," "," ","ja","-"," "," ",null,null,null,{"$f":"SverweisM($A826, CNC!$A$4:$AD$727, 30, \"   |   \")","v":"1-662853A0-VM-1   |   1-662853A0-VM-2"}]
["2605901-04",0,0,0,"nein"," "," "," ","ja","-"," "," ",null,null,null,{"$f":"SverweisM($A827, CNC!$A$4:$AD$727, 30, \"   |   \")","v":"1-662855A0-SB-1   |   1-662855A0-SB-2   |   5-662855A-FG-1"}]
["2605901-04",0,0,0,"nein"," "," "," ","ja","-"," "," ",null,null,null,{"$f":"SverweisM($A828, CNC!$A$4:$AD$727, 30, \"   |   \")","v":"1-662855A0-SB-1   |   1-662855A0-SB-2   |   5-662855A-FG-1"}]
["2605901-04",0,0,0,"nein"," "," "," ","ja","-"," "," ",null,null,null,{"$f":"SverweisM($A829, CNC!$A$4:$AD$727, 30, \"   |   \")","v":"1-662855A0-SB-1   |   1-662855A0-SB-2   |   5-662855A-FG-1"}]
["2605901-05",0,0,0,"nein"," "," "," ","ja","-"," "," ",null,null,null,{"$f":"SverweisM($A830, CNC!$A$4:$AD$727, 30, \"   |   \")","v":"1-662856A0-VM-1   |   1-662856A0-VM-2   |   5-662856A-FG-1"}]
["2605901-05",0,0,0,"nein"," "," "," ","ja","-"," "," ",null,null,null,{"$f":"SverweisM($A831, CNC!$A$4:$AD$727, 30, \"   |   \")","v":"1-662856A0-VM-1   |   1-662856A0-VM-2   |   5-662856A-FG-1"}]
["2605901-05",0,0,0,"nein"," "," "," ","ja","-"," "," ",null,null,null,{"$f":"SverweisM($A832, CNC!$A$4:$AD$727, 30, \"   |   \")","v":"1-662856A0-VM-1   |   1-662856A0-VM-2   |   5-662856A-FG-1"}]
["2605901-06",null,null,null,null,null,null,null,null,null,null,null,null,null,null,{"$f":"SverweisM($A833, CNC!$A$4:$AD$727, 30, \"   |   \")","v":""}]
["2606001-00",null,null,null,null,null,null,null,null,null,null,null,null,null,null,{"$f":"SverweisM($A834, CNC!$A$4:$AD$727, 30, \"   |   \")","v":""}]
["2606001-02",0,0,0,"nein"," "," "," ","ja","-"," "," ",null,null,null,{"$f":"SverweisM($A835, CNC!$A$4:$AD$727, 30, \"   |   \")","v":"7-64942601-VD-1"}]
["2606001-02",0,0,0,"nein"," "," "," ","ja","-"," "," ",null,null,null,{"$f":"SverweisM($A836, CNC!$A$4:$AD$727, 30, \"   |   \")","v":"7-64942601-VD-1"}]
["2606001-03",0,0,0,"nein"," "," "," ","ja","-"," "," ",null,null,null,{"$f":"SverweisM($A837, CNC!$A$4:$AD$727, 30, \"   |   \")","v":""}]
["2606101-00",null,null,null,null,null,null,null,null,null,null,null,null,null,null,{"$f":"SverweisM($A838, CNC!$A$4:$AD$727, 30, \"   |   \")","v":""}]
["2606101-01",0,0,0,"nein"," "," "," ","ja","-"," "," ",null,null,null,{"$f":"SverweisM($A839, CNC!$A$4:$AD$727, 30, \"   |   \")","v":""}]
["2606101-02",0,0,0,"nein"," "," "," ","ja","-"," "," ",null,null,null,{"$f":"SverweisM($A840, CNC!$A$4:$AD$727, 30, \"   |   \")","v":""}]
["2606101-02",0,0,0,"nein"," "," "," ","ja","-"," "," ",null,null,null,{"$f":"SverweisM($A841, CNC!$A$4:$AD$727, 30, \"   |   \")","v":""}]
["2606101-03",0,0,0,"nein"," "," "," ","ja","-"," "," ",null,null,null,{"$f":"SverweisM($A842, CNC!$A$4:$AD$727, 30, \"   |   \")","v":""}]
["2606101-03",0,0,0,"nein"," "," "," ","ja","-"," "," ",null,null,null,{"$f":"SverweisM($A843, CNC!$A$4:$AD$727, 30, \"   |   \")","v":""}]
["2606101-04",0,0,0,"nein"," "," "," ","ja","-"," "," ",null,null,null,{"$f":"SverweisM($A844, CNC!$A$4:$AD$727, 30, \"   |   \")","v":""}]
["2606101-05",0,0,0,"nein"," "," "," ","ja","-"," "," ",null,null,null,{"$f":"SverweisM($A845, CNC!$A$4:$AD$727, 30, \"   |   \")","v":"1-617880A0-GR-1   |   1-617880A0-GR-2   |   5-617880A-FG-1"}]
["2606101-05",0,0,0,"nein"," "," "," ","ja","-"," "," ",null,null,null,{"$f":"SverweisM($A846, CNC!$A$4:$AD$727, 30, \"   |   \")","v":"1-617880A0-GR-1   |   1-617880A0-GR-2   |   5-617880A-FG-1"}]
["2606101-05",0,0,0,"nein"," "," "," ","ja","-"," "," ",null,null,null,{"$f":"SverweisM($A847, CNC!$A$4:$AD$727, 30, \"   |   \")","v":"1-617880A0-GR-1   |   1-617880A0-GR-2   |   5-617880A-FG-1"}]
["2606101-06",0,0,0,"nein"," "," "," ","ja","-"," "," ",null,null,null,{"$f":"SverweisM($A848, CNC!$A$4:$AD$727, 30, \"   |   \")","v":""}]
["2606101-07",0,0,0,"nein"," "," "," ","ja","-"," "," ",null,null,null,{"$f":"SverweisM($A849, CNC!$A$4:$AD$727, 30, \"   |   \")","v":""}]
["2606101-08",null,null,null,null,null,null,null,null,null,null,null,null,null,null,{"$f":"SverweisM($A850, CNC!$A$4:$AD$727, 30, \"   |   \")","v":""}]
["2606101-09",0,0,0,"nein"," "," "," ","ja","-"," "," ",null,null,null,{"$f":"SverweisM($A851, CNC!$A$4:$AD$727, 30, \"   |   \")","v":""}]
["2606201-00",null,null,null,null,null,null,null,null,null,null,null,null,null,null,{"$f":"SverweisM($A852, CNC!$A$4:$AD$727, 30, \"   |   \")","v":""}]
["2606301-00",null,null,null,null,null,null,null,null,null,null,null,null,null,null,{"$f":"SverweisM($A853, CNC!$A$4:$AD$727, 30, \"   |   \")","v":""}]
["2606302-00",null,null,null,null,null,null,null,null,null,null,null,null,null,null,{"$f":"SverweisM($A854, CNC!$A$4:$AD$727, 30, \"   |   \")","v":""}]
["2606401-00",null,null,null,null,null,null,null,null,null,null,null,null,null,null,{"$f":"SverweisM($A855, CNC!$A$4:$AD$727, 30, \"   |   \")","v":""}]
["2606601-00",null,null,null,null,null,null,null,null,null,null,null,null,null,null,{"$f":"SverweisM($A856, CNC!$A$4:$AD$727, 30, \"   |   \")","v":""}]
["2606701-00",null,null,null,null,null,null,null,null,null,null,null,null,null,null,{"$f":"SverweisM($A857, CNC!$A$4:$AD$727, 30, \"   |   \")","v":""}]
["2606701-05",0,0,0,"nein"," "," "," ","ja","-"," "," ",null,null,null,{"$f":"SverweisM($A858, CNC!$A$4:$AD$727, 30, \"   |   \")","v":"7-658386A0-GR-1   |   7-658386A0-GR-2   |   5-658386-FG-1"}]
["2606701-05",0,0,0,"nein"," "," "," ","ja","-"," "," ",null,null,null,{"$f":"SverweisM($A859, CNC!$A$4:$AD$727, 30, \"   |   \")","v":"7-658386A0-GR-1   |   7-658386A0-GR-2   |   5-658386-FG-1"}]
["2606701-05",0,0,0,"nein"," "," "," ","ja","-"," "," ",null,null,null,{"$f":"SverweisM($A860, CNC!$A$4:$AD$727, 30, \"   |   \")","v":"7-658386A0-GR-1   |   7-658386A0-GR-2   |   5-658386-FG-1"}]
["2606702-00",null,null,null,null,null,null,null,null,null,null,null,null,null,null,{"$f":"SverweisM($A861, CNC!$A$4:$AD$727, 30, \"   |   \")","v":""}]
["2607501-00",null,null,null,null,null,null,null,null,null,null,null,null,null,null,{"$f":"SverweisM($A862, CNC!$A$4:$AD$727, 30, \"   |   \")","v":""}]
["2607901-00",null,null,null,null,null,null,null,null,null,null,null,null,null,null,{"$f":"SverweisM($A863, CNC!$A$4:$AD$727, 30, \"   |   \")","v":""}]
["2608101-00",null,null,null,null,null,null,null,null,null,null,null,null,null,null,{"$f":"SverweisM($A864, CNC!$A$4:$AD$727, 30, \"   |   \")","v":""}]
["2608101-01",0,0,0,"nein"," "," "," ","ja","-"," "," ",null,null,null,{"$f":"SverweisM($A865, CNC!$A$4:$AD$727, 30, \"   |   \")","v":""}]
["2608101-02",0,0,0,"nein"," "," "," ","ja","Freigegeben"," "," ",null,null,null,{"$f":"SverweisM($A866, CNC!$A$4:$AD$727, 30, \"   |   \")","v":""}]
["2608201-00",null,null,null,null,null,null,null,null,null,null,null,null,null,null,{"$f":"SverweisM($A867, CNC!$A$4:$AD$727, 30, \"   |   \")","v":""}]
["2608301-00",null,null,null,null,null,null,null,null,null,null,null,null,null,null,{"$f":"SverweisM($A868, CNC!$A$4:$AD$727, 30, \"   |   \")","v":""}]
["2608401-00",null,null,null,null,null,null,null,null,null,null,null,null,null,null,{"$f":"SverweisM($A869, CNC!$A$4:$AD$727, 30, \"   |   \")","v":""}]
["2608401-02",0,0,0,"nein"," "," "," ","ja","Freigegeben"," "," ",null,null,null,{"$f":"SverweisM($A870, CNC!$A$4:$AD$727, 30, \"   |   \")","v":""}]
["2608401-03",0,0,0,"nein"," "," "," ","ja","Freigegeben"," "," ",null,null,null,{"$f":"SverweisM($A871, CNC!$A$4:$AD$727, 30, \"   |   \")","v":""}]
["2608401-03",0,0,0,"nein"," "," "," ","ja","Freigegeben"," "," ",null,null,null,{"$f":"SverweisM($A872, CNC!$A$4:$AD$727, 30, \"   |   \")","v":""}]
["2608401-05",0,0,0,"nein"," "," "," ","ja","-"," "," ",null,null,null,{"$f":"SverweisM($A873, CNC!$A$4:$AD$727, 30, \"   |   \")","v":"5-61778812-FG-1"}]
["2608601-00",null,null,null,null,null,null,null,null,null,null,null,null,null,null,{"$f":"SverweisM($A874, CNC!$A$4:$AD$727, 30, \"   |   \")","v":""}]
["2608801-00",null,null,null,null,null,null,null,null,null,null,null,null,null,null,{"$f":"SverweisM($A875, CNC!$A$4:$AD$727, 30, \"   |   \")","v":""}]
["2608901-00",null,null,null,null,null,null,null,null,null,null,null,null,null,null,{"$f":"SverweisM($A876, CNC!$A$4:$AD$727, 30, \"   |   \")","v":""}]
["2608902-00",null,null,null,null,null,null,null,null,null,null,null,null,null,null,{"$f":"SverweisM($A877, CNC!$A$4:$AD$727, 30, \"   |   \")","v":""}]
["2608903-00",null,null,null,null,null,null,null,null,null,null,null,null,null,null,{"$f":"SverweisM($A878, CNC!$A$4:$AD$727, 30, \"   |   \")","v":""}]
["2609001-00",null,null,null,null,null,null,null,null,null,null,null,null,null,null,{"$f":"SverweisM($A879, CNC!$A$4:$AD$727, 30, \"   |   \")","v":""}]
["2609002-00",null,null,null,null,null,null,null,null,null,null,null,null,null,null,{"$f":"SverweisM($A880, CNC!$A$4:$AD$727, 30, \"   |   \")","v":""}]
["2609101-00",null,null,null,null,null,null,null,null,null,null,null,null,null,null,{"$f":"SverweisM($A881, CNC!$A$4:$AD$727, 30, \"   |   \")","v":""}]
["2609101-90",null,null,null,null,null,null,null,null,null,null,null,null,null,null,{"$f":"SverweisM($A882, CNC!$A$4:$AD$727, 30, \"   |   \")","v":""}]
["2609201-00",null,null,null,null,null,null,null,null,null,null,null,null,null,null,{"$f":"SverweisM($A883, CNC!$A$4:$AD$727, 30, \"   |   \")","v":""}]
["2609201-05",0,0,0,"nein"," "," "," ","ja","-"," "," ",null,null,null,{"$f":"SverweisM($A884, CNC!$A$4:$AD$727, 30, \"   |   \")","v":"7-658386A0-GR-1   |   7-658386A0-GR-2   |   5-658386-FG-1"}]
["2609201-05",0,0,0,"nein"," "," "," ","ja","Freigegeben"," "," ",null,null,null,{"$f":"SverweisM($A885, CNC!$A$4:$AD$727, 30, \"   |   \")","v":"7-658386A0-GR-1   |   7-658386A0-GR-2   |   5-658386-FG-1"}]
["2609201-05",0,0,0,"nein"," "," "," ","ja","-"," "," ",null,null,null,{"$f":"SverweisM($A886, CNC!$A$4:$AD$727, 30, \"   |   \")","v":"7-658386A0-GR-1   |   7-658386A0-GR-2   |   5-658386-FG-1"}]
["2609501-00",0,0,0,"nein"," "," "," ","ja","-"," "," ",null,null,null,{"$f":"SverweisM($A887, CNC!$A$4:$AD$727, 30, \"   |   \")","v":""}]
["2609502-00",0,0,0,"nein"," "," "," ","ja","-"," "," ",null,null,null,{"$f":"SverweisM($A888, CNC!$A$4:$AD$727, 30, \"   |   \")","v":""}]
["2609601-00",0,0,0,"nein"," "," "," ","ja","-"," "," ",null,null,null,{"$f":"SverweisM($A889, CNC!$A$4:$AD$727, 30, \"   |   \")","v":""}]
["2609602-00",0,0,0,"nein"," "," "," ","ja","-"," "," ",null,null,null,{"$f":"SverweisM($A890, CNC!$A$4:$AD$727, 30, \"   |   \")","v":""}]
["2610501-00",null,null,null,null,null,null,null,null,null,null,null,null,null,null,{"$f":"SverweisM($A891, CNC!$A$4:$AD$727, 30, \"   |   \")","v":""}]
["2610601-00",null,null,null,null,null,null,null,null,null,null,null,null,null,null,{"$f":"SverweisM($A892, CNC!$A$4:$AD$727, 30, \"   |   \")","v":""}]
["2610601-90",null,null,null,null,null,null,null,null,null,null,null,null,null,null,{"$f":"SverweisM($A893, CNC!$A$4:$AD$727, 30, \"   |   \")","v":""}]
["2610701-00",null,null,null,null,null,null,null,null,null,null,null,null,null,null,{"$f":"SverweisM($A894, CNC!$A$4:$AD$727, 30, \"   |   \")","v":""}]
["2610801-00",null,null,null,null,null,null,null,null,null,null,null,null,null,null,{"$f":"SverweisM($A895, CNC!$A$4:$AD$727, 30, \"   |   \")","v":""}]
["2610901-00",null,null,null,null,null,null,null,null,null,null,null,null,null,null,{"$f":"SverweisM($A896, CNC!$A$4:$AD$727, 30, \"   |   \")","v":""}]
["2611001-00",null,null,null,null,null,null,null,null,null,null,null,null,null,null,{"$f":"SverweisM($A897, CNC!$A$4:$AD$727, 30, \"   |   \")","v":""}]
["2611001-01",0,0,0,"nein"," "," "," ","ja","-"," "," ",null,null,null,{"$f":"SverweisM($A898, CNC!$A$4:$AD$727, 30, \"   |   \")","v":"7-665029KA-VD-1   |   5-665029A-FG-1   |   5-665029A-FG-2"}]
["2611001-01",0,0,0,"nein"," "," "," ","ja","-"," "," ",null,null,null,{"$f":"SverweisM($A899, CNC!$A$4:$AD$727, 30, \"   |   \")","v":"7-665029KA-VD-1   |   5-665029A-FG-1   |   5-665029A-FG-2"}]
["2611001-01",0,0,0,"nein"," "," "," ","ja","Freigegeben"," "," ",null,null,null,{"$f":"SverweisM($A900, CNC!$A$4:$AD$727, 30, \"   |   \")","v":"7-665029KA-VD-1   |   5-665029A-FG-1   |   5-665029A-FG-2"}]
["2611002-00",null,null,null,null,null,null,null,null,null,null,null,null,null,null,{"$f":"SverweisM($A901, CNC!$A$4:$AD$727, 30, \"   |   \")","v":""}]
["2611101-00",null,null,null,null,null,null,null,null,null,null,null,null,null,null,{"$f":"SverweisM($A902, CNC!$A$4:$AD$727, 30, \"   |   \")","v":""}]
["2611201-00",null,null,null,null,null,null,null,null,null,null,null,null,null,null,{"$f":"SverweisM($A903, CNC!$A$4:$AD$727, 30, \"   |   \")","v":""}]
["2611501-00",null,null,null,null,null,null,null,null,null,null,null,null,null,null,{"$f":"SverweisM($A904, CNC!$A$4:$AD$727, 30, \"   |   \")","v":""}]
["2611701-00",null,null,null,null,null,null,null,null,null,null,null,null,null,null,{"$f":"SverweisM($A905, CNC!$A$4:$AD$727, 30, \"   |   \")","v":""}]
["2611801-00",null,null,null,null,null,null,null,null,null,null,null,null,null,null,{"$f":"SverweisM($A906, CNC!$A$4:$AD$727, 30, \"   |   \")","v":""}]
["2611802-00",null,null,null,null,null,null,null,null,null,null,null,null,null,null,{"$f":"SverweisM($A907, CNC!$A$4:$AD$727, 30, \"   |   \")","v":""}]
["2611901-00",null,null,null,null,null,null,null,null,null,null,null,null,null,null,{"$f":"SverweisM($A908, CNC!$A$4:$AD$727, 30, \"   |   \")","v":""}]
["2612001-00",null,null,null,null,null,null,null,null,null,null,null,null,null,null,{"$f":"SverweisM($A909, CNC!$A$4:$AD$727, 30, \"   |   \")","v":""}]
["2612001-01",0,0,0,"nein"," "," "," ","ja","Freigegeben"," "," ",null,null,null,{"$f":"SverweisM($A910, CNC!$A$4:$AD$727, 30, \"   |   \")","v":""}]
["2612002-00",null,null,null,null,null,null,null,null,null,null,null,null,null,null,{"$f":"SverweisM($A911, CNC!$A$4:$AD$727, 30, \"   |   \")","v":""}]
["2612002-01",0,0,0,"nein"," "," "," ","ja","Freigegeben"," "," ",null,null,null,{"$f":"SverweisM($A912, CNC!$A$4:$AD$727, 30, \"   |   \")","v":""}]
["2612101-00",null,null,null,null,null,null,null,null,null,null,null,null,null,null,{"$f":"SverweisM($A913, CNC!$A$4:$AD$727, 30, \"   |   \")","v":""}]
["2612101-90",null,null,null,null,null,null,null,null,null,null,null,null,null,null,{"$f":"SverweisM($A914, CNC!$A$4:$AD$727, 30, \"   |   \")","v":""}]
["2612301-00",null,null,null,null,null,null,null,null,null,null,null,null,null,null,{"$f":"SverweisM($A915, CNC!$A$4:$AD$727, 30, \"   |   \")","v":""}]
["BA202301",null,null,null,null,null,null,null,null,null,null,null,null,null,null,{"$f":"SverweisM($A916, CNC!$A$4:$AD$727, 30, \"   |   \")","v":""}]
["BA202302",null,null,null,null,null,null,null,null,null,null,null,null,null,null,{"$f":"SverweisM($A917, CNC!$A$4:$AD$727, 30, \"   |   \")","v":""}]
["BA202303",null,null,null,null,null,null,null,null,null,null,null,null,null,null,{"$f":"SverweisM($A918, CNC!$A$4:$AD$727, 30, \"   |   \")","v":""}]
["BA202304",0,0,0,"nein"," "," "," ","ja","-"," "," ",null,null,null,{"$f":"SverweisM($A919, CNC!$A$4:$AD$727, 30, \"   |   \")","v":""}]
["BA202304",0,0,0,"nein"," "," "," ","ja","-"," "," ",null,null,null,{"$f":"SverweisM($A920, CNC!$A$4:$AD$727, 30, \"   |   \")","v":""}]
["BA202305",0,0,0,"nein"," "," "," ","ja","-"," "," ",null,null,null,{"$f":"SverweisM($A921, CNC!$A$4:$AD$727, 30, \"   |   \")","v":""}]
["BA202306",null,null,null,null,null,null,null,null,null,null,null,null,null,null,{"$f":"SverweisM($A922, CNC!$A$4:$AD$727, 30, \"   |   \")","v":""}]
["BA202307",null,null,null,null,null,null,null,null,null,null,null,null,null,null,{"$f":"SverweisM($A923, CNC!$A$4:$AD$727, 30, \"   |   \")","v":""}]
["BA202308",0,0,0,"nein"," "," "," ","ja","-"," "," ",null,null,null,{"$f":"SverweisM($A924, CNC!$A$4:$AD$727, 30, \"   |   \")","v":""}]
["BA202308",0,0,0,"nein"," "," "," ","ja","Freigegeben"," "," ",null,null,null,{"$f":"SverweisM($A925, CNC!$A$4:$AD$727, 30, \"   |   \")","v":""}]
["BA202308",0,0,0,"nein"," "," "," ","ja","Freigegeben"," "," ",null,null,null,{"$f":"SverweisM($A926, CNC!$A$4:$AD$727, 30, \"   |   \")","v":""}]
["BA202308",0,0,0,"nein"," "," "," ","ja","Freigegeben"," "," ",null,null,null,{"$f":"SverweisM($A927, CNC!$A$4:$AD$727, 30, \"   |   \")","v":""}]
["BA202308",0,0,0,"nein"," "," "," ","ja","-"," "," ",null,null,null,{"$f":"SverweisM($A928, CNC!$A$4:$AD$727, 30, \"   |   \")","v":""}]
["BA202308",0,0,0,"nein"," "," "," ","ja","-"," "," ",null,null,null,{"$f":"SverweisM($A929, CNC!$A$4:$AD$727, 30, \"   |   \")","v":""}]
["BA202308",0,0,0,"nein"," "," "," ","ja","-"," "," ",null,null,null,{"$f":"SverweisM($A930, CNC!$A$4:$AD$727, 30, \"   |   \")","v":""}]
["BA202308",0,0,0,"nein"," "," "," ","ja","-"," "," ",null,null,null,{"$f":"SverweisM($A931, CNC!$A$4:$AD$727, 30, \"   |   \")","v":""}]
["BA202308",0,0,0,"nein"," "," "," ","ja","Freigegeben"," "," ",null,null,null,{"$f":"SverweisM($A932, CNC!$A$4:$AD$727, 30, \"   |   \")","v":""}]
["BA202308",0,0,0,"nein"," "," "," ","ja","-"," "," ",null,null,null,{"$f":"SverweisM($A933, CNC!$A$4:$AD$727, 30, \"   |   \")","v":""}]
["BA202309-00",null,null,null,null,null,null,null,null,null,null,null,null,null,null,{"$f":"SverweisM($A934, CNC!$A$4:$AD$727, 30, \"   |   \")","v":""}]
["BA202310-00",null,null,null,null,null,null,null,null,null,null,null,null,null,null,{"$f":"SverweisM($A935, CNC!$A$4:$AD$727, 30, \"   |   \")","v":""}]
["BA202310-87",null,null,null,null,null,null,null,null,null,null,null,null,null,null,{"$f":"SverweisM($A936, CNC!$A$4:$AD$727, 30, \"   |   \")","v":""}]
["BA202310-91",null,null,null,null,null,null,null,null,null,null,null,null,null,null,{"$f":"SverweisM($A937, CNC!$A$4:$AD$727, 30, \"   |   \")","v":""}]
["BA202310-92",null,null,null,null,null,null,null,null,null,null,null,null,null,null,{"$f":"SverweisM($A938, CNC!$A$4:$AD$727, 30, \"   |   \")","v":""}]
["BA202312",null,null,null,null,null,null,null,null,null,null,null,null,null,null,{"$f":"SverweisM($A939, CNC!$A$4:$AD$727, 30, \"   |   \")","v":""}]
["BA202313",null,null,null,null,null,null,null,null,null,null,null,null,null,null,{"$f":"SverweisM($A940, CNC!$A$4:$AD$727, 30, \"   |   \")","v":""}]
["BA202314",null,null,null,null,null,null,null,null,null,null,null,null,null,null,{"$f":"SverweisM($A941, CNC!$A$4:$AD$727, 30, \"   |   \")","v":""}]
["BA202315-00",null,null,null,null,null,null,null,null,null,null,null,null,null,null,{"$f":"SverweisM($A942, CNC!$A$4:$AD$727, 30, \"   |   \")","v":""}]
["BA202315-91",null,null,null,null,null,null,null,null,null,null,null,null,null,null,{"$f":"SverweisM($A943, CNC!$A$4:$AD$727, 30, \"   |   \")","v":""}]
["BA202315-97",null,null,null,null,null,null,null,null,null,null,null,null,null,null,{"$f":"SverweisM($A944, CNC!$A$4:$AD$727, 30, \"   |   \")","v":""}]
["BA202318-00",null,null,null,null,null,null,null,null,null,null,null,null,null,null,{"$f":"SverweisM($A945, CNC!$A$4:$AD$727, 30, \"   |   \")","v":""}]
["BA202318-02",null,null,null,null,null,null,null,null,null,null,null,null,null,null,{"$f":"SverweisM($A946, CNC!$A$4:$AD$727, 30, \"   |   \")","v":""}]
["BA202319-00",null,null,null,null,null,null,null,null,null,null,null,null,null,null,{"$f":"SverweisM($A947, CNC!$A$4:$AD$727, 30, \"   |   \")","v":""}]
["BA202319-30",null,null,null,null,null,null,null,null,null,null,null,null,null,null,{"$f":"SverweisM($A948, CNC!$A$4:$AD$727, 30, \"   |   \")","v":""}]
["BA202319-31",null,null,null,null,null,null,null,null,null,null,null,null,null,null,{"$f":"SverweisM($A949, CNC!$A$4:$AD$727, 30, \"   |   \")","v":""}]
["BA202320",0,0,0,"nein"," "," "," ","ja","-"," "," ",null,null,null,{"$f":"SverweisM($A950, CNC!$A$4:$AD$727, 30, \"   |   \")","v":"8_661720B_RM_1   |   8_661720B_RM_5"}]
["BA202320",0,0,0,"nein"," "," "," ","ja","-"," "," ",null,null,null,{"$f":"SverweisM($A951, CNC!$A$4:$AD$727, 30, \"   |   \")","v":"8_661720B_RM_1   |   8_661720B_RM_5"}]
["BA202334-00",0,0,0,"nein"," "," "," ","ja","-"," "," ",null,null,null,{"$f":"SverweisM($A952, CNC!$A$4:$AD$727, 30, \"   |   \")","v":""}]
["BA202334-11",0,0,0,"nein"," "," "," ","ja","Freigegeben"," "," ",null,null,null,{"$f":"SverweisM($A953, CNC!$A$4:$AD$727, 30, \"   |   \")","v":""}]
["BA202334-11",0,0,0,"nein"," "," "," ","ja","-"," "," ",null,null,null,{"$f":"SverweisM($A954, CNC!$A$4:$AD$727, 30, \"   |   \")","v":""}]
["BA202334-14",null,null,null,null,null,null,null,null,null,null,null,null,null,null,{"$f":"SverweisM($A955, CNC!$A$4:$AD$727, 30, \"   |   \")","v":""}]
["BA202334-15",null,null,null,null,null,null,null,null,null,null,null,null,null,null,{"$f":"SverweisM($A956, CNC!$A$4:$AD$727, 30, \"   |   \")","v":""}]
["BA202334-24",null,null,null,null,null,null,null,null,null,null,null,null,null,null,{"$f":"SverweisM($A957, CNC!$A$4:$AD$727, 30, \"   |   \")","v":""}]
["BA202334-46",null,null,null,null,null,null,null,null,null,null,null,null,null,null,{"$f":"SverweisM($A958, CNC!$A$4:$AD$727, 30, \"   |   \")","v":""}]
["BA202334-51",null,null,null,null,null,null,null,null,null,null,null,null,null,null,{"$f":"SverweisM($A959, CNC!$A$4:$AD$727, 30, \"   |   \")","v":""}]
["BA202334-61",null,null,null,null,null,null,null,null,null,null,null,null,null,null,{"$f":"SverweisM($A960, CNC!$A$4:$AD$727, 30, \"   |   \")","v":""}]
["BA202334-62",null,null,null,null,null,null,null,null,null,null,null,null,null,null,{"$f":"SverweisM($A961, CNC!$A$4:$AD$727, 30, \"   |   \")","v":""}]
["BA202334-74",null,null,null,null,null,null,null,null,null,null,null,null,null,null,{"$f":"SverweisM($A962, CNC!$A$4:$AD$727, 30, \"   |   \")","v":""}]
["BA202334-82",null,null,null,null,null,null,null,null,null,null,null,null,null,null,{"$f":"SverweisM($A963, CNC!$A$4:$AD$727, 30, \"   |   \")","v":""}]
["BA202334-93",null,null,null,null,null,null,null,null,null,null,null,null,null,null,{"$f":"SverweisM($A964, CNC!$A$4:$AD$727, 30, \"   |   \")","v":""}]
["BA202334-97",0,0,0,"nein"," "," "," ","ja","-"," "," ",null,null,null,{"$f":"SverweisM($A965, CNC!$A$4:$AD$727, 30, \"   |   \")","v":""}]
["BA202334-97",0,0,0,"nein"," "," "," ","ja","Freigegeben"," "," ",null,null,null,{"$f":"SverweisM($A966, CNC!$A$4:$AD$727, 30, \"   |   \")","v":""}]
["BA202401",null,null,null,null,null,null,null,null,null,null,null,null,null,null,{"$f":"SverweisM($A967, CNC!$A$4:$AD$727, 30, \"   |   \")","v":""}]
["BA202402",null,null,null,null,null,null,null,null,null,null,null,null,null,null,{"$f":"SverweisM($A968, CNC!$A$4:$AD$727, 30, \"   |   \")","v":""}]
["BA202403",null,null,null,null,null,null,null,null,null,null,null,null,null,null,{"$f":"SverweisM($A969, CNC!$A$4:$AD$727, 30, \"   |   \")","v":""}]
["BA202404",0,0,0,"nein"," "," "," ","ja","-"," "," ",null,null,null,{"$f":"SverweisM($A970, CNC!$A$4:$AD$727, 30, \"   |   \")","v":""}]
["BA202405",0,0,0,"nein"," "," "," ","ja","Fest geplant"," "," ",null,null,null,{"$f":"SverweisM($A971, CNC!$A$4:$AD$727, 30, \"   |   \")","v":""}]
["BA202406",null,null,null,null,null,null,null,null,null,null,null,null,null,null,{"$f":"SverweisM($A972, CNC!$A$4:$AD$727, 30, \"   |   \")","v":""}]
["BA202407",null,null,null,null,null,null,null,null,null,null,null,null,null,null,{"$f":"SverweisM($A973, CNC!$A$4:$AD$727, 30, \"   |   \")","v":""}]
["BA202408-00",0,0,0,"nein"," "," "," ","ja","Fest geplant"," "," ",null,null,null,{"$f":"SverweisM($A974, CNC!$A$4:$AD$727, 30, \"   |   \")","v":""}]
["BA202408-00",0,0,0,"nein"," "," "," ","ja","Fest geplant"," "," ",null,null,null,{"$f":"SverweisM($A975, CNC!$A$4:$AD$727, 30, \"   |   \")","v":""}]
["BA202408-00",0,0,0,"nein"," "," "," ","ja","Fest geplant"," "," ",null,null,null,{"$f":"SverweisM($A976, CNC!$A$4:$AD$727, 30, \"   |   \")","v":""}]
["BA202408-04",null,null,null,null,null,null,null,null,null,null,null,null,null,null,{"$f":"SverweisM($A977, CNC!$A$4:$AD$727, 30, \"   |   \")","v":""}]
["BA202409",null,null,null,null,null,null,null,null,null,null,null,null,null,null,{"$f":"SverweisM($A978, CNC!$A$4:$AD$727, 30, \"   |   \")","v":""}]
["BA202410",null,null,null,null,null,null,null,null,null,null,null,null,null,null,{"$f":"SverweisM($A979, CNC!$A$4:$AD$727, 30, \"   |   \")","v":""}]
["BA202411",null,null,null,null,null,null,null,null,null,null,null,null,null,null,{"$f":"SverweisM($A980, CNC!$A$4:$AD$727, 30, \"   |   \")","v":""}]
["BA202412-00",null,null,null,null,null,null,null,null,null,null,null,null,null,null,{"$f":"SverweisM($A981, CNC!$A$4:$AD$727, 30, \"   |   \")","v":""}]
["BA202412-06",null,null,null,null,null,null,null,null,null,null,null,null,null,null,{"$f":"SverweisM($A982, CNC!$A$4:$AD$727, 30, \"   |   \")","v":""}]
["BA202412-95",null,null,null,null,null,null,null,null,null,null,null,null,null,null,{"$f":"SverweisM($A983, CNC!$A$4:$AD$727, 30, \"   |   \")","v":""}]
["BA202412-96",null,null,null,null,null,null,null,null,null,null,null,null,null,null,{"$f":"SverweisM($A984, CNC!$A$4:$AD$727, 30, \"   |   \")","v":""}]
["BA202412-97",null,null,null,null,null,null,null,null,null,null,null,null,null,null,{"$f":"SverweisM($A985, CNC!$A$4:$AD$727, 30, \"   |   \")","v":""}]
["BA202419-00",null,null,null,null,null,null,null,null,null,null,null,null,null,null,{"$f":"SverweisM($A986, CNC!$A$4:$AD$727, 30, \"   |   \")","v":""}]
["BA202421-00",null,null,null,null,null,null,null,null,null,null,null,null,null,null,{"$f":"SverweisM($A987, CNC!$A$4:$AD$727, 30, \"   |   \")","v":""}]
["BA202422",null,null,null,null,null,null,null,null,null,null,null,null,null,null,{"$f":"SverweisM($A988, CNC!$A$4:$AD$727, 30, \"   |   \")","v":""}]
["BA202426-00",null,null,null,null,null,null,null,null,null,null,null,null,null,null,{"$f":"SverweisM($A989, CNC!$A$4:$AD$727, 30, \"   |   \")","v":""}]
["BA202428-00",null,null,null,null,null,null,null,null,null,null,null,null,null,null,{"$f":"SverweisM($A990, CNC!$A$4:$AD$727, 30, \"   |   \")","v":""}]
["BA202428-15",0,0,0,"nein"," "," "," ","ja","Freigegeben"," "," ",null,null,null,{"$f":"SverweisM($A991, CNC!$A$4:$AD$727, 30, \"   |   \")","v":""}]
["BA202428-16",0,0,0,"nein"," "," "," ","ja","Freigegeben"," "," ",null,null,null,{"$f":"SverweisM($A992, CNC!$A$4:$AD$727, 30, \"   |   \")","v":""}]
["BA202428-26",null,null,null,null,null,null,null,null,null,null,null,null,null,null,{"$f":"SverweisM($A993, CNC!$A$4:$AD$727, 30, \"   |   \")","v":""}]
["BA202430-00",null,null,null,null,null,null,null,null,null,null,null,null,null,null,{"$f":"SverweisM($A994, CNC!$A$4:$AD$727, 30, \"   |   \")","v":""}]
["BA202430-09",null,null,null,null,null,null,null,null,null,null,null,null,null,null,{"$f":"SverweisM($A995, CNC!$A$4:$AD$727, 30, \"   |   \")","v":""}]
["BA202430-71",null,null,null,null,null,null,null,null,null,null,null,null,null,null,{"$f":"SverweisM($A996, CNC!$A$4:$AD$727, 30, \"   |   \")","v":""}]
["BA202432-00",null,null,null,null,null,null,null,null,null,null,null,null,null,null,{"$f":"SverweisM($A997, CNC!$A$4:$AD$727, 30, \"   |   \")","v":""}]
["BA202432-01",0,0,0,"nein"," "," "," ","ja","-"," "," ",null,null,null,{"$f":"SverweisM($A998, CNC!$A$4:$AD$727, 30, \"   |   \")","v":""}]
["BA202432-01",0,0,0,"nein"," "," "," ","ja","-"," "," ",null,null,null,{"$f":"SverweisM($A999, CNC!$A$4:$AD$727, 30, \"   |   \")","v":""}]
["BA202432-01",0,0,0,"nein"," "," "," ","ja","Freigegeben"," "," ",null,null,null,{"$f":"SverweisM($A1000, CNC!$A$4:$AD$727, 30, \"   |   \")","v":""}]
["BA202432-02",0,0,0,"nein"," "," "," ","ja","Freigegeben"," "," ",null,null,null,{"$f":"SverweisM($A1001, CNC!$A$4:$AD$727, 30, \"   |   \")","v":""}]
["BA202432-02",0,0,0,"nein"," "," "," ","ja","Freigegeben"," "," ",null,null,null,{"$f":"SverweisM($A1002, CNC!$A$4:$AD$727, 30, \"   |   \")","v":""}]
["BA202432-02",0,0,0,"nein"," "," "," ","ja","-"," "," ",null,null,null,{"$f":"SverweisM($A1003, CNC!$A$4:$AD$727, 30, \"   |   \")","v":""}]
["BA202432-02",0,0,0,"nein"," "," "," ","ja","Freigegeben"," "," ",null,null,null,{"$f":"SverweisM($A1004, CNC!$A$4:$AD$727, 30, \"   |   \")","v":""}]
["BA202432-03",0,0,0,"nein"," "," "," ","ja","Freigegeben"," "," ",null,null,null,{"$f":"SverweisM($A1005, CNC!$A$4:$AD$727, 30, \"   |   \")","v":""}]
["BA202432-04",null,null,null,null,null,null,null,null,null,null,null,null,null,null,{"$f":"SverweisM($A1006, CNC!$A$4:$AD$727, 30, \"   |   \")","v":""}]
["BA202432-05",0,0,0,"nein"," "," "," ","ja","Freigegeben"," "," ",null,null,null,{"$f":"SverweisM($A1007, CNC!$A$4:$AD$727, 30, \"   |   \")","v":""}]
["BA202432-05",0,0,0,"nein"," "," "," ","ja","Freigegeben"," "," ",null,null,null,{"$f":"SverweisM($A1008, CNC!$A$4:$AD$727, 30, \"   |   \")","v":""}]
["BA202432-05",0,0,0,"nein"," "," "," ","ja","Freigegeben"," "," ",null,null,null,{"$f":"SverweisM($A1009, CNC!$A$4:$AD$727, 30, \"   |   \")","v":""}]
["BA202432-05",0,0,0,"nein"," "," "," ","ja","Freigegeben"," "," ",null,null,null,{"$f":"SverweisM($A1010, CNC!$A$4:$AD$727, 30, \"   |   \")","v":""}]
["BA202432-06",null,null,null,null,null,null,null,null,null,null,null,null,null,null,{"$f":"SverweisM($A1011, CNC!$A$4:$AD$727, 30, \"   |   \")","v":""}]
["BA202432-08",0,0,0,"nein"," "," "," ","ja","Freigegeben"," "," ",null,null,null,{"$f":"SverweisM($A1012, CNC!$A$4:$AD$727, 30, \"   |   \")","v":""}]
["BA202432-08",0,0,0,"nein"," "," "," ","ja","-"," "," ",null,null,null,{"$f":"SverweisM($A1013, CNC!$A$4:$AD$727, 30, \"   |   \")","v":""}]
["BA202432-11",0,0,0,"nein"," "," "," ","ja","Freigegeben"," "," ",null,null,null,{"$f":"SverweisM($A1014, CNC!$A$4:$AD$727, 30, \"   |   \")","v":""}]
["BA202432-11",0,0,0,"nein"," "," "," ","ja","Freigegeben"," "," ",null,null,null,{"$f":"SverweisM($A1015, CNC!$A$4:$AD$727, 30, \"   |   \")","v":""}]
["BA202432-33",0,0,0,"nein"," "," "," ","ja","Freigegeben"," "," ",null,null,null,{"$f":"SverweisM($A1016, CNC!$A$4:$AD$727, 30, \"   |   \")","v":""}]
["BA202432-33",0,0,0,"nein"," "," "," ","ja","-"," "," ",null,null,null,{"$f":"SverweisM($A1017, CNC!$A$4:$AD$727, 30, \"   |   \")","v":""}]
["BA202433",null,null,null,null,null,null,null,null,null,null,null,null,null,null,{"$f":"SverweisM($A1018, CNC!$A$4:$AD$727, 30, \"   |   \")","v":""}]
["BA202435-00",null,null,null,null,null,null,null,null,null,null,null,null,null,null,{"$f":"SverweisM($A1019, CNC!$A$4:$AD$727, 30, \"   |   \")","v":""}]
["BA202438-00",0,0,0,"nein"," "," "," ","ja","-"," "," ",null,null,null,{"$f":"SverweisM($A1020, CNC!$A$4:$AD$727, 30, \"   |   \")","v":""}]
["BA202439-00",null,null,null,null,null,null,null,null,null,null,null,null,null,null,{"$f":"SverweisM($A1021, CNC!$A$4:$AD$727, 30, \"   |   \")","v":""}]
["BA202439-02",0,0,0,"nein"," "," "," ","ja","Freigegeben"," "," ",null,null,null,{"$f":"SverweisM($A1022, CNC!$A$4:$AD$727, 30, \"   |   \")","v":""}]
["BA20244-01",null,null,null,null,null,null,null,null,null,null,null,null,null,null,{"$f":"SverweisM($A1023, CNC!$A$4:$AD$727, 30, \"   |   \")","v":""}]
["BA20244-02",null,null,null,null,null,null,null,null,null,null,null,null,null,null,{"$f":"SverweisM($A1024, CNC!$A$4:$AD$727, 30, \"   |   \")","v":""}]
["BA202441-95",0,0,0,"nein"," "," "," ","ja","Freigegeben"," "," ",null,null,null,{"$f":"SverweisM($A1025, CNC!$A$4:$AD$727, 30, \"   |   \")","v":""}]
["BA202442",null,null,null,null,null,null,null,null,null,null,null,null,null,null,{"$f":"SverweisM($A1026, CNC!$A$4:$AD$727, 30, \"   |   \")","v":""}]
["BA202444",null,null,null,null,null,null,null,null,null,null,null,null,null,null,{"$f":"SverweisM($A1027, CNC!$A$4:$AD$727, 30, \"   |   \")","v":""}]
["BA202445",0,0,0,"nein"," "," "," ","ja","-"," "," ",null,null,null,{"$f":"SverweisM($A1028, CNC!$A$4:$AD$727, 30, \"   |   \")","v":""}]
["BA202445",0,0,0,"nein"," "," "," ","ja","Fest geplant"," "," ",null,null,null,{"$f":"SverweisM($A1029, CNC!$A$4:$AD$727, 30, \"   |   \")","v":""}]
["BA202446-00",null,null,null,null,null,null,null,null,null,null,null,null,null,null,{"$f":"SverweisM($A1030, CNC!$A$4:$AD$727, 30, \"   |   \")","v":""}]
["BA202446-01",null,null,null,null,null,null,null,null,null,null,null,null,null,null,{"$f":"SverweisM($A1031, CNC!$A$4:$AD$727, 30, \"   |   \")","v":""}]
["BA202446-02",null,null,null,null,null,null,null,null,null,null,null,null,null,null,{"$f":"SverweisM($A1032, CNC!$A$4:$AD$727, 30, \"   |   \")","v":""}]
["BA202446-03",null,null,null,null,null,null,null,null,null,null,null,null,null,null,{"$f":"SverweisM($A1033, CNC!$A$4:$AD$727, 30, \"   |   \")","v":""}]
["BA202446-04",0,0,0,"nein"," "," "," ","ja","Fest geplant"," "," ",null,null,null,{"$f":"SverweisM($A1034, CNC!$A$4:$AD$727, 30, \"   |   \")","v":""}]
["BA202446-90",null,null,null,null,null,null,null,null,null,null,null,null,null,null,{"$f":"SverweisM($A1035, CNC!$A$4:$AD$727, 30, \"   |   \")","v":""}]
["BA202447-00",null,null,null,null,null,null,null,null,null,null,null,null,null,null,{"$f":"SverweisM($A1036, CNC!$A$4:$AD$727, 30, \"   |   \")","v":""}]
["BA202447-04",null,null,null,null,null,null,null,null,null,null,null,null,null,null,{"$f":"SverweisM($A1037, CNC!$A$4:$AD$727, 30, \"   |   \")","v":""}]
["BA202447-05",0,0,0,"nein"," "," "," ","ja","Fest geplant"," "," ",null,null,null,{"$f":"SverweisM($A1038, CNC!$A$4:$AD$727, 30, \"   |   \")","v":""}]
["BA202447-05",0,0,0,"nein"," "," "," ","ja","Fest geplant"," "," ",null,null,null,{"$f":"SverweisM($A1039, CNC!$A$4:$AD$727, 30, \"   |   \")","v":""}]
["BA202449",null,null,null,null,null,null,null,null,null,null,null,null,null,null,{"$f":"SverweisM($A1040, CNC!$A$4:$AD$727, 30, \"   |   \")","v":""}]
["BA202450-00",null,null,null,null,null,null,null,null,null,null,null,null,null,null,{"$f":"SverweisM($A1041, CNC!$A$4:$AD$727, 30, \"   |   \")","v":""}]
["BA202450-02",0,0,0,"nein"," "," "," ","ja","Fest geplant"," "," ",null,null,null,{"$f":"SverweisM($A1042, CNC!$A$4:$AD$727, 30, \"   |   \")","v":""}]
["BA202451-00",0,0,0,"nein"," "," "," ","ja","Fest geplant"," "," ",null,null,null,{"$f":"SverweisM($A1043, CNC!$A$4:$AD$727, 30, \"   |   \")","v":""}]
["FA27808",null,null,null,null,null,null,null,null,null,null,null,null,null,null,{"$f":"SverweisM($A1044, CNC!$A$4:$AD$727, 30, \"   |   \")","v":""}]
["FA45289",null,null,null,null,null,null,null,null,null,null,null,null,null,null,{"$f":"SverweisM($A1045, CNC!$A$4:$AD$727, 30, \"   |   \")","v":""}]
["FA47446",null,null,null,null,null,null,null,null,null,null,null,null,null,null,{"$f":"SverweisM($A1046, CNC!$A$4:$AD$727, 30, \"   |   \")","v":""}]
["FA52773",0,0,0,"nein"," "," "," ","ja","Fest geplant"," "," ",null,null,null,{"$f":"SverweisM($A1047, CNC!$A$4:$AD$727, 30, \"   |   \")","v":""}]
["FA52773",0,0,0,"nein"," "," "," ","ja","-"," "," ",null,null,null,{"$f":"SverweisM($A1048, CNC!$A$4:$AD$727, 30, \"   |   \")","v":""}]
["FA58378",null,null,null,null,null,null,null,null,null,null,null,null,null,null,{"$f":"SverweisM($A1049, CNC!$A$4:$AD$727, 30, \"   |   \")","v":""}]
["FA59564",0,0,0,"nein"," "," "," ","ja","Fest geplant"," "," ",null,null,null,{"$f":"SverweisM($A1050, CNC!$A$4:$AD$727, 30, \"   |   \")","v":""}]
["FA59884",null,null,null,null,null,null,null,null,null,null,null,null,null,null,{"$f":"SverweisM($A1051, CNC!$A$4:$AD$727, 30, \"   |   \")","v":""}]
["FA61354",null,null,null,null,null,null,null,null,null,null,null,null,null,null,{"$f":"SverweisM($A1052, CNC!$A$4:$AD$727, 30, \"   |   \")","v":""}]
["FA62007",null,null,null,null,null,null,null,null,null,null,null,null,null,null,{"$f":"SverweisM($A1053, CNC!$A$4:$AD$727, 30, \"   |   \")","v":""}]
["FA62812",null,null,null,null,null,null,null,null,null,null,null,null,null,null,{"$f":"SverweisM($A1054, CNC!$A$4:$AD$727, 30, \"   |   \")","v":""}]
["FA63799",null,null,null,null,null,null,null,null,null,null,null,null,null,null,{"$f":"SverweisM($A1055, CNC!$A$4:$AD$727, 30, \"   |   \")","v":""}]
["FA64581",null,null,null,null,null,null,null,null,null,null,null,null,null,null,{"$f":"SverweisM($A1056, CNC!$A$4:$AD$727, 30, \"   |   \")","v":""}]
["FA64706",null,null,null,null,null,null,null,null,null,null,null,null,null,null,{"$f":"SverweisM($A1057, CNC!$A$4:$AD$727, 30, \"   |   \")","v":""}]
["FA64984",0,0,0,"nein"," "," "," ","ja","-"," "," ",null,null,null,{"$f":"SverweisM($A1058, CNC!$A$4:$AD$727, 30, \"   |   \")","v":"1-65343901-VM-1   |   1-65343901-VM-2"}]
["FA64984",0,0,0,"nein"," "," "," ","ja","-"," "," ",null,null,null,{"$f":"SverweisM($A1059, CNC!$A$4:$AD$727, 30, \"   |   \")","v":"1-65343901-VM-1   |   1-65343901-VM-2"}]
["FA64984",0,0,0,"nein"," "," "," ","ja","-"," "," ",null,null,null,{"$f":"SverweisM($A1060, CNC!$A$4:$AD$727, 30, \"   |   \")","v":"1-65343901-VM-1   |   1-65343901-VM-2"}]
["FA64984",0,0,0,"nein"," "," "," ","ja","-"," "," ",null,null,null,{"$f":"SverweisM($A1061, CNC!$A$4:$AD$727, 30, \"   |   \")","v":"1-65343901-VM-1   |   1-65343901-VM-2"}]
["FA65245",null,null,null,null,null,null,null,null,null,null,null,null,null,null,{"$f":"SverweisM($A1062, CNC!$A$4:$AD$727, 30, \"   |   \")","v":""}]
["FA65304",null,null,null,null,null,null,null,null,null,null,null,null,null,null,{"$f":"SverweisM($A1063, CNC!$A$4:$AD$727, 30, \"   |   \")","v":""}]
["FA65500",null,null,null,null,null,null,null,null,null,null,null,null,null,null,{"$f":"SverweisM($A1064, CNC!$A$4:$AD$727, 30, \"   |   \")","v":""}]
["FA65809",null,null,null,null,null,null,null,null,null,null,null,null,null,null,{"$f":"SverweisM($A1065, CNC!$A$4:$AD$727, 30, \"   |   \")","v":""}]
["FA66575",null,null,null,null,null,null,null,null,null,null,null,null,null,null,{"$f":"SverweisM($A1066, CNC!$A$4:$AD$727, 30, \"   |   \")","v":""}]
["FA66597",null,null,null,null,null,null,null,null,null,null,null,null,null,null,{"$f":"SverweisM($A1067, CNC!$A$4:$AD$727, 30, \"   |   \")","v":""}]
["FA66977",0,0,0,"nein"," "," "," ","ja","-"," "," ",null,null,null,{"$f":"SverweisM($A1068, CNC!$A$4:$AD$727, 30, \"   |   \")","v":"6-665059A-RF-2"}]
["FA67345",null,null,null,null,null,null,null,null,null,null,null,null,null,null,{"$f":"SverweisM($A1069, CNC!$A$4:$AD$727, 30, \"   |   \")","v":""}]
["FA67642",0,0,0,"nein"," "," "," ","ja","-"," "," ",null,null,null,{"$f":"SverweisM($A1070, CNC!$A$4:$AD$727, 30, \"   |   \")","v":""}]
["FA67642",0,0,0,"nein"," "," "," ","ja","Freigegeben"," "," ",null,null,null,{"$f":"SverweisM($A1071, CNC!$A$4:$AD$727, 30, \"   |   \")","v":""}]
["FA67666",null,null,null,null,null,null,null,null,null,null,null,null,null,null,{"$f":"SverweisM($A1072, CNC!$A$4:$AD$727, 30, \"   |   \")","v":""}]
["FA67840",0,0,0,"nein"," "," "," ","ja","-"," "," ",null,null,null,{"$f":"SverweisM($A1073, CNC!$A$4:$AD$727, 30, \"   |   \")","v":""}]
["FA67840",0,0,0,"nein"," "," "," ","ja","-"," "," ",null,null,null,{"$f":"SverweisM($A1074, CNC!$A$4:$AD$727, 30, \"   |   \")","v":""}]
["FA68075",0,0,0,"nein"," "," "," ","ja","-"," "," ",null,null,null,{"$f":"SverweisM($A1075, CNC!$A$4:$AD$727, 30, \"   |   \")","v":""}]
["FA68075",0,0,0,"nein"," "," "," ","ja","-"," "," ",null,null,null,{"$f":"SverweisM($A1076, CNC!$A$4:$AD$727, 30, \"   |   \")","v":""}]
["FA68075",0,0,0,"nein"," "," "," ","ja","Freigegeben"," "," ",null,null,null,{"$f":"SverweisM($A1077, CNC!$A$4:$AD$727, 30, \"   |   \")","v":""}]
["FA68078",0,0,0,"nein"," "," "," ","ja","Freigegeben"," "," ",null,null,null,{"$f":"SverweisM($A1078, CNC!$A$4:$AD$727, 30, \"   |   \")","v":""}]
["FA68116",null,null,null,null,null,null,null,null,null,null,null,null,null,null,{"$f":"SverweisM($A1079, CNC!$A$4:$AD$727, 30, \"   |   \")","v":""}]
["FA68200",null,null,null,null,null,null,null,null,null,null,null,null,null,null,{"$f":"SverweisM($A1080, CNC!$A$4:$AD$727, 30, \"   |   \")","v":""}]
["FA68201",null,null,null,null,null,null,null,null,null,null,null,null,null,null,{"$f":"SverweisM($A1081, CNC!$A$4:$AD$727, 30, \"   |   \")","v":""}]
["FA68395",null,null,null,null,null,null,null,null,null,null,null,null,null,null,{"$f":"SverweisM($A1082, CNC!$A$4:$AD$727, 30, \"   |   \")","v":""}]
["FA68701",null,null,null,null,null,null,null,null,null,null,null,null,null,null,{"$f":"SverweisM($A1083, CNC!$A$4:$AD$727, 30, \"   |   \")","v":""}]
["FA68719",null,null,null,null,null,null,null,null,null,null,null,null,null,null,{"$f":"SverweisM($A1084, CNC!$A$4:$AD$727, 30, \"   |   \")","v":""}]
["FA68720",null,null,null,null,null,null,null,null,null,null,null,null,null,null,{"$f":"SverweisM($A1085, CNC!$A$4:$AD$727, 30, \"   |   \")","v":""}]
["FA68732",null,null,null,null,null,null,null,null,null,null,null,null,null,null,{"$f":"SverweisM($A1086, CNC!$A$4:$AD$727, 30, \"   |   \")","v":""}]
["FA68774",null,null,null,null,null,null,null,null,null,null,null,null,null,null,{"$f":"SverweisM($A1087, CNC!$A$4:$AD$727, 30, \"   |   \")","v":""}]
["FA68777",0,0,0,"nein"," "," "," ","ja","-"," "," ",null,null,null,{"$f":"SverweisM($A1088, CNC!$A$4:$AD$727, 30, \"   |   \")","v":"8_665047A_RM_3"}]
["FA68778",null,null,null,null,null,null,null,null,null,null,null,null,null,null,{"$f":"SverweisM($A1089, CNC!$A$4:$AD$727, 30, \"   |   \")","v":""}]
["FA68791",0,0,0,"nein"," "," "," ","ja","-"," "," ",null,null,null,{"$f":"SverweisM($A1090, CNC!$A$4:$AD$727, 30, \"   |   \")","v":""}]
["FA68791",0,0,0,"nein"," "," "," ","ja","-"," "," ",null,null,null,{"$f":"SverweisM($A1091, CNC!$A$4:$AD$727, 30, \"   |   \")","v":""}]
["FA68807",null,null,null,null,null,null,null,null,null,null,null,null,null,null,{"$f":"SverweisM($A1092, CNC!$A$4:$AD$727, 30, \"   |   \")","v":""}]
["FA68808",null,null,null,null,null,null,null,null,null,null,null,null,null,null,{"$f":"SverweisM($A1093, CNC!$A$4:$AD$727, 30, \"   |   \")","v":""}]
["FA68810",null,null,null,null,null,null,null,null,null,null,null,null,null,null,{"$f":"SverweisM($A1094, CNC!$A$4:$AD$727, 30, \"   |   \")","v":""}]
["FA68811",null,null,null,null,null,null,null,null,null,null,null,null,null,null,{"$f":"SverweisM($A1095, CNC!$A$4:$AD$727, 30, \"   |   \")","v":""}]
["FA68813",null,null,null,null,null,null,null,null,null,null,null,null,null,null,{"$f":"SverweisM($A1096, CNC!$A$4:$AD$727, 30, \"   |   \")","v":""}]
["FA68815",null,null,null,null,null,null,null,null,null,null,null,null,null,null,{"$f":"SverweisM($A1097, CNC!$A$4:$AD$727, 30, \"   |   \")","v":""}]
["FA68816",null,null,null,null,null,null,null,null,null,null,null,null,null,null,{"$f":"SverweisM($A1098, CNC!$A$4:$AD$727, 30, \"   |   \")","v":""}]
["FA68829",null,null,null,null,null,null,null,null,null,null,null,null,null,null,{"$f":"SverweisM($A1099, CNC!$A$4:$AD$727, 30, \"   |   \")","v":""}]
["FA68831",null,null,null,null,null,null,null,null,null,null,null,null,null,null,{"$f":"SverweisM($A1100, CNC!$A$4:$AD$727, 30, \"   |   \")","v":""}]
["FA68832",null,null,null,null,null,null,null,null,null,null,null,null,null,null,{"$f":"SverweisM($A1101, CNC!$A$4:$AD$727, 30, \"   |   \")","v":""}]
["FA68833",null,null,null,null,null,null,null,null,null,null,null,null,null,null,{"$f":"SverweisM($A1102, CNC!$A$4:$AD$727, 30, \"   |   \")","v":""}]
["FA68845",0,0,0,"nein"," "," "," ","ja","Freigegeben"," "," ",null,null,null,{"$f":"SverweisM($A1103, CNC!$A$4:$AD$727, 30, \"   |   \")","v":""}]
["FA68845",0,0,0,"nein"," "," "," ","ja","Freigegeben"," "," ",null,null,null,{"$f":"SverweisM($A1104, CNC!$A$4:$AD$727, 30, \"   |   \")","v":""}]
["FA68848",null,null,null,null,null,null,null,null,null,null,null,null,null,null,{"$f":"SverweisM($A1105, CNC!$A$4:$AD$727, 30, \"   |   \")","v":""}]
["FA68928",null,null,null,null,null,null,null,null,null,null,null,null,null,null,{"$f":"SverweisM($A1106, CNC!$A$4:$AD$727, 30, \"   |   \")","v":""}]
["FA69055",0,0,0,"nein"," "," "," ","ja","Freigegeben"," "," ",null,null,null,{"$f":"SverweisM($A1107, CNC!$A$4:$AD$727, 30, \"   |   \")","v":""}]
["FA69055",0,0,0,"nein"," "," "," ","ja","-"," "," ",null,null,null,{"$f":"SverweisM($A1108, CNC!$A$4:$AD$727, 30, \"   |   \")","v":""}]
["FA69126",null,null,null,null,null,null,null,null,null,null,null,null,null,null,{"$f":"SverweisM($A1109, CNC!$A$4:$AD$727, 30, \"   |   \")","v":""}]
["FA69132",0,0,0,"nein"," "," "," ","ja","-"," "," ",null,null,null,{"$f":"SverweisM($A1110, CNC!$A$4:$AD$727, 30, \"   |   \")","v":""}]
["FA69133",0,0,0,"nein"," "," "," ","ja","-"," "," ",null,null,null,{"$f":"SverweisM($A1111, CNC!$A$4:$AD$727, 30, \"   |   \")","v":""}]
["FA69139",null,null,null,null,null,null,null,null,null,null,null,null,null,null,{"$f":"SverweisM($A1112, CNC!$A$4:$AD$727, 30, \"   |   \")","v":""}]
["FA69140",0,0,0,"nein"," "," "," ","ja","-"," "," ",null,null,null,{"$f":"SverweisM($A1113, CNC!$A$4:$AD$727, 30, \"   |   \")","v":"5-659885A-FG-1"}]
["FA69141",null,null,null,null,null,null,null,null,null,null,null,null,null,null,{"$f":"SverweisM($A1114, CNC!$A$4:$AD$727, 30, \"   |   \")","v":""}]
["FA69142",null,null,null,null,null,null,null,null,null,null,null,null,null,null,{"$f":"SverweisM($A1115, CNC!$A$4:$AD$727, 30, \"   |   \")","v":""}]
["FA69143",null,null,null,null,null,null,null,null,null,null,null,null,null,null,{"$f":"SverweisM($A1116, CNC!$A$4:$AD$727, 30, \"   |   \")","v":""}]
["FA69153",0,0,0,"nein"," "," "," ","ja","-"," "," ",null,null,null,{"$f":"SverweisM($A1117, CNC!$A$4:$AD$727, 30, \"   |   \")","v":"8_653523A_VD_3"}]
["FA69156",0,0,0,"nein"," "," "," ","ja","-"," "," ",null,null,null,{"$f":"SverweisM($A1118, CNC!$A$4:$AD$727, 30, \"   |   \")","v":""}]
["FA69158",null,null,null,null,null,null,null,null,null,null,null,null,null,null,{"$f":"SverweisM($A1119, CNC!$A$4:$AD$727, 30, \"   |   \")","v":""}]
["FA69159",null,null,null,null,null,null,null,null,null,null,null,null,null,null,{"$f":"SverweisM($A1120, CNC!$A$4:$AD$727, 30, \"   |   \")","v":""}]
["FA69160",null,null,null,null,null,null,null,null,null,null,null,null,null,null,{"$f":"SverweisM($A1121, CNC!$A$4:$AD$727, 30, \"   |   \")","v":""}]
["FA69223",0,0,0,"nein"," "," "," ","ja","-"," "," ",null,null,null,{"$f":"SverweisM($A1122, CNC!$A$4:$AD$727, 30, \"   |   \")","v":""}]
["FA69223",0,0,0,"nein"," "," "," ","ja","-"," "," ",null,null,null,{"$f":"SverweisM($A1123, CNC!$A$4:$AD$727, 30, \"   |   \")","v":""}]
["FA69223",0,0,0,"nein"," "," "," ","ja","-"," "," ",null,null,null,{"$f":"SverweisM($A1124, CNC!$A$4:$AD$727, 30, \"   |   \")","v":""}]
["FA69223",0,0,0,"nein"," "," "," ","ja","-"," "," ",null,null,null,{"$f":"SverweisM($A1125, CNC!$A$4:$AD$727, 30, \"   |   \")","v":""}]
["FA69392",0,0,0,"nein"," "," "," ","ja","Freigegeben"," "," ",null,null,null,{"$f":"SverweisM($A1126, CNC!$A$4:$AD$727, 30, \"   |   \")","v":""}]
["FA69392",0,0,0,"nein"," "," "," ","ja","Freigegeben"," "," ",null,null,null,{"$f":"SverweisM($A1127, CNC!$A$4:$AD$727, 30, \"   |   \")","v":""}]
["FA69393",null,null,null,null,null,null,null,null,null,null,null,null,null,null,{"$f":"SverweisM($A1128, CNC!$A$4:$AD$727, 30, \"   |   \")","v":""}]
["FA69394",0,0,0,"nein"," "," "," ","ja","Freigegeben"," "," ",null,null,null,{"$f":"SverweisM($A1129, CNC!$A$4:$AD$727, 30, \"   |   \")","v":""}]
["FA69394",0,0,0,"nein"," "," "," ","ja","Freigegeben"," "," ",null,null,null,{"$f":"SverweisM($A1130, CNC!$A$4:$AD$727, 30, \"   |   \")","v":""}]
["FA69395",0,0,0,"nein"," "," "," ","ja","Freigegeben"," "," ",null,null,null,{"$f":"SverweisM($A1131, CNC!$A$4:$AD$727, 30, \"   |   \")","v":"3_634832C_RM_1_WPD"}]
["FA69396",0,0,0,"nein"," "," "," ","ja","-"," "," ",null,null,null,{"$f":"SverweisM($A1132, CNC!$A$4:$AD$727, 30, \"   |   \")","v":""}]
["FA69396",0,0,0,"nein"," "," "," ","ja","-"," "," ",null,null,null,{"$f":"SverweisM($A1133, CNC!$A$4:$AD$727, 30, \"   |   \")","v":""}]
["FA69396",0,0,0,"nein"," "," "," ","ja","-"," "," ",null,null,null,{"$f":"SverweisM($A1134, CNC!$A$4:$AD$727, 30, \"   |   \")","v":""}]
["FA69397",0,0,0,"nein"," "," "," ","ja","-"," "," ",null,null,null,{"$f":"SverweisM($A1135, CNC!$A$4:$AD$727, 30, \"   |   \")","v":""}]
["FA69397",0,0,0,"nein"," "," "," ","ja","-"," "," ",null,null,null,{"$f":"SverweisM($A1136, CNC!$A$4:$AD$727, 30, \"   |   \")","v":""}]
["FA69397",0,0,0,"nein"," "," "," ","ja","-"," "," ",null,null,null,{"$f":"SverweisM($A1137, CNC!$A$4:$AD$727, 30, \"   |   \")","v":""}]
["FA69397",0,0,0,"nein"," "," "," ","ja","-"," "," ",null,null,null,{"$f":"SverweisM($A1138, CNC!$A$4:$AD$727, 30, \"   |   \")","v":""}]
["FA69408",null,null,null,null,null,null,null,null,null,null,null,null,null,null,{"$f":"SverweisM($A1139, CNC!$A$4:$AD$727, 30, \"   |   \")","v":""}]
["FA69414",0,0,0,"nein"," "," "," ","ja","Freigegeben"," "," ",null,null,null,{"$f":"SverweisM($A1140, CNC!$A$4:$AD$727, 30, \"   |   \")","v":""}]
["FA69414",0,0,0,"nein"," "," "," ","ja","-"," "," ",null,null,null,{"$f":"SverweisM($A1141, CNC!$A$4:$AD$727, 30, \"   |   \")","v":""}]
["FA69414",0,0,0,"nein"," "," "," ","ja","-"," "," ",null,null,null,{"$f":"SverweisM($A1142, CNC!$A$4:$AD$727, 30, \"   |   \")","v":""}]
["FA69414",0,0,0,"nein"," "," "," ","ja","-"," "," ",null,null,null,{"$f":"SverweisM($A1143, CNC!$A$4:$AD$727, 30, \"   |   \")","v":""}]
["FA69415",null,null,null,null,null,null,null,null,null,null,null,null,null,null,{"$f":"SverweisM($A1144, CNC!$A$4:$AD$727, 30, \"   |   \")","v":""}]
["FA69416",null,null,null,null,null,null,null,null,null,null,null,null,null,null,{"$f":"SverweisM($A1145, CNC!$A$4:$AD$727, 30, \"   |   \")","v":""}]
["FA69417",null,null,null,null,null,null,null,null,null,null,null,null,null,null,{"$f":"SverweisM($A1146, CNC!$A$4:$AD$727, 30, \"   |   \")","v":""}]
["FA69418",null,null,null,null,null,null,null,null,null,null,null,null,null,null,{"$f":"SverweisM($A1147, CNC!$A$4:$AD$727, 30, \"   |   \")","v":""}]
["FA69420",null,null,null,null,null,null,null,null,null,null,null,null,null,null,{"$f":"SverweisM($A1148, CNC!$A$4:$AD$727, 30, \"   |   \")","v":""}]
["FA69421",null,null,null,null,null,null,null,null,null,null,null,null,null,null,{"$f":"SverweisM($A1149, CNC!$A$4:$AD$727, 30, \"   |   \")","v":""}]
["FA69422",null,null,null,null,null,null,null,null,null,null,null,null,null,null,{"$f":"SverweisM($A1150, CNC!$A$4:$AD$727, 30, \"   |   \")","v":""}]
["FA69423",null,null,null,null,null,null,null,null,null,null,null,null,null,null,{"$f":"SverweisM($A1151, CNC!$A$4:$AD$727, 30, \"   |   \")","v":""}]
["FA69424",null,null,null,null,null,null,null,null,null,null,null,null,null,null,{"$f":"SverweisM($A1152, CNC!$A$4:$AD$727, 30, \"   |   \")","v":""}]
["FA69426",0,0,0,"nein"," "," "," ","ja","-"," "," ",null,null,null,{"$f":"SverweisM($A1153, CNC!$A$4:$AD$727, 30, \"   |   \")","v":"1-65344501-ZV-1   |   1-65344501-ZV-2"}]
["FA69426",0,0,0,"nein"," "," "," ","ja","-"," "," ",null,null,null,{"$f":"SverweisM($A1154, CNC!$A$4:$AD$727, 30, \"   |   \")","v":"1-65344501-ZV-1   |   1-65344501-ZV-2"}]
["FA69426",0,0,0,"nein"," "," "," ","ja","-"," "," ",null,null,null,{"$f":"SverweisM($A1155, CNC!$A$4:$AD$727, 30, \"   |   \")","v":"1-65344501-ZV-1   |   1-65344501-ZV-2"}]
["FA69426",0,0,0,"nein"," "," "," ","ja","-"," "," ",null,null,null,{"$f":"SverweisM($A1156, CNC!$A$4:$AD$727, 30, \"   |   \")","v":"1-65344501-ZV-1   |   1-65344501-ZV-2"}]
["FA69427",0,0,0,"nein"," "," "," ","ja","-"," "," ",null,null,null,{"$f":"SverweisM($A1157, CNC!$A$4:$AD$727, 30, \"   |   \")","v":""}]
["FA69427",0,0,0,"nein"," "," "," ","ja","-"," "," ",null,null,null,{"$f":"SverweisM($A1158, CNC!$A$4:$AD$727, 30, \"   |   \")","v":""}]
["FA69427",0,0,0,"nein"," "," "," ","ja","Freigegeben"," "," ",null,null,null,{"$f":"SverweisM($A1159, CNC!$A$4:$AD$727, 30, \"   |   \")","v":""}]
["FA69428",null,null,null,null,null,null,null,null,null,null,null,null,null,null,{"$f":"SverweisM($A1160, CNC!$A$4:$AD$727, 30, \"   |   \")","v":""}]
["FA69430",0,0,0,"nein"," "," "," ","ja","-"," "," ",null,null,null,{"$f":"SverweisM($A1161, CNC!$A$4:$AD$727, 30, \"   |   \")","v":""}]
["FA69430",0,0,0,"nein"," "," "," ","ja","Freigegeben"," "," ",null,null,null,{"$f":"SverweisM($A1162, CNC!$A$4:$AD$727, 30, \"   |   \")","v":""}]
["FA69432",null,null,null,null,null,null,null,null,null,null,null,null,null,null,{"$f":"SverweisM($A1163, CNC!$A$4:$AD$727, 30, \"   |   \")","v":""}]
["FA69434",0,0,0,"nein"," "," "," ","ja","-"," "," ",null,null,null,{"$f":"SverweisM($A1164, CNC!$A$4:$AD$727, 30, \"   |   \")","v":"1-665025A0-VM-1   |   1-665025A0-VM-2   |   5-665025A-FG-1"}]
["FA69434",0,0,0,"nein"," "," "," ","ja","-"," "," ",null,null,null,{"$f":"SverweisM($A1165, CNC!$A$4:$AD$727, 30, \"   |   \")","v":"1-665025A0-VM-1   |   1-665025A0-VM-2   |   5-665025A-FG-1"}]
["FA69434",0,0,0,"nein"," "," "," ","ja","-"," "," ",null,null,null,{"$f":"SverweisM($A1166, CNC!$A$4:$AD$727, 30, \"   |   \")","v":"1-665025A0-VM-1   |   1-665025A0-VM-2   |   5-665025A-FG-1"}]
["FA69435",0,0,0,"nein"," "," "," ","ja","-"," "," ",null,null,null,{"$f":"SverweisM($A1167, CNC!$A$4:$AD$727, 30, \"   |   \")","v":""}]
["FA69435",0,0,0,"nein"," "," "," ","ja","-"," "," ",null,null,null,{"$f":"SverweisM($A1168, CNC!$A$4:$AD$727, 30, \"   |   \")","v":""}]
["FA69436",0,0,0,"nein"," "," "," ","ja","-"," "," ",null,null,null,{"$f":"SverweisM($A1169, CNC!$A$4:$AD$727, 30, \"   |   \")","v":"5-665033B-FG-1   |   5-665033B-FG-2"}]
["FA69436",0,0,0,"nein"," "," "," ","ja","Freigegeben"," "," ",null,null,null,{"$f":"SverweisM($A1170, CNC!$A$4:$AD$727, 30, \"   |   \")","v":"5-665033B-FG-1   |   5-665033B-FG-2"}]
["FA69438",0,0,0,"nein"," "," "," ","ja","Freigegeben"," "," ",null,null,null,{"$f":"SverweisM($A1171, CNC!$A$4:$AD$727, 30, \"   |   \")","v":""}]
["FA69440",null,null,null,null,null,null,null,null,null,null,null,null,null,null,{"$f":"SverweisM($A1172, CNC!$A$4:$AD$727, 30, \"   |   \")","v":""}]
["FA69450",0,0,0,"nein"," "," "," ","ja","-"," "," ",null,null,null,{"$f":"SverweisM($A1173, CNC!$A$4:$AD$727, 30, \"   |   \")","v":""}]
["FA69450",0,0,0,"nein"," "," "," ","ja","-"," "," ",null,null,null,{"$f":"SverweisM($A1174, CNC!$A$4:$AD$727, 30, \"   |   \")","v":""}]
["FA69464",0,0,0,"nein"," "," "," ","ja","Freigegeben"," "," ",null,null,null,{"$f":"SverweisM($A1175, CNC!$A$4:$AD$727, 30, \"   |   \")","v":"6-665054A-RF-1   |   6-665054A-RF-2"}]
["FA69464",0,0,0,"nein"," "," "," ","ja","-"," "," ",null,null,null,{"$f":"SverweisM($A1176, CNC!$A$4:$AD$727, 30, \"   |   \")","v":"6-665054A-RF-1   |   6-665054A-RF-2"}]
["FA69465",0,0,0,"nein"," "," "," ","ja","-"," "," ",null,null,null,{"$f":"SverweisM($A1177, CNC!$A$4:$AD$727, 30, \"   |   \")","v":"7-665089A0-GR-1   |   7-665089A0-GR-2   |   5-665089A-FG-1   |   5-665089A-FG-2"}]
["FA69465",0,0,0,"nein"," "," "," ","ja","-"," "," ",null,null,null,{"$f":"SverweisM($A1178, CNC!$A$4:$AD$727, 30, \"   |   \")","v":"7-665089A0-GR-1   |   7-665089A0-GR-2   |   5-665089A-FG-1   |   5-665089A-FG-2"}]
["FA69465",0,0,0,"nein"," "," "," ","ja","-"," "," ",null,null,null,{"$f":"SverweisM($A1179, CNC!$A$4:$AD$727, 30, \"   |   \")","v":"7-665089A0-GR-1   |   7-665089A0-GR-2   |   5-665089A-FG-1   |   5-665089A-FG-2"}]
["FA69465",0,0,0,"nein"," "," "," ","ja","-"," "," ",null,null,null,{"$f":"SverweisM($A1180, CNC!$A$4:$AD$727, 30, \"   |   \")","v":"7-665089A0-GR-1   |   7-665089A0-GR-2   |   5-665089A-FG-1   |   5-665089A-FG-2"}]
["FA69469",0,0,0,"nein"," "," "," ","ja","-"," "," ",null,null,null,{"$f":"SverweisM($A1181, CNC!$A$4:$AD$727, 30, \"   |   \")","v":"8_665094A_GR_1   |   8_665094A_GR_2   |   8_665094A_GR_3"}]
["FA69469",0,0,0,"nein"," "," "," ","ja","-"," "," ",null,null,null,{"$f":"SverweisM($A1182, CNC!$A$4:$AD$727, 30, \"   |   \")","v":"8_665094A_GR_1   |   8_665094A_GR_2   |   8_665094A_GR_3"}]
["FA69469",0,0,0,"nein"," "," "," ","ja","-"," "," ",null,null,null,{"$f":"SverweisM($A1183, CNC!$A$4:$AD$727, 30, \"   |   \")","v":"8_665094A_GR_1   |   8_665094A_GR_2   |   8_665094A_GR_3"}]
["FA69495",0,0,0,"nein"," "," "," ","ja","-"," "," ",null,null,null,{"$f":"SverweisM($A1184, CNC!$A$4:$AD$727, 30, \"   |   \")","v":"5-665033B-FG-1   |   5-665033B-FG-2"}]
["FA69495",0,0,0,"nein"," "," "," ","ja","-"," "," ",null,null,null,{"$f":"SverweisM($A1185, CNC!$A$4:$AD$727, 30, \"   |   \")","v":"5-665033B-FG-1   |   5-665033B-FG-2"}]
["FA69495",0,0,0,"nein"," "," "," ","ja","-"," "," ",null,null,null,{"$f":"SverweisM($A1186, CNC!$A$4:$AD$727, 30, \"   |   \")","v":"5-665033B-FG-1   |   5-665033B-FG-2"}]
["FA69495",0,0,0,"nein"," "," "," ","ja","-"," "," ",null,null,null,{"$f":"SverweisM($A1187, CNC!$A$4:$AD$727, 30, \"   |   \")","v":"5-665033B-FG-1   |   5-665033B-FG-2"}]
["FA69499",null,null,null,null,null,null,null,null,null,null,null,null,null,null,{"$f":"SverweisM($A1188, CNC!$A$4:$AD$727, 30, \"   |   \")","v":""}]
["FA69500",null,null,null,null,null,null,null,null,null,null,null,null,null,null,{"$f":"SverweisM($A1189, CNC!$A$4:$AD$727, 30, \"   |   \")","v":""}]
["FA69501",0,0,0,"nein"," "," "," ","ja","-"," "," ",null,null,null,{"$f":"SverweisM($A1190, CNC!$A$4:$AD$727, 30, \"   |   \")","v":"8_660094A_VD_1   |   8_660094A_VD_2"}]
["FA69501",0,0,0,"nein"," "," "," ","ja","-"," "," ",null,null,null,{"$f":"SverweisM($A1191, CNC!$A$4:$AD$727, 30, \"   |   \")","v":"8_660094A_VD_1   |   8_660094A_VD_2"}]
["FA69502",0,0,0,"nein"," "," "," ","ja","-"," "," ",null,null,null,{"$f":"SverweisM($A1192, CNC!$A$4:$AD$727, 30, \"   |   \")","v":""}]
["FA69503",null,null,null,null,null,null,null,null,null,null,null,null,null,null,{"$f":"SverweisM($A1193, CNC!$A$4:$AD$727, 30, \"   |   \")","v":""}]
["FA69504",0,0,0,"nein"," "," "," ","ja","-"," "," ",null,null,null,{"$f":"SverweisM($A1194, CNC!$A$4:$AD$727, 30, \"   |   \")","v":"8_660097C_VD_1   |   8_660097C_VD_2"}]
["FA69504",0,0,0,"nein"," "," "," ","ja","Freigegeben"," "," ",null,null,null,{"$f":"SverweisM($A1195, CNC!$A$4:$AD$727, 30, \"   |   \")","v":"8_660097C_VD_1   |   8_660097C_VD_2"}]
["FA69510",null,null,null,null,null,null,null,null,null,null,null,null,null,null,{"$f":"SverweisM($A1196, CNC!$A$4:$AD$727, 30, \"   |   \")","v":""}]
["FA69511",null,null,null,null,null,null,null,null,null,null,null,null,null,null,{"$f":"SverweisM($A1197, CNC!$A$4:$AD$727, 30, \"   |   \")","v":""}]
["FA69513",0,0,0,"nein"," "," "," ","ja","Freigegeben"," "," ",null,null,null,{"$f":"SverweisM($A1198, CNC!$A$4:$AD$727, 30, \"   |   \")","v":"1-660096B0-VM-1   |   1-660096B0-VM-2   |   1-660096B0-VM-3   |   5-660096B-FG-1   |   5-660096B-FG-2"}]
["FA69513",0,0,0,"nein"," "," "," ","ja","Freigegeben"," "," ",null,null,null,{"$f":"SverweisM($A1199, CNC!$A$4:$AD$727, 30, \"   |   \")","v":"1-660096B0-VM-1   |   1-660096B0-VM-2   |   1-660096B0-VM-3   |   5-660096B-FG-1   |   5-660096B-FG-2"}]
["FA69513",0,0,0,"nein"," "," "," ","ja","-"," "," ",null,null,null,{"$f":"SverweisM($A1200, CNC!$A$4:$AD$727, 30, \"   |   \")","v":"1-660096B0-VM-1   |   1-660096B0-VM-2   |   1-660096B0-VM-3   |   5-660096B-FG-1   |   5-660096B-FG-2"}]
["FA69513",0,0,0,"nein"," "," "," ","ja","-"," "," ",null,null,null,{"$f":"SverweisM($A1201, CNC!$A$4:$AD$727, 30, \"   |   \")","v":"1-660096B0-VM-1   |   1-660096B0-VM-2   |   1-660096B0-VM-3   |   5-660096B-FG-1   |   5-660096B-FG-2"}]
["FA69513",0,0,0,"nein"," "," "," ","ja","-"," "," ",null,null,null,{"$f":"SverweisM($A1202, CNC!$A$4:$AD$727, 30, \"   |   \")","v":"1-660096B0-VM-1   |   1-660096B0-VM-2   |   1-660096B0-VM-3   |   5-660096B-FG-1   |   5-660096B-FG-2"}]
["FA69514",null,null,null,null,null,null,null,null,null,null,null,null,null,null,{"$f":"SverweisM($A1203, CNC!$A$4:$AD$727, 30, \"   |   \")","v":""}]
["FA69674",null,null,null,null,null,null,null,null,null,null,null,null,null,null,{"$f":"SverweisM($A1204, CNC!$A$4:$AD$727, 30, \"   |   \")","v":""}]
["FA69741",0,0,0,"nein"," "," "," ","ja","-"," "," ",null,null,null,{"$f":"SverweisM($A1205, CNC!$A$4:$AD$727, 30, \"   |   \")","v":""}]
["FA69741",0,0,0,"nein"," "," "," ","ja","-"," "," ",null,null,null,{"$f":"SverweisM($A1206, CNC!$A$4:$AD$727, 30, \"   |   \")","v":""}]
["FA69742",0,0,0,"nein"," "," "," ","ja","-"," "," ",null,null,null,{"$f":"SverweisM($A1207, CNC!$A$4:$AD$727, 30, \"   |   \")","v":""}]
["FA69742",0,0,0,"nein"," "," "," ","ja","-"," "," ",null,null,null,{"$f":"SverweisM($A1208, CNC!$A$4:$AD$727, 30, \"   |   \")","v":""}]
["FA69743",0,0,0,"nein"," "," "," ","ja","-"," "," ",null,null,null,{"$f":"SverweisM($A1209, CNC!$A$4:$AD$727, 30, \"   |   \")","v":""}]
["FA69743",0,0,0,"nein"," "," "," ","ja","-"," "," ",null,null,null,{"$f":"SverweisM($A1210, CNC!$A$4:$AD$727, 30, \"   |   \")","v":""}]
["FA69744",null,null,null,null,null,null,null,null,null,null,null,null,null,null,{"$f":"SverweisM($A1211, CNC!$A$4:$AD$727, 30, \"   |   \")","v":""}]
["FA69745",0,0,0,"nein"," "," "," ","ja","-"," "," ",null,null,null,{"$f":"SverweisM($A1212, CNC!$A$4:$AD$727, 30, \"   |   \")","v":""}]
["FA69745",0,0,0,"nein"," "," "," ","ja","Freigegeben"," "," ",null,null,null,{"$f":"SverweisM($A1213, CNC!$A$4:$AD$727, 30, \"   |   \")","v":""}]
["FA69746",null,null,null,null,null,null,null,null,null,null,null,null,null,null,{"$f":"SverweisM($A1214, CNC!$A$4:$AD$727, 30, \"   |   \")","v":""}]
["FA69747",null,null,null,null,null,null,null,null,null,null,null,null,null,null,{"$f":"SverweisM($A1215, CNC!$A$4:$AD$727, 30, \"   |   \")","v":""}]
["FA69748",null,null,null,null,null,null,null,null,null,null,null,null,null,null,{"$f":"SverweisM($A1216, CNC!$A$4:$AD$727, 30, \"   |   \")","v":""}]
["FA69749",0,0,0,"nein"," "," "," ","ja","-"," "," ",null,null,null,{"$f":"SverweisM($A1217, CNC!$A$4:$AD$727, 30, \"   |   \")","v":"1-665027A0-VM-1   |   1-665027A0-VM-2   |   5-665027A-FG-1   |   5-665027A-FG-2"}]
["FA69749",0,0,0,"nein"," "," "," ","ja","-"," "," ",null,null,null,{"$f":"SverweisM($A1218, CNC!$A$4:$AD$727, 30, \"   |   \")","v":"1-665027A0-VM-1   |   1-665027A0-VM-2   |   5-665027A-FG-1   |   5-665027A-FG-2"}]
["FA69749",0,0,0,"nein"," "," "," ","ja","-"," "," ",null,null,null,{"$f":"SverweisM($A1219, CNC!$A$4:$AD$727, 30, \"   |   \")","v":"1-665027A0-VM-1   |   1-665027A0-VM-2   |   5-665027A-FG-1   |   5-665027A-FG-2"}]
["FA69749",0,0,0,"nein"," "," "," ","ja","Freigegeben"," "," ",null,null,null,{"$f":"SverweisM($A1220, CNC!$A$4:$AD$727, 30, \"   |   \")","v":"1-665027A0-VM-1   |   1-665027A0-VM-2   |   5-665027A-FG-1   |   5-665027A-FG-2"}]
["FA69750",0,0,0,"nein"," "," "," ","ja","Freigegeben"," "," ",null,null,null,{"$f":"SverweisM($A1221, CNC!$A$4:$AD$727, 30, \"   |   \")","v":"5-665032A-FG-2   |   5-665032A-FG-1"}]
["FA69750",0,0,0,"nein"," "," "," ","ja","-"," "," ",null,null,null,{"$f":"SverweisM($A1222, CNC!$A$4:$AD$727, 30, \"   |   \")","v":"5-665032A-FG-2   |   5-665032A-FG-1"}]
["FA69750",0,0,0,"nein"," "," "," ","ja","-"," "," ",null,null,null,{"$f":"SverweisM($A1223, CNC!$A$4:$AD$727, 30, \"   |   \")","v":"5-665032A-FG-2   |   5-665032A-FG-1"}]
["FA69750",0,0,0,"nein"," "," "," ","ja","Freigegeben"," "," ",null,null,null,{"$f":"SverweisM($A1224, CNC!$A$4:$AD$727, 30, \"   |   \")","v":"5-665032A-FG-2   |   5-665032A-FG-1"}]
["FA69751",0,0,0,"nein"," "," "," ","ja","-"," "," ",null,null,null,{"$f":"SverweisM($A1225, CNC!$A$4:$AD$727, 30, \"   |   \")","v":"5-665032A-FG-2   |   5-665032A-FG-1"}]
["FA69751",0,0,0,"nein"," "," "," ","ja","-"," "," ",null,null,null,{"$f":"SverweisM($A1226, CNC!$A$4:$AD$727, 30, \"   |   \")","v":"5-665032A-FG-2   |   5-665032A-FG-1"}]
["FA69751",0,0,0,"nein"," "," "," ","ja","-"," "," ",null,null,null,{"$f":"SverweisM($A1227, CNC!$A$4:$AD$727, 30, \"   |   \")","v":"5-665032A-FG-2   |   5-665032A-FG-1"}]
["FA69751",0,0,0,"nein"," "," "," ","ja","-"," "," ",null,null,null,{"$f":"SverweisM($A1228, CNC!$A$4:$AD$727, 30, \"   |   \")","v":"5-665032A-FG-2   |   5-665032A-FG-1"}]
["FA69752",0,0,0,"nein"," "," "," ","ja","-"," "," ",null,null,null,{"$f":"SverweisM($A1229, CNC!$A$4:$AD$727, 30, \"   |   \")","v":""}]
["FA69752",0,0,0,"nein"," "," "," ","ja","-"," "," ",null,null,null,{"$f":"SverweisM($A1230, CNC!$A$4:$AD$727, 30, \"   |   \")","v":""}]
["FA69753",0,0,0,"nein"," "," "," ","ja","-"," "," ",null,null,null,{"$f":"SverweisM($A1231, CNC!$A$4:$AD$727, 30, \"   |   \")","v":"4_665051A0_VD_1   |   4_665051A0_VD_2   |   5-665051A-RF-1   |   5-665051A-RF-2"}]
["FA69753",0,0,0,"nein"," "," "," ","ja","-"," "," ",null,null,null,{"$f":"SverweisM($A1232, CNC!$A$4:$AD$727, 30, \"   |   \")","v":"4_665051A0_VD_1   |   4_665051A0_VD_2   |   5-665051A-RF-1   |   5-665051A-RF-2"}]
["FA69753",0,0,0,"nein"," "," "," ","ja","-"," "," ",null,null,null,{"$f":"SverweisM($A1233, CNC!$A$4:$AD$727, 30, \"   |   \")","v":"4_665051A0_VD_1   |   4_665051A0_VD_2   |   5-665051A-RF-1   |   5-665051A-RF-2"}]
["FA69753",0,0,0,"nein"," "," "," ","ja","-"," "," ",null,null,null,{"$f":"SverweisM($A1234, CNC!$A$4:$AD$727, 30, \"   |   \")","v":"4_665051A0_VD_1   |   4_665051A0_VD_2   |   5-665051A-RF-1   |   5-665051A-RF-2"}]
["FA69754",0,0,0,"nein"," "," "," ","ja","-"," "," ",null,null,null,{"$f":"SverweisM($A1235, CNC!$A$4:$AD$727, 30, \"   |   \")","v":"4_665052A0_VD_1   |   4_665052A0_VD_2   |   5-665052A-RF-1   |   5-665052A-RF-2"}]
["FA69754",0,0,0,"nein"," "," "," ","ja","-"," "," ",null,null,null,{"$f":"SverweisM($A1236, CNC!$A$4:$AD$727, 30, \"   |   \")","v":"4_665052A0_VD_1   |   4_665052A0_VD_2   |   5-665052A-RF-1   |   5-665052A-RF-2"}]
["FA69754",0,0,0,"nein"," "," "," ","ja","-"," "," ",null,null,null,{"$f":"SverweisM($A1237, CNC!$A$4:$AD$727, 30, \"   |   \")","v":"4_665052A0_VD_1   |   4_665052A0_VD_2   |   5-665052A-RF-1   |   5-665052A-RF-2"}]
["FA69754",0,0,0,"nein"," "," "," ","ja","-"," "," ",null,null,null,{"$f":"SverweisM($A1238, CNC!$A$4:$AD$727, 30, \"   |   \")","v":"4_665052A0_VD_1   |   4_665052A0_VD_2   |   5-665052A-RF-1   |   5-665052A-RF-2"}]
["FA69755",0,0,0,"nein"," "," "," ","ja","Freigegeben"," "," ",null,null,null,{"$f":"SverweisM($A1239, CNC!$A$4:$AD$727, 30, \"   |   \")","v":""}]
["FA69755",0,0,0,"nein"," "," "," ","ja","Freigegeben"," "," ",null,null,null,{"$f":"SverweisM($A1240, CNC!$A$4:$AD$727, 30, \"   |   \")","v":""}]
["FA69756",0,0,0,"nein"," "," "," ","ja","-"," "," ",null,null,null,{"$f":"SverweisM($A1241, CNC!$A$4:$AD$727, 30, \"   |   \")","v":""}]
["FA69756",0,0,0,"nein"," "," "," ","ja","-"," "," ",null,null,null,{"$f":"SverweisM($A1242, CNC!$A$4:$AD$727, 30, \"   |   \")","v":""}]
["FA69757",0,0,0,"nein"," "," "," ","ja","-"," "," ",null,null,null,{"$f":"SverweisM($A1243, CNC!$A$4:$AD$727, 30, \"   |   \")","v":"7-665091A0-GR-1   |   7-665091A0-GR-2   |   5-665091A-FG-1   |   5-665091A-FG-2"}]
["FA69757",0,0,0,"nein"," "," "," ","ja","-"," "," ",null,null,null,{"$f":"SverweisM($A1244, CNC!$A$4:$AD$727, 30, \"   |   \")","v":"7-665091A0-GR-1   |   7-665091A0-GR-2   |   5-665091A-FG-1   |   5-665091A-FG-2"}]
["FA69757",0,0,0,"nein"," "," "," ","ja","-"," "," ",null,null,null,{"$f":"SverweisM($A1245, CNC!$A$4:$AD$727, 30, \"   |   \")","v":"7-665091A0-GR-1   |   7-665091A0-GR-2   |   5-665091A-FG-1   |   5-665091A-FG-2"}]
["FA69757",0,0,0,"nein"," "," "," ","ja","Freigegeben"," "," ",null,null,null,{"$f":"SverweisM($A1246, CNC!$A$4:$AD$727, 30, \"   |   \")","v":"7-665091A0-GR-1   |   7-665091A0-GR-2   |   5-665091A-FG-1   |   5-665091A-FG-2"}]
["FA69758",0,0,0,"nein"," "," "," ","ja","Freigegeben"," "," ",null,null,null,{"$f":"SverweisM($A1247, CNC!$A$4:$AD$727, 30, \"   |   \")","v":"8_665092A_GR_1   |   8_665092A_GR_2   |   8_665092A_GR_3"}]
["FA69758",0,0,0,"nein"," "," "," ","ja","Freigegeben"," "," ",null,null,null,{"$f":"SverweisM($A1248, CNC!$A$4:$AD$727, 30, \"   |   \")","v":"8_665092A_GR_1   |   8_665092A_GR_2   |   8_665092A_GR_3"}]
["FA69758",0,0,0,"nein"," "," "," ","ja","-"," "," ",null,null,null,{"$f":"SverweisM($A1249, CNC!$A$4:$AD$727, 30, \"   |   \")","v":"8_665092A_GR_1   |   8_665092A_GR_2   |   8_665092A_GR_3"}]
["FA69759",0,0,0,"nein"," "," "," ","ja","Freigegeben"," "," ",null,null,null,{"$f":"SverweisM($A1250, CNC!$A$4:$AD$727, 30, \"   |   \")","v":"8_665096A_GR_1   |   8_665096A_GR_2   |   8_665096A_GR_3"}]
["FA69759",0,0,0,"nein"," "," "," ","ja","-"," "," ",null,null,null,{"$f":"SverweisM($A1251, CNC!$A$4:$AD$727, 30, \"   |   \")","v":"8_665096A_GR_1   |   8_665096A_GR_2   |   8_665096A_GR_3"}]
["FA69759",0,0,0,"nein"," "," "," ","ja","Freigegeben"," "," ",null,null,null,{"$f":"SverweisM($A1252, CNC!$A$4:$AD$727, 30, \"   |   \")","v":"8_665096A_GR_1   |   8_665096A_GR_2   |   8_665096A_GR_3"}]
["FA69760",null,null,null,null,null,null,null,null,null,null,null,null,null,null,{"$f":"SverweisM($A1253, CNC!$A$4:$AD$727, 30, \"   |   \")","v":""}]
["FA69761",0,0,0,"nein"," "," "," ","ja","Freigegeben"," "," ",null,null,null,{"$f":"SverweisM($A1254, CNC!$A$4:$AD$727, 30, \"   |   \")","v":"1-657925A0-VM-1   |   1-657925A0-VM-2"}]
["FA69761",0,0,0,"nein"," "," "," ","ja","Freigegeben"," "," ",null,null,null,{"$f":"SverweisM($A1255, CNC!$A$4:$AD$727, 30, \"   |   \")","v":"1-657925A0-VM-1   |   1-657925A0-VM-2"}]
["FA69762",null,null,null,null,null,null,null,null,null,null,null,null,null,null,{"$f":"SverweisM($A1256, CNC!$A$4:$AD$727, 30, \"   |   \")","v":""}]
["FA69763",0,0,0,"nein"," "," "," ","ja","-"," "," ",null,null,null,{"$f":"SverweisM($A1257, CNC!$A$4:$AD$727, 30, \"   |   \")","v":""}]
["FA69763",0,0,0,"nein"," "," "," ","ja","-"," "," ",null,null,null,{"$f":"SverweisM($A1258, CNC!$A$4:$AD$727, 30, \"   |   \")","v":""}]
["FA69763",0,0,0,"nein"," "," "," ","ja","Freigegeben"," "," ",null,null,null,{"$f":"SverweisM($A1259, CNC!$A$4:$AD$727, 30, \"   |   \")","v":""}]
["FA69763",0,0,0,"nein"," "," "," ","ja","-"," "," ",null,null,null,{"$f":"SverweisM($A1260, CNC!$A$4:$AD$727, 30, \"   |   \")","v":""}]
["FA69769",null,null,null,null,null,null,null,null,null,null,null,null,null,null,{"$f":"SverweisM($A1261, CNC!$A$4:$AD$727, 30, \"   |   \")","v":""}]
["FA69771",0,0,0,"nein"," "," "," ","ja","Freigegeben"," "," ",null,null,null,{"$f":"SverweisM($A1262, CNC!$A$4:$AD$727, 30, \"   |   \")","v":"1-665085A0-GR-1   |   1-665085A0-GR-2   |   5-665085A-FG-1   |   5-665085A-FG-2"}]
["FA69771",0,0,0,"nein"," "," "," ","ja","-"," "," ",null,null,null,{"$f":"SverweisM($A1263, CNC!$A$4:$AD$727, 30, \"   |   \")","v":"1-665085A0-GR-1   |   1-665085A0-GR-2   |   5-665085A-FG-1   |   5-665085A-FG-2"}]
["FA69771",0,0,0,"nein"," "," "," ","ja","-"," "," ",null,null,null,{"$f":"SverweisM($A1264, CNC!$A$4:$AD$727, 30, \"   |   \")","v":"1-665085A0-GR-1   |   1-665085A0-GR-2   |   5-665085A-FG-1   |   5-665085A-FG-2"}]
["FA69771",0,0,0,"nein"," "," "," ","ja","Freigegeben"," "," ",null,null,null,{"$f":"SverweisM($A1265, CNC!$A$4:$AD$727, 30, \"   |   \")","v":"1-665085A0-GR-1   |   1-665085A0-GR-2   |   5-665085A-FG-1   |   5-665085A-FG-2"}]
["FA69777",null,null,null,null,null,null,null,null,null,null,null,null,null,null,{"$f":"SverweisM($A1266, CNC!$A$4:$AD$727, 30, \"   |   \")","v":""}]
["FA69778",null,null,null,null,null,null,null,null,null,null,null,null,null,null,{"$f":"SverweisM($A1267, CNC!$A$4:$AD$727, 30, \"   |   \")","v":""}]
["FA69779",null,null,null,null,null,null,null,null,null,null,null,null,null,null,{"$f":"SverweisM($A1268, CNC!$A$4:$AD$727, 30, \"   |   \")","v":""}]
["FA69787",null,null,null,null,null,null,null,null,null,null,null,null,null,null,{"$f":"SverweisM($A1269, CNC!$A$4:$AD$727, 30, \"   |   \")","v":""}]
["FA69788",null,null,null,null,null,null,null,null,null,null,null,null,null,null,{"$f":"SverweisM($A1270, CNC!$A$4:$AD$727, 30, \"   |   \")","v":""}]

{"sheet":"CNC","index":1,"n_rows":727,"n_cols":36,"rows_kept":727,"cut":false,"hidden":false,"merged":[]}
[1,2,3,4,5,6,7,8,9,10,11,12,13,14,15,16,17,18,19,20,21,22,23,24,25,26,27,28,29,30,31,32,33,34,35,36]
[]
[null,"Priorität MAT","Status","FA-Nr.","interne Nr.","FA-Artikel","FA-Beschreibung","Suchbegriff","Kundenname","Anzahl unbebuchte Arb.-G.","Anzahl gleiche Ress. in FA","MDE Auftragsvorrat angelegt","Menge","Einheitencode","tr","te","Komponentenmenge","Erw. Menge","Menge/Zeit verbraucht","Programm-Nr.","Programm vorhanden","NC_Rohmaterialinfo","NC_Maschinennummer","NC_Zeichnungsnr.","SW2D Index","ME10 Index","Abweichung AG-Katalog","AG-Katalog","NC_Spannung","NC_Programm","Anzahl Arb.-G. o. NC-Programm","Menge/Zeit Buchung","Fälligkeitsdatum","Start Datum","End Datum","Anz. Vorgänger AG"]
["2482101-01",null,null,null,null,null,null,null,null,null,null,null,null,null,null,null,null,null,null,null,null,null,null,null,null,null,null,null,null,"9_661294AT_VD_3"]
["2482101-01",null,null,null,null,null,null,null,null,null,null,null,null,null,null,null,null,null,null,null,null,null,null,null,null,null,null,null,null,"9_661294AT_VD_4"]
["2482101-02",null,null,null,null,null,null,null,null,null,null,null,null,null,null,null,null,null,null,null,null,null,null,null,null,null,null,null,null,"6-661295B-FG-1"]
["2482101-02",null,null,null,null,null,null,null,null,null,null,null,null,null,null,null,null,null,null,null,null,null,null,null,null,null,null,null,null,"9_661295B_VD_3"]
["2482101-02",null,null,null,null,null,null,null,null,null,null,null,null,null,null,null,null,null,null,null,null,null,null,null,null,null,null,null,null,"9_661295B_VD_4"]
["2482102-01",null,null,null,null,null,null,null,null,null,null,null,null,null,null,null,null,null,null,null,null,null,null,null,null,null,null,null,null,"8_666690A_SB_1"]
["2482102-01",null,null,null,null,null,null,null,null,null,null,null,null,null,null,null,null,null,null,null,null,null,null,null,null,null,null,null,null,"8_666690A_SB_2"]
["2482102-02",null,null,null,null,null,null,null,null,null,null,null,null,null,null,null,null,null,null,null,null,null,null,null,null,null,null,null,null,"8_666691A_SB_1"]
["2482102-02",null,null,null,null,null,null,null,null,null,null,null,null,null,null,null,null,null,null,null,null,null,null,null,null,null,null,null,null,"8_666691A_SB_2"]
["2482102-05",null,null,null,null,null,null,null,null,null,null,null,null,null,null,null,null,null,null,null,null,null,null,null,null,null,null,null,null,""]
["2482102-05",null,null,null,null,null,null,null,null,null,null,null,null,null,null,null,null,null,null,null,null,null,null,null,null,null,null,null,null,""]
["2482102-05",null,null,null,null,null,null,null,null,null,null,null,null,null,null,null,null,null,null,null,null,null,null,null,null,null,null,null,null,""]
["2482102-05",null,null,null,null,null,null,null,null,null,null,null,null,null,null,null,null,null,null,null,null,null,null,null,null,null,null,null,null,""]
["2482102-05",null,null,null,null,null,null,null,null,null,null,null,null,null,null,null,null,null,null,null,null,null,null,null,null,null,null,null,null,""]
["2482102-06",null,null,null,null,null,null,null,null,null,null,null,null,null,null,null,null,null,null,null,null,null,null,null,null,null,null,null,null,""]
["2482102-11",null,null,null,null,null,null,null,null,null,null,null,null,null,null,null,null,null,null,null,null,null,null,null,null,null,null,null,null,"1-661257A0-VD-1"]
["2482102-11",null,null,null,null,null,null,null,null,null,null,null,null,null,null,null,null,null,null,null,null,null,null,null,null,null,null,null,null,"1-661257A0-VD-2"]
["2482102-11",null,null,null,null,null,null,null,null,null,null,null,null,null,null,null,null,null,null,null,null,null,null,null,null,null,null,null,null,""]
["2482102-11",null,null,null,null,null,null,null,null,null,null,null,null,null,null,null,null,null,null,null,null,null,null,null,null,null,null,null,null,""]
["2482102-15",null,null,null,null,null,null,null,null,null,null,null,null,null,null,null,null,null,null,null,null,null,null,null,null,null,null,null,null,""]
["2482102-15",null,null,null,null,null,null,null,null,null,null,null,null,null,null,null,null,null,null,null,null,null,null,null,null,null,null,null,null,""]
["2482102-15",null,null,null,null,null,null,null,null,null,null,null,null,null,null,null,null,null,null,null,null,null,null,null,null,null,null,null,null,""]
["2482102-15",null,null,null,null,null,null,null,null,null,null,null,null,null,null,null,null,null,null,null,null,null,null,null,null,null,null,null,null,""]
["2482102-15",null,null,null,null,null,null,null,null,null,null,null,null,null,null,null,null,null,null,null,null,null,null,null,null,null,null,null,null,""]
["2482103-01",null,null,null,null,null,null,null,null,null,null,null,null,null,null,null,null,null,null,null,null,null,null,null,null,null,null,null,null,""]
["2482103-01",null,null,null,null,null,null,null,null,null,null,null,null,null,null,null,null,null,null,null,null,null,null,null,null,null,null,null,null,""]
["2482103-02",null,null,null,null,null,null,null,null,null,null,null,null,null,null,null,null,null,null,null,null,null,null,null,null,null,null,null,null,""]
["2482103-02",null,null,null,null,null,null,null,null,null,null,null,null,null,null,null,null,null,null,null,null,null,null,null,null,null,null,null,null,""]
["2482103-06",null,null,null,null,null,null,null,null,null,null,null,null,null,null,null,null,null,null,null,null,null,null,null,null,null,null,null,null,""]
["2482103-11",null,null,null,null,null,null,null,null,null,null,null,null,null,null,null,null,null,null,null,null,null,null,null,null,null,null,null,null,""]
["2482103-11",null,null,null,null,null,null,null,null,null,null,null,null,null,null,null,null,null,null,null,null,null,null,null,null,null,null,null,null,""]
["2482103-11",null,null,null,null,null,null,null,null,null,null,null,null,null,null,null,null,null,null,null,null,null,null,null,null,null,null,null,null,""]
["2482103-15",null,null,null,null,null,null,null,null,null,null,null,null,null,null,null,null,null,null,null,null,null,null,null,null,null,null,null,null,""]
["2482103-15",null,null,null,null,null,null,null,null,null,null,null,null,null,null,null,null,null,null,null,null,null,null,null,null,null,null,null,null,""]
["2482103-15",null,null,null,null,null,null,null,null,null,null,null,null,null,null,null,null,null,null,null,null,null,null,null,null,null,null,null,null,""]
["2482103-15",null,null,null,null,null,null,null,null,null,null,null,null,null,null,null,null,null,null,null,null,null,null,null,null,null,null,null,null,""]
["2482103-15",null,null,null,null,null,null,null,null,null,null,null,null,null,null,null,null,null,null,null,null,null,null,null,null,null,null,null,null,""]
["2547301-00",null,null,null,null,null,null,null,null,null,null,null,null,null,null,null,null,null,null,null,null,null,null,null,null,null,null,null,null,""]
["2547301-01",null,null,null,null,null,null,null,null,null,null,null,null,null,null,null,null,null,null,null,null,null,null,null,null,null,null,null,null,"5-63569901-FG-1"]
["2547301-03",null,null,null,null,null,null,null,null,null,null,null,null,null,null,null,null,null,null,null,null,null,null,null,null,null,null,null,null,"5-63570101-FG-1"]
["2547301-03",null,null,null,null,null,null,null,null,null,null,null,null,null,null,null,null,null,null,null,null,null,null,null,null,null,null,null,null,"5-63570101-FG-2"]
["2552201-01",null,null,null,null,null,null,null,null,null,null,null,null,null,null,null,null,null,null,null,null,null,null,null,null,null,null,null,null,"9_667092A_VD_2"]
["2552201-01",null,null,null,null,null,null,null,null,null,null,null,null,null,null,null,null,null,null,null,null,null,null,null,null,null,null,null,null,""]
["2552201-12",null,null,null,null,null,null,null,null,null,null,null,null,null,null,null,null,null,null,null,null,null,null,null,null,null,null,null,null,""]
["2552201-13",null,null,null,null,null,null,null,null,null,null,null,null,null,null,null,null,null,null,null,null,null,null,null,null,null,null,null,null,""]
["2552201-13",null,null,null,null,null,null,null,null,null,null,null,null,null,null,null,null,null,null,null,null,null,null,null,null,null,null,null,null,""]
["2552201-93",null,null,null,null,null,null,null,null,null,null,null,null,null,null,null,null,null,null,null,null,null,null,null,null,null,null,null,null,"5-667108A-FG-1"]
["2552202-01",null,null,null,null,null,null,null,null,null,null,null,null,null,null,null,null,null,null,null,null,null,null,null,null,null,null,null,null,"9_667092A_VD_1"]
["2552202-12",null,null,null,null,null,null,null,null,null,null,null,null,null,null,null,null,null,null,null,null,null,null,null,null,null,null,null,null,""]
["2552202-13",null,null,null,null,null,null,null,null,null,null,null,null,null,null,null,null,null,null,null,null,null,null,null,null,null,null,null,null,""]
["2552202-13",null,null,null,null,null,null,null,null,null,null,null,null,null,null,null,null,null,null,null,null,null,null,null,null,null,null,null,null,""]
["2552202-93",null,null,null,null,null,null,null,null,null,null,null,null,null,null,null,null,null,null,null,null,null,null,null,null,null,null,null,null,"5-667108A-FG-1"]
["2561001-21",null,null,null,null,null,null,null,null,null,null,null,null,null,null,null,null,null,null,null,null,null,null,null,null,null,null,null,null,"6-66578101-FG-1"]
["2561001-21",null,null,null,null,null,null,null,null,null,null,null,null,null,null,null,null,null,null,null,null,null,null,null,null,null,null,null,null,"6-66578101-FG-2"]
["2561001-23",null,null,null,null,null,null,null,null,null,null,null,null,null,null,null,null,null,null,null,null,null,null,null,null,null,null,null,null,"6-66578201-FG-1"]
["2561001-23",null,null,null,null,null,null,null,null,null,null,null,null,null,null,null,null,null,null,null,null,null,null,null,null,null,null,null,null,"9_66578201_VD_3"]
["2561001-23",null,null,null,null,null,null,null,null,null,null,null,null,null,null,null,null,null,null,null,null,null,null,null,null,null,null,null,null,"9_66578201_VD_4"]
["2561001-32",null,null,null,null,null,null,null,null,null,null,null,null,null,null,null,null,null,null,null,null,null,null,null,null,null,null,null,null,"6-66059701-FG-2"]
["2561101-21",null,null,null,null,null,null,null,null,null,null,null,null,null,null,null,null,null,null,null,null,null,null,null,null,null,null,null,null,"6-66578101-FG-2"]
["2561101-21",null,null,null,null,null,null,null,null,null,null,null,null,null,null,null,null,null,null,null,null,null,null,null,null,null,null,null,null,"6-66578101-FG-1"]
["2561101-23",null,null,null,null,null,null,null,null,null,null,null,null,null,null,null,null,null,null,null,null,null,null,null,null,null,null,null,null,"6-66578201-FG-1"]
["2561101-23",null,null,null,null,null,null,null,null,null,null,null,null,null,null,null,null,null,null,null,null,null,null,null,null,null,null,null,null,"9_66578201_VD_3"]
["2561101-23",null,null,null,null,null,null,null,null,null,null,null,null,null,null,null,null,null,null,null,null,null,null,null,null,null,null,null,null,"9_66578201_VD_4"]
["2561101-32",null,null,null,null,null,null,null,null,null,null,null,null,null,null,null,null,null,null,null,null,null,null,null,null,null,null,null,null,"6-66059701-FG-2"]
["2566401-47",null,null,null,null,null,null,null,null,null,null,null,null,null,null,null,null,null,null,null,null,null,null,null,null,null,null,null,null,""]
["2572601-01",null,null,null,null,null,null,null,null,null,null,null,null,null,null,null,null,null,null,null,null,null,null,null,null,null,null,null,null,"6-667245A-FG-1"]
["2572601-02",null,null,null,null,null,null,null,null,null,null,null,null,null,null,null,null,null,null,null,null,null,null,null,null,null,null,null,null,""]
["2572601-11",null,null,null,null,null,null,null,null,null,null,null,null,null,null,null,null,null,null,null,null,null,null,null,null,null,null,null,null,""]
["2572601-11",null,null,null,null,null,null,null,null,null,null,null,null,null,null,null,null,null,null,null,null,null,null,null,null,null,null,null,null,""]
["2573501-01",null,null,null,null,null,null,null,null,null,null,null,null,null,null,null,null,null,null,null,null,null,null,null,null,null,null,null,null,""]
["2573501-01",null,null,null,null,null,null,null,null,null,null,null,null,null,null,null,null,null,null,null,null,null,null,null,null,null,null,null,null,""]
["2573502-01",null,null,null,null,null,null,null,null,null,null,null,null,null,null,null,null,null,null,null,null,null,null,null,null,null,null,null,null,""]
["2573502-01",null,null,null,null,null,null,null,null,null,null,null,null,null,null,null,null,null,null,null,null,null,null,null,null,null,null,null,null,""]
["2575701-04",null,null,null,null,null,null,null,null,null,null,null,null,null,null,null,null,null,null,null,null,null,null,null,null,null,null,null,null,"7-66058311-VD-1"]
["2575701-04",null,null,null,null,null,null,null,null,null,null,null,null,null,null,null,null,null,null,null,null,null,null,null,null,null,null,null,null,"7-66058311-VD-2"]
["2575701-04",null,null,null,null,null,null,null,null,null,null,null,null,null,null,null,null,null,null,null,null,null,null,null,null,null,null,null,null,""]
["2576101-04",null,null,null,null,null,null,null,null,null,null,null,null,null,null,null,null,null,null,null,null,null,null,null,null,null,null,null,null,"7-66058311-VD-1"]
["2576101-04",null,null,null,null,null,null,null,null,null,null,null,null,null,null,null,null,null,null,null,null,null,null,null,null,null,null,null,null,"7-66058311-VD-2"]
["2576101-04",null,null,null,null,null,null,null,null,null,null,null,null,null,null,null,null,null,null,null,null,null,null,null,null,null,null,null,null,""]
["2577403-01",null,null,null,null,null,null,null,null,null,null,null,null,null,null,null,null,null,null,null,null,null,null,null,null,null,null,null,null,""]
["2577403-01",null,null,null,null,null,null,null,null,null,null,null,null,null,null,null,null,null,null,null,null,null,null,null,null,null,null,null,null,"8_65773601_VD_2"]
["2577403-01",null,null,null,null,null,null,null,null,null,null,null,null,null,null,null,null,null,null,null,null,null,null,null,null,null,null,null,null,"8_65773601_VD_1"]
["2577403-02",null,null,null,null,null,null,null,null,null,null,null,null,null,null,null,null,null,null,null,null,null,null,null,null,null,null,null,null,""]
["2577403-02",null,null,null,null,null,null,null,null,null,null,null,null,null,null,null,null,null,null,null,null,null,null,null,null,null,null,null,null,"8_65773701_VD_1"]
["2577403-04",null,null,null,null,null,null,null,null,null,null,null,null,null,null,null,null,null,null,null,null,null,null,null,null,null,null,null,null,""]
["2577403-04",null,null,null,null,null,null,null,null,null,null,null,null,null,null,null,null,null,null,null,null,null,null,null,null,null,null,null,null,""]
["2577403-04",null,null,null,null,null,null,null,null,null,null,null,null,null,null,null,null,null,null,null,null,null,null,null,null,null,null,null,null,""]
["2577403-05",null,null,null,null,null,null,null,null,null,null,null,null,null,null,null,null,null,null,null,null,null,null,null,null,null,null,null,null,"5-65101401-FG-1"]
["2577403-06",null,null,null,null,null,null,null,null,null,null,null,null,null,null,null,null,null,null,null,null,null,null,null,null,null,null,null,null,"5-65101501-FG-1"]
["2577404-01",null,null,null,null,null,null,null,null,null,null,null,null,null,null,null,null,null,null,null,null,null,null,null,null,null,null,null,null,"8_65773601_VD_1"]
["2577404-01",null,null,null,null,null,null,null,null,null,null,null,null,null,null,null,null,null,null,null,null,null,null,null,null,null,null,null,null,"8_65773601_VD_2"]
["2577404-02",null,null,null,null,null,null,null,null,null,null,null,null,null,null,null,null,null,null,null,null,null,null,null,null,null,null,null,null,"8_65773701_VD_1"]
["2577404-03",null,null,null,null,null,null,null,null,null,null,null,null,null,null,null,null,null,null,null,null,null,null,null,null,null,null,null,null,"6-65244601-FG-1"]
["2577404-04",null,null,null,null,null,null,null,null,null,null,null,null,null,null,null,null,null,null,null,null,null,null,null,null,null,null,null,null,""]
["2577404-04",null,null,null,null,null,null,null,null,null,null,null,null,null,null,null,null,null,null,null,null,null,null,null,null,null,null,null,null,""]
["2577404-04",null,null,null,null,null,null,null,null,null,null,null,null,null,null,null,null,null,null,null,null,null,null,null,null,null,null,null,null,""]
["2577404-05",null,null,null,null,null,null,null,null,null,null,null,null,null,null,null,null,null,null,null,null,null,null,null,null,null,null,null,null,"5-65101401-FG-1"]
["2577404-06",null,null,null,null,null,null,null,null,null,null,null,null,null,null,null,null,null,null,null,null,null,null,null,null,null,null,null,null,"5-65101501-FG-1"]
["2580001-02",null,null,null,null,null,null,null,null,null,null,null,null,null,null,null,null,null,null,null,null,null,null,null,null,null,null,null,null,""]
["2580001-15",null,null,null,null,null,null,null,null,null,null,null,null,null,null,null,null,null,null,null,null,null,null,null,null,null,null,null,null,""]
["2580001-15",null,null,null,null,null,null,null,null,null,null,null,null,null,null,null,null,null,null,null,null,null,null,null,null,null,null,null,null,""]
["2580002-02",null,null,null,null,null,null,null,null,null,null,null,null,null,null,null,null,null,null,null,null,null,null,null,null,null,null,null,null,""]
["2580002-15",null,null,null,null,null,null,null,null,null,null,null,null,null,null,null,null,null,null,null,null,null,null,null,null,null,null,null,null,""]
["2580002-15",null,null,null,null,null,null,null,null,null,null,null,null,null,null,null,null,null,null,null,null,null,null,null,null,null,null,null,null,""]
["2580401-02"]
["2580401-04",null,null,null,null,null,null,null,null,null,null,null,null,null,null,null,null,null,null,null,null,null,null,null,null,null,null,null,null,""]
["2581401-01",null,null,null,null,null,null,null,null,null,null,null,null,null,null,null,null,null,null,null,null,null,null,null,null,null,null,null,null,"5-666434A-FG-1"]
["2581401-02",null,null,null,null,null,null,null,null,null,null,null,null,null,null,null,null,null,null,null,null,null,null,null,null,null,null,null,null,""]
["2581401-02",null,null,null,null,null,null,null,null,null,null,null,null,null,null,null,null,null,null,null,null,null,null,null,null,null,null,null,null,""]
["2581401-02",null,null,null,null,null,null,null,null,null,null,null,null,null,null,null,null,null,null,null,null,null,null,null,null,null,null,null,null,""]
["2581401-02",null,null,null,null,null,null,null,null,null,null,null,null,null,null,null,null,null,null,null,null,null,null,null,null,null,null,null,null,""]
["2581401-03",null,null,null,null,null,null,null,null,null,null,null,null,null,null,null,null,null,null,null,null,null,null,null,null,null,null,null,null,"1-666435A0-VD-1"]
["2581401-03",null,null,null,null,null,null,null,null,null,null,null,null,null,null,null,null,null,null,null,null,null,null,null,null,null,null,null,null,"1-666435A0-VD-2"]
["2581401-03",null,null,null,null,null,null,null,null,null,null,null,null,null,null,null,null,null,null,null,null,null,null,null,null,null,null,null,null,""]
["2581401-04",null,null,null,null,null,null,null,null,null,null,null,null,null,null,null,null,null,null,null,null,null,null,null,null,null,null,null,null,""]
["2581401-04",null,null,null,null,null,null,null,null,null,null,null,null,null,null,null,null,null,null,null,null,null,null,null,null,null,null,null,null,""]
["2581401-05",null,null,null,null,null,null,null,null,null,null,null,null,null,null,null,null,null,null,null,null,null,null,null,null,null,null,null,null,"1-666438A0-VM-1"]
["2581401-05",null,null,null,null,null,null,null,null,null,null,null,null,null,null,null,null,null,null,null,null,null,null,null,null,null,null,null,null,"1-666438A0-VM-2"]
["2581401-05",null,null,null,null,null,null,null,null,null,null,null,null,null,null,null,null,null,null,null,null,null,null,null,null,null,null,null,null,"5-666438A-FG-1"]
["2581401-06",null,null,null,null,null,null,null,null,null,null,null,null,null,null,null,null,null,null,null,null,null,null,null,null,null,null,null,null,"1-666439A0-VM-1"]
["2581401-06",null,null,null,null,null,null,null,null,null,null,null,null,null,null,null,null,null,null,null,null,null,null,null,null,null,null,null,null,""]
["2581401-07",null,null,null,null,null,null,null,null,null,null,null,null,null,null,null,null,null,null,null,null,null,null,null,null,null,null,null,null,""]
["2581701-01",null,null,null,null,null,null,null,null,null,null,null,null,null,null,null,null,null,null,null,null,null,null,null,null,null,null,null,null,""]
["2581701-01",null,null,null,null,null,null,null,null,null,null,null,null,null,null,null,null,null,null,null,null,null,null,null,null,null,null,null,null,""]
["2582101-01",null,null,null,null,null,null,null,null,null,null,null,null,null,null,null,null,null,null,null,null,null,null,null,null,null,null,null,null,""]
["2582101-03",null,null,null,null,null,null,null,null,null,null,null,null,null,null,null,null,null,null,null,null,null,null,null,null,null,null,null,null,""]
["2582101-03",null,null,null,null,null,null,null,null,null,null,null,null,null,null,null,null,null,null,null,null,null,null,null,null,null,null,null,null,""]
["2582101-03",null,null,null,null,null,null,null,null,null,null,null,null,null,null,null,null,null,null,null,null,null,null,null,null,null,null,null,null,""]
["2582101-03",null,null,null,null,null,null,null,null,null,null,null,null,null,null,null,null,null,null,null,null,null,null,null,null,null,null,null,null,""]
["2582101-05",null,null,null,null,null,null,null,null,null,null,null,null,null,null,null,null,null,null,null,null,null,null,null,null,null,null,null,null,"7-65624211-GR-1"]
["2582101-05",null,null,null,null,null,null,null,null,null,null,null,null,null,null,null,null,null,null,null,null,null,null,null,null,null,null,null,null,"7-65624211-GR-2"]
["2582101-05",null,null,null,null,null,null,null,null,null,null,null,null,null,null,null,null,null,null,null,null,null,null,null,null,null,null,null,null,"7-65624211-GR-3"]
["2582101-05",null,null,null,null,null,null,null,null,null,null,null,null,null,null,null,null,null,null,null,null,null,null,null,null,null,null,null,null,""]
["2582101-06",null,null,null,null,null,null,null,null,null,null,null,null,null,null,null,null,null,null,null,null,null,null,null,null,null,null,null,null,""]
["2582101-06",null,null,null,null,null,null,null,null,null,null,null,null,null,null,null,null,null,null,null,null,null,null,null,null,null,null,null,null,""]
["2582101-07",null,null,null,null,null,null,null,null,null,null,null,null,null,null,null,null,null,null,null,null,null,null,null,null,null,null,null,null,""]
["2582101-07",null,null,null,null,null,null,null,null,null,null,null,null,null,null,null,null,null,null,null,null,null,null,null,null,null,null,null,null,""]
["2582801-01",null,null,null,null,null,null,null,null,null,null,null,null,null,null,null,null,null,null,null,null,null,null,null,null,null,null,null,null,""]
["2582801-01",null,null,null,null,null,null,null,null,null,null,null,null,null,null,null,null,null,null,null,null,null,null,null,null,null,null,null,null,""]
["2582801-01",null,null,null,null,null,null,null,null,null,null,null,null,null,null,null,null,null,null,null,null,null,null,null,null,null,null,null,null,""]
["2582801-02",null,null,null,null,null,null,null,null,null,null,null,null,null,null,null,null,null,null,null,null,null,null,null,null,null,null,null,null,""]
["2582801-02",null,null,null,null,null,null,null,null,null,null,null,null,null,null,null,null,null,null,null,null,null,null,null,null,null,null,null,null,""]
["2582801-02",null,null,null,null,null,null,null,null,null,null,null,null,null,null,null,null,null,null,null,null,null,null,null,null,null,null,null,null,""]
["2582802-01",null,null,null,null,null,null,null,null,null,null,null,null,null,null,null,null,null,null,null,null,null,null,null,null,null,null,null,null,""]
["2582802-01",null,null,null,null,null,null,null,null,null,null,null,null,null,null,null,null,null,null,null,null,null,null,null,null,null,null,null,null,""]
["2582802-01",null,null,null,null,null,null,null,null,null,null,null,null,null,null,null,null,null,null,null,null,null,null,null,null,null,null,null,null,""]
["2582902-02",null,null,null,null,null,null,null,null,null,null,null,null,null,null,null,null,null,null,null,null,null,null,null,null,null,null,null,null,""]
["2582902-02",null,null,null,null,null,null,null,null,null,null,null,null,null,null,null,null,null,null,null,null,null,null,null,null,null,null,null,null,"6-661455A-RV-1"]
["2582902-02",null,null,null,null,null,null,null,null,null,null,null,null,null,null,null,null,null,null,null,null,null,null,null,null,null,null,null,null,"9_661455B_VD_1"]
["2582902-02",null,null,null,null,null,null,null,null,null,null,null,null,null,null,null,null,null,null,null,null,null,null,null,null,null,null,null,null,"9_661455B_VD_2"]
["2582902-02",null,null,null,null,null,null,null,null,null,null,null,null,null,null,null,null,null,null,null,null,null,null,null,null,null,null,null,null,"9_661455B_VD_1"]
["2584101-01",null,null,null,null,null,null,null,null,null,null,null,null,null,null,null,null,null,null,null,null,null,null,null,null,null,null,null,null,"7-62913943-VD-1"]
["2584101-01",null,null,null,null,null,null,null,null,null,null,null,null,null,null,null,null,null,null,null,null,null,null,null,null,null,null,null,null,"6-62913943-RV-1"]
["2584102-02",null,null,null,null,null,null,null,null,null,null,null,null,null,null,null,null,null,null,null,null,null,null,null,null,null,null,null,null,"6-62914010-RV-1"]
["2584102-02",null,null,null,null,null,null,null,null,null,null,null,null,null,null,null,null,null,null,null,null,null,null,null,null,null,null,null,null,"6-62914010-RV-2"]
["2584102-02",null,null,null,null,null,null,null,null,null,null,null,null,null,null,null,null,null,null,null,null,null,null,null,null,null,null,null,null,""]
["2585401-01",null,null,null,null,null,null,null,null,null,null,null,null,null,null,null,null,null,null,null,null,null,null,null,null,null,null,null,null,"8_65653202_VD_1"]
["2585401-01",null,null,null,null,null,null,null,null,null,null,null,null,null,null,null,null,null,null,null,null,null,null,null,null,null,null,null,null,"8_65653202_VD_2"]
["2585401-02",null,null,null,null,null,null,null,null,null,null,null,null,null,null,null,null,null,null,null,null,null,null,null,null,null,null,null,null,""]
["2585401-02",null,null,null,null,null,null,null,null,null,null,null,null,null,null,null,null,null,null,null,null,null,null,null,null,null,null,null,null,""]
["2585401-03",null,null,null,null,null,null,null,null,null,null,null,null,null,null,null,null,null,null,null,null,null,null,null,null,null,null,null,null,"6-65653401-FG-1"]
["2585401-03",null,null,null,null,null,null,null,null,null,null,null,null,null,null,null,null,null,null,null,null,null,null,null,null,null,null,null,null,"6-65653401-FG-2"]
["2585401-04",null,null,null,null,null,null,null,null,null,null,null,null,null,null,null,null,null,null,null,null,null,null,null,null,null,null,null,null,""]
["2585401-04",null,null,null,null,null,null,null,null,null,null,null,null,null,null,null,null,null,null,null,null,null,null,null,null,null,null,null,null,""]
["2585401-05",null,null,null,null,null,null,null,null,null,null,null,null,null,null,null,null,null,null,null,null,null,null,null,null,null,null,null,null,""]
["2585401-30",null,null,null,null,null,null,null,null,null,null,null,null,null,null,null,null,null,null,null,null,null,null,null,null,null,null,null,null,"5-65654001-FG-1"]
["2585401-30",null,null,null,null,null,null,null,null,null,null,null,null,null,null,null,null,null,null,null,null,null,null,null,null,null,null,null,null,"5-65654001-FG-2"]
["2585701-01",null,null,null,null,null,null,null,null,null,null,null,null,null,null,null,null,null,null,null,null,null,null,null,null,null,null,null,null,""]
["2585701-01",null,null,null,null,null,null,null,null,null,null,null,null,null,null,null,null,null,null,null,null,null,null,null,null,null,null,null,null,""]
["2587201-01",null,null,null,null,null,null,null,null,null,null,null,null,null,null,null,null,null,null,null,null,null,null,null,null,null,null,null,null,""]
["2587201-01",null,null,null,null,null,null,null,null,null,null,null,null,null,null,null,null,null,null,null,null,null,null,null,null,null,null,null,null,""]
["2587201-01",null,null,null,null,null,null,null,null,null,null,null,null,null,null,null,null,null,null,null,null,null,null,null,null,null,null,null,null,""]
["2587201-03",null,null,null,null,null,null,null,null,null,null,null,null,null,null,null,null,null,null,null,null,null,null,null,null,null,null,null,null,""]
["2587201-03",null,null,null,null,null,null,null,null,null,null,null,null,null,null,null,null,null,null,null,null,null,null,null,null,null,null,null,null,""]
["2587201-07",null,null,null,null,null,null,null,null,null,null,null,null,null,null,null,null,null,null,null,null,null,null,null,null,null,null,null,null,""]
["2587302-02",null,null,null,null,null,null,null,null,null,null,null,null,null,null,null,null,null,null,null,null,null,null,null,null,null,null,null,null,"8_64892401_VD_1"]
["2587302-02",null,null,null,null,null,null,null,null,null,null,null,null,null,null,null,null,null,null,null,null,null,null,null,null,null,null,null,null,"8_64892401_VD_2"]
["2587303-04",null,null,null,null,null,null,null,null,null,null,null,null,null,null,null,null,null,null,null,null,null,null,null,null,null,null,null,null,""]
["2587303-05",null,null,null,null,null,null,null,null,null,null,null,null,null,null,null,null,null,null,null,null,null,null,null,null,null,null,null,null,""]
["2588401-01",null,null,null,null,null,null,null,null,null,null,null,null,null,null,null,null,null,null,null,null,null,null,null,null,null,null,null,null,"5-665627A-FG-1"]
["2588401-01",null,null,null,null,null,null,null,null,null,null,null,null,null,null,null,null,null,null,null,null,null,null,null,null,null,null,null,null,""]
["2588401-02",null,null,null,null,null,null,null,null,null,null,null,null,null,null,null,null,null,null,null,null,null,null,null,null,null,null,null,null,"5-665626A-FG-1"]
["2588401-02",null,null,null,null,null,null,null,null,null,null,null,null,null,null,null,null,null,null,null,null,null,null,null,null,null,null,null,null,"5-665626A-FG-2"]
["2588401-02",null,null,null,null,null,null,null,null,null,null,null,null,null,null,null,null,null,null,null,null,null,null,null,null,null,null,null,null,""]
["2588401-02",null,null,null,null,null,null,null,null,null,null,null,null,null,null,null,null,null,null,null,null,null,null,null,null,null,null,null,null,"8_665626A_VD_3"]
["2588401-02",null,null,null,null,null,null,null,null,null,null,null,null,null,null,null,null,null,null,null,null,null,null,null,null,null,null,null,null,"8_665626A_VD_4"]
["2588401-02",null,null,null,null,null,null,null,null,null,null,null,null,null,null,null,null,null,null,null,null,null,null,null,null,null,null,null,null,"8_665626A_RV_1"]
["2588401-03",null,null,null,null,null,null,null,null,null,null,null,null,null,null,null,null,null,null,null,null,null,null,null,null,null,null,null,null,"8_665918A_VD_1"]
["2588401-03",null,null,null,null,null,null,null,null,null,null,null,null,null,null,null,null,null,null,null,null,null,null,null,null,null,null,null,null,"8_665918A_VD_2"]
["2588401-04",null,null,null,null,null,null,null,null,null,null,null,null,null,null,null,null,null,null,null,null,null,null,null,null,null,null,null,null,"5-665919A-FG-1"]
["2588401-04",null,null,null,null,null,null,null,null,null,null,null,null,null,null,null,null,null,null,null,null,null,null,null,null,null,null,null,null,"5-665919A-FG-2"]
["2588401-05",null,null,null,null,null,null,null,null,null,null,null,null,null,null,null,null,null,null,null,null,null,null,null,null,null,null,null,null,"5-665920A-FG-1"]
["2588401-10",null,null,null,null,null,null,null,null,null,null,null,null,null,null,null,null,null,null,null,null,null,null,null,null,null,null,null,null,""]
["2588501-01",null,null,null,null,null,null,null,null,null,null,null,null,null,null,null,null,null,null,null,null,null,null,null,null,null,null,null,null,""]
["2588501-01",null,null,null,null,null,null,null,null,null,null,null,null,null,null,null,null,null,null,null,null,null,null,null,null,null,null,null,null,""]
["2588502-01",null,null,null,null,null,null,null,null,null,null,null,null,null,null,null,null,null,null,null,null,null,null,null,null,null,null,null,null,"9_668036A_VD_1"]
["2588502-01",null,null,null,null,null,null,null,null,null,null,null,null,null,null,null,null,null,null,null,null,null,null,null,null,null,null,null,null,"9_668036A_VD_2"]
["2588503-01",null,null,null,null,null,null,null,null,null,null,null,null,null,null,null,null,null,null,null,null,null,null,null,null,null,null,null,null,""]
["2588503-01",null,null,null,null,null,null,null,null,null,null,null,null,null,null,null,null,null,null,null,null,null,null,null,null,null,null,null,null,""]
["2588504-01",null,null,null,null,null,null,null,null,null,null,null,null,null,null,null,null,null,null,null,null,null,null,null,null,null,null,null,null,""]
["2588504-01",null,null,null,null,null,null,null,null,null,null,null,null,null,null,null,null,null,null,null,null,null,null,null,null,null,null,null,null,""]
["2588504-02",null,null,null,null,null,null,null,null,null,null,null,null,null,null,null,null,null,null,null,null,null,null,null,null,null,null,null,null,""]
["2588504-02",null,null,null,null,null,null,null,null,null,null,null,null,null,null,null,null,null,null,null,null,null,null,null,null,null,null,null,null,""]
["2588504-10",null,null,null,null,null,null,null,null,null,null,null,null,null,null,null,null,null,null,null,null,null,null,null,null,null,null,null,null,""]
["2588504-10",null,null,null,null,null,null,null,null,null,null,null,null,null,null,null,null,null,null,null,null,null,null,null,null,null,null,null,null,""]
["2588504-11",null,null,null,null,null,null,null,null,null,null,null,null,null,null,null,null,null,null,null,null,null,null,null,null,null,null,null,null,""]
["2588504-11",null,null,null,null,null,null,null,null,null,null,null,null,null,null,null,null,null,null,null,null,null,null,null,null,null,null,null,null,""]
["2588504-12",null,null,null,null,null,null,null,null,null,null,null,null,null,null,null,null,null,null,null,null,null,null,null,null,null,null,null,null,""]
["2588504-12",null,null,null,null,null,null,null,null,null,null,null,null,null,null,null,null,null,null,null,null,null,null,null,null,null,null,null,null,""]
["2588504-12",null,null,null,null,null,null,null,null,null,null,null,null,null,null,null,null,null,null,null,null,null,null,null,null,null,null,null,null,""]
["2588505-01",null,null,null,null,null,null,null,null,null,null,null,null,null,null,null,null,null,null,null,null,null,null,null,null,null,null,null,null,""]
["2588505-01",null,null,null,null,null,null,null,null,null,null,null,null,null,null,null,null,null,null,null,null,null,null,null,null,null,null,null,null,""]
["2588505-01",null,null,null,null,null,null,null,null,null,null,null,null,null,null,null,null,null,null,null,null,null,null,null,null,null,null,null,null,""]
["2588505-01",null,null,null,null,null,null,null,null,null,null,null,null,null,null,null,null,null,null,null,null,null,null,null,null,null,null,null,null,""]
["2588505-02",null,null,null,null,null,null,null,null,null,null,null,null,null,null,null,null,null,null,null,null,null,null,null,null,null,null,null,null,""]
["2588505-02",null,null,null,null,null,null,null,null,null,null,null,null,null,null,null,null,null,null,null,null,null,null,null,null,null,null,null,null,""]
["2588505-02",null,null,null,null,null,null,null,null,null,null,null,null,null,null,null,null,null,null,null,null,null,null,null,null,null,null,null,null,""]
["2588505-10",null,null,null,null,null,null,null,null,null,null,null,null,null,null,null,null,null,null,null,null,null,null,null,null,null,null,null,null,""]
["2588505-10",null,null,null,null,null,null,null,null,null,null,null,null,null,null,null,null,null,null,null,null,null,null,null,null,null,null,null,null,""]
["2588505-11",null,null,null,null,null,null,null,null,null,null,null,null,null,null,null,null,null,null,null,null,null,null,null,null,null,null,null,null,""]
["2588505-11",null,null,null,null,null,null,null,null,null,null,null,null,null,null,null,null,null,null,null,null,null,null,null,null,null,null,null,null,""]
["2588505-12",null,null,null,null,null,null,null,null,null,null,null,null,null,null,null,null,null,null,null,null,null,null,null,null,null,null,null,null,""]
["2588505-12",null,null,null,null,null,null,null,null,null,null,null,null,null,null,null,null,null,null,null,null,null,null,null,null,null,null,null,null,""]
["2588506-01",null,null,null,null,null,null,null,null,null,null,null,null,null,null,null,null,null,null,null,null,null,null,null,null,null,null,null,null,""]
["2588506-01",null,null,null,null,null,null,null,null,null,null,null,null,null,null,null,null,null,null,null,null,null,null,null,null,null,null,null,null,""]
["2588506-01",null,null,null,null,null,null,null,null,null,null,null,null,null,null,null,null,null,null,null,null,null,null,null,null,null,null,null,null,""]
["2588506-01",null,null,null,null,null,null,null,null,null,null,null,null,null,null,null,null,null,null,null,null,null,null,null,null,null,null,null,null,""]
["2588506-02",null,null,null,null,null,null,null,null,null,null,null,null,null,null,null,null,null,null,null,null,null,null,null,null,null,null,null,null,""]
["2588506-02",null,null,null,null,null,null,null,null,null,null,null,null,null,null,null,null,null,null,null,null,null,null,null,null,null,null,null,null,""]
["2588506-02",null,null,null,null,null,null,null,null,null,null,null,null,null,null,null,null,null,null,null,null,null,null,null,null,null,null,null,null,""]
["2588506-10",null,null,null,null,null,null,null,null,null,null,null,null,null,null,null,null,null,null,null,null,null,null,null,null,null,null,null,null,""]
["2588506-10",null,null,null,null,null,null,null,null,null,null,null,null,null,null,null,null,null,null,null,null,null,null,null,null,null,null,null,null,""]
["2588506-11",null,null,null,null,null,null,null,null,null,null,null,null,null,null,null,null,null,null,null,null,null,null,null,null,null,null,null,null,""]
["2588506-11",null,null,null,null,null,null,null,null,null,null,null,null,null,null,null,null,null,null,null,null,null,null,null,null,null,null,null,null,""]
["2588506-12",null,null,null,null,null,null,null,null,null,null,null,null,null,null,null,null,null,null,null,null,null,null,null,null,null,null,null,null,""]
["2588506-12",null,null,null,null,null,null,null,null,null,null,null,null,null,null,null,null,null,null,null,null,null,null,null,null,null,null,null,null,""]
["2588507-01",null,null,null,null,null,null,null,null,null,null,null,null,null,null,null,null,null,null,null,null,null,null,null,null,null,null,null,null,""]
["2588507-01",null,null,null,null,null,null,null,null,null,null,null,null,null,null,null,null,null,null,null,null,null,null,null,null,null,null,null,null,""]
["2588507-02",null,null,null,null,null,null,null,null,null,null,null,null,null,null,null,null,null,null,null,null,null,null,null,null,null,null,null,null,""]
["2588507-02",null,null,null,null,null,null,null,null,null,null,null,null,null,null,null,null,null,null,null,null,null,null,null,null,null,null,null,null,""]
["2588507-10",null,null,null,null,null,null,null,null,null,null,null,null,null,null,null,null,null,null,null,null,null,null,null,null,null,null,null,null,""]
["2588507-10",null,null,null,null,null,null,null,null,null,null,null,null,null,null,null,null,null,null,null,null,null,null,null,null,null,null,null,null,""]
["2588507-10",null,null,null,null,null,null,null,null,null,null,null,null,null,null,null,null,null,null,null,null,null,null,null,null,null,null,null,null,""]
["2588507-11",null,null,null,null,null,null,null,null,null,null,null,null,null,null,null,null,null,null,null,null,null,null,null,null,null,null,null,null,""]
["2588507-11",null,null,null,null,null,null,null,null,null,null,null,null,null,null,null,null,null,null,null,null,null,null,null,null,null,null,null,null,""]
["2589201-01",null,null,null,null,null,null,null,null,null,null,null,null,null,null,null,null,null,null,null,null,null,null,null,null,null,null,null,null,""]
["2589201-01",null,null,null,null,null,null,null,null,null,null,null,null,null,null,null,null,null,null,null,null,null,null,null,null,null,null,null,null,""]
["2589801-01",null,null,null,null,null,null,null,null,null,null,null,null,null,null,null,null,null,null,null,null,null,null,null,null,null,null,null,null,""]
["2589801-01",null,null,null,null,null,null,null,null,null,null,null,null,null,null,null,null,null,null,null,null,null,null,null,null,null,null,null,null,""]
["2589802-01",null,null,null,null,null,null,null,null,null,null,null,null,null,null,null,null,null,null,null,null,null,null,null,null,null,null,null,null,""]
["2589802-01",null,null,null,null,null,null,null,null,null,null,null,null,null,null,null,null,null,null,null,null,null,null,null,null,null,null,null,null,""]
["2589802-01",null,null,null,null,null,null,null,null,null,null,null,null,null,null,null,null,null,null,null,null,null,null,null,null,null,null,null,null,""]
["2589802-02",null,null,null,null,null,null,null,null,null,null,null,null,null,null,null,null,null,null,null,null,null,null,null,null,null,null,null,null,""]
["2589802-02",null,null,null,null,null,null,null,null,null,null,null,null,null,null,null,null,null,null,null,null,null,null,null,null,null,null,null,null,""]
["2589802-02",null,null,null,null,null,null,null,null,null,null,null,null,null,null,null,null,null,null,null,null,null,null,null,null,null,null,null,null,""]
["2589802-02",null,null,null,null,null,null,null,null,null,null,null,null,null,null,null,null,null,null,null,null,null,null,null,null,null,null,null,null,""]
["2589803-01",null,null,null,null,null,null,null,null,null,null,null,null,null,null,null,null,null,null,null,null,null,null,null,null,null,null,null,null,"5-666220A-FG-1"]
["2589803-02",null,null,null,null,null,null,null,null,null,null,null,null,null,null,null,null,null,null,null,null,null,null,null,null,null,null,null,null,"5-666221A-FG-1"]
["2589803-03",null,null,null,null,null,null,null,null,null,null,null,null,null,null,null,null,null,null,null,null,null,null,null,null,null,null,null,null,""]
["2589803-03",null,null,null,null,null,null,null,null,null,null,null,null,null,null,null,null,null,null,null,null,null,null,null,null,null,null,null,null,""]
["2589803-04",null,null,null,null,null,null,null,null,null,null,null,null,null,null,null,null,null,null,null,null,null,null,null,null,null,null,null,null,""]
["2589803-04",null,null,null,null,null,null,null,null,null,null,null,null,null,null,null,null,null,null,null,null,null,null,null,null,null,null,null,null,""]
["2589803-05",null,null,null,null,null,null,null,null,null,null,null,null,null,null,null,null,null,null,null,null,null,null,null,null,null,null,null,null,"7-658051A0-GR-1"]
["2589803-05",null,null,null,null,null,null,null,null,null,null,null,null,null,null,null,null,null,null,null,null,null,null,null,null,null,null,null,null,"7-658051A0-GR-2"]
["2589803-05"]
["2589803-05",null,null,null,null,null,null,null,null,null,null,null,null,null,null,null,null,null,null,null,null,null,null,null,null,null,null,null,null,"5-658051A-FG-1"]
["2589803-10",null,null,null,null,null,null,null,null,null,null,null,null,null,null,null,null,null,null,null,null,null,null,null,null,null,null,null,null,""]
["2589902-02",null,null,null,null,null,null,null,null,null,null,null,null,null,null,null,null,null,null,null,null,null,null,null,null,null,null,null,null,"5-659762A-FG-1"]
["2590001-01",null,null,null,null,null,null,null,null,null,null,null,null,null,null,null,null,null,null,null,null,null,null,null,null,null,null,null,null,""]
["2590001-01",null,null,null,null,null,null,null,null,null,null,null,null,null,null,null,null,null,null,null,null,null,null,null,null,null,null,null,null,""]
["2590001-01",null,null,null,null,null,null,null,null,null,null,null,null,null,null,null,null,null,null,null,null,null,null,null,null,null,null,null,null,""]
["2590001-02",null,null,null,null,null,null,null,null,null,null,null,null,null,null,null,null,null,null,null,null,null,null,null,null,null,null,null,null,""]
["2590001-02",null,null,null,null,null,null,null,null,null,null,null,null,null,null,null,null,null,null,null,null,null,null,null,null,null,null,null,null,""]
["2590001-02",null,null,null,null,null,null,null,null,null,null,null,null,null,null,null,null,null,null,null,null,null,null,null,null,null,null,null,null,""]
["2590001-10",null,null,null,null,null,null,null,null,null,null,null,null,null,null,null,null,null,null,null,null,null,null,null,null,null,null,null,null,""]
["2590001-10",null,null,null,null,null,null,null,null,null,null,null,null,null,null,null,null,null,null,null,null,null,null,null,null,null,null,null,null,""]
["2590002-01",null,null,null,null,null,null,null,null,null,null,null,null,null,null,null,null,null,null,null,null,null,null,null,null,null,null,null,null,""]
["2590002-01",null,null,null,null,null,null,null,null,null,null,null,null,null,null,null,null,null,null,null,null,null,null,null,null,null,null,null,null,""]
["2590002-01",null,null,null,null,null,null,null,null,null,null,null,null,null,null,null,null,null,null,null,null,null,null,null,null,null,null,null,null,""]
["2590002-02",null,null,null,null,null,null,null,null,null,null,null,null,null,null,null,null,null,null,null,null,null,null,null,null,null,null,null,null,""]
["2590002-02",null,null,null,null,null,null,null,null,null,null,null,null,null,null,null,null,null,null,null,null,null,null,null,null,null,null,null,null,""]
["2590002-02",null,null,null,null,null,null,null,null,null,null,null,null,null,null,null,null,null,null,null,null,null,null,null,null,null,null,null,null,""]
["2590002-10",null,null,null,null,null,null,null,null,null,null,null,null,null,null,null,null,null,null,null,null,null,null,null,null,null,null,null,null,""]
["2590002-10",null,null,null,null,null,null,null,null,null,null,null,null,null,null,null,null,null,null,null,null,null,null,null,null,null,null,null,null,""]
["2590003-01",null,null,null,null,null,null,null,null,null,null,null,null,null,null,null,null,null,null,null,null,null,null,null,null,null,null,null,null,""]
["2590003-01",null,null,null,null,null,null,null,null,null,null,null,null,null,null,null,null,null,null,null,null,null,null,null,null,null,null,null,null,""]
["2590003-01",null,null,null,null,null,null,null,null,null,null,null,null,null,null,null,null,null,null,null,null,null,null,null,null,null,null,null,null,""]
["2590003-02",null,null,null,null,null,null,null,null,null,null,null,null,null,null,null,null,null,null,null,null,null,null,null,null,null,null,null,null,""]
["2590003-02",null,null,null,null,null,null,null,null,null,null,null,null,null,null,null,null,null,null,null,null,null,null,null,null,null,null,null,null,""]
["2590003-02",null,null,null,null,null,null,null,null,null,null,null,null,null,null,null,null,null,null,null,null,null,null,null,null,null,null,null,null,""]
["2590003-10",null,null,null,null,null,null,null,null,null,null,null,null,null,null,null,null,null,null,null,null,null,null,null,null,null,null,null,null,""]
["2590003-10",null,null,null,null,null,null,null,null,null,null,null,null,null,null,null,null,null,null,null,null,null,null,null,null,null,null,null,null,""]
["2590301-02",null,null,null,null,null,null,null,null,null,null,null,null,null,null,null,null,null,null,null,null,null,null,null,null,null,null,null,null,""]
["2590301-02",null,null,null,null,null,null,null,null,null,null,null,null,null,null,null,null,null,null,null,null,null,null,null,null,null,null,null,null,""]
["2590301-02",null,null,null,null,null,null,null,null,null,null,null,null,null,null,null,null,null,null,null,null,null,null,null,null,null,null,null,null,""]
["2590301-02",null,null,null,null,null,null,null,null,null,null,null,null,null,null,null,null,null,null,null,null,null,null,null,null,null,null,null,null,""]
["2590501-02",null,null,null,null,null,null,null,null,null,null,null,null,null,null,null,null,null,null,null,null,null,null,null,null,null,null,null,null,"6-657174B-RF-1"]
["2590501-02",null,null,null,null,null,null,null,null,null,null,null,null,null,null,null,null,null,null,null,null,null,null,null,null,null,null,null,null,"6-657174B-RF-2"]
["2590501-40",null,null,null,null,null,null,null,null,null,null,null,null,null,null,null,null,null,null,null,null,null,null,null,null,null,null,null,null,""]
["2590501-40",null,null,null,null,null,null,null,null,null,null,null,null,null,null,null,null,null,null,null,null,null,null,null,null,null,null,null,null,""]
["2590601-01",null,null,null,null,null,null,null,null,null,null,null,null,null,null,null,null,null,null,null,null,null,null,null,null,null,null,null,null,""]
["2590601-01",null,null,null,null,null,null,null,null,null,null,null,null,null,null,null,null,null,null,null,null,null,null,null,null,null,null,null,null,""]
["2590601-01",null,null,null,null,null,null,null,null,null,null,null,null,null,null,null,null,null,null,null,null,null,null,null,null,null,null,null,null,"5-65357301-FG-1"]
["2590601-04",null,null,null,null,null,null,null,null,null,null,null,null,null,null,null,null,null,null,null,null,null,null,null,null,null,null,null,null,""]
["2590701-01",null,null,null,null,null,null,null,null,null,null,null,null,null,null,null,null,null,null,null,null,null,null,null,null,null,null,null,null,""]
["2590701-01",null,null,null,null,null,null,null,null,null,null,null,null,null,null,null,null,null,null,null,null,null,null,null,null,null,null,null,null,""]
["2590701-02",null,null,null,null,null,null,null,null,null,null,null,null,null,null,null,null,null,null,null,null,null,null,null,null,null,null,null,null,""]
["2590701-02",null,null,null,null,null,null,null,null,null,null,null,null,null,null,null,null,null,null,null,null,null,null,null,null,null,null,null,null,""]
["2590702-01",null,null,null,null,null,null,null,null,null,null,null,null,null,null,null,null,null,null,null,null,null,null,null,null,null,null,null,null,""]
["2590702-01",null,null,null,null,null,null,null,null,null,null,null,null,null,null,null,null,null,null,null,null,null,null,null,null,null,null,null,null,""]
["2590702-02",null,null,null,null,null,null,null,null,null,null,null,null,null,null,null,null,null,null,null,null,null,null,null,null,null,null,null,null,""]
["2592601-01",null,null,null,null,null,null,null,null,null,null,null,null,null,null,null,null,null,null,null,null,null,null,null,null,null,null,null,null,""]
["2592601-01",null,null,null,null,null,null,null,null,null,null,null,null,null,null,null,null,null,null,null,null,null,null,null,null,null,null,null,null,"8_665900A_SB_1"]
["2592601-01",null,null,null,null,null,null,null,null,null,null,null,null,null,null,null,null,null,null,null,null,null,null,null,null,null,null,null,null,"8_665900A_SB_2"]
["2592601-02",null,null,null,null,null,null,null,null,null,null,null,null,null,null,null,null,null,null,null,null,null,null,null,null,null,null,null,null,"5-665901A-FG-1"]
["2592601-02",null,null,null,null,null,null,null,null,null,null,null,null,null,null,null,null,null,null,null,null,null,null,null,null,null,null,null,null,"5-665901A-FG-2"]
["2592601-05",null,null,null,null,null,null,null,null,null,null,null,null,null,null,null,null,null,null,null,null,null,null,null,null,null,null,null,null,""]
["2592601-05",null,null,null,null,null,null,null,null,null,null,null,null,null,null,null,null,null,null,null,null,null,null,null,null,null,null,null,null,""]
["2592601-05",null,null,null,null,null,null,null,null,null,null,null,null,null,null,null,null,null,null,null,null,null,null,null,null,null,null,null,null,""]
["2593601-01",null,null,null,null,null,null,null,null,null,null,null,null,null,null,null,null,null,null,null,null,null,null,null,null,null,null,null,null,""]
["2593601-01",null,null,null,null,null,null,null,null,null,null,null,null,null,null,null,null,null,null,null,null,null,null,null,null,null,null,null,null,"8_64642831_VD_1"]
["2593601-01",null,null,null,null,null,null,null,null,null,null,null,null,null,null,null,null,null,null,null,null,null,null,null,null,null,null,null,null,"8_64642831_VD_2"]
["2593601-07",null,null,null,null,null,null,null,null,null,null,null,null,null,null,null,null,null,null,null,null,null,null,null,null,null,null,null,null,"5-64643301-FG-1"]
["2593601-13",null,null,null,null,null,null,null,null,null,null,null,null,null,null,null,null,null,null,null,null,null,null,null,null,null,null,null,null,"6-64643911-FG-1"]
["2593601-14",null,null,null,null,null,null,null,null,null,null,null,null,null,null,null,null,null,null,null,null,null,null,null,null,null,null,null,null,""]
["2594001-01",null,null,null,null,null,null,null,null,null,null,null,null,null,null,null,null,null,null,null,null,null,null,null,null,null,null,null,null,"9_665035A_VD_1"]
["2594001-01",null,null,null,null,null,null,null,null,null,null,null,null,null,null,null,null,null,null,null,null,null,null,null,null,null,null,null,null,"9_665035A_VD_2"]
["2594001-02",null,null,null,null,null,null,null,null,null,null,null,null,null,null,null,null,null,null,null,null,null,null,null,null,null,null,null,null,"6-665055A-RF-2"]
["2594001-02",null,null,null,null,null,null,null,null,null,null,null,null,null,null,null,null,null,null,null,null,null,null,null,null,null,null,null,null,"9_665055A_VD_1"]
["2594001-02",null,null,null,null,null,null,null,null,null,null,null,null,null,null,null,null,null,null,null,null,null,null,null,null,null,null,null,null,"9_665055A_VD_2"]
["2594002-01",null,null,null,null,null,null,null,null,null,null,null,null,null,null,null,null,null,null,null,null,null,null,null,null,null,null,null,null,"9_665437A_VD_1"]
["2594002-01",null,null,null,null,null,null,null,null,null,null,null,null,null,null,null,null,null,null,null,null,null,null,null,null,null,null,null,null,"9_665437A_VD_2"]
["2594002-02",null,null,null,null,null,null,null,null,null,null,null,null,null,null,null,null,null,null,null,null,null,null,null,null,null,null,null,null,"6-665438A-FG-2"]
["2594002-02",null,null,null,null,null,null,null,null,null,null,null,null,null,null,null,null,null,null,null,null,null,null,null,null,null,null,null,null,"9_665438A_VD_1"]
["2594002-02",null,null,null,null,null,null,null,null,null,null,null,null,null,null,null,null,null,null,null,null,null,null,null,null,null,null,null,null,"9_665438A_VD_2"]
["2594002-03",null,null,null,null,null,null,null,null,null,null,null,null,null,null,null,null,null,null,null,null,null,null,null,null,null,null,null,null,"8_665439A_GR_4"]
["2594002-03",null,null,null,null,null,null,null,null,null,null,null,null,null,null,null,null,null,null,null,null,null,null,null,null,null,null,null,null,"8_665439A_GR_5"]
["2594002-03",null,null,null,null,null,null,null,null,null,null,null,null,null,null,null,null,null,null,null,null,null,null,null,null,null,null,null,null,"8_665439A_GR_6"]
["2594002-40",null,null,null,null,null,null,null,null,null,null,null,null,null,null,null,null,null,null,null,null,null,null,null,null,null,null,null,null,"8_665441A_GR_4"]
["2594002-40",null,null,null,null,null,null,null,null,null,null,null,null,null,null,null,null,null,null,null,null,null,null,null,null,null,null,null,null,"8_665441A_GR_5"]
["2594002-40",null,null,null,null,null,null,null,null,null,null,null,null,null,null,null,null,null,null,null,null,null,null,null,null,null,null,null,null,"8_665441A_GR_6"]
["2594002-99",null,null,null,null,null,null,null,null,null,null,null,null,null,null,null,null,null,null,null,null,null,null,null,null,null,null,null,null,"9_665442A_VD_1"]
["2594501-01",null,null,null,null,null,null,null,null,null,null,null,null,null,null,null,null,null,null,null,null,null,null,null,null,null,null,null,null,""]
["2594501-01",null,null,null,null,null,null,null,null,null,null,null,null,null,null,null,null,null,null,null,null,null,null,null,null,null,null,null,null,""]
["2594601-03",null,null,null,null,null,null,null,null,null,null,null,null,null,null,null,null,null,null,null,null,null,null,null,null,null,null,null,null,""]
["2594601-03",null,null,null,null,null,null,null,null,null,null,null,null,null,null,null,null,null,null,null,null,null,null,null,null,null,null,null,null,""]
["2594601-03",null,null,null,null,null,null,null,null,null,null,null,null,null,null,null,null,null,null,null,null,null,null,null,null,null,null,null,null,""]
["2594601-04",null,null,null,null,null,null,null,null,null,null,null,null,null,null,null,null,null,null,null,null,null,null,null,null,null,null,null,null,""]
["2594601-08",null,null,null,null,null,null,null,null,null,null,null,null,null,null,null,null,null,null,null,null,null,null,null,null,null,null,null,null,""]
["2594601-08",null,null,null,null,null,null,null,null,null,null,null,null,null,null,null,null,null,null,null,null,null,null,null,null,null,null,null,null,""]
["2595201-02",null,null,null,null,null,null,null,null,null,null,null,null,null,null,null,null,null,null,null,null,null,null,null,null,null,null,null,null,""]
["2595201-02",null,null,null,null,null,null,null,null,null,null,null,null,null,null,null,null,null,null,null,null,null,null,null,null,null,null,null,null,""]
["2595201-04",null,null,null,null,null,null,null,null,null,null,null,null,null,null,null,null,null,null,null,null,null,null,null,null,null,null,null,null,"5-65619701-FG-1"]
["2595201-04",null,null,null,null,null,null,null,null,null,null,null,null,null,null,null,null,null,null,null,null,null,null,null,null,null,null,null,null,"5-65619701-FG-2"]
["2595201-05",null,null,null,null,null,null,null,null,null,null,null,null,null,null,null,null,null,null,null,null,null,null,null,null,null,null,null,null,"5-65619801-FG-1"]
["2595301-02",null,null,null,null,null,null,null,null,null,null,null,null,null,null,null,null,null,null,null,null,null,null,null,null,null,null,null,null,"6-64259001-FG-1"]
["2595301-03",null,null,null,null,null,null,null,null,null,null,null,null,null,null,null,null,null,null,null,null,null,null,null,null,null,null,null,null,""]
["2595301-03",null,null,null,null,null,null,null,null,null,null,null,null,null,null,null,null,null,null,null,null,null,null,null,null,null,null,null,null,""]
["2595301-05",null,null,null,null,null,null,null,null,null,null,null,null,null,null,null,null,null,null,null,null,null,null,null,null,null,null,null,null,""]
["2595301-06",null,null,null,null,null,null,null,null,null,null,null,null,null,null,null,null,null,null,null,null,null,null,null,null,null,null,null,null,""]
["2595601-02",null,null,null,null,null,null,null,null,null,null,null,null,null,null,null,null,null,null,null,null,null,null,null,null,null,null,null,null,"7-65031101-VD-1"]
["2595601-02",null,null,null,null,null,null,null,null,null,null,null,null,null,null,null,null,null,null,null,null,null,null,null,null,null,null,null,null,""]
["2595601-02",null,null,null,null,null,null,null,null,null,null,null,null,null,null,null,null,null,null,null,null,null,null,null,null,null,null,null,null,""]
["2595601-03",null,null,null,null,null,null,null,null,null,null,null,null,null,null,null,null,null,null,null,null,null,null,null,null,null,null,null,null,""]
["2595601-03",null,null,null,null,null,null,null,null,null,null,null,null,null,null,null,null,null,null,null,null,null,null,null,null,null,null,null,null,""]
["2595601-05",null,null,null,null,null,null,null,null,null,null,null,null,null,null,null,null,null,null,null,null,null,null,null,null,null,null,null,null,""]
["2595701-01",null,null,null,null,null,null,null,null,null,null,null,null,null,null,null,null,null,null,null,null,null,null,null,null,null,null,null,null,""]
["2595701-01",null,null,null,null,null,null,null,null,null,null,null,null,null,null,null,null,null,null,null,null,null,null,null,null,null,null,null,null,""]
["2595702-01",null,null,null,null,null,null,null,null,null,null,null,null,null,null,null,null,null,null,null,null,null,null,null,null,null,null,null,null,""]
["2595702-01",null,null,null,null,null,null,null,null,null,null,null,null,null,null,null,null,null,null,null,null,null,null,null,null,null,null,null,null,""]
["2595801-01",null,null,null,null,null,null,null,null,null,null,null,null,null,null,null,null,null,null,null,null,null,null,null,null,null,null,null,null,""]
["2595801-01",null,null,null,null,null,null,null,null,null,null,null,null,null,null,null,null,null,null,null,null,null,null,null,null,null,null,null,null,""]
["2595801-01",null,null,null,null,null,null,null,null,null,null,null,null,null,null,null,null,null,null,null,null,null,null,null,null,null,null,null,null,""]
["2595801-07",null,null,null,null,null,null,null,null,null,null,null,null,null,null,null,null,null,null,null,null,null,null,null,null,null,null,null,null,"8_666416A_RV_1"]
["2596601-03",null,null,null,null,null,null,null,null,null,null,null,null,null,null,null,null,null,null,null,null,null,null,null,null,null,null,null,null,"1-63291112-VM-2"]
["2596701-01",null,null,null,null,null,null,null,null,null,null,null,null,null,null,null,null,null,null,null,null,null,null,null,null,null,null,null,null,""]
["2596701-01",null,null,null,null,null,null,null,null,null,null,null,null,null,null,null,null,null,null,null,null,null,null,null,null,null,null,null,null,""]
["2596701-01",null,null,null,null,null,null,null,null,null,null,null,null,null,null,null,null,null,null,null,null,null,null,null,null,null,null,null,null,""]
["2596701-02",null,null,null,null,null,null,null,null,null,null,null,null,null,null,null,null,null,null,null,null,null,null,null,null,null,null,null,null,""]
["2596701-02",null,null,null,null,null,null,null,null,null,null,null,null,null,null,null,null,null,null,null,null,null,null,null,null,null,null,null,null,""]
["2596701-02",null,null,null,null,null,null,null,null,null,null,null,null,null,null,null,null,null,null,null,null,null,null,null,null,null,null,null,null,""]
["2596701-03",null,null,null,null,null,null,null,null,null,null,null,null,null,null,null,null,null,null,null,null,null,null,null,null,null,null,null,null,""]
["2596701-03",null,null,null,null,null,null,null,null,null,null,null,null,null,null,null,null,null,null,null,null,null,null,null,null,null,null,null,null,""]
["2596701-04",null,null,null,null,null,null,null,null,null,null,null,null,null,null,null,null,null,null,null,null,null,null,null,null,null,null,null,null,""]
["2596701-04",null,null,null,null,null,null,null,null,null,null,null,null,null,null,null,null,null,null,null,null,null,null,null,null,null,null,null,null,""]
["2596701-05",null,null,null,null,null,null,null,null,null,null,null,null,null,null,null,null,null,null,null,null,null,null,null,null,null,null,null,null,"5-61786212-FG-1"]
["2596702-02",null,null,null,null,null,null,null,null,null,null,null,null,null,null,null,null,null,null,null,null,null,null,null,null,null,null,null,null,""]
["2596702-05",null,null,null,null,null,null,null,null,null,null,null,null,null,null,null,null,null,null,null,null,null,null,null,null,null,null,null,null,""]
["2597101-01",null,null,null,null,null,null,null,null,null,null,null,null,null,null,null,null,null,null,null,null,null,null,null,null,null,null,null,null,""]
["2597101-02",null,null,null,null,null,null,null,null,null,null,null,null,null,null,null,null,null,null,null,null,null,null,null,null,null,null,null,null,""]
["2597101-03",null,null,null,null,null,null,null,null,null,null,null,null,null,null,null,null,null,null,null,null,null,null,null,null,null,null,null,null,"6-64283001-FG-1"]
["2597101-03",null,null,null,null,null,null,null,null,null,null,null,null,null,null,null,null,null,null,null,null,null,null,null,null,null,null,null,null,"6-64283001-FG-2"]
["2597101-04",null,null,null,null,null,null,null,null,null,null,null,null,null,null,null,null,null,null,null,null,null,null,null,null,null,null,null,null,"6-64283101-FG-1"]
["2597701-02",null,null,null,null,null,null,null,null,null,null,null,null,null,null,null,null,null,null,null,null,null,null,null,null,null,null,null,null,"1-62258504-VM-2"]
["2597701-02",null,null,null,null,null,null,null,null,null,null,null,null,null,null,null,null,null,null,null,null,null,null,null,null,null,null,null,null,""]
["2598201-10",null,null,null,null,null,null,null,null,null,null,null,null,null,null,null,null,null,null,null,null,null,null,null,null,null,null,null,null,""]
["2598401-20",null,null,null,null,null,null,null,null,null,null,null,null,null,null,null,null,null,null,null,null,null,null,null,null,null,null,null,null,""]
["2598801-01",null,null,null,null,null,null,null,null,null,null,null,null,null,null,null,null,null,null,null,null,null,null,null,null,null,null,null,null,""]
["2598801-04",null,null,null,null,null,null,null,null,null,null,null,null,null,null,null,null,null,null,null,null,null,null,null,null,null,null,null,null,""]
["2598801-04",null,null,null,null,null,null,null,null,null,null,null,null,null,null,null,null,null,null,null,null,null,null,null,null,null,null,null,null,""]
["2598801-07",null,null,null,null,null,null,null,null,null,null,null,null,null,null,null,null,null,null,null,null,null,null,null,null,null,null,null,null,""]
["2598801-13",null,null,null,null,null,null,null,null,null,null,null,null,null,null,null,null,null,null,null,null,null,null,null,null,null,null,null,null,""]
["2599501-01",null,null,null,null,null,null,null,null,null,null,null,null,null,null,null,null,null,null,null,null,null,null,null,null,null,null,null,null,"5-665627A-FG-1"]
["2599501-01",null,null,null,null,null,null,null,null,null,null,null,null,null,null,null,null,null,null,null,null,null,null,null,null,null,null,null,null,""]
["2599505-02",null,null,null,null,null,null,null,null,null,null,null,null,null,null,null,null,null,null,null,null,null,null,null,null,null,null,null,null,"5-665626A-FG-1"]
["2599505-02",null,null,null,null,null,null,null,null,null,null,null,null,null,null,null,null,null,null,null,null,null,null,null,null,null,null,null,null,"5-665626A-FG-2"]
["2599505-02",null,null,null,null,null,null,null,null,null,null,null,null,null,null,null,null,null,null,null,null,null,null,null,null,null,null,null,null,""]
["2599505-02",null,null,null,null,null,null,null,null,null,null,null,null,null,null,null,null,null,null,null,null,null,null,null,null,null,null,null,null,"8_665626A_VD_3"]
["2599505-02",null,null,null,null,null,null,null,null,null,null,null,null,null,null,null,null,null,null,null,null,null,null,null,null,null,null,null,null,"8_665626A_VD_4"]
["2599505-02",null,null,null,null,null,null,null,null,null,null,null,null,null,null,null,null,null,null,null,null,null,null,null,null,null,null,null,null,"8_665626A_RV_1"]
["2599601-01",null,null,null,null,null,null,null,null,null,null,null,null,null,null,null,null,null,null,null,null,null,null,null,null,null,null,null,null,""]
["2599601-01",null,null,null,null,null,null,null,null,null,null,null,null,null,null,null,null,null,null,null,null,null,null,null,null,null,null,null,null,""]
["2599601-02",null,null,null,null,null,null,null,null,null,null,null,null,null,null,null,null,null,null,null,null,null,null,null,null,null,null,null,null,""]
["2599601-02",null,null,null,null,null,null,null,null,null,null,null,null,null,null,null,null,null,null,null,null,null,null,null,null,null,null,null,null,""]
["2599702-01",null,null,null,null,null,null,null,null,null,null,null,null,null,null,null,null,null,null,null,null,null,null,null,null,null,null,null,null,""]
["2599702-01",null,null,null,null,null,null,null,null,null,null,null,null,null,null,null,null,null,null,null,null,null,null,null,null,null,null,null,null,""]
["2599702-01",null,null,null,null,null,null,null,null,null,null,null,null,null,null,null,null,null,null,null,null,null,null,null,null,null,null,null,null,""]
["2601601-01",null,null,null,null,null,null,null,null,null,null,null,null,null,null,null,null,null,null,null,null,null,null,null,null,null,null,null,null,"5-66639701-FG-1"]
["2601601-01",null,null,null,null,null,null,null,null,null,null,null,null,null,null,null,null,null,null,null,null,null,null,null,null,null,null,null,null,"5-66639701-FG-2"]
["2601601-02",null,null,null,null,null,null,null,null,null,null,null,null,null,null,null,null,null,null,null,null,null,null,null,null,null,null,null,null,"5-66639801-FG-1"]
["2601601-03",null,null,null,null,null,null,null,null,null,null,null,null,null,null,null,null,null,null,null,null,null,null,null,null,null,null,null,null,"5-666400A-FG-1"]
["2601601-03",null,null,null,null,null,null,null,null,null,null,null,null,null,null,null,null,null,null,null,null,null,null,null,null,null,null,null,null,"5-666400A-FG-2"]
["2601601-05",null,null,null,null,null,null,null,null,null,null,null,null,null,null,null,null,null,null,null,null,null,null,null,null,null,null,null,null,""]
["2602301-01",null,null,null,null,null,null,null,null,null,null,null,null,null,null,null,null,null,null,null,null,null,null,null,null,null,null,null,null,""]
["2602301-01",null,null,null,null,null,null,null,null,null,null,null,null,null,null,null,null,null,null,null,null,null,null,null,null,null,null,null,null,""]
["2602601-01",null,null,null,null,null,null,null,null,null,null,null,null,null,null,null,null,null,null,null,null,null,null,null,null,null,null,null,null,""]
["2602601-01",null,null,null,null,null,null,null,null,null,null,null,null,null,null,null,null,null,null,null,null,null,null,null,null,null,null,null,null,""]
["2602601-01",null,null,null,null,null,null,null,null,null,null,null,null,null,null,null,null,null,null,null,null,null,null,null,null,null,null,null,null,"9_665944A_VD_1"]
["2602601-01",null,null,null,null,null,null,null,null,null,null,null,null,null,null,null,null,null,null,null,null,null,null,null,null,null,null,null,null,"9_665944A_VD_2"]
["2602601-02",null,null,null,null,null,null,null,null,null,null,null,null,null,null,null,null,null,null,null,null,null,null,null,null,null,null,null,null,"6-665945A-RF-2"]
["2602601-02",null,null,null,null,null,null,null,null,null,null,null,null,null,null,null,null,null,null,null,null,null,null,null,null,null,null,null,null,"9_665945A_VD_1"]
["2602601-02",null,null,null,null,null,null,null,null,null,null,null,null,null,null,null,null,null,null,null,null,null,null,null,null,null,null,null,null,"9_665945A_VD_2"]
["2602601-40",null,null,null,null,null,null,null,null,null,null,null,null,null,null,null,null,null,null,null,null,null,null,null,null,null,null,null,null,"7-665960A0-GR-1"]
["2602601-40",null,null,null,null,null,null,null,null,null,null,null,null,null,null,null,null,null,null,null,null,null,null,null,null,null,null,null,null,"7-665960A0-GR-2"]
["2602601-40",null,null,null,null,null,null,null,null,null,null,null,null,null,null,null,null,null,null,null,null,null,null,null,null,null,null,null,null,"6-665960A-FG-1"]
["2602601-40",null,null,null,null,null,null,null,null,null,null,null,null,null,null,null,null,null,null,null,null,null,null,null,null,null,null,null,null,"6-665960A-FG-2"]
["2602901-01",null,null,null,null,null,null,null,null,null,null,null,null,null,null,null,null,null,null,null,null,null,null,null,null,null,null,null,null,""]
["2602901-01",null,null,null,null,null,null,null,null,null,null,null,null,null,null,null,null,null,null,null,null,null,null,null,null,null,null,null,null,""]
["2602901-02",null,null,null,null,null,null,null,null,null,null,null,null,null,null,null,null,null,null,null,null,null,null,null,null,null,null,null,null,""]
["2602901-02",null,null,null,null,null,null,null,null,null,null,null,null,null,null,null,null,null,null,null,null,null,null,null,null,null,null,null,null,""]
["2602901-02",null,null,null,null,null,null,null,null,null,null,null,null,null,null,null,null,null,null,null,null,null,null,null,null,null,null,null,null,""]
["2602901-02",null,null,null,null,null,null,null,null,null,null,null,null,null,null,null,null,null,null,null,null,null,null,null,null,null,null,null,null,""]
["2602901-04",null,null,null,null,null,null,null,null,null,null,null,null,null,null,null,null,null,null,null,null,null,null,null,null,null,null,null,null,"7-665836A0-GR-1"]
["2602901-04",null,null,null,null,null,null,null,null,null,null,null,null,null,null,null,null,null,null,null,null,null,null,null,null,null,null,null,null,"7-665836A0-GR-2"]
["2602901-04",null,null,null,null,null,null,null,null,null,null,null,null,null,null,null,null,null,null,null,null,null,null,null,null,null,null,null,null,""]
["2604001-03",null,null,null,null,null,null,null,null,null,null,null,null,null,null,null,null,null,null,null,null,null,null,null,null,null,null,null,null,"1-60959100-VM-1"]
["2604001-03",null,null,null,null,null,null,null,null,null,null,null,null,null,null,null,null,null,null,null,null,null,null,null,null,null,null,null,null,"1-60959100-VM-2"]
["2604001-03",null,null,null,null,null,null,null,null,null,null,null,null,null,null,null,null,null,null,null,null,null,null,null,null,null,null,null,null,""]
["2604401-01",null,null,null,null,null,null,null,null,null,null,null,null,null,null,null,null,null,null,null,null,null,null,null,null,null,null,null,null,"8_667426A_RM_1"]
["2604401-01",null,null,null,null,null,null,null,null,null,null,null,null,null,null,null,null,null,null,null,null,null,null,null,null,null,null,null,null,"8_667426A_RM_2"]
["2605001-02",null,null,null,null,null,null,null,null,null,null,null,null,null,null,null,null,null,null,null,null,null,null,null,null,null,null,null,null,""]
["2605101-01",null,null,null,null,null,null,null,null,null,null,null,null,null,null,null,null,null,null,null,null,null,null,null,null,null,null,null,null,"7-64877901-VD-1"]
["2605101-01",null,null,null,null,null,null,null,null,null,null,null,null,null,null,null,null,null,null,null,null,null,null,null,null,null,null,null,null,"7-64877801-VD-1"]
["2605101-01",null,null,null,null,null,null,null,null,null,null,null,null,null,null,null,null,null,null,null,null,null,null,null,null,null,null,null,null,"5-64877901-FG-1"]
["2605101-01",null,null,null,null,null,null,null,null,null,null,null,null,null,null,null,null,null,null,null,null,null,null,null,null,null,null,null,null,""]
["2605101-01",null,null,null,null,null,null,null,null,null,null,null,null,null,null,null,null,null,null,null,null,null,null,null,null,null,null,null,null,"5-64877901-FG-2"]
["2605101-01",null,null,null,null,null,null,null,null,null,null,null,null,null,null,null,null,null,null,null,null,null,null,null,null,null,null,null,null,""]
["2605101-02",null,null,null,null,null,null,null,null,null,null,null,null,null,null,null,null,null,null,null,null,null,null,null,null,null,null,null,null,"7-64877801-VD-1"]
["2605101-02",null,null,null,null,null,null,null,null,null,null,null,null,null,null,null,null,null,null,null,null,null,null,null,null,null,null,null,null,"7-64877901-VD-1"]
["2605101-02",null,null,null,null,null,null,null,null,null,null,null,null,null,null,null,null,null,null,null,null,null,null,null,null,null,null,null,null,"5-64877801-FG-1"]
["2605101-02",null,null,null,null,null,null,null,null,null,null,null,null,null,null,null,null,null,null,null,null,null,null,null,null,null,null,null,null,""]
["2605101-02",null,null,null,null,null,null,null,null,null,null,null,null,null,null,null,null,null,null,null,null,null,null,null,null,null,null,null,null,"5-64877801-FG-2"]
["2605101-02",null,null,null,null,null,null,null,null,null,null,null,null,null,null,null,null,null,null,null,null,null,null,null,null,null,null,null,null,""]
["2605101-03",null,null,null,null,null,null,null,null,null,null,null,null,null,null,null,null,null,null,null,null,null,null,null,null,null,null,null,null,"5-63951803-FG-1"]
["2605101-03",null,null,null,null,null,null,null,null,null,null,null,null,null,null,null,null,null,null,null,null,null,null,null,null,null,null,null,null,"5-63951803-FG-2"]
["2605101-04",null,null,null,null,null,null,null,null,null,null,null,null,null,null,null,null,null,null,null,null,null,null,null,null,null,null,null,null,"7-61785612-GR-1"]
["2605101-04",null,null,null,null,null,null,null,null,null,null,null,null,null,null,null,null,null,null,null,null,null,null,null,null,null,null,null,null,"7-61785612-GR-2"]
["2605101-04",null,null,null,null,null,null,null,null,null,null,null,null,null,null,null,null,null,null,null,null,null,null,null,null,null,null,null,null,"5-61785612-FG-1"]
["2605501-05",null,null,null,null,null,null,null,null,null,null,null,null,null,null,null,null,null,null,null,null,null,null,null,null,null,null,null,null,""]
["2605501-06",null,null,null,null,null,null,null,null,null,null,null,null,null,null,null,null,null,null,null,null,null,null,null,null,null,null,null,null,"6-63001603-FG-1"]
["2605601-00",null,null,null,null,null,null,null,null,null,null,null,null,null,null,null,null,null,null,null,null,null,null,null,null,null,null,null,null,""]
["2605701-01",null,null,null,null,null,null,null,null,null,null,null,null,null,null,null,null,null,null,null,null,null,null,null,null,null,null,null,null,""]
["2605701-02",null,null,null,null,null,null,null,null,null,null,null,null,null,null,null,null,null,null,null,null,null,null,null,null,null,null,null,null,""]
["2605701-03",null,null,null,null,null,null,null,null,null,null,null,null,null,null,null,null,null,null,null,null,null,null,null,null,null,null,null,null,""]
["2605701-03",null,null,null,null,null,null,null,null,null,null,null,null,null,null,null,null,null,null,null,null,null,null,null,null,null,null,null,null,""]
["2605701-05",null,null,null,null,null,null,null,null,null,null,null,null,null,null,null,null,null,null,null,null,null,null,null,null,null,null,null,null,"5-61778812-FG-1"]
["2605701-06",null,null,null,null,null,null,null,null,null,null,null,null,null,null,null,null,null,null,null,null,null,null,null,null,null,null,null,null,"5-64722401-FG-1"]
["2605701-07",null,null,null,null,null,null,null,null,null,null,null,null,null,null,null,null,null,null,null,null,null,null,null,null,null,null,null,null,""]
["2605701-07",null,null,null,null,null,null,null,null,null,null,null,null,null,null,null,null,null,null,null,null,null,null,null,null,null,null,null,null,""]
["2605701-07",null,null,null,null,null,null,null,null,null,null,null,null,null,null,null,null,null,null,null,null,null,null,null,null,null,null,null,null,""]
["2605701-08",null,null,null,null,null,null,null,null,null,null,null,null,null,null,null,null,null,null,null,null,null,null,null,null,null,null,null,null,""]
["2605901-01",null,null,null,null,null,null,null,null,null,null,null,null,null,null,null,null,null,null,null,null,null,null,null,null,null,null,null,null,"1-662853A0-VM-1"]
["2605901-01",null,null,null,null,null,null,null,null,null,null,null,null,null,null,null,null,null,null,null,null,null,null,null,null,null,null,null,null,"1-662853A0-VM-2"]
["2605901-04",null,null,null,null,null,null,null,null,null,null,null,null,null,null,null,null,null,null,null,null,null,null,null,null,null,null,null,null,"1-662855A0-SB-1"]
["2605901-04",null,null,null,null,null,null,null,null,null,null,null,null,null,null,null,null,null,null,null,null,null,null,null,null,null,null,null,null,"1-662855A0-SB-2"]
["2605901-04",null,null,null,null,null,null,null,null,null,null,null,null,null,null,null,null,null,null,null,null,null,null,null,null,null,null,null,null,"5-662855A-FG-1"]
["2605901-05",null,null,null,null,null,null,null,null,null,null,null,null,null,null,null,null,null,null,null,null,null,null,null,null,null,null,null,null,"1-662856A0-VM-1"]
["2605901-05",null,null,null,null,null,null,null,null,null,null,null,null,null,null,null,null,null,null,null,null,null,null,null,null,null,null,null,null,"1-662856A0-VM-2"]
["2605901-05",null,null,null,null,null,null,null,null,null,null,null,null,null,null,null,null,null,null,null,null,null,null,null,null,null,null,null,null,"5-662856A-FG-1"]
["2606001-02",null,null,null,null,null,null,null,null,null,null,null,null,null,null,null,null,null,null,null,null,null,null,null,null,null,null,null,null,"7-64942601-VD-1"]
["2606001-02",null,null,null,null,null,null,null,null,null,null,null,null,null,null,null,null,null,null,null,null,null,null,null,null,null,null,null,null,""]
["2606001-03",null,null,null,null,null,null,null,null,null,null,null,null,null,null,null,null,null,null,null,null,null,null,null,null,null,null,null,null,""]
["2606101-01",null,null,null,null,null,null,null,null,null,null,null,null,null,null,null,null,null,null,null,null,null,null,null,null,null,null,null,null,""]
["2606101-02",null,null,null,null,null,null,null,null,null,null,null,null,null,null,null,null,null,null,null,null,null,null,null,null,null,null,null,null,""]
["2606101-02",null,null,null,null,null,null,null,null,null,null,null,null,null,null,null,null,null,null,null,null,null,null,null,null,null,null,null,null,""]
["2606101-03",null,null,null,null,null,null,null,null,null,null,null,null,null,null,null,null,null,null,null,null,null,null,null,null,null,null,null,null,""]
["2606101-03",null,null,null,null,null,null,null,null,null,null,null,null,null,null,null,null,null,null,null,null,null,null,null,null,null,null,null,null,""]
["2606101-04",null,null,null,null,null,null,null,null,null,null,null,null,null,null,null,null,null,null,null,null,null,null,null,null,null,null,null,null,""]
["2606101-05",null,null,null,null,null,null,null,null,null,null,null,null,null,null,null,null,null,null,null,null,null,null,null,null,null,null,null,null,"1-617880A0-GR-1"]
["2606101-05",null,null,null,null,null,null,null,null,null,null,null,null,null,null,null,null,null,null,null,null,null,null,null,null,null,null,null,null,"1-617880A0-GR-2"]
["2606101-05",null,null,null,null,null,null,null,null,null,null,null,null,null,null,null,null,null,null,null,null,null,null,null,null,null,null,null,null,"5-617880A-FG-1"]
["2606101-06",null,null,null,null,null,null,null,null,null,null,null,null,null,null,null,null,null,null,null,null,null,null,null,null,null,null,null,null,""]
["2606101-07",null,null,null,null,null,null,null,null,null,null,null,null,null,null,null,null,null,null,null,null,null,null,null,null,null,null,null,null,""]
["2606101-09",null,null,null,null,null,null,null,null,null,null,null,null,null,null,null,null,null,null,null,null,null,null,null,null,null,null,null,null,""]
["2606701-05",null,null,null,null,null,null,null,null,null,null,null,null,null,null,null,null,null,null,null,null,null,null,null,null,null,null,null,null,"7-658386A0-GR-1"]
["2606701-05",null,null,null,null,null,null,null,null,null,null,null,null,null,null,null,null,null,null,null,null,null,null,null,null,null,null,null,null,"7-658386A0-GR-2"]
["2606701-05",null,null,null,null,null,null,null,null,null,null,null,null,null,null,null,null,null,null,null,null,null,null,null,null,null,null,null,null,"5-658386-FG-1"]
["2608101-01",null,null,null,null,null,null,null,null,null,null,null,null,null,null,null,null,null,null,null,null,null,null,null,null,null,null,null,null,""]
["2608101-02",null,null,null,null,null,null,null,null,null,null,null,null,null,null,null,null,null,null,null,null,null,null,null,null,null,null,null,null,""]
["2608401-02",null,null,null,null,null,null,null,null,null,null,null,null,null,null,null,null,null,null,null,null,null,null,null,null,null,null,null,null,""]
["2608401-03",null,null,null,null,null,null,null,null,null,null,null,null,null,null,null,null,null,null,null,null,null,null,null,null,null,null,null,null,""]
["2608401-03",null,null,null,null,null,null,null,null,null,null,null,null,null,null,null,null,null,null,null,null,null,null,null,null,null,null,null,null,""]
["2608401-05",null,null,null,null,null,null,null,null,null,null,null,null,null,null,null,null,null,null,null,null,null,null,null,null,null,null,null,null,"5-61778812-FG-1"]
["2609201-05",null,null,null,null,null,null,null,null,null,null,null,null,null,null,null,null,null,null,null,null,null,null,null,null,null,null,null,null,"7-658386A0-GR-1"]
["2609201-05",null,null,null,null,null,null,null,null,null,null,null,null,null,null,null,null,null,null,null,null,null,null,null,null,null,null,null,null,"7-658386A0-GR-2"]
["2609201-05",null,null,null,null,null,null,null,null,null,null,null,null,null,null,null,null,null,null,null,null,null,null,null,null,null,null,null,null,"5-658386-FG-1"]
["2609501-00",null,null,null,null,null,null,null,null,null,null,null,null,null,null,null,null,null,null,null,null,null,null,null,null,null,null,null,null,""]
["2609502-00",null,null,null,null,null,null,null,null,null,null,null,null,null,null,null,null,null,null,null,null,null,null,null,null,null,null,null,null,""]
["2609601-00",null,null,null,null,null,null,null,null,null,null,null,null,null,null,null,null,null,null,null,null,null,null,null,null,null,null,null,null,""]
["2609602-00",null,null,null,null,null,null,null,null,null,null,null,null,null,null,null,null,null,null,null,null,null,null,null,null,null,null,null,null,""]
["2611001-01",null,null,null,null,null,null,null,null,null,null,null,null,null,null,null,null,null,null,null,null,null,null,null,null,null,null,null,null,"7-665029KA-VD-1"]
["2611001-01",null,null,null,null,null,null,null,null,null,null,null,null,null,null,null,null,null,null,null,null,null,null,null,null,null,null,null,null,"5-665029A-FG-1"]
["2611001-01",null,null,null,null,null,null,null,null,null,null,null,null,null,null,null,null,null,null,null,null,null,null,null,null,null,null,null,null,"5-665029A-FG-2"]
["2612001-01",null,null,null,null,null,null,null,null,null,null,null,null,null,null,null,null,null,null,null,null,null,null,null,null,null,null,null,null,""]
["2612002-01",null,null,null,null,null,null,null,null,null,null,null,null,null,null,null,null,null,null,null,null,null,null,null,null,null,null,null,null,""]
["BA202304",null,null,null,null,null,null,null,null,null,null,null,null,null,null,null,null,null,null,null,null,null,null,null,null,null,null,null,null,""]
["BA202304",null,null,null,null,null,null,null,null,null,null,null,null,null,null,null,null,null,null,null,null,null,null,null,null,null,null,null,null,""]
["BA202305",null,null,null,null,null,null,null,null,null,null,null,null,null,null,null,null,null,null,null,null,null,null,null,null,null,null,null,null,""]
["BA202308",null,null,null,null,null,null,null,null,null,null,null,null,null,null,null,null,null,null,null,null,null,null,null,null,null,null,null,null,""]
["BA202308",null,null,null,null,null,null,null,null,null,null,null,null,null,null,null,null,null,null,null,null,null,null,null,null,null,null,null,null,""]
["BA202308",null,null,null,null,null,null,null,null,null,null,null,null,null,null,null,null,null,null,null,null,null,null,null,null,null,null,null,null,""]
["BA202308",null,null,null,null,null,null,null,null,null,null,null,null,null,null,null,null,null,null,null,null,null,null,null,null,null,null,null,null,""]
["BA202308",null,null,null,null,null,null,null,null,null,null,null,null,null,null,null,null,null,null,null,null,null,null,null,null,null,null,null,null,""]
["BA202308",null,null,null,null,null,null,null,null,null,null,null,null,null,null,null,null,null,null,null,null,null,null,null,null,null,null,null,null,""]
["BA202308",null,null,null,null,null,null,null,null,null,null,null,null,null,null,null,null,null,null,null,null,null,null,null,null,null,null,null,null,""]
["BA202308",null,null,null,null,null,null,null,null,null,null,null,null,null,null,null,null,null,null,null,null,null,null,null,null,null,null,null,null,""]
["BA202308",null,null,null,null,null,null,null,null,null,null,null,null,null,null,null,null,null,null,null,null,null,null,null,null,null,null,null,null,""]
["BA202308",null,null,null,null,null,null,null,null,null,null,null,null,null,null,null,null,null,null,null,null,null,null,null,null,null,null,null,null,""]
["BA202320",null,null,null,null,null,null,null,null,null,null,null,null,null,null,null,null,null,null,null,null,null,null,null,null,null,null,null,null,"8_661720B_RM_1"]
["BA202320",null,null,null,null,null,null,null,null,null,null,null,null,null,null,null,null,null,null,null,null,null,null,null,null,null,null,null,null,"8_661720B_RM_5"]
["BA202334-00",null,null,null,null,null,null,null,null,null,null,null,null,null,null,null,null,null,null,null,null,null,null,null,null,null,null,null,null,""]
["BA202334-11",null,null,null,null,null,null,null,null,null,null,null,null,null,null,null,null,null,null,null,null,null,null,null,null,null,null,null,null,""]
["BA202334-11",null,null,null,null,null,null,null,null,null,null,null,null,null,null,null,null,null,null,null,null,null,null,null,null,null,null,null,null,""]
["BA202334-97",null,null,null,null,null,null,null,null,null,null,null,null,null,null,null,null,null,null,null,null,null,null,null,null,null,null,null,null,""]
["BA202334-97",null,null,null,null,null,null,null,null,null,null,null,null,null,null,null,null,null,null,null,null,null,null,null,null,null,null,null,null,""]
["BA202404",null,null,null,null,null,null,null,null,null,null,null,null,null,null,null,null,null,null,null,null,null,null,null,null,null,null,null,null,""]
["BA202405",null,null,null,null,null,null,null,null,null,null,null,null,null,null,null,null,null,null,null,null,null,null,null,null,null,null,null,null,""]
["BA202408-00",null,null,null,null,null,null,null,null,null,null,null,null,null,null,null,null,null,null,null,null,null,null,null,null,null,null,null,null,""]
["BA202408-00",null,null,null,null,null,null,null,null,null,null,null,null,null,null,null,null,null,null,null,null,null,null,null,null,null,null,null,null,""]
["BA202408-00",null,null,null,null,null,null,null,null,null,null,null,null,null,null,null,null,null,null,null,null,null,null,null,null,null,null,null,null,""]
["BA202428-15",null,null,null,null,null,null,null,null,null,null,null,null,null,null,null,null,null,null,null,null,null,null,null,null,null,null,null,null,""]
["BA202428-16",null,null,null,null,null,null,null,null,null,null,null,null,null,null,null,null,null,null,null,null,null,null,null,null,null,null,null,null,""]
["BA202432-01",null,null,null,null,null,null,null,null,null,null,null,null,null,null,null,null,null,null,null,null,null,null,null,null,null,null,null,null,""]
["BA202432-01",null,null,null,null,null,null,null,null,null,null,null,null,null,null,null,null,null,null,null,null,null,null,null,null,null,null,null,null,""]
["BA202432-01",null,null,null,null,null,null,null,null,null,null,null,null,null,null,null,null,null,null,null,null,null,null,null,null,null,null,null,null,""]
["BA202432-02",null,null,null,null,null,null,null,null,null,null,null,null,null,null,null,null,null,null,null,null,null,null,null,null,null,null,null,null,""]
["BA202432-02",null,null,null,null,null,null,null,null,null,null,null,null,null,null,null,null,null,null,null,null,null,null,null,null,null,null,null,null,""]
["BA202432-02",null,null,null,null,null,null,null,null,null,null,null,null,null,null,null,null,null,null,null,null,null,null,null,null,null,null,null,null,""]
["BA202432-02",null,null,null,null,null,null,null,null,null,null,null,null,null,null,null,null,null,null,null,null,null,null,null,null,null,null,null,null,""]
["BA202432-03",null,null,null,null,null,null,null,null,null,null,null,null,null,null,null,null,null,null,null,null,null,null,null,null,null,null,null,null,""]
["BA202432-05",null,null,null,null,null,null,null,null,null,null,null,null,null,null,null,null,null,null,null,null,null,null,null,null,null,null,null,null,""]
["BA202432-05",null,null,null,null,null,null,null,null,null,null,null,null,null,null,null,null,null,null,null,null,null,null,null,null,null,null,null,null,""]
["BA202432-05",null,null,null,null,null,null,null,null,null,null,null,null,null,null,null,null,null,null,null,null,null,null,null,null,null,null,null,null,""]
["BA202432-05",null,null,null,null,null,null,null,null,null,null,null,null,null,null,null,null,null,null,null,null,null,null,null,null,null,null,null,null,""]
["BA202432-08",null,null,null,null,null,null,null,null,null,null,null,null,null,null,null,null,null,null,null,null,null,null,null,null,null,null,null,null,""]
["BA202432-08",null,null,null,null,null,null,null,null,null,null,null,null,null,null,null,null,null,null,null,null,null,null,null,null,null,null,null,null,""]
["BA202432-11",null,null,null,null,null,null,null,null,null,null,null,null,null,null,null,null,null,null,null,null,null,null,null,null,null,null,null,null,""]
["BA202432-11",null,null,null,null,null,null,null,null,null,null,null,null,null,null,null,null,null,null,null,null,null,null,null,null,null,null,null,null,""]
["BA202432-33",null,null,null,null,null,null,null,null,null,null,null,null,null,null,null,null,null,null,null,null,null,null,null,null,null,null,null,null,""]
["BA202432-33",null,null,null,null,null,null,null,null,null,null,null,null,null,null,null,null,null,null,null,null,null,null,null,null,null,null,null,null,""]
["BA202438-00",null,null,null,null,null,null,null,null,null,null,null,null,null,null,null,null,null,null,null,null,null,null,null,null,null,null,null,null,""]
["BA202439-02",null,null,null,null,null,null,null,null,null,null,null,null,null,null,null,null,null,null,null,null,null,null,null,null,null,null,null,null,""]
["BA202441-95",null,null,null,null,null,null,null,null,null,null,null,null,null,null,null,null,null,null,null,null,null,null,null,null,null,null,null,null,""]
["BA202445",null,null,null,null,null,null,null,null,null,null,null,null,null,null,null,null,null,null,null,null,null,null,null,null,null,null,null,null,""]
["BA202445",null,null,null,null,null,null,null,null,null,null,null,null,null,null,null,null,null,null,null,null,null,null,null,null,null,null,null,null,""]
["BA202446-04",null,null,null,null,null,null,null,null,null,null,null,null,null,null,null,null,null,null,null,null,null,null,null,null,null,null,null,null,""]
["BA202447-05",null,null,null,null,null,null,null,null,null,null,null,null,null,null,null,null,null,null,null,null,null,null,null,null,null,null,null,null,""]
["BA202447-05",null,null,null,null,null,null,null,null,null,null,null,null,null,null,null,null,null,null,null,null,null,null,null,null,null,null,null,null,""]
["BA202450-02",null,null,null,null,null,null,null,null,null,null,null,null,null,null,null,null,null,null,null,null,null,null,null,null,null,null,null,null,""]
["BA202451-00",null,null,null,null,null,null,null,null,null,null,null,null,null,null,null,null,null,null,null,null,null,null,null,null,null,null,null,null,""]
["FA52773",null,null,null,null,null,null,null,null,null,null,null,null,null,null,null,null,null,null,null,null,null,null,null,null,null,null,null,null,""]
["FA52773",null,null,null,null,null,null,null,null,null,null,null,null,null,null,null,null,null,null,null,null,null,null,null,null,null,null,null,null,""]
["FA59564",null,null,null,null,null,null,null,null,null,null,null,null,null,null,null,null,null,null,null,null,null,null,null,null,null,null,null,null,""]
["FA64984",null,null,null,null,null,null,null,null,null,null,null,null,null,null,null,null,null,null,null,null,null,null,null,null,null,null,null,null,"1-65343901-VM-1"]
["FA64984",null,null,null,null,null,null,null,null,null,null,null,null,null,null,null,null,null,null,null,null,null,null,null,null,null,null,null,null,"1-65343901-VM-2"]
["FA64984",null,null,null,null,null,null,null,null,null,null,null,null,null,null,null,null,null,null,null,null,null,null,null,null,null,null,null,null,""]
["FA64984",null,null,null,null,null,null,null,null,null,null,null,null,null,null,null,null,null,null,null,null,null,null,null,null,null,null,null,null,""]
["FA66977",null,null,null,null,null,null,null,null,null,null,null,null,null,null,null,null,null,null,null,null,null,null,null,null,null,null,null,null,"6-665059A-RF-2"]
["FA67642",null,null,null,null,null,null,null,null,null,null,null,null,null,null,null,null,null,null,null,null,null,null,null,null,null,null,null,null,""]
["FA67642",null,null,null,null,null,null,null,null,null,null,null,null,null,null,null,null,null,null,null,null,null,null,null,null,null,null,null,null,""]
["FA67840",null,null,null,null,null,null,null,null,null,null,null,null,null,null,null,null,null,null,null,null,null,null,null,null,null,null,null,null,""]
["FA67840",null,null,null,null,null,null,null,null,null,null,null,null,null,null,null,null,null,null,null,null,null,null,null,null,null,null,null,null,""]
["FA68075",null,null,null,null,null,null,null,null,null,null,null,null,null,null,null,null,null,null,null,null,null,null,null,null,null,null,null,null,""]
["FA68075",null,null,null,null,null,null,null,null,null,null,null,null,null,null,null,null,null,null,null,null,null,null,null,null,null,null,null,null,""]
["FA68075",null,null,null,null,null,null,null,null,null,null,null,null,null,null,null,null,null,null,null,null,null,null,null,null,null,null,null,null,""]
["FA68078",null,null,null,null,null,null,null,null,null,null,null,null,null,null,null,null,null,null,null,null,null,null,null,null,null,null,null,null,""]
["FA68777",null,null,null,null,null,null,null,null,null,null,null,null,null,null,null,null,null,null,null,null,null,null,null,null,null,null,null,null,"8_665047A_RM_3"]
["FA68791",null,null,null,null,null,null,null,null,null,null,null,null,null,null,null,null,null,null,null,null,null,null,null,null,null,null,null,null,""]
["FA68791",null,null,null,null,null,null,null,null,null,null,null,null,null,null,null,null,null,null,null,null,null,null,null,null,null,null,null,null,""]
["FA68845",null,null,null,null,null,null,null,null,null,null,null,null,null,null,null,null,null,null,null,null,null,null,null,null,null,null,null,null,""]
["FA68845",null,null,null,null,null,null,null,null,null,null,null,null,null,null,null,null,null,null,null,null,null,null,null,null,null,null,null,null,""]
["FA69055",null,null,null,null,null,null,null,null,null,null,null,null,null,null,null,null,null,null,null,null,null,null,null,null,null,null,null,null,""]
["FA69055",null,null,null,null,null,null,null,null,null,null,null,null,null,null,null,null,null,null,null,null,null,null,null,null,null,null,null,null,""]
["FA69132",null,null,null,null,null,null,null,null,null,null,null,null,null,null,null,null,null,null,null,null,null,null,null,null,null,null,null,null,""]
["FA69133",null,null,null,null,null,null,null,null,null,null,null,null,null,null,null,null,null,null,null,null,null,null,null,null,null,null,null,null,""]
["FA69140",null,null,null,null,null,null,null,null,null,null,null,null,null,null,null,null,null,null,null,null,null,null,null,null,null,null,null,null,"5-659885A-FG-1"]
["FA69153",null,null,null,null,null,null,null,null,null,null,null,null,null,null,null,null,null,null,null,null,null,null,null,null,null,null,null,null,"8_653523A_VD_3"]
["FA69156",null,null,null,null,null,null,null,null,null,null,null,null,null,null,null,null,null,null,null,null,null,null,null,null,null,null,null,null,""]
["FA69223",null,null,null,null,null,null,null,null,null,null,null,null,null,null,null,null,null,null,null,null,null,null,null,null,null,null,null,null,""]
["FA69223",null,null,null,null,null,null,null,null,null,null,null,null,null,null,null,null,null,null,null,null,null,null,null,null,null,null,null,null,""]
["FA69223",null,null,null,null,null,null,null,null,null,null,null,null,null,null,null,null,null,null,null,null,null,null,null,null,null,null,null,null,""]
["FA69223",null,null,null,null,null,null,null,null,null,null,null,null,null,null,null,null,null,null,null,null,null,null,null,null,null,null,null,null,""]
["FA69392",null,null,null,null,null,null,null,null,null,null,null,null,null,null,null,null,null,null,null,null,null,null,null,null,null,null,null,null,""]
["FA69392",null,null,null,null,null,null,null,null,null,null,null,null,null,null,null,null,null,null,null,null,null,null,null,null,null,null,null,null,""]
["FA69394",null,null,null,null,null,null,null,null,null,null,null,null,null,null,null,null,null,null,null,null,null,null,null,null,null,null,null,null,""]
["FA69394",null,null,null,null,null,null,null,null,null,null,null,null,null,null,null,null,null,null,null,null,null,null,null,null,null,null,null,null,""]
["FA69395",null,null,null,null,null,null,null,null,null,null,null,null,null,null,null,null,null,null,null,null,null,null,null,null,null,null,null,null,"3_634832C_RM_1_WPD"]
["FA69396",null,null,null,null,null,null,null,null,null,null,null,null,null,null,null,null,null,null,null,null,null,null,null,null,null,null,null,null,""]
["FA69396",null,null,null,null,null,null,null,null,null,null,null,null,null,null,null,null,null,null,null,null,null,null,null,null,null,null,null,null,""]
["FA69396",null,null,null,null,null,null,null,null,null,null,null,null,null,null,null,null,null,null,null,null,null,null,null,null,null,null,null,null,""]
["FA69397",null,null,null,null,null,null,null,null,null,null,null,null,null,null,null,null,null,null,null,null,null,null,null,null,null,null,null,null,""]
["FA69397",null,null,null,null,null,null,null,null,null,null,null,null,null,null,null,null,null,null,null,null,null,null,null,null,null,null,null,null,""]
["FA69397",null,null,null,null,null,null,null,null,null,null,null,null,null,null,null,null,null,null,null,null,null,null,null,null,null,null,null,null,""]
["FA69397",null,null,null,null,null,null,null,null,null,null,null,null,null,null,null,null,null,null,null,null,null,null,null,null,null,null,null,null,""]
["FA69414",null,null,null,null,null,null,null,null,null,null,null,null,null,null,null,null,null,null,null,null,null,null,null,null,null,null,null,null,""]
["FA69414",null,null,null,null,null,null,null,null,null,null,null,null,null,null,null,null,null,null,null,null,null,null,null,null,null,null,null,null,""]
["FA69414",null,null,null,null,null,null,null,null,null,null,null,null,null,null,null,null,null,null,null,null,null,null,null,null,null,null,null,null,""]
["FA69414",null,null,null,null,null,null,null,null,null,null,null,null,null,null,null,null,null,null,null,null,null,null,null,null,null,null,null,null,""]
["FA69426",null,null,null,null,null,null,null,null,null,null,null,null,null,null,null,null,null,null,null,null,null,null,null,null,null,null,null,null,"1-65344501-ZV-1"]
["FA69426",null,null,null,null,null,null,null,null,null,null,null,null,null,null,null,null,null,null,null,null,null,null,null,null,null,null,null,null,"1-65344501-ZV-2"]
["FA69426",null,null,null,null,null,null,null,null,null,null,null,null,null,null,null,null,null,null,null,null,null,null,null,null,null,null,null,null,""]
["FA69426",null,null,null,null,null,null,null,null,null,null,null,null,null,null,null,null,null,null,null,null,null,null,null,null,null,null,null,null,""]
["FA69427",null,null,null,null,null,null,null,null,null,null,null,null,null,null,null,null,null,null,null,null,null,null,null,null,null,null,null,null,""]
["FA69427",null,null,null,null,null,null,null,null,null,null,null,null,null,null,null,null,null,null,null,null,null,null,null,null,null,null,null,null,""]
["FA69427",null,null,null,null,null,null,null,null,null,null,null,null,null,null,null,null,null,null,null,null,null,null,null,null,null,null,null,null,""]
["FA69430",null,null,null,null,null,null,null,null,null,null,null,null,null,null,null,null,null,null,null,null,null,null,null,null,null,null,null,null,""]
["FA69430",null,null,null,null,null,null,null,null,null,null,null,null,null,null,null,null,null,null,null,null,null,null,null,null,null,null,null,null,""]
["FA69434",null,null,null,null,null,null,null,null,null,null,null,null,null,null,null,null,null,null,null,null,null,null,null,null,null,null,null,null,"1-665025A0-VM-1"]
["FA69434",null,null,null,null,null,null,null,null,null,null,null,null,null,null,null,null,null,null,null,null,null,null,null,null,null,null,null,null,"1-665025A0-VM-2"]
["FA69434",null,null,null,null,null,null,null,null,null,null,null,null,null,null,null,null,null,null,null,null,null,null,null,null,null,null,null,null,"5-665025A-FG-1"]
["FA69435",null,null,null,null,null,null,null,null,null,null,null,null,null,null,null,null,null,null,null,null,null,null,null,null,null,null,null,null,""]
["FA69435",null,null,null,null,null,null,null,null,null,null,null,null,null,null,null,null,null,null,null,null,null,null,null,null,null,null,null,null,""]
["FA69436",null,null,null,null,null,null,null,null,null,null,null,null,null,null,null,null,null,null,null,null,null,null,null,null,null,null,null,null,"5-665033B-FG-1"]
["FA69436",null,null,null,null,null,null,null,null,null,null,null,null,null,null,null,null,null,null,null,null,null,null,null,null,null,null,null,null,"5-665033B-FG-2"]
["FA69438",null,null,null,null,null,null,null,null,null,null,null,null,null,null,null,null,null,null,null,null,null,null,null,null,null,null,null,null,""]
["FA69450",null,null,null,null,null,null,null,null,null,null,null,null,null,null,null,null,null,null,null,null,null,null,null,null,null,null,null,null,""]
["FA69450",null,null,null,null,null,null,null,null,null,null,null,null,null,null,null,null,null,null,null,null,null,null,null,null,null,null,null,null,""]
["FA69464",null,null,null,null,null,null,null,null,null,null,null,null,null,null,null,null,null,null,null,null,null,null,null,null,null,null,null,null,"6-665054A-RF-1"]
["FA69464",null,null,null,null,null,null,null,null,null,null,null,null,null,null,null,null,null,null,null,null,null,null,null,null,null,null,null,null,"6-665054A-RF-2"]
["FA69465",null,null,null,null,null,null,null,null,null,null,null,null,null,null,null,null,null,null,null,null,null,null,null,null,null,null,null,null,"7-665089A0-GR-1"]
["FA69465",null,null,null,null,null,null,null,null,null,null,null,null,null,null,null,null,null,null,null,null,null,null,null,null,null,null,null,null,"7-665089A0-GR-2"]
["FA69465",null,null,null,null,null,null,null,null,null,null,null,null,null,null,null,null,null,null,null,null,null,null,null,null,null,null,null,null,"5-665089A-FG-1"]
["FA69465",null,null,null,null,null,null,null,null,null,null,null,null,null,null,null,null,null,null,null,null,null,null,null,null,null,null,null,null,"5-665089A-FG-2"]
["FA69469",null,null,null,null,null,null,null,null,null,null,null,null,null,null,null,null,null,null,null,null,null,null,null,null,null,null,null,null,"8_665094A_GR_1"]
["FA69469",null,null,null,null,null,null,null,null,null,null,null,null,null,null,null,null,null,null,null,null,null,null,null,null,null,null,null,null,"8_665094A_GR_2"]
["FA69469",null,null,null,null,null,null,null,null,null,null,null,null,null,null,null,null,null,null,null,null,null,null,null,null,null,null,null,null,"8_665094A_GR_3"]
["FA69495",null,null,null,null,null,null,null,null,null,null,null,null,null,null,null,null,null,null,null,null,null,null,null,null,null,null,null,null,""]
["FA69495",null,null,null,null,null,null,null,null,null,null,null,null,null,null,null,null,null,null,null,null,null,null,null,null,null,null,null,null,""]
["FA69495",null,null,null,null,null,null,null,null,null,null,null,null,null,null,null,null,null,null,null,null,null,null,null,null,null,null,null,null,"5-665033B-FG-1"]
["FA69495",null,null,null,null,null,null,null,null,null,null,null,null,null,null,null,null,null,null,null,null,null,null,null,null,null,null,null,null,"5-665033B-FG-2"]
["FA69501",null,null,null,null,null,null,null,null,null,null,null,null,null,null,null,null,null,null,null,null,null,null,null,null,null,null,null,null,"8_660094A_VD_1"]
["FA69501",null,null,null,null,null,null,null,null,null,null,null,null,null,null,null,null,null,null,null,null,null,null,null,null,null,null,null,null,"8_660094A_VD_2"]
["FA69502",null,null,null,null,null,null,null,null,null,null,null,null,null,null,null,null,null,null,null,null,null,null,null,null,null,null,null,null,""]
["FA69504",null,null,null,null,null,null,null,null,null,null,null,null,null,null,null,null,null,null,null,null,null,null,null,null,null,null,null,null,"8_660097C_VD_1"]
["FA69504",null,null,null,null,null,null,null,null,null,null,null,null,null,null,null,null,null,null,null,null,null,null,null,null,null,null,null,null,"8_660097C_VD_2"]
["FA69513",null,null,null,null,null,null,null,null,null,null,null,null,null,null,null,null,null,null,null,null,null,null,null,null,null,null,null,null,"1-660096B0-VM-1"]
["FA69513",null,null,null,null,null,null,null,null,null,null,null,null,null,null,null,null,null,null,null,null,null,null,null,null,null,null,null,null,"1-660096B0-VM-2"]
["FA69513",null,null,null,null,null,null,null,null,null,null,null,null,null,null,null,null,null,null,null,null,null,null,null,null,null,null,null,null,"1-660096B0-VM-3"]
["FA69513",null,null,null,null,null,null,null,null,null,null,null,null,null,null,null,null,null,null,null,null,null,null,null,null,null,null,null,null,"5-660096B-FG-1"]
["FA69513",null,null,null,null,null,null,null,null,null,null,null,null,null,null,null,null,null,null,null,null,null,null,null,null,null,null,null,null,"5-660096B-FG-2"]
["FA69741",null,null,null,null,null,null,null,null,null,null,null,null,null,null,null,null,null,null,null,null,null,null,null,null,null,null,null,null,""]
["FA69741",null,null,null,null,null,null,null,null,null,null,null,null,null,null,null,null,null,null,null,null,null,null,null,null,null,null,null,null,""]
["FA69742",null,null,null,null,null,null,null,null,null,null,null,null,null,null,null,null,null,null,null,null,null,null,null,null,null,null,null,null,""]
["FA69742",null,null,null,null,null,null,null,null,null,null,null,null,null,null,null,null,null,null,null,null,null,null,null,null,null,null,null,null,""]
["FA69743",null,null,null,null,null,null,null,null,null,null,null,null,null,null,null,null,null,null,null,null,null,null,null,null,null,null,null,null,""]
["FA69743",null,null,null,null,null,null,null,null,null,null,null,null,null,null,null,null,null,null,null,null,null,null,null,null,null,null,null,null,""]
["FA69745",null,null,null,null,null,null,null,null,null,null,null,null,null,null,null,null,null,null,null,null,null,null,null,null,null,null,null,null,""]
["FA69745",null,null,null,null,null,null,null,null,null,null,null,null,null,null,null,null,null,null,null,null,null,null,null,null,null,null,null,null,""]
["FA69749",null,null,null,null,null,null,null,null,null,null,null,null,null,null,null,null,null,null,null,null,null,null,null,null,null,null,null,null,"1-665027A0-VM-1"]
["FA69749",null,null,null,null,null,null,null,null,null,null,null,null,null,null,null,null,null,null,null,null,null,null,null,null,null,null,null,null,"1-665027A0-VM-2"]
["FA69749",null,null,null,null,null,null,null,null,null,null,null,null,null,null,null,null,null,null,null,null,null,null,null,null,null,null,null,null,"5-665027A-FG-1"]
["FA69749",null,null,null,null,null,null,null,null,null,null,null,null,null,null,null,null,null,null,null,null,null,null,null,null,null,null,null,null,"5-665027A-FG-2"]
["FA69750",null,null,null,null,null,null,null,null,null,null,null,null,null,null,null,null,null,null,null,null,null,null,null,null,null,null,null,null,""]
["FA69750",null,null,null,null,null,null,null,null,null,null,null,null,null,null,null,null,null,null,null,null,null,null,null,null,null,null,null,null,""]
["FA69750",null,null,null,null,null,null,null,null,null,null,null,null,null,null,null,null,null,null,null,null,null,null,null,null,null,null,null,null,"5-665032A-FG-2"]
["FA69750",null,null,null,null,null,null,null,null,null,null,null,null,null,null,null,null,null,null,null,null,null,null,null,null,null,null,null,null,"5-665032A-FG-1"]
["FA69751",null,null,null,null,null,null,null,null,null,null,null,null,null,null,null,null,null,null,null,null,null,null,null,null,null,null,null,null,""]
["FA69751",null,null,null,null,null,null,null,null,null,null,null,null,null,null,null,null,null,null,null,null,null,null,null,null,null,null,null,null,""]
["FA69751",null,null,null,null,null,null,null,null,null,null,null,null,null,null,null,null,null,null,null,null,null,null,null,null,null,null,null,null,"5-665032A-FG-2"]
["FA69751",null,null,null,null,null,null,null,null,null,null,null,null,null,null,null,null,null,null,null,null,null,null,null,null,null,null,null,null,"5-665032A-FG-1"]
["FA69752",null,null,null,null,null,null,null,null,null,null,null,null,null,null,null,null,null,null,null,null,null,null,null,null,null,null,null,null,""]
["FA69752",null,null,null,null,null,null,null,null,null,null,null,null,null,null,null,null,null,null,null,null,null,null,null,null,null,null,null,null,""]
["FA69753",null,null,null,null,null,null,null,null,null,null,null,null,null,null,null,null,null,null,null,null,null,null,null,null,null,null,null,null,"4_665051A0_VD_1"]
["FA69753",null,null,null,null,null,null,null,null,null,null,null,null,null,null,null,null,null,null,null,null,null,null,null,null,null,null,null,null,"4_665051A0_VD_2"]
["FA69753",null,null,null,null,null,null,null,null,null,null,null,null,null,null,null,null,null,null,null,null,null,null,null,null,null,null,null,null,"5-665051A-RF-1"]
["FA69753",null,null,null,null,null,null,null,null,null,null,null,null,null,null,null,null,null,null,null,null,null,null,null,null,null,null,null,null,"5-665051A-RF-2"]
["FA69754",null,null,null,null,null,null,null,null,null,null,null,null,null,null,null,null,null,null,null,null,null,null,null,null,null,null,null,null,"4_665052A0_VD_1"]
["FA69754",null,null,null,null,null,null,null,null,null,null,null,null,null,null,null,null,null,null,null,null,null,null,null,null,null,null,null,null,"4_665052A0_VD_2"]
["FA69754",null,null,null,null,null,null,null,null,null,null,null,null,null,null,null,null,null,null,null,null,null,null,null,null,null,null,null,null,"5-665052A-RF-1"]
["FA69754",null,null,null,null,null,null,null,null,null,null,null,null,null,null,null,null,null,null,null,null,null,null,null,null,null,null,null,null,"5-665052A-RF-2"]
["FA69755",null,null,null,null,null,null,null,null,null,null,null,null,null,null,null,null,null,null,null,null,null,null,null,null,null,null,null,null,""]
["FA69755",null,null,null,null,null,null,null,null,null,null,null,null,null,null,null,null,null,null,null,null,null,null,null,null,null,null,null,null,""]
["FA69756",null,null,null,null,null,null,null,null,null,null,null,null,null,null,null,null,null,null,null,null,null,null,null,null,null,null,null,null,""]
["FA69756",null,null,null,null,null,null,null,null,null,null,null,null,null,null,null,null,null,null,null,null,null,null,null,null,null,null,null,null,""]
["FA69757",null,null,null,null,null,null,null,null,null,null,null,null,null,null,null,null,null,null,null,null,null,null,null,null,null,null,null,null,"7-665091A0-GR-1"]
["FA69757",null,null,null,null,null,null,null,null,null,null,null,null,null,null,null,null,null,null,null,null,null,null,null,null,null,null,null,null,"7-665091A0-GR-2"]
["FA69757",null,null,null,null,null,null,null,null,null,null,null,null,null,null,null,null,null,null,null,null,null,null,null,null,null,null,null,null,"5-665091A-FG-1"]
["FA69757",null,null,null,null,null,null,null,null,null,null,null,null,null,null,null,null,null,null,null,null,null,null,null,null,null,null,null,null,"5-665091A-FG-2"]
["FA69758",null,null,null,null,null,null,null,null,null,null,null,null,null,null,null,null,null,null,null,null,null,null,null,null,null,null,null,null,"8_665092A_GR_1"]
["FA69758",null,null,null,null,null,null,null,null,null,null,null,null,null,null,null,null,null,null,null,null,null,null,null,null,null,null,null,null,"8_665092A_GR_2"]
["FA69758",null,null,null,null,null,null,null,null,null,null,null,null,null,null,null,null,null,null,null,null,null,null,null,null,null,null,null,null,"8_665092A_GR_3"]
["FA69759",null,null,null,null,null,null,null,null,null,null,null,null,null,null,null,null,null,null,null,null,null,null,null,null,null,null,null,null,"8_665096A_GR_1"]
["FA69759",null,null,null,null,null,null,null,null,null,null,null,null,null,null,null,null,null,null,null,null,null,null,null,null,null,null,null,null,"8_665096A_GR_2"]
["FA69759",null,null,null,null,null,null,null,null,null,null,null,null,null,null,null,null,null,null,null,null,null,null,null,null,null,null,null,null,"8_665096A_GR_3"]
["FA69761",null,null,null,null,null,null,null,null,null,null,null,null,null,null,null,null,null,null,null,null,null,null,null,null,null,null,null,null,"1-657925A0-VM-1"]
["FA69761",null,null,null,null,null,null,null,null,null,null,null,null,null,null,null,null,null,null,null,null,null,null,null,null,null,null,null,null,"1-657925A0-VM-2"]
["FA69763",null,null,null,null,null,null,null,null,null,null,null,null,null,null,null,null,null,null,null,null,null,null,null,null,null,null,null,null,""]
["FA69763",null,null,null,null,null,null,null,null,null,null,null,null,null,null,null,null,null,null,null,null,null,null,null,null,null,null,null,null,""]
["FA69763",null,null,null,null,null,null,null,null,null,null,null,null,null,null,null,null,null,null,null,null,null,null,null,null,null,null,null,null,""]
["FA69763",null,null,null,null,null,null,null,null,null,null,null,null,null,null,null,null,null,null,null,null,null,null,null,null,null,null,null,null,""]
["FA69771",null,null,null,null,null,null,null,null,null,null,null,null,null,null,null,null,null,null,null,null,null,null,null,null,null,null,null,null,"1-665085A0-GR-1"]
["FA69771",null,null,null,null,null,null,null,null,null,null,null,null,null,null,null,null,null,null,null,null,null,null,null,null,null,null,null,null,"1-665085A0-GR-2"]
["FA69771",null,null,null,null,null,null,null,null,null,null,null,null,null,null,null,null,null,null,null,null,null,null,null,null,null,null,null,null,"5-665085A-FG-1"]
["FA69771",null,null,null,null,null,null,null,null,null,null,null,null,null,null,null,null,null,null,null,null,null,null,null,null,null,null,null,null,"5-665085A-FG-2"]